Workbook

Sheet 【入力案内】
B2: 【入力案内】エネルギーコスト削減促進ツールについて
B4: 〇 「エネルギーコスト削減促進ツール」（以下「本ツール」という。）は、省エネルギー設備の投資をする際の判断材料を提供するツールです。 〇 具体的には、Ⅰ 投資設備の情報や資金の調達方法から今回投資する設備の回収期間を算出する 「導入設備」 の観点、Ⅱ 電気代・ガス代等のお支払い状況から投資によって削減できる水道光熱費等・CO2排出量を算出する 「エネルギーコスト・二酸化炭素排出量」 の観点、Ⅲ 決算書から会社全体の財務状況を検討する 「財務指標」 の観点、の３つの観点からシミュレーションをすることが可能です。データの出力に際しては、カーボンニュートラルに向けた投資促進税制や経営革新計画の申請に活用可能な各種様式を出力できます。 〇 それぞれのシミュレーションは個別に実施することも可能ですし、３つの観点の全てをご入力いただくと総合判断のための「設備投資判断結果」のシートを出力することが可能となります。ぜひ、本ツールをご活用いただき、収益構造の改善に向けた経営計画の立案にご利用ください。
B9: データ入力 | F9: データ出力
B10: 以下の各入力シートにデータを入力していただくことで、各様式のシートが出力されます。 | F10: 右のボタンを押していただくことで全ての出力シートが別ファイルに出力されます。
B12: 区分 | C12: 入力内容 | D12: 入力シート | F12: 区分 | G12: 出力内容 | H12: 出力シート | J12: 出力内容
B13: Ⅰ 導入設備 | C13: 設備のカタログや見積書から製品情報を入力します。 また、資金調達方法（借入や補助金など）を入力します。 | D13: 【入力】導入設備 | F13: Ⅰ 導入設備 | G13: 今回投資設備の回収期間と、投資設備の法定耐用年数を比較し、投資計画が妥当かどうかが分かります。 ※ 同様の設備を投資している県内の事例をグラフに出力できるため、他社のデータを比較しながら計画を立案することができます。 | H13: 【出力】投資回収期間 | J13: Ⅳ 総合判断 ・Ⅰ～Ⅲの入力情報 から計算結果をまとめて出力できます。 【出力】設備投資判断結果
D15: ※ 【入力】導入設備のタブへは、 上の入力フォーム（ボタン）から簡単に入力できます。 ※ 設備区分・設備種別をご入力いただくと、【出力】 削減量グラフが表示されますので、ご活用ください。 | H15: 【出力】散布図
H17: 【出力】削減量グラフ（選択設備）
H19: 【出力】削減量グラフ（全設備）
B21: Ⅱ エネルギーコスト・ 二酸化炭素排出量 | C21: 電気・都市ガス等の使用量・使用金額を入力します。 ※ 【入力】導入設備の下記の項目を入力すると、今回の投資によって削減できるエネルギーコストや二酸化炭素排出量が分かります。 ・設備区分 ・投資額 ※ 【入力】企業情報の下記の項目を入力すると、県内の似たような業種、売上規模の他社のエネルギーコストや二酸化炭素排出量が分かります。 ・ローカルベンチマーク23業種_大分類 ・売上高（最新決算期） | D21: 【入力】CO2算出（電気・都市ガス） 年間を通じての電気等の使用量・使用金額が 分かる場合には、こちらのシートから入力してください。 | F21: Ⅱ エネルギーコスト・ 二酸化炭素排出量 | G21: 会社全体の現在のエネルギーコスト（≒水道光熱費）や二酸化炭素排出量を見える化します。 さらに、今回の投資によって削減できるエネルギーコストや二酸化炭素排出量が分かります。
H23: 【出力】投資によるエネルギーコスト・CO2排出量削減効果
D25: ↑ 【入力補助】CO2排出量 年間の電気等使用量・金額が分からない 場合には、こちらのシートから毎月の伝票を 入力することで上記の年間データを入力 することができます。 | H25: 【出力】CO2排出量計算表……※
H27: 【出力】炭素生産性……………※
H29: ※ カーボンニュートラルに向けた投資促進税制の申請に必要な様式です。出力内容をご確認の上、申請にご活用ください。
D31: 【入力】導入設備………※
D32: 【入力】企業情報………※
B33: Ⅲ 財務指標 | C33: 業種、従業員数、決算書（貸借対照表・損益計算書）の内容を入力します。 | D33: 【入力】企業情報 | F33: Ⅲ 財務指標 | G33: 会社の財務状況を安全性や健全性等の６項目から評価でき、 会社全体でみて投資が可能な状態か分かります。 | H33: 【出力】財務分析
H35: 【出力】ローカルベンチマーク
H37: 【出力】経営革新計画（申請必要書類）

Sheet 【出力】設備投資判断結果
A1: 設備投資判断の結果
B3: 設備投資 資金回収期間
B4: =" 投資設備："&【入力】導入設備!C4&" （投資額："&IF(【入力】導入設備!C9="","",TEXT(【入力】導入設備!C9,"#,##0")&"千円") &" ）" -> 投資設備： （投資額： ）
B5: 回収年数 | D5: =IF(【入力】導入設備!C29="","-",ROUND(【入力】導入設備!C29,2)&"年") -> - | G5: =IF(【入力】導入設備!C29<【入力】導入設備!C8,"償却が終わる前に回収することができます。","償却が終わる前に回収することができません。") -> 償却が終わる前に回収することができません。
M6: ■基本情報
B7: 法定耐用年数 | D7: =IF(【入力】導入設備!C8="","-",ROUND(【入力】導入設備!C8,1)&"年") -> - | M7: 商号 | P7: =【出力】財務分析!D5 -> 
M9: 所在地 | P9: =【出力】財務分析!D6 -> 
M10: 代表者名 | P10: =【出力】財務分析!D7 -> 
B11: エネルギーコスト・CO2排出量（同規模同業種との比較） | M11: 業種_大分類 | P11: =【出力】財務分析!D9 -> 
M12: 業種_小分類 | P12: =【出力】財務分析!D10 -> 
B13: =" 業種 ※1："&【参考】データ集計!BF2&" ／ 売上規模（千円）："&【参考】データ集計!BG2 -> 業種 ※1： ／ 売上規模（千円）： | M13: 事業規模 | P13: =【出力】財務分析!D20 -> 業種欄が未入力のため規模判定ができません
B14: ="（該当件数： "&【参考】データ集計!BS2&" 件）" -> （該当件数： 0 件）
B15: 自社コスト年間合計額（千円） | E15: 導入前 | H15: 導入後※3 | M15: 売上高 | P15: =【出力】財務分析!$D$27 -> 
E16: =【出力】CO2排出量計算表!L58 -> 0 | H16: =IFERROR(IF(【入力】導入設備!C22="",E16-VLOOKUP(VLOOKUP(【入力】導入設備!C9*1000,【参照】選択リスト!A87:B103,2),'【出力】削減量グラフ（選択設備）'!C60:H80,4,FALSE),E16-【入力】導入設備!C22),0) -> 0 | M16: 営業利益 | P16: =【出力】財務分析!$D$29 -> 
M17: 従業員数 | P17: =【出力】財務分析!D12 -> 
B19: （参考）助成金申請者コスト平均額（千円） | E19: =IFERROR(【参考】データ集計!BT2/1000,"該当データがありません") -> 該当データがありません
M20: ■財務指標(最新期）
M21: 指標 | P21: =【出力】財務分析!D26 -> 
B22: 自社CO2年間排出量（t-CO2） | E22: 導入前 | H22: 導入後 ※3 | P22: 算出結果 | R22: 貴社点数 | T22: 業種基準値
E23: =【出力】CO2排出量計算表!K57 -> 0 | H23: =IFERROR(IF(C49=0,【出力】CO2排出量計算表!K57-(【参照】散布図_計算式!K3*【入力】導入設備!C9 +(【参照】散布図_計算式!L3)), IF(C49=1, 【出力】CO2排出量計算表!K57-【参照】散布図_計算式!L3, IF(B49 = 0,【出力】CO2排出量計算表!K57-VLOOKUP(VLOOKUP(【入力】導入設備!C9*1000,【参照】選択リスト!A87:B103,2),'【出力】削減量グラフ（全設備）'!C60:H80,6,FALSE),【出力】CO2排出量計算表!K57-VLOOKUP(VLOOKUP(【入力】導入設備!C9*1000,【参照】選択リスト!A87:B103,2),'【出力】削減量グラフ（選択設備）'!C60:H80,6,FALSE)))),0) -> 0 | M23: ①売上増加率 | P23: =【出力】財務分析!K6 -> - | R23: =【出力】財務分析!L6 -> . | T23: =IFERROR(INDEX(【参照】売上増加率基準値!$E:$E,MATCH($P$12&$P$13,INDEX(【参照】売上増加率基準値!$C:$C&【参照】売上増加率基準値!$D:$D,),0)),"-") -> -
M24: ②営業利益率 | P24: =【出力】財務分析!K7 -> - | R24: =【出力】財務分析!L7 -> . | T24: =IFERROR(INDEX(【参照】営業利益率基準値!$E:$E,MATCH($P$12&$P$13,INDEX(【参照】営業利益率基準値!$C:$C&【参照】営業利益率基準値!$D:$D,),0)),"-") -> -
B25: 自社の設備導入後CO2削減量 | E25: =IFERROR(IF(C49=0, "約" & ROUND(【参照】散布図_計算式!K3*【入力】導入設備!C9 +(【参照】散布図_計算式!L3),1) & "t（" & ROUND((【参照】散布図_計算式!K3*【入力】導入設備!C9 +(【参照】散布図_計算式!L3)) /E23 *100, 1) & "%）", IF(C49=1, "約" & ROUND(【参照】散布図_計算式!L3, 1) & "t（" & ROUND(【参照】散布図_計算式!L3 / E23 * 100,1) & "%）", IF(B49 = 0, "約" & ROUND(VLOOKUP(VLOOKUP(【入力】導入設備!C9*1000,【参照】選択リスト!A87:B103,2),'【出力】削減量グラフ（全設備）'!C60:H80,6,FALSE),1) & "t（" & ROUND(VLOOKUP(VLOOKUP(【入力】導入設備!C9*1000,【参照】選択リスト!A87:B103,2),'【出力】削減量グラフ（全設備）'!C60:H80,6,FALSE) / E23 * 100,1) & "%）", "約" & ROUND(VLOOKUP(VLOOKUP(【入力】導入設備!C9*1000,【参照】選択リスト!A87:B103,2),'【出力】削減量グラフ（選択設備）'!C60:H80,6,FALSE),1) & "t（" & ROUND(VLOOKUP(VLOOKUP(【入力】導入設備!C9*1000,【参照】選択リスト!A87:B103,2),'【出力】削減量グラフ（選択設備）'!C60:H80,6,FALSE) / E23 * 100,1) & "%）"))),"0.0") -> 0.0 | M25: ③労働生産性 | P25: =【出力】財務分析!K8 -> - | R25: =【出力】財務分析!L8 -> . | T25: =IFERROR(INDEX(【参照】労働生産性基準値!$E:$E,MATCH($P$12&$P$13,INDEX(【参照】労働生産性基準値!$C:$C&【参照】労働生産性基準値!$D:$D,),0)),"-") -> -
M26: ④EBITDA有利子負債倍率 | P26: =【出力】財務分析!K9 -> - | R26: =【出力】財務分析!L9 -> . | T26: =IFERROR(INDEX(【参照】EBITDA基準値!$E:$E,MATCH($P$12&$P$13,INDEX(【参照】EBITDA基準値!$C:$C&【参照】EBITDA基準値!$D:$D,),0)),"-") -> -
B27: ="電気事業者メニュー:"&'【入力】CO2算出（電気・都市ガス）'!L29 -> 電気事業者メニュー:中部電力ミライズ(株) メニューA | E27: CO2を削減可能 | J27: =IF(B49 = 0, "※", "") ->  | M27: ⑤営業運転資本回転期間 | P27: =【出力】財務分析!K10 -> - | R27: =【出力】財務分析!L10 -> . | T27: =IFERROR(INDEX(【参照】営業運転資本回転期間基準値!$E:$E,MATCH($P$12&$P$13,INDEX(【参照】営業運転資本回転期間基準値!$C:$C&【参照】営業運転資本回転期間基準値!$D:$D,),0)),"-") -> -
M28: ⑥自己資本比率 | P28: =【出力】財務分析!K11 -> - | R28: =【出力】財務分析!L11 -> . | T28: =IFERROR(INDEX(【参照】自己資本比率基準値!$E:$E,MATCH($P$12&$P$13,INDEX(【参照】自己資本比率基準値!$C:$C&【参照】自己資本比率基準値!$D:$D,),0)),"-") -> -
B29: （参考）助成金申請者CO2平均排出量 （t-CO2）※2 | E29: =IFERROR(【参考】データ集計!BU2,"該当データがありません") -> 該当データがありません
P30: 総合評価点 | S30: =SUM(R23:S28) -> 0 | T30: =IF(S30>=24,"A",IF(S30>=18,"B",IF(S30>=12,"C","D"))) -> D
B31: =IF(B49 = 0, "※ 選択された設備のデータがないため、全設備のデータを使用しています。", "") -> 
B33: 財務指標（ローカルベンチマークから会社の経営安定に関係する指標を抜粋） | M33: ■財務指標（過去2期）
M34: 指標 | P34: =【出力】財務分析!E26 ->  | V34: =【出力】財務分析!F26 ->  | AD34: ※１各項目の評点および総合評価点は各項目の業種基準値からの乖離を示すものであり、点数の高低が必ずしも企業の評価を示すものではありません。非財務指標も含め、総合的な判断が必要なことにご留意ください。 ※２レーダーチャートで3期分の財務分析結果の推移が確認できるため、各指標が良化（あるいは悪化）した要因を非財務の対話シートを活用しながら把握することで、経営状況や課題の把握に繋がります。
B35: EBITDA有利子負債倍率 【健全性・低いほどよい】 （借入金－現金・預金）／ （営業利益＋減価償却費） | E35: 自社点数 5点満点 | G35: 自社 | I35: 業種基準値 | P35: 算出結果 | R35: 貴社点数 | T35: 業種基準値 | V35: 算出結果 | Y35: 貴社点数 | AA35: 業種基準値
M36: ①売上増加率 | P36: =【出力】財務分析!M6 -> - | R36: =【出力】財務分析!N6 -> . | T36: =IFERROR(INDEX(【参照】売上増加率基準値!$E:$E,MATCH($P$12&$P$13,INDEX(【参照】売上増加率基準値!$C:$C&【参照】売上増加率基準値!$D:$D,),0)),"-") -> - | V36: =【出力】財務分析!O6 -> - | Y36: =【出力】財務分析!P6 -> . | AA36: =IFERROR(INDEX(【参照】売上増加率基準値!$E:$E,MATCH($P$12&$P$13,INDEX(【参照】売上増加率基準値!$C:$C&【参照】売上増加率基準値!$D:$D,),0)),"-") -> -
E37: =【出力】ローカルベンチマーク!H26 -> . | G37: =【出力】ローカルベンチマーク!F26 -> - | I37: =【出力】ローカルベンチマーク!J26 -> - | M37: ②営業利益率 | P37: =【出力】財務分析!M7 -> - | R37: =【出力】財務分析!N7 -> . | T37: =IFERROR(INDEX(【参照】営業利益率基準値!$E:$E,MATCH($P$12&$P$13,INDEX(【参照】営業利益率基準値!$C:$C&【参照】営業利益率基準値!$D:$D,),0)),"-") -> - | V37: =【出力】財務分析!O7 -> - | Y37: =【出力】財務分析!P7 -> . | AA37: =IFERROR(INDEX(【参照】営業利益率基準値!$E:$E,MATCH($P$12&$P$13,INDEX(【参照】営業利益率基準値!$C:$C&【参照】営業利益率基準値!$D:$D,),0)),"-") -> -
M38: ③労働生産性 | P38: =【出力】財務分析!M8 -> - | R38: =【出力】財務分析!N8 -> . | T38: =IFERROR(INDEX(【参照】労働生産性基準値!$E:$E,MATCH($P$12&$P$13,INDEX(【参照】労働生産性基準値!$C:$C&【参照】労働生産性基準値!$D:$D,),0)),"-") -> - | V38: =【出力】財務分析!O8 -> - | Y38: =【出力】財務分析!P8 -> . | AA38: =IFERROR(INDEX(【参照】労働生産性基準値!$E:$E,MATCH($P$12&$P$13,INDEX(【参照】労働生産性基準値!$C:$C&【参照】労働生産性基準値!$D:$D,),0)),"-") -> -
M39: ④EBITDA有利子負債倍率 | P39: =【出力】財務分析!M9 -> - | R39: =【出力】財務分析!N9 -> . | T39: =IFERROR(INDEX(【参照】EBITDA基準値!$E:$E,MATCH($P$12&$P$13,INDEX(【参照】EBITDA基準値!$C:$C&【参照】EBITDA基準値!$D:$D,),0)),"-") -> - | V39: =【出力】財務分析!O9 -> - | Y39: =【出力】財務分析!P9 -> . | AA39: =IFERROR(INDEX(【参照】EBITDA基準値!$E:$E,MATCH($P$12&$P$13,INDEX(【参照】EBITDA基準値!$C:$C&【参照】EBITDA基準値!$D:$D,),0)),"-") -> -
M40: ⑤営業運転資本回転期間 | P40: =【出力】財務分析!M10 -> - | R40: =【出力】財務分析!N10 -> . | T40: =IFERROR(INDEX(【参照】営業運転資本回転期間基準値!$E:$E,MATCH($P$12&$P$13,INDEX(【参照】営業運転資本回転期間基準値!$C:$C&【参照】営業運転資本回転期間基準値!$D:$D,),0)),"-") -> - | V40: =【出力】財務分析!O10 -> - | Y40: =【出力】財務分析!P10 -> . | AA40: =IFERROR(INDEX(【参照】営業運転資本回転期間基準値!$E:$E,MATCH($P$12&$P$13,INDEX(【参照】営業運転資本回転期間基準値!$C:$C&【参照】営業運転資本回転期間基準値!$D:$D,),0)),"-") -> -
B41: 自己資本比率 【安全性・高いほどよい】 純資産／負債・純資産合計 | E41: 自社点数 5点満点 | G41: 自社 | I41: 業種基準値 | M41: ⑥自己資本比率 | P41: =【出力】財務分析!M11 -> - | R41: =【出力】財務分析!N11 -> . | T41: =IFERROR(INDEX(【参照】自己資本比率基準値!$E:$E,MATCH($P$12&$P$13,INDEX(【参照】自己資本比率基準値!$C:$C&【参照】自己資本比率基準値!$D:$D,),0)),"-") -> - | V41: =【出力】財務分析!O11 -> - | Y41: =【出力】財務分析!P11 -> . | AA41: =IFERROR(INDEX(【参照】自己資本比率基準値!$E:$E,MATCH($P$12&$P$13,INDEX(【参照】自己資本比率基準値!$C:$C&【参照】自己資本比率基準値!$D:$D,),0)),"-") -> -
E43: =【出力】ローカルベンチマーク!H28 -> . | G43: =【出力】ローカルベンチマーク!F28 -> - | I43: =【出力】ローカルベンチマーク!J28 -> - | P43: 総合評価点 | S43: =SUM(R36:S41) -> 0 | T43: =IF(S43>=24,"A",IF(S43>=18,"B",IF(S43>=12,"C","D"))) -> D | V43: 総合評価点 | Z43: =SUM(Y36:Z41) -> 0 | AA43: =IF(Z43>=24,"A",IF(Z43>=18,"B",IF(Z43>=12,"C","D"))) -> D
B45: 総合評価点（30点満点） | E45: =【出力】ローカルベンチマーク!I30 -> 0 | G45: =【出力】ローカルベンチマーク!J30 -> D | P45: ※総合評価点のランクはA：24点以上、B：18点以上24点未満、C：12点以上18点未満、D：12点未満
B49: =IFERROR(VLOOKUP(VLOOKUP(【入力】導入設備!C9*1000,【参照】選択リスト!A87:B103,2),'【出力】削減量グラフ（選択設備）'!C60:H80,6,FALSE), "") ->  | C49: =IF(【参照】散布図_計算式!M3="該当データなし",2,IF(AND(【参照】散布図_計算式!K3=0,【参照】散布図_計算式!N3<>"該当データなし"),1,0)) -> 2 | L49: 引用元：ローカルベンチマーク（経済産業省HP）
A50: （注意事項）
B51: ※1 日本標準分類（細分類）の「一般貸切旅客自動車運送業」「航空運送業」「他に分類されない運輸に附帯するサービス業」「旅行業（旅行業者代理業を除く）」
B52: 「旅行業者代理業」「他に分類されないその他の生活関連サービス業」については「サービス業，その他」に含まれます。
B53: ※2 CO2排出量について、算出には下記の一般的な係数を使用しているため参考値となります。
B54: 電気：【入力】CO2算出（電気・都市ガス）にて選択した導入後の電気事業者メニューの係数を使用
B55: LPG（㎥）：0.0142、LPG（kl）：0.0161、LNG（㎥）：0.0139、LNG（kl）：0.0135、都市ガス：0.0136（単位発熱量係数：45）、灯油：0.0185、A重油：0.0189
B56: ※3 「自社コスト年間合計額（導入後）」「自社CO2年間排出量（導入後）」の値は、他社のデータや入力いただいた水道光熱費のデータなどを基に算出しています。
B57: 各項目の値の算出の考え方は下記の通りです。
B58: 自社コスト年間合計額（導入後）：（自社コスト年間合計額（導入前））ー（光熱水費削減額） ※光熱水費削減額は、シート「【入力】導入設備」より値を取得しております。
B59: 自社CO2年間排出量（導入後）：（自社CO2年間排出量（導入前））-（助成金申請者のデータより算出したCO2削減量参考値）
B60: ※（助成金申請者のデータより算出したCO2削減量参考値）について、選択した設備の助成金申請者データがある場合は、選択設備に絞り込んだデータの近似曲線を利用して値を算出しています。
B61: データの傾向についてはシート「【出力】散布図」のグラフをご確認ください。
B62: 選択した設備の助成金申請者データがない場合は、全設備のデータの平均CO2削減量を使用しています。

Sheet 【入力】導入設備
B1: 黄色の欄は必ずご入力ください。（正しく出力されません。）水色の欄の入力は任意です。
B3: 導入設備 | C3: ※金額の単位は千円
B4: 設備名 | D4: 例）〇〇製 冷蔵機器
B5: 型番 | D5: 例）ABC-123
B6: 設備区分（大分類） | D6: 例）空調・換気設備 ※リスト選択
B7: 設備種別（細分類） | D7: 例）業務用エアコン ※リスト選択
B8: 法定耐用年数（年） | D8: 例）4 ※「設備名＋法定耐用年数」で検索することで取得できます。
B9: 投資額（千円） | D9: 例）1,000
B11: 資金調達先 | C11: ※金額の単位は千円 | F11: =IF($C$9<>$F$14,"※投資額と調達額の合計が異なります","") -> 
B12: 調達方法 | F12: 合計 | G12: 例）借入、その他
B13: 調達先 | G13: 例）〇〇銀行
B14: 調達額（千円） | F14: =SUM(C14:E14) -> 0 | G14: 例）2,000
B15: 月返済元金（千円） | F15: =SUMIF(C12:E12,"借入",C15:E15) -> 0 | G15: 例）100
B16: 返済期間（月） | F16: - | G16: 例）36
B17: 年支払利率（％） | F17: =IFERROR(SUMPRODUCT((C12:E12="借入")*(C14:E14),(C12:E12="借入")*(C17:E17))/SUMIF(C12:E12,"借入",C14:E14),0) -> 0 | G17: 例）2.5
B19: 増減額計算 | C19: ※金額の単位は千円 | E19: 「修正後データ反映」ボタンを押下すると修正内容に基づき再計算されます。また、併せて2年目～5年目欄に1年目の値をコピーします。
B20: 項目 | C20: 1年目 | D20: 2年目 | E20: 3年目 | F20: 4年目 | G20: 5年目
B21: ①減価償却費増加額 | H21: 例）600
B22: ②水道光熱費削減額 | H22: 例）350
B23: ③借入利息支払 | H23: 例）20
B24: ④その他増減額 | H24: 例）-80
B25: ⑤法人税等税率（％） | H25: 例）20
B26: ⑥法人税等増減額（ー①＋②－③＋④)×⑤ | C26: =(-C21+C22-C23+C24)*C25/100 -> 0 | D26: =(-D21+D22-D23+D24)*D25/100 -> 0 | E26: =(-E21+E22-E23+E24)*E25/100 -> 0 | F26: =(-F21+F22-F23+F24)*F25/100 -> 0 | G26: =(-G21+G22-G23+G24)*G25/100 -> 0
B27: 合計増減額（①＋②－③＋④－⑥） | C27: =C21+C22-C23+C24-C26 -> 0 | D27: =D21+D22-D23+D24-D26 -> 0 | E27: =E21+E22-E23+E24-E26 -> 0 | F27: =F21+F22-F23+F24-F26 -> 0 | G27: =G21+G22-G23+G24-G26 -> 0
B28: 投資による累積利益 | C28: =C27 -> 0 | D28: =IF(D27=0,0,C28+D27) -> 0 | E28: =IF(E27=0,0,D28+E27) -> 0 | F28: =IF(F27=0,0,E28+F27) -> 0 | G28: =IF(G27=0,0,F28+G27) -> 0
B29: 回収期間（年） | E29: 黄色の入力欄に入力後、「回収期間計算」ボタンを押下してください。
C31: ※金額の単位は千円
B32: 年返済額
B33: 借入残額×利率（③の参考値） ※１
B34: 借入残額
B35: ※１ ご入力いただいた内容から近似値を算出しております。精確に計算されたい場合は、お近くの金融機関にお問い合わせください。
B37: ■目次の入力フォームを使用して入力した場合の数値について
B38: 入力フォームより情報を入力した場合、「増減額計算」の①～⑤は概算値が自動的に設定されます。各項目については下記のように値が設定されています。
B39: 各項目の精確な数値がお手元に用意されている場合は、値を修正してください。
B40: ①減価償却費増加額 | C40: 投資額/法定耐用年数
B41: ②水道光熱費削減額 | C41: (設備区分)(投資額)に入力いただいた情報から、散布図の近似曲線を参考に値を算出しています。
C42: 同じ設備区分に投資を行っている企業のデータが無い場合は、この欄は「0」になります。
C43: シート「【出力】散布図」「【出力】削減量グラフ（選択設備）」「【出力】削減量グラフ（全設備）」のデータを参照し、手入力してください。
B44: ③借入利息支払 | C44: 33行目(借入残額×利率)より算出された値を設定しています。
B45: ④その他増減額 | C45: デフォルト値として0を設定しています。
B46: ⑤法人税等税率（％） | C46: 法人税以外（地方税等）も含めているため、デフォルト値として40を設定しています。
B48: ■算出指標
B49: 法人税等増減額 | C49: （ー減価償却費増加額＋水道光熱費削減額ー借入利息支払＋その他増減額）×法人税等税率
B50: 合計増減額 | C50: 減価償却費増加額＋水道光熱費削減額ー借入利息支払＋その他増減額ー法人税等増減額
B51: 投資による累積利益 | C51: 前年までの累積利益＋当年度の合計増減額
B52: 回収期間 | C52: 投資による累積利益が投資額より多くなった年を基準年とします。
C53: (累積利益>投資額となった前年)+｛(投資額)-(その前年までの投資による累積利益)｝/(累積利益>投資額となった年の合計増減額)
C55: 下記に詳細を説明します。
C56: 累積利益>投資額となった前年を整数部とします。
C57: 前年までの「投資による累積利益」から投資額に到達するまでの残額（投資額-その前年のまでの投資による累積利益）を
C58: 投資額に到達する年の合計増減額（累積利益>投資額となった年の合計増減額）で割った数値を、小数部とします。
C59: この2つを足し合わせることで、回収期間を算出しています。
C61: 例えば、投資額：2,000千円で、5年目に投資による累積利益：2,010千円となった場合、
C62: （4年目の投資による累積利益：1,608千円、5年目の合計増減額：402千円）
C63: 累積利益>投資額となった前年：4
C64: (投資額-4年目までの投資による累積利益)/5年目の合計増減額：（2,000-1,608）/402
C65: 回収期間は4.98年となります。
B66: 年返済額 | C66: 月返済元金×12
B67: 借入残額 | C67: 前年までの借入残額ー年返済額

Sheet 【参照】導入設備5年目以降 (hidden)
A2: 項目 | B2: 1年目 | C2: 2年目 | D2: 3年目 | E2: 4年目 | F2: 5年目 | G2: 6年目 | H2: 7年目 | I2: 8年目 | J2: 9年目 | K2: 10年目 | L2: 11年目 | M2: 12年目 | N2: 13年目 | O2: 14年目 | P2: 15年目
A3: ①減価償却費増加額 | B3: =【入力】導入設備!C21 -> 0 | C3: =【入力】導入設備!D21 -> 0 | D3: =【入力】導入設備!E21 -> 0 | E3: =【入力】導入設備!F21 -> 0 | F3: =【入力】導入設備!G21 -> 0 | G3: =IF(【入力】導入設備!$C$8>=6,【入力】導入設備!$G$21,0) -> 0 | H3: =IF(【入力】導入設備!$C$8>=7,【入力】導入設備!$G$21,0) -> 0 | I3: =IF(【入力】導入設備!$C$8>=8,【入力】導入設備!$G$21,0) -> 0 | J3: =IF(【入力】導入設備!$C$8>=9,【入力】導入設備!$G$21,0) -> 0 | K3: =IF(【入力】導入設備!$C$8>=10,【入力】導入設備!$G$21,0) -> 0 | L3: =IF(【入力】導入設備!$C$8>=11,【入力】導入設備!$G$21,0) -> 0 | M3: =IF(【入力】導入設備!$C$8>=12,【入力】導入設備!$G$21,0) -> 0 | N3: =IF(【入力】導入設備!$C$8>=13,【入力】導入設備!$G$21,0) -> 0 | O3: =IF(【入力】導入設備!$C$8>=14,【入力】導入設備!$G$21,0) -> 0 | P3: =IF(【入力】導入設備!$C$8>=15,【入力】導入設備!$G$21,0) -> 0
A4: ②水道光熱費削減額 | B4: =【入力】導入設備!C22 -> 0 | C4: =【入力】導入設備!D22 -> 0 | D4: =【入力】導入設備!E22 -> 0 | E4: =【入力】導入設備!F22 -> 0 | F4: =【入力】導入設備!G22 -> 0 | G4: =【入力】導入設備!$G$22 -> 0 | H4: =【入力】導入設備!$G$22 -> 0 | I4: =【入力】導入設備!$G$22 -> 0 | J4: =【入力】導入設備!$G$22 -> 0 | K4: =【入力】導入設備!$G$22 -> 0 | L4: =【入力】導入設備!$G$22 -> 0 | M4: =【入力】導入設備!$G$22 -> 0 | N4: =【入力】導入設備!$G$22 -> 0 | O4: =【入力】導入設備!$G$22 -> 0 | P4: =【入力】導入設備!$G$22 -> 0
A5: ③借入利息支払 | B5: =【入力】導入設備!C23 -> 0 | C5: =【入力】導入設備!D23 -> 0 | D5: =【入力】導入設備!E23 -> 0 | E5: =【入力】導入設備!F23 -> 0 | F5: =【入力】導入設備!G23 -> 0 | G5: =G13 -> 0 | H5: =H13 -> 0 | I5: 0 | J5: 0 | K5: 0 | L5: 0 | M5: 0 | N5: 0 | O5: 0 | P5: 0
A6: ④その他増減額 | B6: =【入力】導入設備!C24 -> 0 | C6: =【入力】導入設備!D24 -> 0 | D6: =【入力】導入設備!E24 -> 0 | E6: =【入力】導入設備!F24 -> 0 | F6: =【入力】導入設備!G24 -> 0 | G6: =【入力】導入設備!$G$24 -> 0 | H6: =【入力】導入設備!$G$24 -> 0 | I6: =【入力】導入設備!$G$24 -> 0 | J6: =【入力】導入設備!$G$24 -> 0 | K6: =【入力】導入設備!$G$24 -> 0 | L6: =【入力】導入設備!$G$24 -> 0 | M6: =【入力】導入設備!$G$24 -> 0 | N6: =【入力】導入設備!$G$24 -> 0 | O6: =【入力】導入設備!$G$24 -> 0 | P6: =【入力】導入設備!$G$24 -> 0
A7: ⑤法人税等税率（％） | B7: =【入力】導入設備!C25 -> 0 | C7: =【入力】導入設備!D25 -> 0 | D7: =【入力】導入設備!E25 -> 0 | E7: =【入力】導入設備!F25 -> 0 | F7: =【入力】導入設備!G25 -> 0 | G7: =【入力】導入設備!$G$25 -> 0 | H7: =【入力】導入設備!$G$25 -> 0 | I7: =【入力】導入設備!$G$25 -> 0 | J7: =【入力】導入設備!$G$25 -> 0 | K7: =【入力】導入設備!$G$25 -> 0 | L7: =【入力】導入設備!$G$25 -> 0 | M7: =【入力】導入設備!$G$25 -> 0 | N7: =【入力】導入設備!$G$25 -> 0 | O7: =【入力】導入設備!$G$25 -> 0 | P7: =【入力】導入設備!$G$25 -> 0
A8: ⑥法人税等増減額（ー①＋②－③＋④)×⑤ | B8: =【入力】導入設備!C26 -> 0 | C8: =【入力】導入設備!D26 -> 0 | D8: =【入力】導入設備!E26 -> 0 | E8: =【入力】導入設備!F26 -> 0 | F8: =【入力】導入設備!G26 -> 0 | G8: =(-G3+G4-G5+G6)*G7/100 -> 0 | H8: 0 | I8: 0 | J8: 0 | K8: 0 | L8: =(-L3+L4-L5+L6)*L7/100 -> 0 | M8: =(-M3+M4-M5+M6)*M7/100 -> 0 | N8: 0 | O8: 0 | P8: 0
A9: 合計増減額（①＋②－③＋④－⑥） | B9: =【入力】導入設備!C27 -> 0 | C9: =【入力】導入設備!D27 -> 0 | D9: =【入力】導入設備!E27 -> 0 | E9: =【入力】導入設備!F27 -> 0 | F9: =【入力】導入設備!G27 -> 0 | G9: =G3+G4-G5+G6-G8 -> 0 | H9: 0 | I9: 0 | J9: 0 | K9: 0 | L9: 0 | M9: =M3+M4-M5+M6-M8 -> 0 | N9: 0 | O9: 0 | P9: 0
A10: 投資による累積利益 | B10: =【入力】導入設備!C28 -> 0 | C10: =【入力】導入設備!D28 -> 0 | D10: =【入力】導入設備!E28 -> 0 | E10: =【入力】導入設備!F28 -> 0 | F10: =【入力】導入設備!G28 -> 0 | G10: =【入力】導入設備!G28+【参照】導入設備5年目以降!G9 -> 0 | H10: =IF(H9=0,0,G10+H9) -> 0 | I10: 0 | J10: 0 | K10: 0 | L10: 0 | M10: 0 | N10: =IF(N9=0,0,M10+N9) -> 0 | O10: 0 | P10: 0
A12: 年返済額 | B12: 0 | C12: 0 | D12: 0 | E12: 0 | F12: 0 | G12: 0 | H12: 0 | I12: 0 | J12: 0 | K12: 0 | L12: 0 | M12: 0 | N12: 0 | O12: 0 | P12: 0
A13: 借入残額×利率（③の参考値） ※１ | B13: 0 | C13: 0 | D13: 0 | E13: 0 | F13: 0 | G13: 0 | H13: 0 | I13: 0 | J13: 0 | K13: 0 | L13: 0 | M13: 0 | N13: 0 | O13: 0 | P13: 0
A14: 借入残額 | B14: 0 | C14: 0 | D14: 0 | E14: 0 | F14: 0 | G14: 0 | H14: 0 | I14: 0 | J14: 0 | K14: 0 | L14: 0 | M14: 0 | N14: 0 | O14: 0 | P14: 0
A16: 投資額（千円） | B16: =【入力】導入設備!$C$9 -> 0 | C16: =【入力】導入設備!$C$9 -> 0 | D16: =【入力】導入設備!$C$9 -> 0 | E16: =【入力】導入設備!$C$9 -> 0 | F16: =【入力】導入設備!$C$9 -> 0 | G16: =【入力】導入設備!$C$9 -> 0 | H16: =【入力】導入設備!$C$9 -> 0 | I16: =【入力】導入設備!$C$9 -> 0 | J16: =【入力】導入設備!$C$9 -> 0 | K16: =【入力】導入設備!$C$9 -> 0 | L16: =【入力】導入設備!$C$9 -> 0 | M16: =【入力】導入設備!$C$9 -> 0 | N16: =【入力】導入設備!$C$9 -> 0 | O16: =【入力】導入設備!$C$9 -> 0 | P16: =【入力】導入設備!$C$9 -> 0

Sheet 【出力】投資回収期間
A1: 投資回収期間の結果
A2: 今回投資設備の回収期間と、投資設備の法定耐用年数を比較し、投資計画が妥当かどうかが分かります。
B4: 設備投資 資金回収期間
B5: =" 投資設備："&【入力】導入設備!C4&" （投資額："&IF(【入力】導入設備!C9="","",TEXT(【入力】導入設備!C9,"#,##0")&"千円") &" ）" -> 投資設備： （投資額： ）
B6: 回収年数 | D6: =IF(【入力】導入設備!C29="","-",ROUND(【入力】導入設備!C29,2)&"年") -> - | G6: =IF(【入力】導入設備!C29<【入力】導入設備!C8,"償却が終わる前に回収することができます。","償却が終わる前に回収することができません。") -> 償却が終わる前に回収することができません。
B8: 法定耐用年数 | D8: =IF(【入力】導入設備!C8="","-",ROUND(【入力】導入設備!C8,1)&"年") -> -
A13: （参考）投資による累積利益の推移
A14: 「【入力】導入設備」シートにて入力された増減額を参考として、5年目以降の投資による累積利益の推移を表したグラフになります。
A15: 1年目から5年目までの増減額を基とした概算値になりますので、参考としてご確認ください。

Sheet 【出力】散布図
B1: 設備区分・設備種別ごとの散布図
B2: 設備投資を行っている県内のデータを散布図に示しています。電気の二酸化炭素排出量は、電気事業者メニュー「中部電力ミライズ メニューA」の排出係数を使用して算出しています。
B3: 散布図内には近似曲線を引いていますが、「一般・業務用ヒートポンプ式給湯器」「高性能ボイラ」「変圧器」「工作機械」「プレス機械」「印刷機械」は平均線を引いています。
B4: 下記、リスト内のボタンを押下しますと、選択した設備区分、設備種別の散布図に移動することができます。
B5: 設備区分（大分類） | C5: 設備種別（細分類） | E5: 空調・換気設備 | L5: 業務用エアコン | S5: 一般用エアコン
C8: 換気装置（熱交換型）
C9: 温風暖房機・ジェットヒーター
B10: 照明設備
C16: 冷凍・冷蔵ユニットクーラ
B18: エネルギー管理設備 | C18: エネルギーマネジメントシステム
C19: 凍結防止ヒーター用節電器 | E19: =" 相関係数："& ROUND(CORREL([0]!散布図_空調・換気設備_対象経費,[0]!散布図_空調・換気設備_削減額),3) & " ， サンプル数：" & COUNT([0]!散布図_空調・換気設備_対象経費) &"件" -> 相関係数：0.393 ， サンプル数：639件 | L19: =" 相関係数："& ROUND(CORREL([0]!散布図_業務用エアコン_対象経費,[0]!散布図_業務用エアコン_削減額),3) & " ， サンプル数：" & COUNT([0]!散布図_業務用エアコン_対象経費) &"件" -> 相関係数：0.464 ， サンプル数：519件 | S19: =" 相関係数："& ROUND(CORREL([0]!散布図_一般用エアコン_対象経費,[0]!散布図_一般用エアコン_削減額),3) & " ， サンプル数：" & COUNT([0]!散布図_一般用エアコン_対象経費) &"件" -> 相関係数：0.527 ， サンプル数：116件
B20: 恒温設備
B23: 熱電併給設備 | C23: 高効率コージェネレーション
B24: 電気制御設備
C26: 工業炉
B27: 生産設備
C31: ダイカストマシン
C32: 太陽光パネル及び付属設備
C33: 断熱ガラス及びサッシ
E34: =" 相関係数："& ROUND(CORREL([0]!散布図_空調・換気設備_対象経費,[0]!散布図_空調・換気設備_排出削減量_中部電力固定),3) & " ， サンプル数：" & COUNT([0]!散布図_空調・換気設備_対象経費) &"件" -> 相関係数：0.404 ， サンプル数：639件 | L34: =" 相関係数："& ROUND(CORREL([0]!散布図_業務用エアコン_対象経費,[0]!散布図_業務用エアコン_排出削減量_中部電力固定),3) & " ， サンプル数：" & COUNT([0]!散布図_業務用エアコン_対象経費) &"件" -> 相関係数：0.447 ， サンプル数：519件 | S34: =" 相関係数："& ROUND(CORREL([0]!散布図_一般用エアコン_対象経費,[0]!散布図_一般用エアコン_排出削減量_中部電力固定),3) & " ， サンプル数：" & COUNT([0]!散布図_一般用エアコン_対象経費) &"件" -> 相関係数：0.547 ， サンプル数：116件
E36: 業務用LED照明器具 | L36: 一般用LED照明器具 | S36: 非常時用照明器具（非常灯・誘導灯）
E50: =" 相関係数："& ROUND(CORREL([0]!散布図_業務用LED照明器具_対象経費,[0]!散布図_業務用LED照明器具_削減額),3) & " ， サンプル数：" & COUNT([0]!散布図_業務用LED照明器具_対象経費) &"件" -> 相関係数：0.635 ， サンプル数：349件 | L50: =" 相関係数："& ROUND(CORREL([0]!散布図_一般用LED照明器具_対象経費,[0]!散布図_一般用LED照明器具_削減額),3) & " ， サンプル数：" & COUNT([0]!散布図_一般用LED照明器具_対象経費) &"件" -> 相関係数：0.499 ， サンプル数：56件 | S50: =" 相関係数："& ROUND(CORREL([0]!散布図_非常時用照明器具_対象経費,[0]!散布図_非常時用照明器具_削減額),3) & " ， サンプル数：" & COUNT([0]!散布図_非常時用照明器具_対象経費) &"件" -> 相関係数：0.967 ， サンプル数：3件
E65: =" 相関係数："& ROUND(CORREL([0]!散布図_業務用LED照明器具_対象経費,[0]!散布図_業務用LED照明器具_排出削減量_中部電力固定),3) & " ， サンプル数：" & COUNT([0]!散布図_業務用LED照明器具_対象経費) &"件" -> 相関係数：0.628 ， サンプル数：349件 | L65: =" 相関係数："& ROUND(CORREL([0]!散布図_一般用LED照明器具_対象経費,[0]!散布図_一般用LED照明器具_排出削減量_中部電力固定),3) & " ， サンプル数：" & COUNT([0]!散布図_一般用LED照明器具_対象経費) &"件" -> 相関係数：0.421 ， サンプル数：56件 | S65: =" 相関係数："& ROUND(CORREL([0]!散布図_非常時用照明器具_対象経費,[0]!散布図_非常時用照明器具_排出削減量_中部電力固定),3) & " ， サンプル数：" & COUNT([0]!散布図_非常時用照明器具_対象経費) &"件" -> 相関係数：0.957 ， サンプル数：3件
E67: 冷蔵・冷凍設備 | L67: 業務用冷蔵・冷凍庫 | S67: 一般用冷蔵・冷凍庫
E81: =" 相関係数："& ROUND(CORREL([0]!散布図_冷蔵・冷凍設備_対象経費,[0]!散布図_冷蔵・冷凍設備_削減額),3) & " ， サンプル数：" & COUNT([0]!散布図_冷蔵・冷凍設備_対象経費) &"件" -> 相関係数：0.848 ， サンプル数：258件 | L81: =" 相関係数："& ROUND(CORREL([0]!散布図_業務用冷蔵・冷凍庫_対象経費,[0]!散布図_業務用冷蔵・冷凍庫_削減額),3) & " ， サンプル数：" & COUNT([0]!散布図_業務用冷蔵・冷凍庫_対象経費) &"件" -> 相関係数：0.741 ， サンプル数：177件 | S81: =" 相関係数："& ROUND(CORREL([0]!散布図_一般用冷蔵・冷凍庫_対象経費,[0]!散布図_一般用冷蔵・冷凍庫_削減額),3) & " ， サンプル数：" & COUNT([0]!散布図_一般用冷蔵・冷凍庫_対象経費) &"件" -> 相関係数：0.976 ， サンプル数：4件
E96: =" 相関係数："& ROUND(CORREL([0]!散布図_冷蔵・冷凍設備_対象経費,[0]!散布図_冷蔵・冷凍設備_排出削減量_中部電力固定),3) & " ， サンプル数：" & COUNT([0]!散布図_冷蔵・冷凍設備_対象経費) &"件" -> 相関係数：0.845 ， サンプル数：258件 | L96: =" 相関係数："& ROUND(CORREL([0]!散布図_業務用冷蔵・冷凍庫_対象経費,[0]!散布図_業務用冷蔵・冷凍庫_排出削減量_中部電力固定),3) & " ， サンプル数：" & COUNT([0]!散布図_業務用冷蔵・冷凍庫_対象経費) &"件" -> 相関係数：0.702 ， サンプル数：177件 | S96: =" 相関係数："& ROUND(CORREL([0]!散布図_一般用冷蔵・冷凍庫_対象経費,[0]!散布図_一般用冷蔵・冷凍庫_排出削減量_中部電力固定),3) & " ， サンプル数：" & COUNT([0]!散布図_一般用冷蔵・冷凍庫_対象経費) &"件" -> 相関係数：0.977 ， サンプル数：4件
E98: 冷凍・冷蔵ショーケース | L98: コンデンシングユニット | S98: チラー（冷却水循環装置）
E112: =" 相関係数："& ROUND(CORREL([0]!散布図_冷凍・冷蔵ショーケース_対象経費,[0]!散布図_冷凍・冷蔵ショーケース_削減額),3) & " ， サンプル数：" & COUNT([0]!散布図_冷凍・冷蔵ショーケース_対象経費) &"件" -> 相関係数：0.722 ， サンプル数：24件 | L112: =" 相関係数："& ROUND(CORREL([0]!散布図_コンデンシングユニット_対象経費,[0]!散布図_コンデンシングユニット_削減額),3) & " ， サンプル数：" & COUNT([0]!散布図_コンデンシングユニット_対象経費) &"件" -> 相関係数：0.881 ， サンプル数：52件 | S112: =" 相関係数："& ROUND(CORREL([0]!散布図_チラー_対象経費,[0]!散布図_チラー_削減額),3) & " ， サンプル数：" & COUNT([0]!散布図_チラー_対象経費) &"件" -> 相関係数：0.907 ， サンプル数：4件
E127: =" 相関係数："& ROUND(CORREL([0]!散布図_冷凍・冷蔵ショーケース_対象経費,[0]!散布図_冷凍・冷蔵ショーケース_排出削減量_中部電力固定),3) & " ， サンプル数：" & COUNT([0]!散布図_冷凍・冷蔵ショーケース_対象経費) &"件" -> 相関係数：0.736 ， サンプル数：24件 | L127: =" 相関係数："& ROUND(CORREL([0]!散布図_コンデンシングユニット_対象経費,[0]!散布図_コンデンシングユニット_排出削減量_中部電力固定),3) & " ， サンプル数：" & COUNT([0]!散布図_コンデンシングユニット_対象経費) &"件" -> 相関係数：0.853 ， サンプル数：52件 | S127: =" 相関係数："& ROUND(CORREL([0]!散布図_チラー_対象経費,[0]!散布図_チラー_排出削減量_中部電力固定),3) & " ， サンプル数：" & COUNT([0]!散布図_チラー_対象経費) &"件" -> 相関係数：0.981 ， サンプル数：4件
E129: 一般・業務用ヒートポンプ式給湯器 | L129: 高性能ボイラ | S129: 変圧器
E143: =" 相関係数："& ROUND(CORREL([0]!散布図_一般・業務用ヒートポンプ式給湯器_対象経費,[0]!散布図_一般・業務用ヒートポンプ式給湯器_削減額),3) & " ， サンプル数：" & COUNT([0]!散布図_一般・業務用ヒートポンプ式給湯器_対象経費) &"件" -> 相関係数：0.093 ， サンプル数：7件 | L143: =" 相関係数："& ROUND(CORREL([0]!散布図_高性能ボイラ_対象経費,[0]!散布図_高性能ボイラ_削減額),3) & " ， サンプル数：" & COUNT([0]!散布図_高性能ボイラ_対象経費) &"件" -> 相関係数：0.208 ， サンプル数：63件 | S143: =" 相関係数："& ROUND(CORREL([0]!散布図_変圧器_対象経費,[0]!散布図_変圧器_削減額),3) & " ， サンプル数：" & COUNT([0]!散布図_変圧器_対象経費) &"件" -> 相関係数：0.067 ， サンプル数：36件
E158: =" 相関係数："& ROUND(CORREL([0]!散布図_一般・業務用ヒートポンプ式給湯器_対象経費,[0]!散布図_一般・業務用ヒートポンプ式給湯器_排出削減量),3) & " ， サンプル数：" & COUNT([0]!散布図_一般・業務用ヒートポンプ式給湯器_対象経費) &"件" -> 相関係数：0.224 ， サンプル数：7件 | L158: =" 相関係数："& ROUND(CORREL([0]!散布図_高性能ボイラ_対象経費,[0]!散布図_高性能ボイラ_排出削減量_中部電力固定),3) & " ， サンプル数：" & COUNT([0]!散布図_高性能ボイラ_対象経費) &"件" -> 相関係数：0.101 ， サンプル数：63件 | S158: =" 相関係数："& ROUND(CORREL([0]!散布図_変圧器_対象経費,[0]!散布図_変圧器_排出削減量_中部電力固定),3) & " ， サンプル数：" & COUNT([0]!散布図_変圧器_対象経費) &"件" -> 相関係数：0.1 ， サンプル数：36件
E160: 産業用モータ | L160: 加熱設備 | S160: 工作機械
E174: =" 相関係数："& ROUND(CORREL([0]!散布図_産業用モータ_対象経費,[0]!散布図_産業用モータ_削減額),3) & " ， サンプル数：" & COUNT([0]!散布図_産業用モータ_対象経費) &"件" -> 相関係数：0.42 ， サンプル数：61件 | L174: =" 相関係数："& ROUND(CORREL([0]!散布図_加熱設備_対象経費,[0]!散布図_加熱設備_削減額),3) & " ， サンプル数：" & COUNT([0]!散布図_加熱設備_対象経費) &"件" -> 相関係数：0.892 ， サンプル数：4件 | S174: =" 相関係数："& ROUND(CORREL([0]!散布図_工作機械_対象経費,[0]!散布図_工作機械_削減額),3) & " ， サンプル数：" & COUNT([0]!散布図_工作機械_対象経費) &"件" -> 相関係数：-0.001 ， サンプル数：53件
E189: =" 相関係数："& ROUND(CORREL([0]!散布図_産業用モータ_対象経費,[0]!散布図_産業用モータ_排出削減量_中部電力固定),3) & " ， サンプル数：" & COUNT([0]!散布図_産業用モータ_対象経費) &"件" -> 相関係数：0.359 ， サンプル数：61件 | L189: =" 相関係数："& ROUND(CORREL([0]!散布図_加熱設備_対象経費,[0]!散布図_加熱設備_排出削減量_中部電力固定),3) & " ， サンプル数：" & COUNT([0]!散布図_加熱設備_対象経費) &"件" -> 相関係数：0.892 ， サンプル数：4件 | S189: =" 相関係数："& ROUND(CORREL([0]!散布図_工作機械_対象経費,[0]!散布図_工作機械_排出削減量_中部電力固定),3) & " ， サンプル数：" & COUNT([0]!散布図_工作機械_対象経費) &"件" -> 相関係数：-0.054 ， サンプル数：53件
E191: プラスチック加工機械 | L191: プレス機械 | S191: 印刷機械
E205: =" 相関係数："& ROUND(CORREL([0]!散布図_プラスチック加工機械_対象経費,[0]!散布図_プラスチック加工機械_削減額),3) & " ， サンプル数：" & COUNT([0]!散布図_プラスチック加工機械_対象経費) &"件" -> 相関係数：0.394 ， サンプル数：25件 | L205: =" 相関係数："& ROUND(CORREL([0]!散布図_プレス機械_対象経費,[0]!散布図_プレス機械_削減額),3) & " ， サンプル数：" & COUNT([0]!散布図_プレス機械_対象経費) &"件" -> 相関係数：1 ， サンプル数：2件 | S205: =" 相関係数："& ROUND(CORREL([0]!散布図_印刷機械_対象経費,[0]!散布図_印刷機械_削減額),3) & " ， サンプル数：" & COUNT([0]!散布図_印刷機械_対象経費) &"件" -> 相関係数：-0.043 ， サンプル数：4件
E220: =" 相関係数："& ROUND(CORREL([0]!散布図_プラスチック加工機械_対象経費,[0]!散布図_プラスチック加工機械_排出削減量_中部電力固定),3) & " ， サンプル数：" & COUNT([0]!散布図_プラスチック加工機械_対象経費) &"件" -> 相関係数：0.357 ， サンプル数：25件 | L220: =" 相関係数："& ROUND(CORREL([0]!散布図_プレス機械_対象経費,[0]!散布図_プレス機械_排出削減量_中部電力固定),3) & " ， サンプル数：" & COUNT([0]!散布図_プレス機械_対象経費) &"件" -> 相関係数：1 ， サンプル数：2件 | S220: =" 相関係数："& ROUND(CORREL([0]!散布図_印刷機械_対象経費,[0]!散布図_印刷機械_排出削減量_中部電力固定),3) & " ， サンプル数：" & COUNT([0]!散布図_印刷機械_対象経費) &"件" -> 相関係数：-0.145 ， サンプル数：4件
E222: 発電設備 | L222: 建物付属設備
E236: =" 相関係数："& ROUND(CORREL([0]!散布図_発電設備_対象経費,[0]!散布図_発電設備_削減額),3) & " ， サンプル数：" & COUNT([0]!散布図_発電設備_対象経費) &"件" -> 相関係数：0.671 ， サンプル数：52件 | L236: =" 相関係数："& ROUND(CORREL([0]!散布図_建物付属設備_対象経費,[0]!散布図_建物付属設備_削減額),3) & " ， サンプル数：" & COUNT([0]!散布図_建物付属設備_対象経費) &"件" -> 相関係数：0.401 ， サンプル数：109件
E251: =" 相関係数："& ROUND(CORREL([0]!散布図_発電設備_対象経費,[0]!散布図_発電設備_排出削減量_中部電力固定),3) & " ， サンプル数：" & COUNT([0]!散布図_発電設備_対象経費) &"件" -> 相関係数：0.675 ， サンプル数：52件 | L251: =" 相関係数："& ROUND(CORREL([0]!散布図_建物付属設備_対象経費,[0]!散布図_建物付属設備_排出削減量_中部電力固定),3) & " ， サンプル数：" & COUNT([0]!散布図_建物付属設備_対象経費) &"件" -> 相関係数：0.451 ， サンプル数：109件

Sheet 【出力】削減量グラフ（選択設備）
B2: ="【"&B7&"】に設備投資を行った県内企業データ" -> 【空調・換気設備】に設備投資を行った県内企業データ
B3: 同種の設備投資を行っている県内企業のデータを、投資額範囲別に表示します。 | J3: =B7&"_1件あたりのCO2排出削減量" -> 空調・換気設備_1件あたりのCO2排出削減量
B7: =IF(【入力】導入設備!C6="","空調・換気設備",【入力】導入設備!C6) -> 空調・換気設備 | D7: =B7&"_対象経費" -> 空調・換気設備_対象経費 | F7: =B7&"_件数" -> 空調・換気設備_件数 | H7: =B7&"_1件あたりの削減額" -> 空調・換気設備_1件あたりの削減額
B59: 設備区分 | C59: 投資額範囲（千円） | D59: 件数（件） | E59: 削減額（千円） | F59: 1件あたりの削減額（千円） | G59: CO2排出削減量（t-CO2） | H59: 1件あたりのCO2排出削減量（t-CO2）
B60: =B7 -> 空調・換気設備 | C60: 1～1,000 | D60: =VLOOKUP($B$60&C60,【参考】データ集計!$AV$2:$BD$232,5,FALSE) -> 186 | E60: =VLOOKUP($B$60&C60,【参考】データ集計!$AV$2:$BD$232,6,FALSE)/1000 -> 17055.439 | F60: =VLOOKUP($B$60&C60,【参考】データ集計!$AV$2:$BD$232,7,FALSE) -> 91.6959086 | G60: =VLOOKUP($B$60&C60,【参考】データ集計!$AV$2:$BD$232,8,FALSE) -> 301.824986 | H60: =VLOOKUP($B$60&C60,【参考】データ集計!$AV$2:$BD$232,9,FALSE) -> 1.622714978
C61: 1,000～2,000 | D61: =VLOOKUP($B$60&C61,【参考】データ集計!$AV$2:$BD$232,5,FALSE) -> 259 | E61: =VLOOKUP($B$60&C61,【参考】データ集計!$AV$2:$BD$232,6,FALSE)/1000 -> 34241.551 | F61: =VLOOKUP($B$60&C61,【参考】データ集計!$AV$2:$BD$232,7,FALSE) -> 132.2067606 | G61: =VLOOKUP($B$60&C61,【参考】データ集計!$AV$2:$BD$232,8,FALSE) -> 532.2996043 | H61: =VLOOKUP($B$60&C61,【参考】データ集計!$AV$2:$BD$232,9,FALSE) -> 2.055210827
C62: 2,000～3,000 | D62: =VLOOKUP($B$60&C62,【参考】データ集計!$AV$2:$BD$232,5,FALSE) -> 57 | E62: =VLOOKUP($B$60&C62,【参考】データ集計!$AV$2:$BD$232,6,FALSE)/1000 -> 13981.886 | F62: =VLOOKUP($B$60&C62,【参考】データ集計!$AV$2:$BD$232,7,FALSE) -> 245.2962456 | G62: =VLOOKUP($B$60&C62,【参考】データ集計!$AV$2:$BD$232,8,FALSE) -> 255.4395468 | H62: =VLOOKUP($B$60&C62,【参考】データ集計!$AV$2:$BD$232,9,FALSE) -> 4.481395557
C63: 3,000～4,000 | D63: =VLOOKUP($B$60&C63,【参考】データ集計!$AV$2:$BD$232,5,FALSE) -> 34 | E63: =VLOOKUP($B$60&C63,【参考】データ集計!$AV$2:$BD$232,6,FALSE)/1000 -> 8750.627 | F63: =VLOOKUP($B$60&C63,【参考】データ集計!$AV$2:$BD$232,7,FALSE) -> 257.3713824 | G63: =VLOOKUP($B$60&C63,【参考】データ集計!$AV$2:$BD$232,8,FALSE) -> 143.9479502 | H63: =VLOOKUP($B$60&C63,【参考】データ集計!$AV$2:$BD$232,9,FALSE) -> 4.233763242
C64: 4,000～5,000 | D64: =VLOOKUP($B$60&C64,【参考】データ集計!$AV$2:$BD$232,5,FALSE) -> 26 | E64: =VLOOKUP($B$60&C64,【参考】データ集計!$AV$2:$BD$232,6,FALSE)/1000 -> 8846.418 | F64: =VLOOKUP($B$60&C64,【参考】データ集計!$AV$2:$BD$232,7,FALSE) -> 340.2468462 | G64: =VLOOKUP($B$60&C64,【参考】データ集計!$AV$2:$BD$232,8,FALSE) -> 165.0128817 | H64: =VLOOKUP($B$60&C64,【参考】データ集計!$AV$2:$BD$232,9,FALSE) -> 6.346649295
C65: 5,000～6,000 | D65: =VLOOKUP($B$60&C65,【参考】データ集計!$AV$2:$BD$232,5,FALSE) -> 20 | E65: =VLOOKUP($B$60&C65,【参考】データ集計!$AV$2:$BD$232,6,FALSE)/1000 -> 15251.683 | F65: =VLOOKUP($B$60&C65,【参考】データ集計!$AV$2:$BD$232,7,FALSE) -> 762.58415 | G65: =VLOOKUP($B$60&C65,【参考】データ集計!$AV$2:$BD$232,8,FALSE) -> 303.3477107 | H65: =VLOOKUP($B$60&C65,【参考】データ集計!$AV$2:$BD$232,9,FALSE) -> 15.16738554
C66: 6,000～7,000 | D66: =VLOOKUP($B$60&C66,【参考】データ集計!$AV$2:$BD$232,5,FALSE) -> 11 | E66: =VLOOKUP($B$60&C66,【参考】データ集計!$AV$2:$BD$232,6,FALSE)/1000 -> 3668.103 | F66: =VLOOKUP($B$60&C66,【参考】データ集計!$AV$2:$BD$232,7,FALSE) -> 333.4639091 | G66: =VLOOKUP($B$60&C66,【参考】データ集計!$AV$2:$BD$232,8,FALSE) -> 51.47862691 | H66: =VLOOKUP($B$60&C66,【参考】データ集計!$AV$2:$BD$232,9,FALSE) -> 4.679875174
C67: 7,000～8,000 | D67: =VLOOKUP($B$60&C67,【参考】データ集計!$AV$2:$BD$232,5,FALSE) -> 11 | E67: =VLOOKUP($B$60&C67,【参考】データ集計!$AV$2:$BD$232,6,FALSE)/1000 -> 12842.66 | F67: =VLOOKUP($B$60&C67,【参考】データ集計!$AV$2:$BD$232,7,FALSE) -> 1167.514545 | G67: =VLOOKUP($B$60&C67,【参考】データ集計!$AV$2:$BD$232,8,FALSE) -> 264.4624918 | H67: =VLOOKUP($B$60&C67,【参考】データ集計!$AV$2:$BD$232,9,FALSE) -> 24.04204471
C68: 8,000～9,000 | D68: =VLOOKUP($B$60&C68,【参考】データ集計!$AV$2:$BD$232,5,FALSE) -> 3 | E68: =VLOOKUP($B$60&C68,【参考】データ集計!$AV$2:$BD$232,6,FALSE)/1000 -> 4609.869 | F68: =VLOOKUP($B$60&C68,【参考】データ集計!$AV$2:$BD$232,7,FALSE) -> 1536.623 | G68: =VLOOKUP($B$60&C68,【参考】データ集計!$AV$2:$BD$232,8,FALSE) -> 93.48351729 | H68: =VLOOKUP($B$60&C68,【参考】データ集計!$AV$2:$BD$232,9,FALSE) -> 31.16117243
C69: 9,000～10,000 | D69: =VLOOKUP($B$60&C69,【参考】データ集計!$AV$2:$BD$232,5,FALSE) -> 14 | E69: =VLOOKUP($B$60&C69,【参考】データ集計!$AV$2:$BD$232,6,FALSE)/1000 -> 5974.688 | F69: =VLOOKUP($B$60&C69,【参考】データ集計!$AV$2:$BD$232,7,FALSE) -> 426.7634286 | G69: =VLOOKUP($B$60&C69,【参考】データ集計!$AV$2:$BD$232,8,FALSE) -> 105.4883644 | H69: =VLOOKUP($B$60&C69,【参考】データ集計!$AV$2:$BD$232,9,FALSE) -> 7.534883172
C70: 10,000～11,000 | D70: =VLOOKUP($B$60&C70,【参考】データ集計!$AV$2:$BD$232,5,FALSE) -> 8 | E70: =VLOOKUP($B$60&C70,【参考】データ集計!$AV$2:$BD$232,6,FALSE)/1000 -> 3935.83 | F70: =VLOOKUP($B$60&C70,【参考】データ集計!$AV$2:$BD$232,7,FALSE) -> 491.97875 | G70: =VLOOKUP($B$60&C70,【参考】データ集計!$AV$2:$BD$232,8,FALSE) -> 75.53016137 | H70: =VLOOKUP($B$60&C70,【参考】データ集計!$AV$2:$BD$232,9,FALSE) -> 9.441270171
C71: 11,000～12,000 | D71: =VLOOKUP($B$60&C71,【参考】データ集計!$AV$2:$BD$232,5,FALSE) -> 3 | E71: =VLOOKUP($B$60&C71,【参考】データ集計!$AV$2:$BD$232,6,FALSE)/1000 -> 866.25 | F71: =VLOOKUP($B$60&C71,【参考】データ集計!$AV$2:$BD$232,7,FALSE) -> 288.75 | G71: =VLOOKUP($B$60&C71,【参考】データ集計!$AV$2:$BD$232,8,FALSE) -> 16.788709 | H71: =VLOOKUP($B$60&C71,【参考】データ集計!$AV$2:$BD$232,9,FALSE) -> 5.596236333
C72: 12,000～13,000 | D72: =VLOOKUP($B$60&C72,【参考】データ集計!$AV$2:$BD$232,5,FALSE) -> 1 | E72: =VLOOKUP($B$60&C72,【参考】データ集計!$AV$2:$BD$232,6,FALSE)/1000 -> 53.986 | F72: =VLOOKUP($B$60&C72,【参考】データ集計!$AV$2:$BD$232,7,FALSE) -> 53.986 | G72: =VLOOKUP($B$60&C72,【参考】データ集計!$AV$2:$BD$232,8,FALSE) -> 0.697996 | H72: =VLOOKUP($B$60&C72,【参考】データ集計!$AV$2:$BD$232,9,FALSE) -> 0.697996
C73: 13,000～14,000 | D73: =VLOOKUP($B$60&C73,【参考】データ集計!$AV$2:$BD$232,5,FALSE) -> 2 | E73: =VLOOKUP($B$60&C73,【参考】データ集計!$AV$2:$BD$232,6,FALSE)/1000 -> 1534.362 | F73: =VLOOKUP($B$60&C73,【参考】データ集計!$AV$2:$BD$232,7,FALSE) -> 767.181 | G73: =VLOOKUP($B$60&C73,【参考】データ集計!$AV$2:$BD$232,8,FALSE) -> 28.944751 | H73: =VLOOKUP($B$60&C73,【参考】データ集計!$AV$2:$BD$232,9,FALSE) -> 14.4723755
C74: 14,000～15,000 | D74: =VLOOKUP($B$60&C74,【参考】データ集計!$AV$2:$BD$232,5,FALSE) -> 3 | E74: =VLOOKUP($B$60&C74,【参考】データ集計!$AV$2:$BD$232,6,FALSE)/1000 -> 2977.034 | F74: =VLOOKUP($B$60&C74,【参考】データ集計!$AV$2:$BD$232,7,FALSE) -> 992.3446667 | G74: =VLOOKUP($B$60&C74,【参考】データ集計!$AV$2:$BD$232,8,FALSE) -> 58.577539 | H74: =VLOOKUP($B$60&C74,【参考】データ集計!$AV$2:$BD$232,9,FALSE) -> 19.52584633
C75: 15,000～16,000 | D75: =VLOOKUP($B$60&C75,【参考】データ集計!$AV$2:$BD$232,5,FALSE) -> 0 | E75: =VLOOKUP($B$60&C75,【参考】データ集計!$AV$2:$BD$232,6,FALSE)/1000 -> 0 | F75: =VLOOKUP($B$60&C75,【参考】データ集計!$AV$2:$BD$232,7,FALSE) -> 0 | G75: =VLOOKUP($B$60&C75,【参考】データ集計!$AV$2:$BD$232,8,FALSE) -> 0 | H75: =VLOOKUP($B$60&C75,【参考】データ集計!$AV$2:$BD$232,9,FALSE) -> 0
C76: 16,000～17,000 | D76: =VLOOKUP($B$60&C76,【参考】データ集計!$AV$2:$BD$232,5,FALSE) -> 0 | E76: =VLOOKUP($B$60&C76,【参考】データ集計!$AV$2:$BD$232,6,FALSE)/1000 -> 0 | F76: =VLOOKUP($B$60&C76,【参考】データ集計!$AV$2:$BD$232,7,FALSE) -> 0 | G76: =VLOOKUP($B$60&C76,【参考】データ集計!$AV$2:$BD$232,8,FALSE) -> 0 | H76: =VLOOKUP($B$60&C76,【参考】データ集計!$AV$2:$BD$232,9,FALSE) -> 0
C77: 17,000～18,000 | D77: =VLOOKUP($B$60&C77,【参考】データ集計!$AV$2:$BD$232,5,FALSE) -> 0 | E77: =VLOOKUP($B$60&C77,【参考】データ集計!$AV$2:$BD$232,6,FALSE)/1000 -> 0 | F77: =VLOOKUP($B$60&C77,【参考】データ集計!$AV$2:$BD$232,7,FALSE) -> 0 | G77: =VLOOKUP($B$60&C77,【参考】データ集計!$AV$2:$BD$232,8,FALSE) -> 0 | H77: =VLOOKUP($B$60&C77,【参考】データ集計!$AV$2:$BD$232,9,FALSE) -> 0
C78: 18,000～19,000 | D78: =VLOOKUP($B$60&C78,【参考】データ集計!$AV$2:$BD$232,5,FALSE) -> 0 | E78: =VLOOKUP($B$60&C78,【参考】データ集計!$AV$2:$BD$232,6,FALSE)/1000 -> 0 | F78: =VLOOKUP($B$60&C78,【参考】データ集計!$AV$2:$BD$232,7,FALSE) -> 0 | G78: =VLOOKUP($B$60&C78,【参考】データ集計!$AV$2:$BD$232,8,FALSE) -> 0 | H78: =VLOOKUP($B$60&C78,【参考】データ集計!$AV$2:$BD$232,9,FALSE) -> 0
C79: 19,000～20,000 | D79: =VLOOKUP($B$60&C79,【参考】データ集計!$AV$2:$BD$232,5,FALSE) -> 0 | E79: =VLOOKUP($B$60&C79,【参考】データ集計!$AV$2:$BD$232,6,FALSE)/1000 -> 0 | F79: =VLOOKUP($B$60&C79,【参考】データ集計!$AV$2:$BD$232,7,FALSE) -> 0 | G79: =VLOOKUP($B$60&C79,【参考】データ集計!$AV$2:$BD$232,8,FALSE) -> 0 | H79: =VLOOKUP($B$60&C79,【参考】データ集計!$AV$2:$BD$232,9,FALSE) -> 0
C80: 20,000～ | D80: =VLOOKUP($B$60&C80,【参考】データ集計!$AV$2:$BD$232,5,FALSE) -> 1 | E80: =VLOOKUP($B$60&C80,【参考】データ集計!$AV$2:$BD$232,6,FALSE)/1000 -> 1841.972 | F80: =VLOOKUP($B$60&C80,【参考】データ集計!$AV$2:$BD$232,7,FALSE) -> 1841.972 | G80: =VLOOKUP($B$60&C80,【参考】データ集計!$AV$2:$BD$232,8,FALSE) -> 50.680052 | H80: =VLOOKUP($B$60&C80,【参考】データ集計!$AV$2:$BD$232,9,FALSE) -> 50.680052

Sheet 【出力】削減量グラフ（全設備）
B2: ="設備投資を行った県内企業データ" -> 設備投資を行った県内企業データ
B3: 設備投資を行っている県内企業のデータを、投資額範囲別に表示します。 | J3: =B7&"_1件あたりのCO2排出削減量" -> 空調・換気設備_1件あたりのCO2排出削減量
B7: =IF(【入力】導入設備!C6="","空調・換気設備",【入力】導入設備!C6) -> 空調・換気設備 | D7: =B7&"_対象経費" -> 空調・換気設備_対象経費 | F7: =B7&"_件数" -> 空調・換気設備_件数 | H7: =B7&"_1件あたりの削減額" -> 空調・換気設備_1件あたりの削減額
B59: 設備区分 | C59: 投資額範囲（千円） | D59: 件数（件） | E59: 削減額（千円） | F59: 1件あたりの削減額（千円） | G59: CO2排出削減量（t-CO2） | H59: 1件あたりのCO2排出削減量（t-CO2）
B60: 全設備合計 | C60: 1～1,000 | D60: =VLOOKUP($B$60&C60,【参考】データ集計!$AV$2:$BD$253,5,FALSE) -> 449 | E60: =VLOOKUP($B$60&C60,【参考】データ集計!$AV$2:$BD$253,6,FALSE)/1000 -> 44078.9595 | F60: =VLOOKUP($B$60&C60,【参考】データ集計!$AV$2:$BD$253,7,FALSE) -> 98.171402 | G60: =VLOOKUP($B$60&C60,【参考】データ集計!$AV$2:$BD$253,8,FALSE) -> 741.6153125 | H60: =VLOOKUP($B$60&C60,【参考】データ集計!$AV$2:$BD$253,9,FALSE) -> 1.651704482
C61: 1,000～2,000 | D61: =VLOOKUP($B$60&C61,【参考】データ集計!$AV$2:$BD$253,5,FALSE) -> 608 | E61: =VLOOKUP($B$60&C61,【参考】データ集計!$AV$2:$BD$253,6,FALSE)/1000 -> 89166.108 | F61: =VLOOKUP($B$60&C61,【参考】データ集計!$AV$2:$BD$253,7,FALSE) -> 146.6547829 | G61: =VLOOKUP($B$60&C61,【参考】データ集計!$AV$2:$BD$253,8,FALSE) -> 1417.86192 | H61: =VLOOKUP($B$60&C61,【参考】データ集計!$AV$2:$BD$253,9,FALSE) -> 2.332009737
C62: 2,000～3,000 | D62: =VLOOKUP($B$60&C62,【参考】データ集計!$AV$2:$BD$253,5,FALSE) -> 181 | E62: =VLOOKUP($B$60&C62,【参考】データ集計!$AV$2:$BD$253,6,FALSE)/1000 -> 57499.6185 | F62: =VLOOKUP($B$60&C62,【参考】データ集計!$AV$2:$BD$253,7,FALSE) -> 317.6774503 | G62: =VLOOKUP($B$60&C62,【参考】データ集計!$AV$2:$BD$253,8,FALSE) -> 1036.180769 | H62: =VLOOKUP($B$60&C62,【参考】データ集計!$AV$2:$BD$253,9,FALSE) -> 5.724755631
C63: 3,000～4,000 | D63: =VLOOKUP($B$60&C63,【参考】データ集計!$AV$2:$BD$253,5,FALSE) -> 106 | E63: =VLOOKUP($B$60&C63,【参考】データ集計!$AV$2:$BD$253,6,FALSE)/1000 -> 40685.874 | F63: =VLOOKUP($B$60&C63,【参考】データ集計!$AV$2:$BD$253,7,FALSE) -> 383.829 | G63: =VLOOKUP($B$60&C63,【参考】データ集計!$AV$2:$BD$253,8,FALSE) -> 753.7360424 | H63: =VLOOKUP($B$60&C63,【参考】データ集計!$AV$2:$BD$253,9,FALSE) -> 7.110717382
C64: 4,000～5,000 | D64: =VLOOKUP($B$60&C64,【参考】データ集計!$AV$2:$BD$253,5,FALSE) -> 69 | E64: =VLOOKUP($B$60&C64,【参考】データ集計!$AV$2:$BD$253,6,FALSE)/1000 -> 30917.127 | F64: =VLOOKUP($B$60&C64,【参考】データ集計!$AV$2:$BD$253,7,FALSE) -> 448.0743043 | G64: =VLOOKUP($B$60&C64,【参考】データ集計!$AV$2:$BD$253,8,FALSE) -> 577.7611528 | H64: =VLOOKUP($B$60&C64,【参考】データ集計!$AV$2:$BD$253,9,FALSE) -> 8.373350041
C65: 5,000～6,000 | D65: =VLOOKUP($B$60&C65,【参考】データ集計!$AV$2:$BD$253,5,FALSE) -> 53 | E65: =VLOOKUP($B$60&C65,【参考】データ集計!$AV$2:$BD$253,6,FALSE)/1000 -> 30977.552 | F65: =VLOOKUP($B$60&C65,【参考】データ集計!$AV$2:$BD$253,7,FALSE) -> 584.4821132 | G65: =VLOOKUP($B$60&C65,【参考】データ集計!$AV$2:$BD$253,8,FALSE) -> 580.9399913 | H65: =VLOOKUP($B$60&C65,【参考】データ集計!$AV$2:$BD$253,9,FALSE) -> 10.96113191
C66: 6,000～7,000 | D66: =VLOOKUP($B$60&C66,【参考】データ集計!$AV$2:$BD$253,5,FALSE) -> 29 | E66: =VLOOKUP($B$60&C66,【参考】データ集計!$AV$2:$BD$253,6,FALSE)/1000 -> 13828.732 | F66: =VLOOKUP($B$60&C66,【参考】データ集計!$AV$2:$BD$253,7,FALSE) -> 476.8528276 | G66: =VLOOKUP($B$60&C66,【参考】データ集計!$AV$2:$BD$253,8,FALSE) -> 391.2186357 | H66: =VLOOKUP($B$60&C66,【参考】データ集計!$AV$2:$BD$253,9,FALSE) -> 13.49029778
C67: 7,000～8,000 | D67: =VLOOKUP($B$60&C67,【参考】データ集計!$AV$2:$BD$253,5,FALSE) -> 40 | E67: =VLOOKUP($B$60&C67,【参考】データ集計!$AV$2:$BD$253,6,FALSE)/1000 -> 27177.0088 | F67: =VLOOKUP($B$60&C67,【参考】データ集計!$AV$2:$BD$253,7,FALSE) -> 679.42522 | G67: =VLOOKUP($B$60&C67,【参考】データ集計!$AV$2:$BD$253,8,FALSE) -> 592.3528143 | H67: =VLOOKUP($B$60&C67,【参考】データ集計!$AV$2:$BD$253,9,FALSE) -> 14.80882036
C68: 8,000～9,000 | D68: =VLOOKUP($B$60&C68,【参考】データ集計!$AV$2:$BD$253,5,FALSE) -> 20 | E68: =VLOOKUP($B$60&C68,【参考】データ集計!$AV$2:$BD$253,6,FALSE)/1000 -> 19891.377 | F68: =VLOOKUP($B$60&C68,【参考】データ集計!$AV$2:$BD$253,7,FALSE) -> 994.56885 | G68: =VLOOKUP($B$60&C68,【参考】データ集計!$AV$2:$BD$253,8,FALSE) -> 363.3539487 | H68: =VLOOKUP($B$60&C68,【参考】データ集計!$AV$2:$BD$253,9,FALSE) -> 18.16769743
C69: 9,000～10,000 | D69: =VLOOKUP($B$60&C69,【参考】データ集計!$AV$2:$BD$253,5,FALSE) -> 44 | E69: =VLOOKUP($B$60&C69,【参考】データ集計!$AV$2:$BD$253,6,FALSE)/1000 -> 32230.352 | F69: =VLOOKUP($B$60&C69,【参考】データ集計!$AV$2:$BD$253,7,FALSE) -> 732.508 | G69: =VLOOKUP($B$60&C69,【参考】データ集計!$AV$2:$BD$253,8,FALSE) -> 257.655559 | H69: =VLOOKUP($B$60&C69,【参考】データ集計!$AV$2:$BD$253,9,FALSE) -> 5.855808159
C70: 10,000～11,000 | D70: =VLOOKUP($B$60&C70,【参考】データ集計!$AV$2:$BD$253,5,FALSE) -> 34 | E70: =VLOOKUP($B$60&C70,【参考】データ集計!$AV$2:$BD$253,6,FALSE)/1000 -> 24711.532 | F70: =VLOOKUP($B$60&C70,【参考】データ集計!$AV$2:$BD$253,7,FALSE) -> 726.8097647 | G70: =VLOOKUP($B$60&C70,【参考】データ集計!$AV$2:$BD$253,8,FALSE) -> 489.4493565 | H70: =VLOOKUP($B$60&C70,【参考】データ集計!$AV$2:$BD$253,9,FALSE) -> 14.39556931
C71: 11,000～12,000 | D71: =VLOOKUP($B$60&C71,【参考】データ集計!$AV$2:$BD$253,5,FALSE) -> 19 | E71: =VLOOKUP($B$60&C71,【参考】データ集計!$AV$2:$BD$253,6,FALSE)/1000 -> 28450.465 | F71: =VLOOKUP($B$60&C71,【参考】データ集計!$AV$2:$BD$253,7,FALSE) -> 1497.392895 | G71: =VLOOKUP($B$60&C71,【参考】データ集計!$AV$2:$BD$253,8,FALSE) -> 598.4835748 | H71: =VLOOKUP($B$60&C71,【参考】データ集計!$AV$2:$BD$253,9,FALSE) -> 31.49913552
C72: 12,000～13,000 | D72: =VLOOKUP($B$60&C72,【参考】データ集計!$AV$2:$BD$253,5,FALSE) -> 17 | E72: =VLOOKUP($B$60&C72,【参考】データ集計!$AV$2:$BD$253,6,FALSE)/1000 -> 16097.403 | F72: =VLOOKUP($B$60&C72,【参考】データ集計!$AV$2:$BD$253,7,FALSE) -> 946.9060588 | G72: =VLOOKUP($B$60&C72,【参考】データ集計!$AV$2:$BD$253,8,FALSE) -> 274.9391677 | H72: =VLOOKUP($B$60&C72,【参考】データ集計!$AV$2:$BD$253,9,FALSE) -> 16.17289222
C73: 13,000～14,000 | D73: =VLOOKUP($B$60&C73,【参考】データ集計!$AV$2:$BD$253,5,FALSE) -> 11 | E73: =VLOOKUP($B$60&C73,【参考】データ集計!$AV$2:$BD$253,6,FALSE)/1000 -> 16025.708 | F73: =VLOOKUP($B$60&C73,【参考】データ集計!$AV$2:$BD$253,7,FALSE) -> 1456.882545 | G73: =VLOOKUP($B$60&C73,【参考】データ集計!$AV$2:$BD$253,8,FALSE) -> 295.8524806 | H73: =VLOOKUP($B$60&C73,【参考】データ集計!$AV$2:$BD$253,9,FALSE) -> 26.89568006
C74: 14,000～15,000 | D74: =VLOOKUP($B$60&C74,【参考】データ集計!$AV$2:$BD$253,5,FALSE) -> 15 | E74: =VLOOKUP($B$60&C74,【参考】データ集計!$AV$2:$BD$253,6,FALSE)/1000 -> 14111.286 | F74: =VLOOKUP($B$60&C74,【参考】データ集計!$AV$2:$BD$253,7,FALSE) -> 940.7524 | G74: =VLOOKUP($B$60&C74,【参考】データ集計!$AV$2:$BD$253,8,FALSE) -> 276.9595729 | H74: =VLOOKUP($B$60&C74,【参考】データ集計!$AV$2:$BD$253,9,FALSE) -> 18.46397153
C75: 15,000～16,000 | D75: =VLOOKUP($B$60&C75,【参考】データ集計!$AV$2:$BD$253,5,FALSE) -> 3 | E75: =VLOOKUP($B$60&C75,【参考】データ集計!$AV$2:$BD$253,6,FALSE)/1000 -> 2821.11 | F75: =VLOOKUP($B$60&C75,【参考】データ集計!$AV$2:$BD$253,7,FALSE) -> 940.37 | G75: =VLOOKUP($B$60&C75,【参考】データ集計!$AV$2:$BD$253,8,FALSE) -> 37.75008312 | H75: =VLOOKUP($B$60&C75,【参考】データ集計!$AV$2:$BD$253,9,FALSE) -> 12.58336104
C76: 16,000～17,000 | D76: =VLOOKUP($B$60&C76,【参考】データ集計!$AV$2:$BD$253,5,FALSE) -> 2 | E76: =VLOOKUP($B$60&C76,【参考】データ集計!$AV$2:$BD$253,6,FALSE)/1000 -> 353.574 | F76: =VLOOKUP($B$60&C76,【参考】データ集計!$AV$2:$BD$253,7,FALSE) -> 176.787 | G76: =VLOOKUP($B$60&C76,【参考】データ集計!$AV$2:$BD$253,8,FALSE) -> 4.585037 | H76: =VLOOKUP($B$60&C76,【参考】データ集計!$AV$2:$BD$253,9,FALSE) -> 2.2925185
C77: 17,000～18,000 | D77: =VLOOKUP($B$60&C77,【参考】データ集計!$AV$2:$BD$253,5,FALSE) -> 5 | E77: =VLOOKUP($B$60&C77,【参考】データ集計!$AV$2:$BD$253,6,FALSE)/1000 -> 3792.568 | F77: =VLOOKUP($B$60&C77,【参考】データ集計!$AV$2:$BD$253,7,FALSE) -> 758.5136 | G77: =VLOOKUP($B$60&C77,【参考】データ集計!$AV$2:$BD$253,8,FALSE) -> 66.365044 | H77: =VLOOKUP($B$60&C77,【参考】データ集計!$AV$2:$BD$253,9,FALSE) -> 13.2730088
C78: 18,000～19,000 | D78: =VLOOKUP($B$60&C78,【参考】データ集計!$AV$2:$BD$253,5,FALSE) -> 3 | E78: =VLOOKUP($B$60&C78,【参考】データ集計!$AV$2:$BD$253,6,FALSE)/1000 -> 2702.633 | F78: =VLOOKUP($B$60&C78,【参考】データ集計!$AV$2:$BD$253,7,FALSE) -> 900.8776667 | G78: =VLOOKUP($B$60&C78,【参考】データ集計!$AV$2:$BD$253,8,FALSE) -> 72.21455563 | H78: =VLOOKUP($B$60&C78,【参考】データ集計!$AV$2:$BD$253,9,FALSE) -> 24.07151854
C79: 19,000～20,000 | D79: =VLOOKUP($B$60&C79,【参考】データ集計!$AV$2:$BD$253,5,FALSE) -> 2 | E79: =VLOOKUP($B$60&C79,【参考】データ集計!$AV$2:$BD$253,6,FALSE)/1000 -> 47.238 | F79: =VLOOKUP($B$60&C79,【参考】データ集計!$AV$2:$BD$253,7,FALSE) -> 23.619 | G79: =VLOOKUP($B$60&C79,【参考】データ集計!$AV$2:$BD$253,8,FALSE) -> 0.778101 | H79: =VLOOKUP($B$60&C79,【参考】データ集計!$AV$2:$BD$253,9,FALSE) -> 0.3890505
C80: 20,000～ | D80: =VLOOKUP($B$60&C80,【参考】データ集計!$AV$2:$BD$253,5,FALSE) -> 15 | E80: =VLOOKUP($B$60&C80,【参考】データ集計!$AV$2:$BD$253,6,FALSE)/1000 -> 9320.276 | F80: =VLOOKUP($B$60&C80,【参考】データ集計!$AV$2:$BD$253,7,FALSE) -> 621.3517333 | G80: =VLOOKUP($B$60&C80,【参考】データ集計!$AV$2:$BD$253,8,FALSE) -> 169.4564444 | H80: =VLOOKUP($B$60&C80,【参考】データ集計!$AV$2:$BD$253,9,FALSE) -> 11.2970963

Sheet 【参照】グラフ作成用データ (hidden)
A1: 設備区分 | B1: 対象経費 | D1: 件数 | E1: 削減額 | F1: 1件あたりの削減額 | G1: 排出量削減 | H1: 1件あたりの排出量 | J1: 空調・換気設備 | K1: 対象経費 | L1: 削減額 | M1: 排出削減量 | N1: 排出削減量（中部電力固定） | O1: 業務用エアコン | P1: 対象経費 | Q1: 削減額 | R1: 排出削減量 | S1: 排出削減量（中部電力固定） | T1: 一般用エアコン | U1: 対象経費 | V1: 削減額 | W1: 排出削減量 | X1: 排出削減量（中部電力固定） | Y1: 業務用LED照明器具 | Z1: 対象経費 | AA1: 削減額 | AB1: 排出削減量 | AC1: 排出削減量（中部電力固定） | AD1: 一般用LED照明器具 | AE1: 対象経費 | AF1: 削減額 | AG1: 排出削減量 | AH1: 排出削減量（中部電力固定） | AI1: 非常時用照明器具（非常灯・誘導灯） | AJ1: 対象経費 | AK1: 削減額 | AL1: 排出削減量 | AM1: 排出削減量（中部電力固定） | AN1: 冷蔵・冷凍設備 | AO1: 対象経費 | AP1: 削減額 | AQ1: 排出削減量 | AR1: 排出削減量（中部電力固定） | AS1: 業務用冷蔵・冷凍庫 | AT1: 対象経費 | AU1: 削減額 | AV1: 排出削減量 | AW1: 排出削減量（中部電力固定） | AX1: 一般用冷蔵・冷凍庫 | AY1: 対象経費 | AZ1: 削減額 | BA1: 排出削減量 | BB1: 排出削減量（中部電力固定） | BC1: 冷凍・冷蔵ショーケース | BD1: 対象経費 | BE1: 削減額 | BF1: 排出削減量 | BG1: 排出削減量（中部電力固定） | BH1: コンデンシングユニット | BI1: 対象経費 | BJ1: 削減額 | BK1: 排出削減量 | BL1: 排出削減量（中部電力固定） | BM1: チラー（冷却水循環装置） | BN1: 対象経費 | BO1: 削減額 | BP1: 排出削減量 | BQ1: 排出削減量（中部電力固定） | BR1: 一般・業務用ヒートポンプ式給湯器 | BS1: 対象経費 | BT1: 削減額 | BU1: 排出削減量 | BV1: 排出削減量（中部電力固定） | BW1: 平均削減額 | BX1: 平均排出削減量（中部電力固定） | BY1: 高性能ボイラ | BZ1: 対象経費 | CA1: 削減額 | CB1: 排出削減量 | CC1: 排出削減量（中部電力固定） | CD1: 平均削減額 | CE1: 平均排出削減量（中部電力固定） | CF1: 変圧器 | CG1: 対象経費 | CH1: 削減額 | CI1: 排出削減量 | CJ1: 排出削減量（中部電力固定） | CK1: 平均削減額 | CL1: 平均排出削減量（中部電力固定） | CM1: 産業用モータ | CN1: 対象経費 | CO1: 削減額 | CP1: 排出削減量 | CQ1: 排出削減量（中部電力固定） | CR1: 加熱設備 | CS1: 対象経費 | CT1: 削減額 | CU1: 排出削減量 | CV1: 排出削減量（中部電力固定） | CW1: 工作機械 | CX1: 対象経費 | CY1: 削減額 | CZ1: 排出削減量 | DA1: 排出削減量（中部電力固定） | DB1: 平均削減額 | DC1: 平均排出削減量（中部電力固定） | DD1: プラスチック加工機械 | DE1: 対象経費 | DF1: 削減額 | DG1: 排出削減量 | DH1: 排出削減量（中部電力固定） | DI1: プレス機械 | DJ1: 対象経費 | DK1: 削減額 | DL1: 排出削減量 | DM1: 排出削減量（中部電力固定） | DN1: 平均削減額 | DO1: 平均排出削減量（中部電力固定） | DP1: 印刷機械 | DQ1: 対象経費 | DR1: 削減額 | DS1: 排出削減量 | DT1: 排出削減量（中部電力固定） | DU1: 平均削減額 | DV1: 平均排出削減量（中部電力固定） | DW1: 発電設備 | DX1: 対象経費 | DY1: 削減額 | DZ1: 排出削減量 | EA1: 排出削減量（中部電力固定） | EB1: 建物付属設備 | EC1: 対象経費 | ED1: 削減額 | EE1: 排出削減量 | EF1: 排出削減量（中部電力固定）
A2: =【参考】データ集計!AW2 -> 空調・換気設備 | B2: =【参考】データ集計!AX2 -> 1～1,000 | C2: 1 ～1,000 | D2: =【参考】データ集計!AZ2 -> 186 | E2: =【参考】データ集計!BA2 -> 17055439 | F2: =【参考】データ集計!BB2 -> 91.6959086 | G2: =【参考】データ集計!BC2 -> 301.824986 | H2: =【参考】データ集計!BD2 -> 1.622714978 | K2: 3400 | L2: 348.708 | M2: =【参考】データ集計!AU5 -> 4.64609 | N2: 4.64609 | P2: 3400 | Q2: 348.708 | R2: =【参考】データ集計!AU5 -> 4.64609 | S2: 4.64609 | U2: 1306.2 | V2: 100.392 | W2: =【参考】データ集計!AU9 -> 0.9356264 | X2: 0.9356264 | Z2: 900 | AA2: 284.964 | AB2: =【参考】データ集計!AU10 -> 4.5699253 | AC2: 4.5699253 | AE2: 1470 | AF2: 55.814 | AG2: =【参考】データ集計!AU3 -> 1.455746 | AH2: 1.455746 | AJ2: 1362.9 | AK2: 48.565 | AL2: =【参考】データ集計!AU534 -> 0.083569 | AM2: 0.083569 | AO2: 1243 | AP2: 94 | AQ2: =【参考】データ集計!AU7 -> 1.26003 | AR2: 1.26003 | AT2: 1243 | AU2: 94 | AV2: =【参考】データ集計!AU7 -> 1.26003 | AW2: 1.26003 | AY2: 781 | AZ2: 89 | BA2: =【参考】データ集計!AU29 -> 0.77074 | BB2: 0.77074 | BD2: 1444 | BE2: 72.386 | BF2: =【参考】データ集計!AU5 -> 4.64609 | BG2: 1.843714 | BI2: 1206 | BJ2: 23.652 | BK2: =【参考】データ集計!AU154 -> 0.568962 | BL2: 0.568962 | BN2: 2460 | BO2: 56.296 | BP2: =【参考】データ集計!AU644 -> 1.034004 | BQ2: 1.034004 | BS2: 3000 | BT2: 110 | BU2: =【参考】データ集計!AU67 -> 2.502683333 | BV2: 2.502683333 | BW2: =ROUND(AVERAGE(BT:BT),2) -> 410.52 | BX2: =ROUND(AVERAGE(BV:BV),2) -> 7.75 | BZ2: 1832 | CA2: 9.4 | CB2: =【参考】データ集計!AU21 -> 0.2202258667 | CC2: 0.2202258667 | CD2: =ROUND(AVERAGE(CA:CA),2) -> 438.2 | CE2: =ROUND(AVERAGE(CC:CC),2) -> 9 | CG2: 1632.446 | CH2: 18.382 | CI2: =【参考】データ集計!AU37 -> 0.506177 | CJ2: 0.506177 | CK2: =ROUND(AVERAGE(CH:CH),2) -> 596.82 | CL2: =ROUND(AVERAGE(CJ:CJ),2) -> 12.61 | CN2: 2070 | CO2: 604.327 | CP2: =【参考】データ集計!AU27 -> 12.45741 | CQ2: 12.45741 | CS2: 10970 | CT2: 753.785 | CU2: =【参考】データ集計!AU111 -> 23.12202259 | CV2: 23.12202259 | CX2: 14900 | CY2: 465.001 | CZ2: =【参考】データ集計!AU35 -> 10.083704 | DA2: 10.083704 | DB2: =ROUND(AVERAGE(CY:CY),2) -> 277.18 | DC2: =ROUND(AVERAGE(DA:DA),2) -> 4.57 | DE2: 10250 | DF2: 596.854 | DG2: =【参考】データ集計!AU2 -> 13.123797 | DH2: 13.123797 | DJ2: 8400 | DK2: 13.2 | DL2: =【参考】データ集計!AU494 -> 0.14289 | DM2: 0.14289 | DN2: =ROUND(AVERAGE(DK:DK),2) -> 131.4 | DO2: =ROUND(AVERAGE(DM:DM),2) -> 0.82 | DQ2: 6000 | DR2: 114.893 | DS2: =【参考】データ集計!AU175 -> 1.643668 | DT2: 1.643668 | DU2: =ROUND(AVERAGE(DR:DR),2) -> 101.16 | DV2: =ROUND(AVERAGE(DT:DT),2) -> 1.46 | DX2: 8640 | DY2: 894.504 | DZ2: =【参考】データ集計!AU33 -> 22.359254 | EA2: 22.359254 | EC2: 1402 | ED2: 40.59 | EE2: =【参考】データ集計!AU4 -> 0.9259928333 | EF2: 0.9259928333
A3: =【参考】データ集計!AW3 -> 空調・換気設備 | B3: =【参考】データ集計!AX3 -> 1,000～2,000 | C3: 1,000 ～2,000 | D3: =【参考】データ集計!AZ3 -> 259 | E3: =【参考】データ集計!BA3 -> 34241551 | F3: =【参考】データ集計!BB3 -> 132.2067606 | G3: =【参考】データ集計!BC3 -> 532.2996043 | H3: =【参考】データ集計!BD3 -> 2.055210827 | K3: 7000 | L3: 1726.743 | M3: =【参考】データ集計!AU6 -> 22.794852 | N3: 22.794852 | P3: 7000 | Q3: 1726.743 | R3: =【参考】データ集計!AU6 -> 22.794852 | S3: 22.794852 | U3: 5729.167 | V3: 6639.906 | W3: =【参考】データ集計!AU19 -> 107.995396 | X3: 107.995396 | Z3: 12000 | AA3: 179.113 | AB3: =【参考】データ集計!AU12 -> 5.3339538 | AC3: 5.3339538 | AE3: 892.4 | AF3: 130.026 | AG3: =【参考】データ集計!AU34 -> 1.672246 | AH3: 1.672246 | AJ3: 4330 | AK3: 260.916 | AL3: =【参考】データ集計!AU697 -> 5.502997 | AM3: 5.502997 | AO3: 893.1 | AP3: 24.5 | AQ3: =【参考】データ集計!AU8 -> 0.66249 | AR3: 0.66249 | AT3: 893.1 | AU3: 24.5 | AV3: =【参考】データ集計!AU8 -> 0.66249 | AW3: 0.66249 | AY3: 800 | AZ3: 48.546 | BA3: =【参考】データ集計!AU531 -> 0.659892 | BB3: 0.659892 | BD3: 900 | BE3: 79.38 | BF3: =【参考】データ集計!AU6 -> 22.794852 | BG3: 0.762513 | BI3: 2920 | BJ3: 290.084 | BK3: =【参考】データ集計!AU428 -> 5.718198 | BL3: 5.718198 | BN3: 1825 | BO3: 195.321 | BP3: =【参考】データ集計!AU701 -> 1.744557 | BQ3: 1.744557 | BS3: 859.95 | BT3: 396 | BU3: =【参考】データ集計!AU100 -> 4.003184541 | BV3: 4.003184541 | BW3: 410.52 | BX3: 7.75 | BZ3: 10469.55 | CA3: 1985.346 | CB3: =【参考】データ集計!AU56 -> 48.72223913 | CC3: 48.72223913 | CD3: 438.2 | CE3: 9 | CG3: 5066 | CH3: 248.586 | CI3: =【参考】データ集計!AU74 -> 4.058509 | CJ3: 4.058509 | CK3: 596.82 | CL3: 12.61 | CN3: 2250 | CO3: 55.8 | CP3: =【参考】データ集計!AU171 -> 1.61076 | CQ3: 1.61076 | CS3: 2282 | CT3: 131.196 | CU3: =【参考】データ集計!AU1066 -> 1.641936 | CV3: 1.641936 | CX3: 8200 | CY3: 138.655 | CZ3: =【参考】データ集計!AU42 -> 2.319148 | DA3: 2.319148 | DB3: 277.18 | DC3: 4.57 | DE3: 7430 | DF3: 438.708 | DG3: =【参考】データ集計!AU98 -> 5.756735 | DH3: 5.756735 | DJ3: 9500 | DK3: 249.6 | DL3: =【参考】データ集計!AU547 -> 1.496448 | DM3: 1.496448 | DN3: =ROUND(AVERAGE(DK:DK),2) -> 131.4 | DO3: =ROUND(AVERAGE(DM:DM),2) -> 0.82 | DQ3: 2800 | DR3: 146.126 | DS3: =【参考】データ集計!AU220 -> 2.792417 | DT3: 2.792417 | DU3: =ROUND(AVERAGE(DR:DR),2) -> 101.16 | DV3: =ROUND(AVERAGE(DT:DT),2) -> 1.46 | DX3: 7900 | DY3: 579.486 | DZ3: =【参考】データ集計!AU65 -> 6.709335 | EA3: 6.709335 | EC3: 1132.2 | ED3: 46.875 | EE3: =【参考】データ集計!AU16 -> 0 | EF3: 0
A4: =【参考】データ集計!AW4 -> 空調・換気設備 | B4: =【参考】データ集計!AX4 -> 2,000～3,000 | C4: 2,000 ～3,000 | D4: =【参考】データ集計!AZ4 -> 57 | E4: =【参考】データ集計!BA4 -> 13981886 | F4: =【参考】データ集計!BB4 -> 245.2962456 | G4: =【参考】データ集計!BC4 -> 255.4395468 | H4: =【参考】データ集計!BD4 -> 4.481395557 | K4: 1306.2 | L4: 100.392 | M4: =【参考】データ集計!AU9 -> 0.9356264 | N4: 0.9356264 | P4: 3819.4 | Q4: 201.51 | R4: =【参考】データ集計!AU11 -> 4.691988 | S4: 4.691988 | U4: 1250 | V4: 81 | W4: =【参考】データ集計!AU24 -> 1.80303505 | X4: 1.80303505 | Z4: 750 | AA4: 68.377 | AB4: =【参考】データ集計!AU13 -> 0.738265 | AC4: 0.738265 | AE4: 780 | AF4: 53.41 | AG4: =【参考】データ集計!AU36 -> 1.431065 | AH4: 1.431065 | AJ4: 798.37 | AK4: 73.547 | AL4: =【参考】データ集計!AU1478 -> 0.93095 | AM4: 0.93095 | AO4: 1250 | AP4: 56.97 | AQ4: =【参考】データ集計!AU18 -> 0.91363 | AR4: 0.91363 | AT4: 1250 | AU4: 56.97 | AV4: =【参考】データ集計!AU18 -> 0.91363 | AW4: 0.91363 | AY4: 954.545 | AZ4: 498.786 | BA4: =【参考】データ集計!AU1479 -> 6.108331 | BB4: 6.108331 | BD4: 900 | BE4: 7.41 | BF4: =【参考】データ集計!AU6 -> 22.794852 | BG4: 0.213902 | BI4: 1200 | BJ4: 146.535 | BK4: =【参考】データ集計!AU550 -> 2.115205 | BL4: 2.115205 | BN4: 22000 | BO4: 384.453 | BP4: =【参考】データ集計!AU715 -> 6.257283 | BQ4: 6.257283 | BS4: 3430 | BT4: 1432.425 | BU4: =【参考】データ集計!AU308 -> 33.05057605 | BV4: 33.05057605 | BW4: 410.52 | BX4: 7.75 | BZ4: 7400 | CA4: 1434.66 | CB4: =【参考】データ集計!AU59 -> 57.56171667 | CC4: 57.56171667 | CD4: 438.2 | CE4: 9 | CG4: 9300 | CH4: 61.648 | CI4: =【参考】データ集計!AU106 -> 0.873361 | CJ4: 0.873361 | CK4: 596.82 | CL4: 12.61 | CN4: 1480 | CO4: 223.191 | CP4: =【参考】データ集計!AU203 -> 5.13538 | CQ4: 5.13538 | CS4: 14795.5 | CT4: 1539.086 | CU4: =【参考】データ集計!AU1209 -> 54.8913808 | CV4: 54.8913808 | CX4: 11700 | CY4: 119.277 | CZ4: =【参考】データ集計!AU43 -> 2.614454 | DA4: 2.614454 | DB4: 277.18 | DC4: 4.57 | DE4: 8000 | DF4: 354.376 | DG4: =【参考】データ集計!AU102 -> 6.974764 | DH4: 6.974764 | DQ4: 5537.42 | DR4: 82.06 | DS4: =【参考】データ集計!AU1109 -> 0.977714 | DT4: 0.977714 | DU4: =ROUND(AVERAGE(DR:DR),2) -> 101.16 | DV4: =ROUND(AVERAGE(DT:DT),2) -> 1.46 | DX4: 14000 | DY4: 2040.48 | DZ4: =【参考】データ集計!AU86 -> 34.056316 | EA4: 34.056316 | EC4: 4100 | ED4: 65.726 | EE4: =【参考】データ集計!AU17 -> 0 | EF4: 0
A5: =【参考】データ集計!AW5 -> 空調・換気設備 | B5: =【参考】データ集計!AX5 -> 3,000～4,000 | C5: 3,000 ～4,000 | D5: =【参考】データ集計!AZ5 -> 34 | E5: =【参考】データ集計!BA5 -> 8750627 | F5: =【参考】データ集計!BB5 -> 257.3713824 | G5: =【参考】データ集計!BC5 -> 143.9479502 | H5: =【参考】データ集計!BD5 -> 4.233763242 | K5: 3819.4 | L5: 201.51 | M5: =【参考】データ集計!AU11 -> 4.691988 | N5: 4.691988 | P5: 1275.9 | Q5: 37.5 | R5: =【参考】データ集計!AU14 -> 0.2165 | S5: 0.2165 | U5: 1074.2 | V5: 130.091 | W5: =【参考】データ集計!AU46 -> 2.822769671 | X5: 2.822769671 | Z5: 1800 | AA5: 456.924 | AB5: =【参考】データ集計!AU40 -> 0.036805 | AC5: 0.036805 | AE5: 2300 | AF5: 401.653 | AG5: =【参考】データ集計!AU44 -> 7.661502 | AH5: 7.661502 | AO5: 833 | AP5: 49.1 | AQ5: =【参考】データ集計!AU20 -> 0.53259 | AR5: 0.53259 | AT5: 833 | AU5: 49.1 | AV5: =【参考】データ集計!AU20 -> 0.53259 | AW5: 0.53259 | AY5: 761.5 | AZ5: 62.606 | BA5: =【参考】データ集計!AU1698 -> 0.896743 | BB5: 0.896743 | BD5: 1500 | BE5: 314.12 | BF5: =【参考】データ集計!AU6 -> 22.794852 | BG5: 5.415098 | BI5: 3330 | BJ5: 33.253 | BK5: =【参考】データ集計!AU555 -> 0.846515 | BL5: 0.846515 | BN5: 1716 | BO5: 118.296 | BP5: =【参考】データ集計!AU1182 -> 1.932912 | BQ5: 1.932912 | BS5: 800.63 | BT5: 29.665 | BU5: =【参考】データ集計!AU527 -> 0.437763 | BV5: 0.437763 | BW5: 410.52 | BX5: 7.75 | BZ5: 1341 | CA5: 32.634 | CB5: =【参考】データ集計!AU87 -> 0.83339355 | CC5: 0.83339355 | CD5: 438.2 | CE5: 9 | CG5: 3440 | CH5: 1610.954 | CI5: =【参考】データ集計!AU153 -> 69.400807 | CJ5: 69.400807 | CK5: 596.82 | CL5: 12.61 | CN5: 1193 | CO5: 44.1 | CP5: =【参考】データ集計!AU257 -> 1.27302 | CQ5: 1.27302 | CS5: 10695 | CT5: 1455.552 | CU5: =【参考】データ集計!AU1577 -> 17.45856 | CV5: 17.45856 | CX5: 5280 | CY5: 25.301 | CZ5: =【参考】データ集計!AU85 -> 0.622221 | DA5: 0.622221 | DB5: 277.18 | DC5: 4.57 | DE5: 9795 | DF5: 86.268 | DG5: =【参考】データ集計!AU107 -> 2.2972815 | DH5: 2.2972815 | DQ5: 2800 | DR5: 61.574 | DS5: =【参考】データ集計!AU1292 -> 0.445557 | DT5: 0.445557 | DU5: =ROUND(AVERAGE(DR:DR),2) -> 101.16 | DV5: =ROUND(AVERAGE(DT:DT),2) -> 1.46 | DX5: 5460 | DY5: 114.675 | DZ5: =【参考】データ集計!AU101 -> 0 | EA5: 0 | EC5: 6000 | ED5: 94.342 | EE5: =【参考】データ集計!AU23 -> 1.951534917 | EF5: 1.951534917
A6: =【参考】データ集計!AW6 -> 空調・換気設備 | B6: =【参考】データ集計!AX6 -> 4,000～5,000 | C6: 4,000 ～5,000 | D6: =【参考】データ集計!AZ6 -> 26 | E6: =【参考】データ集計!BA6 -> 8846418 | F6: =【参考】データ集計!BB6 -> 340.2468462 | G6: =【参考】データ集計!BC6 -> 165.0128817 | H6: =【参考】データ集計!BD6 -> 6.346649295 | K6: 1275.9 | L6: 37.5 | M6: =【参考】データ集計!AU14 -> 0.2165 | N6: 0.2165 | P6: 2850 | Q6: 371.667 | R6: =【参考】データ集計!AU15 -> 5.069564 | S6: 5.069564 | U6: 1100 | V6: 84.901 | W6: =【参考】データ集計!AU48 -> 2.159108867 | X6: 2.159108867 | Z6: 1750 | AA6: 377.686 | AB6: =【参考】データ集計!AU41 -> 10.510642 | AC6: 10.510642 | AE6: 9391.955 | AF6: 830.675 | AG6: =【参考】データ集計!AU51 -> 14.387291 | AH6: 14.387291 | AO6: 998 | AP6: 26.86 | AQ6: =【参考】データ集計!AU25 -> 0.68414 | AR6: 0.68414 | AT6: 998 | AU6: 26.86 | AV6: =【参考】データ集計!AU25 -> 0.68414 | AW6: 0.68414 | BD6: 790 | BE6: 165.579 | BF6: =【参考】データ集計!AU6 -> 22.794852 | BG6: 2.827923 | BI6: 880 | BJ6: 48.184 | BK6: =【参考】データ集計!AU564 -> 0.833525 | BL6: 0.833525 | BS6: 761.2 | BT6: 890.865 | BU6: =【参考】データ集計!AU756 -> 13.949095 | BV6: 13.949095 | BW6: 410.52 | BX6: 7.75 | BZ6: 4925 | CA6: 43.454 | CB6: =【参考】データ集計!AU95 -> 1.260793087 | CC6: 1.260793087 | CD6: 438.2 | CE6: 9 | CG6: 1885 | CH6: 86.384 | CI6: =【参考】データ集計!AU161 -> 2.337767 | CJ6: 2.337767 | CK6: 596.82 | CL6: 12.61 | CN6: 1410 | CO6: 84.874 | CP6: =【参考】データ集計!AU259 -> 0.992869 | CQ6: 0.992869 | CX6: 11800 | CY6: 90.972 | CZ6: =【参考】データ集計!AU125 -> 1.611626 | DA6: 1.611626 | DB6: 277.18 | DC6: 4.57 | DE6: 12000 | DF6: 154.415 | DG6: =【参考】データ集計!AU142 -> 2.609258 | DH6: 2.609258 | DX6: 4545.455 | DY6: 300.169 | DZ6: =【参考】データ集計!AU117 -> 8.584225 | EA6: 8.584225 | EC6: 1862 | ED6: 100.562 | EE6: =【参考】データ集計!AU30 -> 2.134472634 | EF6: 2.134472634
A7: =【参考】データ集計!AW7 -> 空調・換気設備 | B7: =【参考】データ集計!AX7 -> 5,000～6,000 | C7: 5,000 ～6,000 | D7: =【参考】データ集計!AZ7 -> 20 | E7: =【参考】データ集計!BA7 -> 15251683 | F7: =【参考】データ集計!BB7 -> 762.58415 | G7: =【参考】データ集計!BC7 -> 303.3477107 | H7: =【参考】データ集計!BD7 -> 15.16738554 | K7: 2850 | L7: 371.667 | M7: =【参考】データ集計!AU15 -> 5.069564 | N7: 5.069564 | P7: 780 | Q7: 34.661 | R7: =【参考】データ集計!AU22 -> 0.535621 | S7: 0.535621 | U7: 1510 | V7: 20.106 | W7: =【参考】データ集計!AU50 -> 0.237284 | X7: 0.237284 | Z7: 1473 | AA7: 342 | AB7: =【参考】データ集計!AU49 -> 4.927973 | AC7: 4.927973 | AE7: 1491.4 | AF7: 269.507 | AG7: =【参考】データ集計!AU55 -> 2.598433 | AH7: 2.598433 | AO7: 862 | AP7: 62.3 | AQ7: =【参考】データ集計!AU28 -> 0.647768 | AR7: 0.647768 | AT7: 862 | AU7: 62.3 | AV7: =【参考】データ集計!AU28 -> 0.647768 | AW7: 0.647768 | BD7: 1864 | BE7: 30.48 | BF7: =【参考】データ集計!AU6 -> 22.794852 | BG7: 0.906269 | BI7: 2289.5 | BJ7: 172.55 | BK7: =【参考】データ集計!AU574 -> 4.535675 | BL7: 4.535675 | BS7: 756.364 | BT7: 12.032 | BU7: =【参考】データ集計!AU1300 -> 0.159344 | BV7: 0.159344 | BW7: 410.52 | BX7: 7.75 | BZ7: 1830 | CA7: 3.491 | CB7: =【参考】データ集計!AU105 -> 0.08158747667 | CC7: 0.08158747667 | CD7: 438.2 | CE7: 9 | CG7: 1611.971 | CH7: 42.262 | CI7: =【参考】データ集計!AU212 -> 0.780266 | CJ7: 0.780266 | CK7: 596.82 | CL7: 12.61 | CN7: 3690 | CO7: 220.957 | CP7: =【参考】データ集計!AU260 -> 4.159398 | CQ7: 4.159398 | CX7: 12800 | CY7: 281.44 | CZ7: =【参考】データ集計!AU188 -> 5.675996088 | DA7: 5.675996088 | DB7: 277.18 | DC7: 4.57 | DE7: 7300 | DF7: 64.6 | DG7: =【参考】データ集計!AU179 -> 1.6454 | DH7: 1.6454 | DX7: 2430 | DY7: 452.717 | DZ7: =【参考】データ集計!AU173 -> 3.5073 | EA7: 3.5073 | EC7: 2080 | ED7: 30.78 | EE7: =【参考】データ集計!AU122 -> 0.5005366667 | EF7: 0.5005366667
A8: =【参考】データ集計!AW8 -> 空調・換気設備 | B8: =【参考】データ集計!AX8 -> 6,000～7,000 | C8: 6,000 ～7,000 | D8: =【参考】データ集計!AZ8 -> 11 | E8: =【参考】データ集計!BA8 -> 3668103 | F8: =【参考】データ集計!BB8 -> 333.4639091 | G8: =【参考】データ集計!BC8 -> 51.47862691 | H8: =【参考】データ集計!BD8 -> 4.679875174 | K8: 5729.167 | L8: 6639.906 | M8: =【参考】データ集計!AU19 -> 107.995396 | N8: 107.995396 | P8: 13500 | Q8: 1048.257 | R8: =【参考】データ集計!AU26 -> 20.457518 | S8: 20.457518 | U8: 8790 | V8: 4013.593 | W8: =【参考】データ集計!AU58 -> 81.99241178 | X8: 81.99241178 | Z8: 1764.686 | AA8: 354.819 | AB8: =【参考】データ集計!AU71 -> 5.9091077 | AC8: 5.9091077 | AE8: 2740 | AF8: 170.201 | AG8: =【参考】データ集計!AU68 -> 3.509465 | AH8: 3.509465 | AO8: 781 | AP8: 89 | AQ8: =【参考】データ集計!AU29 -> 0.77074 | AR8: 0.77074 | AT8: 1490 | AU8: 71.82 | AV8: =【参考】データ集計!AU53 -> 1.15178 | AW8: 1.15178 | BD8: 904 | BE8: 51.381 | BF8: =【参考】データ集計!AU6 -> 22.794852 | BG8: 0.823999 | BI8: 1107 | BJ8: 52.136 | BK8: =【参考】データ集計!AU620 -> 1.019282 | BL8: 1.019282 | BS8: 4552.28 | BT8: 2.67 | BU8: =【参考】データ集計!AU1473 -> 0.113446 | BV8: 0.113446 | BW8: 410.52 | BX8: 7.75 | BZ8: 10748.45 | CA8: 596.255 | CB8: =【参考】データ集計!AU126 -> 12.52985134 | CC8: 12.52985134 | CD8: 438.2 | CE8: 9 | CG8: 2841.939 | CH8: 23.849 | CI8: =【参考】データ集計!AU288 -> 0.381906 | CJ8: 0.381906 | CK8: 596.82 | CL8: 12.61 | CN8: 5000 | CO8: 145.555 | CP8: =【参考】データ集計!AU437 -> 5.287363 | CQ8: 5.287363 | CX8: 9550 | CY8: 1578.54 | CZ8: =【参考】データ集計!AU240 -> 35.188178 | DA8: 35.188178 | DB8: 277.18 | DC8: 4.57 | DE8: 5630 | DF8: 181.461 | DG8: =【参考】データ集計!AU241 -> 4.83228 | DH8: 4.83228 | DX8: 10325 | DY8: 595.454 | DZ8: =【参考】データ集計!AU191 -> 5.175216 | EA8: 5.175216 | EC8: 1466.8 | ED8: 331.32 | EE8: =【参考】データ集計!AU139 -> 7.5380822 | EF8: 7.5380822
A9: =【参考】データ集計!AW9 -> 空調・換気設備 | B9: =【参考】データ集計!AX9 -> 7,000～8,000 | C9: 7,000 ～8,000 | D9: =【参考】データ集計!AZ9 -> 11 | E9: =【参考】データ集計!BA9 -> 12842660 | F9: =【参考】データ集計!BB9 -> 1167.514545 | G9: =【参考】データ集計!BC9 -> 264.4624918 | H9: =【参考】データ集計!BD9 -> 24.04204471 | K9: 780 | L9: 34.661 | M9: =【参考】データ集計!AU22 -> 0.535621 | N9: 0.535621 | P9: 3119.3 | Q9: 89.172 | R9: =【参考】データ集計!AU31 -> 2.2726005 | S9: 2.2726005 | U9: 1795 | V9: 748.054 | W9: =【参考】データ集計!AU60 -> 17.39893087 | X9: 17.39893087 | Z9: 2974 | AA9: 696.866 | AB9: =【参考】データ集計!AU73 -> 12.37947 | AC9: 12.37947 | AE9: 9700 | AF9: 2119.251 | AG9: =【参考】データ集計!AU90 -> 34.798478 | AH9: 34.798478 | AO9: 1490 | AP9: 71.82 | AQ9: =【参考】データ集計!AU53 -> 1.15178 | AR9: 1.15178 | AT9: 1265 | AU9: 107.8 | AV9: =【参考】データ集計!AU54 -> 3.10461 | AW9: 3.10461 | BD9: 1350 | BE9: 65.502 | BF9: =【参考】データ集計!AU6 -> 22.794852 | BG9: 1.050458 | BI9: 1690 | BJ9: 41.768 | BK9: =【参考】データ集計!AU632 -> 1.13013 | BL9: 1.13013 | BZ9: 3500 | CA9: 9.712 | CB9: =【参考】データ集計!AU177 -> 0.30556339 | CC9: 0.30556339 | CD9: 438.2 | CE9: 9 | CG9: 2720.477 | CH9: 143.751 | CI9: =【参考】データ集計!AU324 -> 3.02234 | CJ9: 3.02234 | CK9: 596.82 | CL9: 12.61 | CN9: 5748 | CO9: 1119 | CP9: =【参考】データ集計!AU516 -> 18.20765 | CQ9: 18.20765 | CX9: 7400 | CY9: 116.658 | CZ9: =【参考】データ集計!AU249 -> 2.31222 | DA9: 2.31222 | DB9: 277.18 | DC9: 4.57 | DE9: 7850 | DF9: 219.391 | DG9: =【参考】データ集計!AU255 -> 4.191873 | DH9: 4.191873 | DX9: 6121.373 | DY9: 917.221 | DZ9: =【参考】データ集計!AU201 -> 27.177678 | EA9: 27.177678 | EC9: 9404.7 | ED9: 1409.905 | EE9: =【参考】データ集計!AU140 -> 31.78764717 | EF9: 31.78764717
A10: =【参考】データ集計!AW10 -> 空調・換気設備 | B10: =【参考】データ集計!AX10 -> 8,000～9,000 | C10: 8,000 ～9,000 | D10: =【参考】データ集計!AZ10 -> 3 | E10: =【参考】データ集計!BA10 -> 4609869 | F10: =【参考】データ集計!BB10 -> 1536.623 | G10: =【参考】データ集計!BC10 -> 93.48351729 | H10: =【参考】データ集計!BD10 -> 31.16117243 | K10: 1250 | L10: 81 | M10: =【参考】データ集計!AU24 -> 1.80303505 | N10: 1.80303505 | P10: 7786 | Q10: 1839.738 | R10: =【参考】データ集計!AU32 -> 40.995574 | S10: 40.995574 | U10: 6100 | V10: 602.536 | W10: =【参考】データ集計!AU76 -> 14.10567317 | X10: 14.10567317 | Z10: 2040 | AA10: 3.592 | AB10: =【参考】データ集計!AU79 -> 0.06221344 | AC10: 0.06221344 | AE10: 870 | AF10: 337.719 | AG10: =【参考】データ集計!AU94 -> 3.768399 | AH10: 3.768399 | AO10: 1265 | AP10: 107.8 | AQ10: =【参考】データ集計!AU54 -> 3.10461 | AR10: 3.10461 | AT10: 968 | AU10: 62.22 | AV10: =【参考】データ集計!AU57 -> 1.58478 | AW10: 1.58478 | BD10: 1990 | BE10: 22.044 | BF10: =【参考】データ集計!AU6 -> 22.794852 | BG10: 0.596674 | BI10: 1050 | BJ10: 39.12 | BK10: =【参考】データ集計!AU647 -> 1.058685 | BL10: 1.058685 | BZ10: 10503 | CA10: 717.6 | CB10: =【参考】データ集計!AU187 -> 16.51694 | CC10: 16.51694 | CD10: 438.2 | CE10: 9 | CG10: 10350 | CH10: 290.397 | CI10: =【参考】データ集計!AU330 -> 7.758927 | CJ10: 7.758927 | CK10: 596.82 | CL10: 12.61 | CN10: 3690 | CO10: 198.475 | CP10: =【参考】データ集計!AU558 -> 5.055275 | CQ10: 5.055275 | CX10: 17700 | CY10: 30.76 | CZ10: =【参考】データ集計!AU267 -> 1.68437 | DA10: 1.68437 | DB10: 277.18 | DC10: 4.57 | DE10: 17750 | DF10: 296.1 | DG10: =【参考】データ集計!AU452 -> 6.1053 | DH10: 6.1053 | DX10: 7391 | DY10: 757.344 | DZ10: =【参考】データ集計!AU376 -> 15.602722 | EA10: 15.602722 | EC10: 2298.8 | ED10: 204.6 | EE10: =【参考】データ集計!AU210 -> 4.76634179 | EF10: 4.76634179
A11: =【参考】データ集計!AW11 -> 空調・換気設備 | B11: =【参考】データ集計!AX11 -> 9,000～10,000 | C11: 9,000 ～10,000 | D11: =【参考】データ集計!AZ11 -> 14 | E11: =【参考】データ集計!BA11 -> 5974688 | F11: =【参考】データ集計!BB11 -> 426.7634286 | G11: =【参考】データ集計!BC11 -> 105.4883644 | H11: =【参考】データ集計!BD11 -> 7.534883172 | K11: 13500 | L11: 1048.257 | M11: =【参考】データ集計!AU26 -> 20.457518 | N11: 20.457518 | P11: 1302 | Q11: 98.237 | R11: =【参考】データ集計!AU38 -> 0.297038 | S11: 0.297038 | U11: 1483.2 | V11: 1049.801 | W11: =【参考】データ集計!AU80 -> 22.473566 | X11: 22.473566 | Z11: 768.5 | AA11: 169.33 | AB11: =【参考】データ集計!AU82 -> 2.66618451 | AC11: 2.66618451 | AE11: 2256 | AF11: 231.46 | AG11: =【参考】データ集計!AU123 -> 3.340595 | AH11: 3.340595 | AO11: 968 | AP11: 62.22 | AQ11: =【参考】データ集計!AU57 -> 1.58478 | AR11: 1.58478 | AT11: 850 | AU11: 38.34 | AV11: =【参考】データ集計!AU78 -> 0.61486 | AW11: 0.61486 | BD11: 750 | BE11: 29.16 | BF11: =【参考】データ集計!AU7 -> 1.26003 | BG11: 0.46764 | BI11: 1400 | BJ11: 176.814 | BK11: =【参考】データ集計!AU656 -> 3.951558 | BL11: 3.951558 | BZ11: 7500 | CA11: 173.165 | CB11: =【参考】データ集計!AU234 -> 5.216600217 | CC11: 5.216600217 | CD11: 438.2 | CE11: 9 | CG11: 2601.251 | CH11: 143.227 | CI11: =【参考】データ集計!AU345 -> 1.728969 | CJ11: 1.728969 | CK11: 596.82 | CL11: 12.61 | CN11: 1806 | CO11: 24.3 | CP11: =【参考】データ集計!AU567 -> 0.70146 | CQ11: 0.70146 | CX11: 10800 | CY11: 39.532 | CZ11: =【参考】データ集計!AU333 -> 0.9297376 | DA11: 0.9297376 | DB11: 277.18 | DC11: 4.57 | DE11: 7000 | DF11: 86.215 | DG11: =【参考】データ集計!AU563 -> 20.53201845 | DH11: 20.53201845 | DX11: 12300 | DY11: 1531.647 | DZ11: =【参考】データ集計!AU392 -> 26.692718 | EA11: 26.692718 | EC11: 1127.57 | ED11: 55.668 | EE11: =【参考】データ集計!AU221 -> 1.233994909 | EF11: 1.233994909
A12: =【参考】データ集計!AW12 -> 空調・換気設備 | B12: =【参考】データ集計!AX12 -> 10,000～11,000 | C12: 10,000 ～11,000 | D12: =【参考】データ集計!AZ12 -> 8 | E12: =【参考】データ集計!BA12 -> 3935830 | F12: =【参考】データ集計!BB12 -> 491.97875 | G12: =【参考】データ集計!BC12 -> 75.53016137 | H12: =【参考】データ集計!BD12 -> 9.441270171 | K12: 3119.3 | L12: 89.172 | M12: =【参考】データ集計!AU31 -> 2.2726005 | N12: 2.2726005 | P12: 4190 | Q12: 36.035 | R12: =【参考】データ集計!AU39 -> 0.780266 | S12: 0.780266 | U12: 1494 | V12: 780.247 | W12: =【参考】データ集計!AU81 -> 14.32448466 | X12: 14.32448466 | Z12: 1439.57 | AA12: 117.832 | AB12: =【参考】データ集計!AU124 -> 3.001123 | AC12: 3.001123 | AE12: 2268.9 | AF12: 29.518 | AG12: =【参考】データ集計!AU129 -> 0.641706 | AH12: 0.641706 | AO12: 850 | AP12: 38.34 | AQ12: =【参考】データ集計!AU78 -> 0.61486 | AR12: 0.61486 | AT12: 1200 | AU12: 20.8 | AV12: =【参考】データ集計!AU89 -> 0.34207 | AW12: 0.34207 | BD12: 3100 | BE12: 197 | BF12: =【参考】データ集計!AU7 -> 1.26003 | BG12: 5.739848 | BI12: 2003 | BJ12: 109.689 | BK12: =【参考】データ集計!AU668 -> 2.9684315 | BL12: 2.9684315 | BZ12: 3403 | CA12: 225.552 | CB12: =【参考】データ集計!AU261 -> 5.2592216 | CC12: 5.2592216 | CD12: 438.2 | CE12: 9 | CG12: 2337 | CH12: 300 | CI12: =【参考】データ集計!AU462 -> 5.094245 | CJ12: 5.094245 | CK12: 596.82 | CL12: 12.61 | CN12: 5685 | CO12: 105.986 | CP12: =【参考】データ集計!AU608 -> 3.059578 | CQ12: 3.059578 | CX12: 7800 | CY12: 81.6 | CZ12: =【参考】データ集計!AU379 -> 2.0784 | DA12: 2.0784 | DB12: 277.18 | DC12: 4.57 | DE12: 8650 | DF12: 58.2 | DG12: =【参考】データ集計!AU621 -> 1.145285 | DH12: 1.145285 | DX12: 7090.909 | DY12: 1096.255 | DZ12: =【参考】データ集計!AU409 -> 16.788709 | EA12: 16.788709 | EC12: 20400 | ED12: 419.836 | EE12: =【参考】データ集計!AU222 -> 7.074787 | EF12: 7.074787
A13: =【参考】データ集計!AW13 -> 空調・換気設備 | B13: =【参考】データ集計!AX13 -> 11,000～12,000 | C13: 11,000 ～12,000 | D13: =【参考】データ集計!AZ13 -> 3 | E13: =【参考】データ集計!BA13 -> 866250 | F13: =【参考】データ集計!BB13 -> 288.75 | G13: =【参考】データ集計!BC13 -> 16.788709 | H13: =【参考】データ集計!BD13 -> 5.596236333 | K13: 7786 | L13: 1839.738 | M13: =【参考】データ集計!AU32 -> 40.995574 | N13: 40.995574 | P13: 1700 | Q13: 23 | R13: =【参考】データ集計!AU45 -> 0.10825 | S13: 0.10825 | U13: 1250 | V13: 89.308 | W13: =【参考】データ集計!AU84 -> 0.970786 | X13: 0.970786 | Z13: 1404.2 | AA13: 90.288 | AB13: =【参考】データ集計!AU132 -> 1.447952 | AC13: 1.447952 | AE13: 1222 | AF13: 93.165 | AG13: =【参考】データ集計!AU131 -> 1.529789 | AH13: 1.529789 | AO13: 1200 | AP13: 20.8 | AQ13: =【参考】データ集計!AU89 -> 0.34207 | AR13: 0.34207 | AT13: 750 | AU13: 65.892 | AV13: =【参考】データ集計!AU119 -> 0.920125 | AW13: 0.920125 | BD13: 984.2 | BE13: 105.3 | BF13: =【参考】データ集計!AU7 -> 1.26003 | BG13: 2.271085 | BI13: 3840 | BJ13: 743.967 | BK13: =【参考】データ集計!AU684 -> 10.693368 | BL13: 10.693368 | BZ13: 6859.528 | CA13: 400.074 | CB13: =【参考】データ集計!AU266 -> 142.7861935 | CC13: 142.7861935 | CD13: 438.2 | CE13: 9 | CG13: 2663.7 | CH13: 48.86 | CI13: =【参考】データ集計!AU472 -> 1.062149 | CJ13: 1.062149 | CK13: 596.82 | CL13: 12.61 | CN13: 1160 | CO13: 349.236 | CP13: =【参考】データ集計!AU626 -> 8.3136 | CQ13: 8.3136 | CX13: 13636.364 | CY13: 119.689 | CZ13: =【参考】データ集計!AU406 -> 2.131659 | DA13: 2.131659 | DB13: 277.18 | DC13: 4.57 | DE13: 7600 | DF13: 64.576 | DG13: =【参考】データ集計!AU692 -> 1.7249854 | DH13: 1.7249854 | DX13: 12217.035 | DY13: 1364.988 | DZ13: =【参考】データ集計!AU440 -> 28.439873 | EA13: 28.439873 | EC13: 5127 | ED13: 500.577 | EE13: =【参考】データ集計!AU237 -> 10.35360095 | EF13: 10.35360095
A14: =【参考】データ集計!AW14 -> 空調・換気設備 | B14: =【参考】データ集計!AX14 -> 12,000～13,000 | C14: 12,000 ～13,000 | D14: =【参考】データ集計!AZ14 -> 1 | E14: =【参考】データ集計!BA14 -> 53986 | F14: =【参考】データ集計!BB14 -> 53.986 | G14: =【参考】データ集計!BC14 -> 0.697996 | H14: =【参考】データ集計!BD14 -> 0.697996 | K14: 1302 | L14: 98.237 | M14: =【参考】データ集計!AU38 -> 0.297038 | N14: 0.297038 | P14: 940 | Q14: 5.28 | R14: =【参考】データ集計!AU47 -> 0.071445 | S14: 0.071445 | U14: 1180 | V14: 203.911 | W14: =【参考】データ集計!AU97 -> 3.2668551 | X14: 3.2668551 | Z14: 767.4 | AA14: 144.13 | AB14: =【参考】データ集計!AU134 -> 2.131226 | AC14: 2.131226 | AE14: 2400 | AF14: 137.76 | AG14: =【参考】データ集計!AU136 -> 2.982504 | AH14: 2.982504 | AO14: 750 | AP14: 65.892 | AQ14: =【参考】データ集計!AU119 -> 0.920125 | AR14: 0.920125 | AT14: 796 | AU14: 12.607 | AV14: =【参考】データ集計!AU120 -> 0.237284 | AW14: 0.237284 | BD14: 829 | BE14: 88.9 | BF14: =【参考】データ集計!AU7 -> 1.26003 | BG14: 1.240112 | BI14: 895 | BJ14: 34.64 | BK14: =【参考】データ集計!AU687 -> 0.52826 | BL14: 0.52826 | BZ14: 18960 | CA14: 143.908 | CB14: =【参考】データ集計!AU331 -> 21.41283063 | CC14: 21.41283063 | CD14: 438.2 | CE14: 9 | CG14: 4780 | CH14: 199.302 | CI14: =【参考】データ集計!AU622 -> 3.464 | CJ14: 3.464 | CK14: 596.82 | CL14: 12.61 | CN14: 2558 | CO14: 144 | CP14: =【参考】データ集計!AU633 -> 1.4289 | CQ14: 1.4289 | CX14: 9600 | CY14: 191.753 | CZ14: =【参考】データ集計!AU413 -> 1.055221 | DA14: 1.055221 | DB14: 277.18 | DC14: 4.57 | DE14: 6080 | DF14: 42.171 | DG14: =【参考】データ集計!AU693 -> 0.919259 | DH14: 0.919259 | DX14: 14000 | DY14: 1943.251 | DZ14: =【参考】データ集計!AU451 -> 37.274372 | EA14: 37.274372 | EC14: 1450 | ED14: 11.611 | EE14: =【参考】データ集計!AU254 -> 0.497333232 | EF14: 0.497333232
A15: =【参考】データ集計!AW15 -> 空調・換気設備 | B15: =【参考】データ集計!AX15 -> 13,000～14,000 | C15: 13,000 ～14,000 | D15: =【参考】データ集計!AZ15 -> 2 | E15: =【参考】データ集計!BA15 -> 1534362 | F15: =【参考】データ集計!BB15 -> 767.181 | G15: =【参考】データ集計!BC15 -> 28.944751 | H15: =【参考】データ集計!BD15 -> 14.4723755 | K15: 4190 | L15: 36.035 | M15: =【参考】データ集計!AU39 -> 0.780266 | N15: 0.780266 | P15: 2600 | Q15: 284.595 | R15: =【参考】データ集計!AU52 -> 4.598478083 | S15: 4.598478083 | U15: 830 | V15: 18.57 | W15: =【参考】データ集計!AU103 -> 0.22949 | X15: 0.22949 | Z15: 955 | AA15: 162.324 | AB15: =【参考】データ集計!AU149 -> 2.226486 | AC15: 2.226486 | AE15: 975 | AF15: 57.281 | AG15: =【参考】データ集計!AU144 -> 0.992436 | AH15: 0.992436 | AO15: 796 | AP15: 12.607 | AQ15: =【参考】データ集計!AU120 -> 0.237284 | AR15: 0.237284 | AT15: 788 | AU15: 41.102 | AV15: =【参考】データ集計!AU135 -> 0.581086 | AW15: 0.581086 | BD15: 867 | BE15: 50.337 | BF15: =【参考】データ集計!AU7 -> 1.26003 | BG15: 1.037901 | BI15: 3300 | BJ15: 82.428 | BK15: =【参考】データ集計!AU691 -> 1.203307 | BL15: 1.203307 | BZ15: 1000 | CA15: 1.662 | CB15: =【参考】データ集計!AU371 -> 0.03879159167 | CC15: 0.03879159167 | CD15: 438.2 | CE15: 9 | CG15: 2928 | CH15: 368.695 | CI15: =【参考】データ集計!AU627 -> 7.108994 | CJ15: 7.108994 | CK15: 596.82 | CL15: 12.61 | CN15: 1070 | CO15: 33.823 | CP15: =【参考】データ集計!AU670 -> 0.323884 | CQ15: 0.323884 | CX15: 13350 | CY15: 1887.478 | CZ15: =【参考】データ集計!AU438 -> 36.186676 | DA15: 36.186676 | DB15: 277.18 | DC15: 4.57 | DE15: 18300 | DF15: 561.6 | DG15: =【参考】データ集計!AU875 -> 16.21152 | DH15: 16.21152 | DX15: 12000 | DY15: 1417.256 | DZ15: =【参考】データ集計!AU467 -> 32.762512 | EA15: 32.762512 | EC15: 1578.466 | ED15: 362.606 | EE15: =【参考】データ集計!AU271 -> 11.7726224 | EF15: 11.7726224
A16: =【参考】データ集計!AW16 -> 空調・換気設備 | B16: =【参考】データ集計!AX16 -> 14,000～15,000 | C16: 14,000 ～15,000 | D16: =【参考】データ集計!AZ16 -> 3 | E16: =【参考】データ集計!BA16 -> 2977034 | F16: =【参考】データ集計!BB16 -> 992.3446667 | G16: =【参考】データ集計!BC16 -> 58.577539 | H16: =【参考】データ集計!BD16 -> 19.52584633 | K16: 1700 | L16: 23 | M16: =【参考】データ集計!AU45 -> 0.10825 | N16: 0.10825 | P16: 900 | Q16: 54.988 | R16: =【参考】データ集計!AU61 -> 0.834824 | S16: 0.834824 | U16: 1730 | V16: 20 | W16: =【参考】データ集計!AU110 -> 0.2165 | X16: 0.2165 | Z16: 921.2 | AA16: 162.769 | AB16: =【参考】データ集計!AU155 -> 2.819263 | AC16: 2.819263 | AE16: 760 | AF16: 96.959 | AG16: =【参考】データ集計!AU150 -> 1.614657 | AH16: 1.614657 | AO16: 788 | AP16: 41.102 | AQ16: =【参考】データ集計!AU135 -> 0.581086 | AR16: 0.581086 | AT16: 827 | AU16: 23.362 | AV16: =【参考】データ集計!AU152 -> 0.654263 | AW16: 0.654263 | BD16: 1906.6 | BE16: 56.3 | BF16: =【参考】データ集計!AU8 -> 0.66249 | BG16: 0.902372 | BI16: 1100 | BJ16: 53.974 | BK16: =【参考】データ集計!AU727 -> 1.071675 | BL16: 1.071675 | BZ16: 2500 | CA16: 53.702 | CB16: =【参考】データ集計!AU390 -> 1.206293367 | CC16: 1.206293367 | CD16: 438.2 | CE16: 9 | CG16: 5301.97 | CH16: 711.771 | CI16: =【参考】データ集計!AU640 -> 15.801469 | CJ16: 15.801469 | CK16: 596.82 | CL16: 12.61 | CN16: 1150 | CO16: 555.615 | CP16: =【参考】データ集計!AU676 -> 12.393326 | CQ16: 12.393326 | CX16: 19000 | CY16: 17.269 | CZ16: =【参考】データ集計!AU477 -> 0.276687 | DA16: 0.276687 | DB16: 277.18 | DC16: 4.57 | DE16: 5800 | DF16: 176.56 | DG16: =【参考】データ集計!AU920 -> 2.748251 | DH16: 2.748251 | DX16: 20818.182 | DY16: 2693 | DZ16: =【参考】データ集計!AU533 -> 37.60172 | EA16: 37.60172 | EC16: 2260.155 | ED16: 71.822 | EE16: =【参考】データ集計!AU281 -> 2.020191013 | EF16: 2.020191013
A17: =【参考】データ集計!AW17 -> 空調・換気設備 | B17: =【参考】データ集計!AX17 -> 15,000～16,000 | C17: 15,000 ～16,000 | D17: =【参考】データ集計!AZ17 -> 0 | E17: =【参考】データ集計!BA17 -> 0 | F17: =【参考】データ集計!BB17 -> 0 | G17: =【参考】データ集計!BC17 -> 0 | H17: =【参考】データ集計!BD17 -> 0 | K17: 1074.2 | L17: 130.091 | M17: =【参考】データ集計!AU46 -> 2.822769671 | N17: 2.822769671 | P17: 1460 | Q17: 293.556 | R17: =【参考】データ集計!AU62 -> 4.116531 | S17: 4.116531 | U17: 1400 | V17: 444.195 | W17: =【参考】データ集計!AU113 -> 7.013301 | X17: 7.013301 | Z17: 796.049 | AA17: 128.629 | AB17: =【参考】データ集計!AU164 -> 3.4465501 | AC17: 3.4465501 | AE17: 7803 | AF17: 1383.864 | AG17: =【参考】データ集計!AU182 -> 32.364585 | AH17: 32.364585 | AO17: 827 | AP17: 23.362 | AQ17: =【参考】データ集計!AU152 -> 0.654263 | AR17: 0.654263 | AT17: 751 | AU17: 43.752 | AV17: =【参考】データ集計!AU178 -> 1.18406448 | AW17: 1.18406448 | BD17: 1929 | BE17: 247.22 | BF17: =【参考】データ集計!AU8 -> 0.66249 | BG17: 4.47289 | BI17: 2150 | BJ17: 91.331 | BK17: =【参考】データ集計!AU763 -> 2.116504 | BL17: 2.116504 | BZ17: 2130 | CA17: 1.07 | CB17: =【参考】データ集計!AU394 -> 0 | CC17: 0 | CD17: 438.2 | CE17: 9 | CG17: 9552.77 | CH17: 1411.461 | CI17: =【参考】データ集計!AU678 -> 39.981488 | CJ17: 39.981488 | CK17: 596.82 | CL17: 12.61 | CN17: 1039.1 | CO17: 29.7 | CP17: =【参考】データ集計!AU681 -> 0.85734 | CQ17: 0.85734 | CX17: 150000 | CY17: 206.172 | CZ17: =【参考】データ集計!AU510 -> 0 | DA17: 0 | DB17: 277.18 | DC17: 4.57 | DE17: 10000 | DF17: 521.663 | DG17: =【参考】データ集計!AU921 -> 14.566986 | DH17: 14.566986 | DX17: 11664 | DY17: 1450.539 | DZ17: =【参考】データ集計!AU553 -> 25.021338 | EA17: 25.021338 | EC17: 909.091 | ED17: 44.588 | EE17: =【参考】データ集計!AU297 -> 0.71878 | EF17: 0.71878
A18: =【参考】データ集計!AW18 -> 空調・換気設備 | B18: =【参考】データ集計!AX18 -> 16,000～17,000 | C18: 16,000 ～17,000 | D18: =【参考】データ集計!AZ18 -> 0 | E18: =【参考】データ集計!BA18 -> 0 | F18: =【参考】データ集計!BB18 -> 0 | G18: =【参考】データ集計!BC18 -> 0 | H18: =【参考】データ集計!BD18 -> 0 | K18: 940 | L18: 5.28 | M18: =【参考】データ集計!AU47 -> 0.071445 | N18: 0.071445 | P18: 2875 | Q18: 222.108 | R18: =【参考】データ集計!AU63 -> 4.9528163 | S18: 4.9528163 | U18: 1710 | V18: 161.038 | W18: =【参考】データ集計!AU121 -> 2.791089667 | X18: 2.791089667 | Z18: 4800 | AA18: 1528.117 | AB18: =【参考】データ集計!AU185 -> 40.81891 | AC18: 40.81891 | AE18: 821.5 | AF18: 201.573 | AG18: =【参考】データ集計!AU189 -> 3.076898 | AH18: 3.076898 | AO18: 1206 | AP18: 23.652 | AQ18: =【参考】データ集計!AU154 -> 0.568962 | AR18: 0.568962 | AT18: 945 | AU18: 609.863 | AV18: =【参考】データ集計!AU183 -> 9.429874 | AW18: 9.429874 | BD18: 840 | BE18: 91.609 | BF18: =【参考】データ集計!AU8 -> 0.66249 | BG18: 1.065613 | BI18: 1333 | BJ18: 93.072 | BK18: =【参考】データ集計!AU769 -> 2.518761 | BL18: 2.518761 | BZ18: 3800 | CA18: 304.75 | CB18: =【参考】データ集計!AU426 -> 6.632110833 | CC18: 6.632110833 | CD18: 438.2 | CE18: 9 | CG18: 2600 | CH18: 101.646 | CI18: =【参考】データ集計!AU728 -> 1.076438 | CJ18: 1.076438 | CK18: 596.82 | CL18: 12.61 | CN18: 1052.75 | CO18: 110.592 | CP18: =【参考】データ集計!AU716 -> 1.995264 | CQ18: 1.995264 | CX18: 23200 | CY18: 70.495 | CZ18: =【参考】データ集計!AU529 -> 2.397088 | DA18: 2.397088 | DB18: 277.18 | DC18: 4.57 | DE18: 11000 | DF18: 72.996 | DG18: =【参考】データ集計!AU924 -> 1.128831 | DH18: 1.128831 | DX18: 7500 | DY18: 212.24 | DZ18: =【参考】データ集計!AU585 -> 15.255456 | EA18: 15.255456 | EC18: 2197.273 | ED18: 44.597 | EE18: =【参考】データ集計!AU307 -> 0.7533040961 | EF18: 0.7533040961
A19: =【参考】データ集計!AW19 -> 空調・換気設備 | B19: =【参考】データ集計!AX19 -> 17,000～18,000 | C19: 17,000 ～18,000 | D19: =【参考】データ集計!AZ19 -> 0 | E19: =【参考】データ集計!BA19 -> 0 | F19: =【参考】データ集計!BB19 -> 0 | G19: =【参考】データ集計!BC19 -> 0 | H19: =【参考】データ集計!BD19 -> 0 | K19: 1100 | L19: 84.901 | M19: =【参考】データ集計!AU48 -> 2.159108867 | N19: 2.159108867 | P19: 9950 | Q19: 264 | R19: =【参考】データ集計!AU64 -> 4.33 | S19: 4.33 | U19: 1489.3 | V19: 80.9 | W19: =【参考】データ集計!AU128 -> 1.388631 | X19: 1.388631 | Z19: 2000 | AA19: 77.939 | AB19: =【参考】データ集計!AU194 -> 1.585646 | AC19: 1.585646 | AE19: 750 | AF19: 352.728 | AG19: =【参考】データ集計!AU198 -> 6.1090238 | AH19: 6.1090238 | AO19: 751 | AP19: 43.752 | AQ19: =【参考】データ集計!AU178 -> 1.18406448 | AR19: 1.18406448 | AT19: 1492 | AU19: 45.6 | AV19: =【参考】データ集計!AU196 -> 0.919692 | AW19: 0.919692 | BD19: 1272.727 | BE19: 129.806 | BF19: =【参考】データ集計!AU8 -> 0.66249 | BG19: 2.828789 | BI19: 2727.273 | BJ19: 346.242 | BK19: =【参考】データ集計!AU800 -> 6.886432 | BL19: 6.886432 | BZ19: 4280 | CA19: 426.624 | CB19: =【参考】データ集計!AU478 -> 10.6764471 | CC19: 10.6764471 | CD19: 438.2 | CE19: 9 | CG19: 2463 | CH19: 254.511 | CI19: =【参考】データ集計!AU747 -> 3.78875 | CJ19: 3.78875 | CK19: 596.82 | CL19: 12.61 | CN19: 2165 | CO19: 672.007 | CP19: =【参考】データ集計!AU750 -> 14.781321 | CQ19: 14.781321 | CX19: 14380 | CY19: 29.127 | CZ19: =【参考】データ集計!AU554 -> 0.663789 | DA19: 0.663789 | DB19: 277.18 | DC19: 4.57 | DE19: 6500 | DF19: 47.405 | DG19: =【参考】データ集計!AU928 -> 1.33027992 | DH19: 1.33027992 | DX19: 6000 | DY19: 404.638 | DZ19: =【参考】データ集計!AU713 -> 8.100564 | EA19: 8.100564 | EC19: 4726.57 | ED19: 490 | EE19: =【参考】データ集計!AU321 -> 13.76411667 | EF19: 13.76411667
A20: =【参考】データ集計!AW20 -> 空調・換気設備 | B20: =【参考】データ集計!AX20 -> 18,000～19,000 | C20: 18,000 ～19,000 | D20: =【参考】データ集計!AZ20 -> 0 | E20: =【参考】データ集計!BA20 -> 0 | F20: =【参考】データ集計!BB20 -> 0 | G20: =【参考】データ集計!BC20 -> 0 | H20: =【参考】データ集計!BD20 -> 0 | K20: 1510 | L20: 20.106 | M20: =【参考】データ集計!AU50 -> 0.237284 | N20: 0.237284 | P20: 3720 | Q20: 314.673 | R20: =【参考】データ集計!AU66 -> 5.679228 | S20: 5.679228 | U20: 854.546 | V20: 160.38 | W20: =【参考】データ集計!AU138 -> 2.525256 | X20: 2.525256 | Z20: 1488.5 | AA20: 538.73 | AB20: =【参考】データ集計!AU197 -> 7.986685 | AC20: 7.986685 | AE20: 8579.849 | AF20: 717.431 | AG20: =【参考】データ集計!AU209 -> 14.12013 | AH20: 14.12013 | AO20: 945 | AP20: 609.863 | AQ20: =【参考】データ集計!AU183 -> 9.429874 | AR20: 9.429874 | AT20: 760 | AU20: 78.857 | AV20: =【参考】データ集計!AU211 -> 1.165203 | AW20: 1.165203 | BD20: 6830 | BE20: 470.867 | BF20: =【参考】データ集計!AU8 -> 0.66249 | BG20: 8.709362 | BI20: 1268 | BJ20: 40.365 | BK20: =【参考】データ集計!AU877 -> 1.027509 | BL20: 1.027509 | BZ20: 2100 | CA20: 31.5 | CB20: =【参考】データ集計!AU479 -> 0.750805 | CC20: 0.750805 | CD20: 438.2 | CE20: 9 | CG20: 2520 | CH20: 148.414 | CI20: =【参考】データ集計!AU755 -> 2.24294 | CJ20: 2.24294 | CK20: 596.82 | CL20: 12.61 | CN20: 1390 | CO20: 49.462 | CP20: =【参考】データ集計!AU856 -> 1.427601 | CQ20: 1.427601 | CX20: 10000 | CY20: 113.665 | CZ20: =【参考】データ集計!AU565 -> 1.215431 | DA20: 1.215431 | DB20: 277.18 | DC20: 4.57 | DE20: 7500 | DF20: 62.403 | DG20: =【参考】データ集計!AU945 -> 1.107181 | DH20: 1.107181 | DX20: 8300 | DY20: 1214.416 | DZ20: =【参考】データ集計!AU730 -> 31.869233 | EA20: 31.869233 | EC20: 1530 | ED20: 6.5 | EE20: =【参考】データ集計!AU322 -> 0.1626744167 | EF20: 0.1626744167
A21: =【参考】データ集計!AW21 -> 空調・換気設備 | B21: =【参考】データ集計!AX21 -> 19,000～20,000 | C21: 19,000 ～20,000 | D21: =【参考】データ集計!AZ21 -> 0 | E21: =【参考】データ集計!BA21 -> 0 | F21: =【参考】データ集計!BB21 -> 0 | G21: =【参考】データ集計!BC21 -> 0 | H21: =【参考】データ集計!BD21 -> 0 | K21: 2600 | L21: 284.595 | M21: =【参考】データ集計!AU52 -> 4.598478083 | N21: 4.598478083 | P21: 850 | Q21: 263.895 | R21: =【参考】データ集計!AU69 -> 4.5706614 | S21: 4.5706614 | U21: 750 | V21: 114.739 | W21: =【参考】データ集計!AU162 -> 3.105043 | X21: 3.105043 | Z21: 3597.3 | AA21: 1120.184 | AB21: =【参考】データ集計!AU204 -> 18.655372 | AC21: 18.655372 | AE21: 1600 | AF21: 93.428 | AG21: =【参考】データ集計!AU229 -> 1.510304 | AH21: 1.510304 | AO21: 1492 | AP21: 45.6 | AQ21: =【参考】データ集計!AU196 -> 0.919692 | AR21: 0.919692 | AT21: 781 | AU21: 20.818 | AV21: =【参考】データ集計!AU223 -> 0.33341 | AW21: 0.33341 | BD21: 1754 | BE21: 146.8 | BF21: =【参考】データ集計!AU8 -> 0.66249 | BG21: 2.353355 | BI21: 4900 | BJ21: 804.3 | BK21: =【参考】データ集計!AU953 -> 12.001894 | BL21: 12.001894 | BZ21: 7850 | CA21: 345.22 | CB21: =【参考】データ集計!AU486 -> 11.58938623 | CC21: 11.58938623 | CD21: 438.2 | CE21: 9 | CG21: 2700 | CH21: 4752.486 | CI21: =【参考】データ集計!AU792 -> 75.509571 | CJ21: 75.509571 | CK21: 596.82 | CL21: 12.61 | CN21: 3150 | CO21: 781.606 | CP21: =【参考】データ集計!AU869 -> 14.147842 | CQ21: 14.147842 | CX21: 10814 | CY21: 47.234 | CZ21: =【参考】データ集計!AU600 -> 0.628716 | DA21: 0.628716 | DB21: 277.18 | DC21: 4.57 | DE21: 11850 | DF21: 1559.04 | DG21: =【参考】データ集計!AU998 -> 24.10944 | DH21: 24.10944 | DX21: 9487.76 | DY21: 1628.153 | DZ21: =【参考】データ集計!AU759 -> 27.930232 | EA21: 27.930232 | EC21: 5994.72 | ED21: 178.436 | EE21: =【参考】データ集計!AU323 -> 4.8502003 | EF21: 4.8502003
A22: =【参考】データ集計!AW22 -> 空調・換気設備 | B22: =【参考】データ集計!AX22 -> 20,000～ | C22: 20,000～ | D22: =【参考】データ集計!AZ22 -> 1 | E22: =【参考】データ集計!BA22 -> 1841972 | F22: =【参考】データ集計!BB22 -> 1841.972 | G22: =【参考】データ集計!BC22 -> 50.680052 | H22: =【参考】データ集計!BD22 -> 50.680052 | K22: 8790 | L22: 4013.593 | M22: =【参考】データ集計!AU58 -> 81.99241178 | N22: 81.99241178 | P22: 768.5 | Q22: 75.076 | R22: =【参考】データ集計!AU70 -> 1.20374 | S22: 1.20374 | U22: 970 | V22: 110 | W22: =【参考】データ集計!AU166 -> 1.767939 | X22: 1.767939 | Z22: 1930.4 | AA22: 196.537 | AB22: =【参考】データ集計!AU207 -> 5.008944 | AC22: 5.008944 | AE22: 4300 | AF22: 762.91 | AG22: =【参考】データ集計!AU244 -> 12.234415 | AH22: 12.234415 | AO22: 760 | AP22: 78.857 | AQ22: =【参考】データ集計!AU211 -> 1.165203 | AR22: 1.165203 | AT22: 1260 | AU22: 48.828 | AV22: =【参考】データ集計!AU233 -> 0.211304 | AW22: 0.211304 | BD22: 750 | BE22: 46.87 | BF22: =【参考】データ集計!AU8 -> 0.66249 | BG22: 0.81837 | BI22: 800 | BJ22: 33.2 | BK22: =【参考】データ集計!AU964 -> 0.530858 | BL22: 0.530858 | BZ22: 6600 | CA22: 681.268 | CB22: =【参考】データ集計!AU496 -> 26.23163742 | CC22: 26.23163742 | CD22: 438.2 | CE22: 9 | CG22: 11650 | CH22: 1078.352 | CI22: =【参考】データ集計!AU797 -> 20.499519 | CJ22: 20.499519 | CK22: 596.82 | CL22: 12.61 | CN22: 1800 | CO22: 153.821 | CP22: =【参考】データ集計!AU919 -> 4.36464 | CQ22: 4.36464 | CX22: 14200 | CY22: 338.614 | CZ22: =【参考】データ集計!AU610 -> 3.958731078 | DA22: 3.958731078 | DB22: 277.18 | DC22: 4.57 | DE22: 12300 | DF22: 548.108 | DG22: =【参考】データ集計!AU1023 -> 7.294751 | DH22: 7.294751 | DX22: 11500 | DY22: 1333.25 | DZ22: =【参考】データ集計!AU790 -> 23.09189 | EA22: 23.09189 | EC22: 1394.54 | ED22: 15.704 | EE22: =【参考】データ集計!AU338 -> 0.314791 | EF22: 0.314791
A23: =【参考】データ集計!AW23 -> 照明設備 | B23: =【参考】データ集計!AX23 -> 1～1,000 | C23: 1 ～1,000 | D23: =【参考】データ集計!AZ23 -> 90 | E23: =【参考】データ集計!BA23 -> 13419660 | F23: =【参考】データ集計!BB23 -> 149.1073333 | G23: =【参考】データ集計!BC23 -> 216.7832989 | H23: =【参考】データ集計!BD23 -> 2.408703321 | K23: 1795 | L23: 748.054 | M23: =【参考】データ集計!AU60 -> 17.39893087 | N23: 17.39893087 | P23: 784 | Q23: 20.137 | R23: =【参考】データ集計!AU72 -> 0.298337 | S23: 0.298337 | U23: 750 | V23: 133.112 | W23: =【参考】データ集計!AU169 -> 1.989202 | X23: 1.989202 | Z23: 13520 | AA23: 4613.436 | AB23: =【参考】データ集計!AU208 -> 102.0421136 | AC23: 102.0421136 | AE23: 1485 | AF23: 188.371 | AG23: =【参考】データ集計!AU246 -> 2.891574 | AH23: 2.891574 | AO23: 781 | AP23: 20.818 | AQ23: =【参考】データ集計!AU223 -> 0.33341 | AR23: 0.33341 | AT23: 874 | AU23: 34.032 | AV23: =【参考】データ集計!AU236 -> 0.920991 | AW23: 0.920991 | BD23: 937 | BE23: 220.5 | BF23: =【参考】データ集計!AU9 -> 0.9356264 | BG23: 5.046182 | BI23: 2828 | BJ23: 63.427 | BK23: =【参考】データ集計!AU1004 -> 0.893712 | BL23: 0.893712 | BZ23: 4950 | CA23: 499.2 | CB23: =【参考】データ集計!AU501 -> 11.258268 | CC23: 11.258268 | CD23: 438.2 | CE23: 9 | CG23: 1720 | CH23: 70.624 | CI23: =【参考】データ集計!AU883 -> 1.911262 | CJ23: 1.911262 | CK23: 596.82 | CL23: 12.61 | CN23: 1650 | CO23: 102.789 | CP23: =【参考】データ集計!AU946 -> 0.921857 | CQ23: 0.921857 | CX23: 19500 | CY23: 29.969 | CZ23: =【参考】データ集計!AU811 -> 0.501414 | DA23: 0.501414 | DB23: 277.18 | DC23: 4.57 | DE23: 11900 | DF23: 316.291 | DG23: =【参考】データ集計!AU1291 -> 5.863253 | DH23: 5.863253 | DX23: 10500 | DY23: 1572.366 | DZ23: =【参考】データ集計!AU793 -> 23.09189 | EA23: 23.09189 | EC23: 1029 | ED23: 233.228 | EE23: =【参考】データ集計!AU341 -> 3.208963 | EF23: 3.208963
A24: =【参考】データ集計!AW24 -> 照明設備 | B24: =【参考】データ集計!AX24 -> 1,000～2,000 | C24: 1,000 ～2,000 | D24: =【参考】データ集計!AZ24 -> 177 | E24: =【参考】データ集計!BA24 -> 36992954 | F24: =【参考】データ集計!BB24 -> 208.9997401 | G24: =【参考】データ集計!BC24 -> 574.104741 | H24: =【参考】データ集計!BD24 -> 3.24352961 | K24: 900 | L24: 54.988 | M24: =【参考】データ集計!AU61 -> 0.834824 | N24: 0.834824 | P24: 1050 | Q24: 29.259 | R24: =【参考】データ集計!AU75 -> 2.235982267 | S24: 2.235982267 | U24: 823.9 | V24: 16.443 | W24: =【参考】データ集計!AU181 -> 0.263697 | X24: 0.263697 | Z24: 1300 | AA24: 107.611 | AB24: =【参考】データ集計!AU214 -> 2.701054 | AC24: 2.701054 | AE24: 13380 | AF24: 1652.327 | AG24: =【参考】データ集計!AU252 -> 38.187569 | AH24: 38.187569 | AO24: 1260 | AP24: 48.828 | AQ24: =【参考】データ集計!AU233 -> 0.211304 | AR24: 0.211304 | AT24: 750 | AU24: 71.172 | AV24: =【参考】データ集計!AU242 -> 1.141388 | AW24: 1.141388 | BD24: 780 | BE24: 49.016 | BF24: =【参考】データ集計!AU9 -> 0.9356264 | BG24: 0.953033 | BI24: 4700 | BJ24: 120.709 | BK24: =【参考】データ集計!AU1020 -> 1.8186 | BL24: 1.8186 | BZ24: 3300 | CA24: 49.803 | CB24: =【参考】データ集計!AU623 -> 1.206223133 | CC24: 1.206223133 | CD24: 438.2 | CE24: 9 | CG24: 2978.961 | CH24: 1.385 | CI24: =【参考】データ集計!AU912 -> 18.447532 | CJ24: 18.447532 | CK24: 596.82 | CL24: 12.61 | CN24: 1270 | CO24: 25 | CP24: =【参考】データ集計!AU963 -> 0.42434 | CQ24: 0.42434 | CX24: 20500 | CY24: 55.708 | CZ24: =【参考】データ集計!AU817 -> 0.763379 | DA24: 0.763379 | DB24: 277.18 | DC24: 4.57 | DE24: 8280 | DF24: 398.88 | DG24: =【参考】データ集計!AU1330 -> 6.2352 | DH24: 6.2352 | DX24: 9600 | DY24: 1484.75 | DZ24: =【参考】データ集計!AU795 -> 25.718901 | EA24: 25.718901 | EC24: 1987.231 | ED24: 44.028 | EE24: =【参考】データ集計!AU350 -> 1.411600917 | EF24: 1.411600917
A25: =【参考】データ集計!AW25 -> 照明設備 | B25: =【参考】データ集計!AX25 -> 2,000～3,000 | C25: 2,000 ～3,000 | D25: =【参考】データ集計!AZ25 -> 52 | E25: =【参考】データ集計!BA25 -> 22054078 | F25: =【参考】データ集計!BB25 -> 424.1168846 | G25: =【参考】データ集計!BC25 -> 390.4179703 | H25: =【参考】データ集計!BD25 -> 7.50803789 | K25: 1460 | L25: 293.556 | M25: =【参考】データ集計!AU62 -> 4.116531 | N25: 4.116531 | P25: 1400 | Q25: 71.527 | R25: =【参考】データ集計!AU77 -> 1.909097 | S25: 1.909097 | U25: 1172.8 | V25: 52.473 | W25: =【参考】データ集計!AU195 -> 0.888949 | X25: 0.888949 | Z25: 1995 | AA25: 176.051 | AB25: =【参考】データ集計!AU226 -> 3.374369 | AC25: 3.374369 | AE25: 1586.7 | AF25: 49 | AG25: =【参考】データ集計!AU296 -> 0.866 | AH25: 0.866 | AO25: 874 | AP25: 34.032 | AQ25: =【参考】データ集計!AU236 -> 0.920991 | AR25: 0.920991 | AT25: 750 | AU25: 22.72 | AV25: =【参考】データ集計!AU248 -> 0.63218 | AW25: 0.63218 | BD25: 1189 | BE25: 63.118 | BF25: =【参考】データ集計!AU9 -> 0.9356264 | BG25: 0.950002 | BI25: 972 | BJ25: 218.208 | BK25: =【参考】データ集計!AU1049 -> 3.633736 | BL25: 3.633736 | BZ25: 34000 | CA25: 322.896 | CB25: =【参考】データ集計!AU646 -> 8.50662065 | CC25: 8.50662065 | CD25: 438.2 | CE25: 9 | CG25: 4248.2 | CH25: 142.248 | CI25: =【参考】データ集計!AU935 -> 2.596268 | CJ25: 2.596268 | CK25: 596.82 | CL25: 12.61 | CN25: 3054 | CO25: 773.084 | CP25: =【参考】データ集計!AU978 -> 19.4769708 | CQ25: 19.4769708 | CX25: 7700 | CY25: 18.876 | CZ25: =【参考】データ集計!AU824 -> 0.314358 | DA25: 0.314358 | DB25: 277.18 | DC25: 4.57 | DE25: 8000 | DF25: 314.559 | DG25: =【参考】データ集計!AU1453 -> 2.992896 | DH25: 2.992896 | DX25: 14520 | DY25: 920.07 | DZ25: =【参考】データ集計!AU815 -> 17.32 | EA25: 17.32 | EC25: 758 | ED25: 11.6 | EE25: =【参考】データ集計!AU352 -> 0.2502683333 | EF25: 0.2502683333
A26: =【参考】データ集計!AW26 -> 照明設備 | B26: =【参考】データ集計!AX26 -> 3,000～4,000 | C26: 3,000 ～4,000 | D26: =【参考】データ集計!AZ26 -> 28 | E26: =【参考】データ集計!BA26 -> 13061507 | F26: =【参考】データ集計!BB26 -> 466.4823929 | G26: =【参考】データ集計!BC26 -> 199.2871155 | H26: =【参考】データ集計!BD26 -> 7.117396984 | K26: 2875 | L26: 222.108 | M26: =【参考】データ集計!AU63 -> 4.9528163 | N26: 4.9528163 | P26: 1500 | Q26: 50.845 | R26: =【参考】データ集計!AU83 -> 3.124095 | S26: 3.124095 | U26: 851.77 | V26: 57.187 | W26: =【参考】データ集計!AU206 -> 0.9497785299 | X26: 0.9497785299 | Z26: 1100 | AA26: 109.518 | AB26: =【参考】データ集計!AU230 -> 1.896973 | AC26: 1.896973 | AE26: 1130.75 | AF26: 55.729 | AG26: =【参考】データ集計!AU448 -> 1.136625 | AH26: 1.136625 | AO26: 750 | AP26: 71.172 | AQ26: =【参考】データ集計!AU242 -> 1.141388 | AR26: 1.141388 | AT26: 760 | AU26: 19.89 | AV26: =【参考】データ集計!AU250 -> 0.50661 | AW26: 0.50661 | BI26: 850 | BJ26: 52.887 | BK26: =【参考】データ集計!AU1058 -> 0.898042 | BL26: 0.898042 | BZ26: 1730 | CA26: 3.944 | CB26: =【参考】データ集計!AU714 -> 0.09910626 | CC26: 0.09910626 | CD26: 438.2 | CE26: 9 | CG26: 3270 | CH26: 7389.507 | CI26: =【参考】データ集計!AU938 -> 133.64978 | CJ26: 133.64978 | CK26: 596.82 | CL26: 12.61 | CN26: 2856 | CO26: 118.779 | CP26: =【参考】データ集計!AU979 -> 1.938974 | CQ26: 1.938974 | CX26: 24500 | CY26: 118.623 | CZ26: =【参考】データ集計!AU841 -> 2.880749 | DA26: 2.880749 | DB26: 277.18 | DC26: 4.57 | DE26: 9500 | DF26: 173.953 | DG26: =【参考】データ集計!AU1477 -> 2.49408 | DH26: 2.49408 | DX26: 8900 | DY26: 792.726 | DZ26: =【参考】データ集計!AU837 -> 17.956077 | EA26: 17.956077 | EC26: 1453.96 | ED26: 179.26 | EE26: =【参考】データ集計!AU355 -> 2.23894903 | EF26: 2.23894903
A27: =【参考】データ集計!AW27 -> 照明設備 | B27: =【参考】データ集計!AX27 -> 4,000～5,000 | C27: 4,000 ～5,000 | D27: =【参考】データ集計!AZ27 -> 18 | E27: =【参考】データ集計!BA27 -> 13920926 | F27: =【参考】データ集計!BB27 -> 773.3847778 | G27: =【参考】データ集計!BC27 -> 261.5794135 | H27: =【参考】データ集計!BD27 -> 14.53218964 | K27: 9950 | L27: 264 | M27: =【参考】データ集計!AU64 -> 4.33 | N27: 4.33 | P27: 994 | Q27: 23.071 | R27: =【参考】データ集計!AU88 -> 0.193984 | S27: 0.193984 | U27: 1870 | V27: 60 | W27: =【参考】データ集計!AU218 -> 0.912764 | X27: 0.912764 | Z27: 766.87 | AA27: 146.277 | AB27: =【参考】データ集計!AU231 -> 3.725965 | AC27: 3.725965 | AE27: 1250 | AF27: 78.949 | AG27: =【参考】データ集計!AU464 -> 1.367414 | AH27: 1.367414 | AO27: 750 | AP27: 22.72 | AQ27: =【参考】データ集計!AU248 -> 0.63218 | AR27: 0.63218 | AT27: 763 | AU27: 28.5 | AV27: =【参考】データ集計!AU264 -> 0.49362 | AW27: 0.49362 | BI27: 1300 | BJ27: 63.432 | BK27: =【参考】データ集計!AU1075 -> 1.185121 | BL27: 1.185121 | BZ27: 3800 | CA27: 369.819 | CB27: =【参考】データ集計!AU738 -> 11.48214667 | CC27: 11.48214667 | CD27: 438.2 | CE27: 9 | CG27: 2954 | CH27: 40.503 | CI27: =【参考】データ集計!AU987 -> 1.022746 | CJ27: 1.022746 | CK27: 596.82 | CL27: 12.61 | CN27: 1100 | CO27: 251.247 | CP27: =【参考】データ集計!AU995 -> 3.71514 | CQ27: 3.71514 | CX27: 12180 | CY27: 567 | CZ27: =【参考】データ集計!AU901 -> 8.1837 | DA27: 8.1837 | DB27: 277.18 | DC27: 4.57 | DX27: 14181.818 | DY27: 1700 | DZ27: =【参考】データ集計!AU852 -> 24.235876 | EA27: 24.235876 | EC27: 1232 | ED27: 217.633 | EE27: =【参考】データ集計!AU364 -> 2.915822 | EF27: 2.915822
A28: =【参考】データ集計!AW28 -> 照明設備 | B28: =【参考】データ集計!AX28 -> 5,000～6,000 | C28: 5,000 ～6,000 | D28: =【参考】データ集計!AZ28 -> 12 | E28: =【参考】データ集計!BA28 -> 6873320 | F28: =【参考】データ集計!BB28 -> 572.7766667 | G28: =【参考】データ集計!BC28 -> 121.2393072 | H28: =【参考】データ集計!BD28 -> 10.1032756 | K28: 3720 | L28: 314.673 | M28: =【参考】データ集計!AU66 -> 5.679228 | N28: 5.679228 | P28: 758 | Q28: 273.837 | R28: =【参考】データ集計!AU91 -> 3.88401 | S28: 3.88401 | U28: 860 | V28: 1.912 | W28: =【参考】データ集計!AU225 -> 0.028578 | X28: 0.028578 | Z28: 1280 | AA28: 246.075 | AB28: =【参考】データ集計!AU235 -> 5.327632 | AC28: 5.327632 | AE28: 1454.545 | AF28: 1166.517 | AG28: =【参考】データ集計!AU485 -> 16.29379 | AH28: 16.29379 | AO28: 760 | AP28: 19.89 | AQ28: =【参考】データ集計!AU250 -> 0.50661 | AR28: 0.50661 | AT28: 842 | AU28: 11.7 | AV28: =【参考】データ集計!AU293 -> 0.18186 | AW28: 0.18186 | BI28: 1420 | BJ28: 39.13 | BK28: =【参考】データ集計!AU1081 -> 1.055654 | BL28: 1.055654 | BZ28: 6955 | CA28: 14.645 | CB28: =【参考】データ集計!AU770 -> 0.4762384367 | CC28: 0.4762384367 | CD28: 438.2 | CE28: 9 | CG28: 1704.61 | CH28: 109.182 | CI28: =【参考】データ集計!AU1076 -> 0.96559 | CJ28: 0.96559 | CK28: 596.82 | CL28: 12.61 | CN28: 4450 | CO28: 611.269 | CP28: =【参考】データ集計!AU1001 -> 9.535959 | CQ28: 9.535959 | CX28: 12750 | CY28: 49.75 | CZ28: =【参考】データ集計!AU939 -> 0.888949 | DA28: 0.888949 | DB28: 277.18 | DC28: 4.57 | DX28: 10255 | DY28: 524.69 | DZ28: =【参考】データ集計!AU853 -> 11.9075 | EA28: 11.9075 | EC28: 7723.519 | ED28: 67.683 | EE28: =【参考】データ集計!AU387 -> 2.683697206 | EF28: 2.683697206
A29: =【参考】データ集計!AW29 -> 照明設備 | B29: =【参考】データ集計!AX29 -> 6,000～7,000 | C29: 6,000 ～7,000 | D29: =【参考】データ集計!AZ29 -> 4 | E29: =【参考】データ集計!BA29 -> 5550716 | F29: =【参考】データ集計!BB29 -> 1387.679 | G29: =【参考】データ集計!BC29 -> 88.758072 | H29: =【参考】データ集計!BD29 -> 22.189518 | K29: 850 | L29: 263.895 | M29: =【参考】データ集計!AU69 -> 4.5706614 | N29: 4.5706614 | P29: 860 | Q29: 154.14 | R29: =【参考】データ集計!AU92 -> 2.224754 | S29: 2.224754 | U29: 1313.5 | V29: 58.63 | W29: =【参考】データ集計!AU247 -> 1.103284 | X29: 1.103284 | Z29: 15334.527 | AA29: 2780.537 | AB29: =【参考】データ集計!AU243 -> 37.22068 | AC29: 37.22068 | AE29: 4988 | AF29: 200.673 | AG29: =【参考】データ集計!AU499 -> 1.800414 | AH29: 1.800414 | AO29: 763 | AP29: 28.5 | AQ29: =【参考】データ集計!AU264 -> 0.49362 | AR29: 0.49362 | AT29: 950 | AU29: 58.6 | AV29: =【参考】データ集計!AU294 -> 1.58478 | AW29: 1.58478 | BI29: 1130 | BJ29: 6.83 | BK29: =【参考】データ集計!AU1133 -> 0.145055 | BL29: 0.145055 | BZ29: 5219 | CA29: 21.33 | CB29: =【参考】データ集計!AU782 -> 0.2853059 | CC29: 0.2853059 | CD29: 438.2 | CE29: 9 | CG29: 2515 | CH29: 55.383 | CI29: =【参考】データ集計!AU1102 -> 0.695398 | CJ29: 0.695398 | CK29: 596.82 | CL29: 12.61 | CN29: 1896 | CO29: 120.405 | CP29: =【参考】データ集計!AU1011 -> 1.49385 | CQ29: 1.49385 | CX29: 11200 | CY29: 753.48 | CZ29: =【参考】データ集計!AU948 -> 9.321624 | DA29: 9.321624 | DB29: 277.18 | DC29: 4.57 | DX29: 4980 | DY29: 553.134 | DZ29: =【参考】データ集計!AU911 -> 10.465177 | EA29: 10.465177 | EC29: 1819.912 | ED29: 100.152 | EE29: =【参考】データ集計!AU388 -> 1.369146 | EF29: 1.369146
A30: =【参考】データ集計!AW30 -> 照明設備 | B30: =【参考】データ集計!AX30 -> 7,000～8,000 | C30: 7,000 ～8,000 | D30: =【参考】データ集計!AZ30 -> 6 | E30: =【参考】データ集計!BA30 -> 4662166 | F30: =【参考】データ集計!BB30 -> 777.0276667 | G30: =【参考】データ集計!BC30 -> 85.155945 | H30: =【参考】データ集計!BD30 -> 14.1926575 | K30: 768.5 | L30: 75.076 | M30: =【参考】データ集計!AU70 -> 1.20374 | N30: 1.20374 | P30: 5180 | Q30: 893 | R30: =【参考】データ集計!AU93 -> 39.902682 | S30: 39.902682 | U30: 906.55 | V30: 27.96 | W30: =【参考】データ集計!AU253 -> 0.403556 | X30: 0.403556 | Z30: 1700 | AA30: 336.98 | AB30: =【参考】データ集計!AU251 -> 6.270273 | AC30: 6.270273 | AE30: 1611.525 | AF30: 207.9 | AG30: =【参考】データ集計!AU512 -> 1.4289 | AH30: 1.4289 | AO30: 842 | AP30: 11.7 | AQ30: =【参考】データ集計!AU293 -> 0.18186 | AR30: 0.18186 | AT30: 750 | AU30: 67.7 | AV30: =【参考】データ集計!AU295 -> 1.10415 | AW30: 1.10415 | BI30: 10800 | BJ30: 1211.099 | BK30: =【参考】データ集計!AU1136 -> 30.116016 | BL30: 30.116016 | BZ30: 3700 | CA30: 83.88 | CB30: =【参考】データ集計!AU861 -> 2.2073667 | CC30: 2.2073667 | CD30: 438.2 | CE30: 9 | CG30: 7526.12 | CH30: 529.993 | CI30: =【参考】データ集計!AU1131 -> 8.564307 | CJ30: 8.564307 | CK30: 596.82 | CL30: 12.61 | CN30: 1245 | CO30: 122.4 | CP30: =【参考】データ集計!AU1073 -> 3.53328 | CQ30: 3.53328 | CX30: 9860 | CY30: 661.452 | CZ30: =【参考】データ集計!AU982 -> 9.034978 | DA30: 9.034978 | DB30: 277.18 | DC30: 4.57 | DX30: 11015.2 | DY30: 1753.05 | DZ30: =【参考】データ集計!AU951 -> 24.48615 | EA30: 24.48615 | EC30: 841.09 | ED30: 112.278 | EE30: =【参考】データ集計!AU412 -> 2.525823667 | EF30: 2.525823667
A31: =【参考】データ集計!AW31 -> 照明設備 | B31: =【参考】データ集計!AX31 -> 8,000～9,000 | C31: 8,000 ～9,000 | D31: =【参考】データ集計!AZ31 -> 3 | E31: =【参考】データ集計!BA31 -> 6604057 | F31: =【参考】データ集計!BB31 -> 2201.352333 | G31: =【参考】データ集計!BC31 -> 118.552369 | H31: =【参考】データ集計!BD31 -> 39.51745633 | K31: 784 | L31: 20.137 | M31: =【参考】データ集計!AU72 -> 0.298337 | N31: 0.298337 | P31: 2900 | Q31: 19.119 | R31: =【参考】データ集計!AU96 -> 0.135529 | S31: 0.135529 | U31: 1389.5 | V31: 13.26 | W31: =【参考】データ集計!AU258 -> 0.25114 | X31: 0.25114 | Z31: 1730 | AA31: 120 | AB31: =【参考】データ集計!AU256 -> 2.480224 | AC31: 2.480224 | AE31: 1778.384 | AF31: 50.025 | AG31: =【参考】データ集計!AU517 -> 0.746925 | AH31: 0.746925 | AO31: 950 | AP31: 58.6 | AQ31: =【参考】データ集計!AU294 -> 1.58478 | AR31: 1.58478 | AT31: 931 | AU31: 33.8 | AV31: =【参考】データ集計!AU300 -> 0.67115 | AW31: 0.67115 | BI31: 3600 | BJ31: 325.377 | BK31: =【参考】データ集計!AU1151 -> 5.367035 | BL31: 5.367035 | BZ31: 11300 | CA31: 486.57 | CB31: =【参考】データ集計!AU882 -> 13.66776785 | CC31: 13.66776785 | CD31: 438.2 | CE31: 9 | CG31: 4550 | CH31: 178.548 | CI31: =【参考】データ集計!AU1164 -> 3.827287 | CJ31: 3.827287 | CK31: 596.82 | CL31: 12.61 | CN31: 1850 | CO31: 224.834 | CP31: =【参考】データ集計!AU1078 -> 3.811082467 | CQ31: 3.811082467 | CX31: 15800 | CY31: 4.368 | CZ31: =【参考】データ集計!AU999 -> 0.08904212 | DA31: 0.08904212 | DB31: 277.18 | DC31: 4.57 | DX31: 12000 | DY31: 1614.936 | DZ31: =【参考】データ集計!AU958 -> 29.188097 | EA31: 29.188097 | EC31: 780.2 | ED31: 859.12 | EE31: =【参考】データ集計!AU420 -> 20.77227167 | EF31: 20.77227167
A32: =【参考】データ集計!AW32 -> 照明設備 | B32: =【参考】データ集計!AX32 -> 9,000～10,000 | C32: 9,000 ～10,000 | D32: =【参考】データ集計!AZ32 -> 6 | E32: =【参考】データ集計!BA32 -> 7308973 | F32: =【参考】データ集計!BB32 -> 1218.162167 | G32: =【参考】データ集計!BC32 -> 132.547795 | H32: =【参考】データ集計!BD32 -> 22.09129917 | K32: 1050 | L32: 29.259 | M32: =【参考】データ集計!AU75 -> 2.235982267 | N32: 2.235982267 | P32: 1775 | Q32: 102.927 | R32: =【参考】データ集計!AU99 -> 2.0206378 | S32: 2.0206378 | U32: 1450 | V32: 28.009 | W32: =【参考】データ集計!AU276 -> 0.441227 | X32: 0.441227 | Z32: 2952.97 | AA32: 847.806 | AB32: =【参考】データ集計!AU262 -> 14.119264 | AC32: 14.119264 | AE32: 1480.4 | AF32: 170.964 | AG32: =【参考】データ集計!AU542 -> 2.741756 | AH32: 2.741756 | AO32: 750 | AP32: 67.7 | AQ32: =【参考】データ集計!AU295 -> 1.10415 | AR32: 1.10415 | AT32: 765 | AU32: 57.002 | AV32: =【参考】データ集計!AU304 -> 0.9526 | AW32: 0.9526 | BI32: 780 | BJ32: 60.9 | BK32: =【参考】データ集計!AU1165 -> 0.617458 | BL32: 0.617458 | BZ32: 1704.86 | CA32: 0.4 | CB32: =【参考】データ集計!AU900 -> 0.01001073333 | CC32: 0.01001073333 | CD32: 438.2 | CE32: 9 | CG32: 3520 | CH32: 71.584 | CI32: =【参考】データ集計!AU1233 -> 0.790225 | CJ32: 0.790225 | CK32: 596.82 | CL32: 12.61 | CN32: 3928 | CO32: 206.421 | CP32: =【参考】データ集計!AU1084 -> 3.262222 | CQ32: 3.262222 | CX32: 9980 | CY32: 44.928 | CZ32: =【参考】データ集計!AU1005 -> 0.748224 | DA32: 0.748224 | DB32: 277.18 | DC32: 4.57 | DX32: 6348.5 | DY32: 741.578 | DZ32: =【参考】データ集計!AU1057 -> 13.6395 | EA32: 13.6395 | EC32: 770 | ED32: 303.31 | EE32: =【参考】データ集計!AU425 -> 5.944976667 | EF32: 5.944976667
A33: =【参考】データ集計!AW33 -> 照明設備 | B33: =【参考】データ集計!AX33 -> 10,000～11,000 | C33: 10,000 ～11,000 | D33: =【参考】データ集計!AZ33 -> 4 | E33: =【参考】データ集計!BA33 -> 5465315 | F33: =【参考】データ集計!BB33 -> 1366.32875 | G33: =【参考】データ集計!BC33 -> 115.804984 | H33: =【参考】データ集計!BD33 -> 28.951246 | K33: 6100 | L33: 602.536 | M33: =【参考】データ集計!AU76 -> 14.10567317 | N33: 14.10567317 | P33: 10208 | Q33: 134.051 | R33: =【参考】データ集計!AU104 -> 2.902399 | S33: 2.902399 | U33: 6790 | V33: 839.639 | W33: =【参考】データ集計!AU280 -> 9.163146 | X33: 9.163146 | Z33: 2800 | AA33: 160.374 | AB33: =【参考】データ集計!AU263 -> 2.26892 | AC33: 2.26892 | AE33: 1100 | AF33: 106.697 | AG33: =【参考】データ集計!AU556 -> 1.587378 | AH33: 1.587378 | AO33: 931 | AP33: 33.8 | AQ33: =【参考】データ集計!AU300 -> 0.67115 | AR33: 0.67115 | AT33: 761 | AU33: 22.437 | AV33: =【参考】データ集計!AU306 -> 0.359823 | AW33: 0.359823 | BI33: 1721 | BJ33: 248.784 | BK33: =【参考】データ集計!AU1207 -> 3.425896 | BL33: 3.425896 | BZ33: 1500 | CA33: 48.905 | CB33: =【参考】データ集計!AU913 -> 1.053033333 | CC33: 1.053033333 | CD33: 438.2 | CE33: 9 | CG33: 1555 | CH33: 225.329 | CI33: =【参考】データ集計!AU1325 -> 2.593237 | CJ33: 2.593237 | CK33: 596.82 | CL33: 12.61 | CN33: 1050 | CO33: 73.959 | CP33: =【参考】データ集計!AU1099 -> 0.903238 | CQ33: 0.903238 | CX33: 13300 | CY33: 29.1 | CZ33: =【参考】データ集計!AU1032 -> 0.411783 | DA33: 0.411783 | DB33: 277.18 | DC33: 4.57 | DX33: 11275.4 | DY33: 1399.232 | DZ33: =【参考】データ集計!AU1090 -> 18.818613 | EA33: 18.818613 | EC33: 2490 | ED33: 40.744 | EE33: =【参考】データ集計!AU439 -> 0.801916 | EF33: 0.801916
A34: =【参考】データ集計!AW34 -> 照明設備 | B34: =【参考】データ集計!AX34 -> 11,000～12,000 | C34: 11,000 ～12,000 | D34: =【参考】データ集計!AZ34 -> 1 | E34: =【参考】データ集計!BA34 -> 4145889 | F34: =【参考】データ集計!BB34 -> 4145.889 | G34: =【参考】データ集計!BC34 -> 69.5398 | H34: =【参考】データ集計!BD34 -> 69.5398 | K34: 1400 | L34: 71.527 | M34: =【参考】データ集計!AU77 -> 1.909097 | N34: 1.909097 | P34: 1224 | Q34: 26.721 | R34: =【参考】データ集計!AU108 -> 0.452485 | S34: 0.452485 | U34: 7500 | V34: 1612 | W34: =【参考】データ集計!AU299 -> 31.547947 | X34: 31.547947 | Z34: 1500 | AA34: 346.02 | AB34: =【参考】データ集計!AU265 -> 1.6693016 | AC34: 1.6693016 | AE34: 1097.52 | AF34: 98.317 | AG34: =【参考】データ集計!AU589 -> 1.709051 | AH34: 1.709051 | AO34: 765 | AP34: 57.002 | AQ34: =【参考】データ集計!AU304 -> 0.9526 | AR34: 0.9526 | AT34: 1074 | AU34: 22.76 | AV34: =【参考】データ集計!AU313 -> 0.61486 | AW34: 0.61486 | BI34: 10000 | BJ34: 789.139 | BK34: =【参考】データ集計!AU1220 -> 12.380336 | BL34: 12.380336 | BZ34: 2885.4 | CA34: 377.3 | CB34: =【参考】データ集計!AU952 -> 9.442624217 | CC34: 9.442624217 | CD34: =ROUND(AVERAGE(CA:CA),2) -> 438.2 | CE34: =ROUND(AVERAGE(CC:CC),2) -> 9 | CG34: 4410.25 | CH34: 369.732 | CI34: =【参考】データ集計!AU1328 -> 7.121551 | CJ34: 7.121551 | CK34: 596.82 | CL34: 12.61 | CN34: 3800 | CO34: 347 | CP34: =【参考】データ集計!AU1123 -> 10.159479 | CQ34: 10.159479 | CX34: 24400 | CY34: 332.169 | CZ34: =【参考】データ集計!AU1108 -> 5.684857 | DA34: 5.684857 | DB34: =ROUND(AVERAGE(CY:CY),2) -> 277.18 | DC34: =ROUND(AVERAGE(DA:DA),2) -> 4.57 | DX34: 5716 | DY34: 1545.815 | DZ34: =【参考】データ集計!AU1140 -> 23.674275 | EA34: 23.674275 | EC34: 940.43 | ED34: 189.554 | EE34: =【参考】データ集計!AU442 -> 2.539228933 | EF34: 2.539228933
A35: =【参考】データ集計!AW35 -> 照明設備 | B35: =【参考】データ集計!AX35 -> 12,000～13,000 | C35: 12,000 ～13,000 | D35: =【参考】データ集計!AZ35 -> 2 | E35: =【参考】データ集計!BA35 -> 1508923 | F35: =【参考】データ集計!BB35 -> 754.4615 | G35: =【参考】データ集計!BC35 -> 13.0114768 | H35: =【参考】データ集計!BD35 -> 6.5057384 | K35: 1483.2 | L35: 1049.801 | M35: =【参考】データ集計!AU80 -> 22.473566 | N35: 22.473566 | P35: 1440 | Q35: 5.539 | R35: =【参考】データ集計!AU109 -> 0.13856 | S35: 0.13856 | U35: 1160 | V35: 118.092 | W35: =【参考】データ集計!AU317 -> 1.057819 | X35: 1.057819 | Z35: 940 | AA35: 70.551 | AB35: =【参考】データ集計!AU268 -> 1.131429 | AC35: 1.131429 | AE35: 5300 | AF35: 950.15 | AG35: =【参考】データ集計!AU598 -> 15.138113 | AH35: 15.138113 | AO35: 761 | AP35: 22.437 | AQ35: =【参考】データ集計!AU306 -> 0.359823 | AR35: 0.359823 | AT35: 779 | AU35: 20.791 | AV35: =【参考】データ集計!AU318 -> 0.529559 | AW35: 0.529559 | BI35: 1620 | BJ35: 631.969 | BK35: =【参考】データ集計!AU1319 -> 9.73817 | BL35: 9.73817 | BZ35: 6890 | CA35: 589 | CB35: =【参考】データ集計!AU954 -> 17.06750467 | CC35: 17.06750467 | CD35: 438.2 | CE35: 9 | CG35: 1840 | CH35: 86.914 | CI35: =【参考】データ集計!AU1340 -> 2.090957 | CJ35: 2.090957 | CK35: 596.82 | CL35: 12.61 | CN35: 5710 | CO35: 524.128 | CP35: =【参考】データ集計!AU1153 -> 7.092107 | CQ35: 7.092107 | CX35: 16600 | CY35: 229.67 | CZ35: =【参考】データ集計!AU1138 -> 2.841346 | DA35: 2.841346 | DB35: 277.18 | DC35: 4.57 | DX35: 2729.2 | DY35: 471.73 | DZ35: =【参考】データ集計!AU1197 -> 5.692651 | EA35: 5.692651 | EC35: 2089.436 | ED35: 100.974 | EE35: =【参考】データ集計!AU475 -> 1.825031583 | EF35: 1.825031583
A36: =【参考】データ集計!AW36 -> 照明設備 | B36: =【参考】データ集計!AX36 -> 13,000～14,000 | C36: 13,000 ～14,000 | D36: =【参考】データ集計!AZ36 -> 3 | E36: =【参考】データ集計!BA36 -> 7500486 | F36: =【参考】データ集計!BB36 -> 2500.162 | G36: =【参考】データ集計!BC36 -> 160.1788586 | H36: =【参考】データ集計!BD36 -> 53.39295288 | K36: 1494 | L36: 780.247 | M36: =【参考】データ集計!AU81 -> 14.32448466 | N36: 14.32448466 | P36: 2500 | Q36: 543.8 | R36: =【参考】データ集計!AU112 -> 14.862292 | S36: 14.862292 | U36: 5933.4 | V36: 1945.059 | W36: =【参考】データ集計!AU325 -> 45.8773688 | X36: 45.8773688 | Z36: 801.695 | AA36: 67.645 | AB36: =【参考】データ集計!AU270 -> 1.083799 | AC36: 1.083799 | AE36: 4200 | AF36: 239.511 | AG36: =【参考】データ集計!AU662 -> 4.5090455 | AH36: 4.5090455 | AO36: 1074 | AP36: 22.76 | AQ36: =【参考】データ集計!AU313 -> 0.61486 | AR36: 0.61486 | AT36: 1223 | AU36: 46.081 | AV36: =【参考】データ集計!AU326 -> 1.141821 | AW36: 1.141821 | BI36: 8953 | BJ36: 1124.539 | BK36: =【参考】データ集計!AU1322 -> 16.023598 | BL36: 16.023598 | BZ36: 3586 | CA36: 114.1 | CB36: =【参考】データ集計!AU957 -> 2.855561683 | CC36: 2.855561683 | CD36: 438.2 | CE36: 9 | CG36: 1939 | CH36: 64.656 | CI36: =【参考】データ集計!AU1506 -> 1.555336 | CJ36: 1.555336 | CK36: 596.82 | CL36: 12.61 | CN36: 1300 | CO36: 59.427 | CP36: =【参考】データ集計!AU1173 -> 0.832659 | CQ36: 0.832659 | CX36: 14945 | CY36: 89.764 | CZ36: =【参考】データ集計!AU1150 -> 1.699525 | DA36: 1.699525 | DB36: 277.18 | DC36: 4.57 | DX36: 11163 | DY36: 1293.896 | DZ36: =【参考】データ集計!AU1217 -> 17.685019 | EA36: 17.685019 | EC36: 2132.3 | ED36: 404.835 | EE36: =【参考】データ集計!AU497 -> 8.07980735 | EF36: 8.07980735
A37: =【参考】データ集計!AW37 -> 照明設備 | B37: =【参考】データ集計!AX37 -> 14,000～15,000 | C37: 14,000 ～15,000 | D37: =【参考】データ集計!AZ37 -> 0 | E37: =【参考】データ集計!BA37 -> 0 | F37: =【参考】データ集計!BB37 -> 0 | G37: =【参考】データ集計!BC37 -> 0 | H37: =【参考】データ集計!BD37 -> 0 | K37: 1500 | L37: 50.845 | M37: =【参考】データ集計!AU83 -> 3.124095 | N37: 3.124095 | P37: 2099 | Q37: 62.317 | R37: =【参考】データ集計!AU114 -> 1.0381608 | S37: 1.0381608 | U37: 3500 | V37: 1692.312 | W37: =【参考】データ集計!AU328 -> 36.52254088 | X37: 36.52254088 | Z37: 1192.3 | AA37: 85.419 | AB37: =【参考】データ集計!AU274 -> 1.150481 | AC37: 1.150481 | AE37: 1359 | AF37: 397.153 | AG37: =【参考】データ集計!AU675 -> 5.9828043 | AH37: 5.9828043 | AO37: 779 | AP37: 20.791 | AQ37: =【参考】データ集計!AU318 -> 0.529559 | AR37: 0.529559 | AT37: 1420 | AU37: 29.214 | AV37: =【参考】データ集計!AU327 -> 0.468506 | AW37: 0.468506 | BI37: 4970 | BJ37: 276.899 | BK37: =【参考】データ集計!AU1345 -> 5.833809 | BL37: 5.833809 | BZ37: 7126 | CA37: 136.9368 | CB37: =【参考】データ集計!AU976 -> 4.39350604 | CC37: 4.39350604 | CD37: 438.2 | CE37: 9 | CG37: 2329.9 | CH37: 104.84 | CI37: =【参考】データ集計!AU1510 -> 1.517232 | CJ37: 1.517232 | CK37: 596.82 | CL37: 12.61 | CN37: 4566.5 | CO37: 122.73 | CP37: =【参考】データ集計!AU1199 -> 1.563563 | CQ37: 1.563563 | CX37: 14030 | CY37: 34.253 | CZ37: =【参考】データ集計!AU1171 -> 0.467207 | DA37: 0.467207 | DB37: 277.18 | DC37: 4.57 | DX37: 17000 | DY37: 1702.416 | DZ37: =【参考】データ集計!AU1219 -> 24.571451 | EA37: 24.571451 | EC37: 1325.2 | ED37: 91.24 | EE37: =【参考】データ集計!AU511 -> 1.952093 | EF37: 1.952093
A38: =【参考】データ集計!AW38 -> 照明設備 | B38: =【参考】データ集計!AX38 -> 15,000～16,000 | C38: 15,000 ～16,000 | D38: =【参考】データ集計!AZ38 -> 1 | E38: =【参考】データ集計!BA38 -> 2780537 | F38: =【参考】データ集計!BB38 -> 2780.537 | G38: =【参考】データ集計!BC38 -> 37.22068 | H38: =【参考】データ集計!BD38 -> 37.22068 | K38: 1250 | L38: 89.308 | M38: =【参考】データ集計!AU84 -> 0.970786 | N38: 0.970786 | P38: 2120 | Q38: 341.516 | R38: =【参考】データ集計!AU115 -> 4.058942 | S38: 4.058942 | U38: 1974.554 | V38: 118.89 | W38: =【参考】データ集計!AU339 -> 1.784393 | X38: 1.784393 | Z38: 1500 | AA38: 126.996 | AB38: =【参考】データ集計!AU275 -> 2.19964 | AC38: 2.19964 | AE38: 866 | AF38: 754.914 | AG38: =【参考】データ集計!AU705 -> 14.17642 | AH38: 14.17642 | AO38: 1223 | AP38: 46.081 | AQ38: =【参考】データ集計!AU326 -> 1.141821 | AR38: 1.141821 | AT38: 800 | AU38: 9.009 | AV38: =【参考】データ集計!AU329 -> 0.185757 | AW38: 0.185757 | BI38: 7439 | BJ38: 1024.512 | BK38: =【参考】データ集計!AU1349 -> 23.648295 | BL38: 23.648295 | BZ38: 10340 | CA38: 151.555 | CB38: =【参考】データ集計!AU981 -> 5.276336483 | CC38: 5.276336483 | CD38: 438.2 | CE38: 9 | CN38: 1378.95 | CO38: 286.08 | CP38: =【参考】データ集計!AU1208 -> 3.87102 | CQ38: 3.87102 | CX38: 14100 | CY38: 39.032 | CZ38: =【参考】データ集計!AU1244 -> 0.603602 | DA38: 0.603602 | DB38: 277.18 | DC38: 4.57 | DX38: 4454.546 | DY38: 697.437 | DZ38: =【参考】データ集計!AU1306 -> 7.959839 | EA38: 7.959839 | EC38: 1180.6 | ED38: 27.212 | EE38: =【参考】データ集計!AU537 -> 0.7307835333 | EF38: 0.7307835333
A39: =【参考】データ集計!AW39 -> 照明設備 | B39: =【参考】データ集計!AX39 -> 16,000～17,000 | C39: 16,000 ～17,000 | D39: =【参考】データ集計!AZ39 -> 0 | E39: =【参考】データ集計!BA39 -> 0 | F39: =【参考】データ集計!BB39 -> 0 | G39: =【参考】データ集計!BC39 -> 0 | H39: =【参考】データ集計!BD39 -> 0 | K39: 994 | L39: 23.071 | M39: =【参考】データ集計!AU88 -> 0.193984 | N39: 0.193984 | P39: 1970 | Q39: 6.403 | R39: =【参考】データ集計!AU116 -> 0.152416 | S39: 0.152416 | U39: 1063 | V39: 157.488 | W39: =【参考】データ集計!AU349 -> 2.407047 | X39: 2.407047 | Z39: 1070 | AA39: 196.606 | AB39: =【参考】データ集計!AU278 -> 3.152673 | AC39: 3.152673 | AE39: 815 | AF39: 114.752 | AG39: =【参考】データ集計!AU708 -> 1.6340121 | AH39: 1.6340121 | AO39: 1420 | AP39: 29.214 | AQ39: =【参考】データ集計!AU327 -> 0.468506 | AR39: 0.468506 | AT39: 782 | AU39: 14.88 | AV39: =【参考】データ集計!AU343 -> 0.40269 | AW39: 0.40269 | BI39: 1018 | BJ39: 87.93 | BK39: =【参考】データ集計!AU1356 -> 1.097222 | BL39: 1.097222 | BZ39: 1035 | CA39: 25.895 | CB39: =【参考】データ集計!AU1034 -> 0.5981413167 | CC39: 0.5981413167 | CD39: 438.2 | CE39: 9 | CN39: 2377 | CO39: 180.8 | CP39: =【参考】データ集計!AU1212 -> 3.91432 | CQ39: 3.91432 | CX39: 23830 | CY39: 786.24 | CZ39: =【参考】データ集計!AU1323 -> 10.80768 | DA39: 10.80768 | DB39: 277.18 | DC39: 4.57 | DX39: 5836.364 | DY39: 1736.217 | DZ39: =【参考】データ集計!AU1317 -> 25.077195 | EA39: 25.077195 | EC39: 9885.4 | ED39: 336.266 | EE39: =【参考】データ集計!AU551 -> 5.664275904 | EF39: 5.664275904
A40: =【参考】データ集計!AW40 -> 照明設備 | B40: =【参考】データ集計!AX40 -> 17,000～18,000 | C40: 17,000 ～18,000 | D40: =【参考】データ集計!AZ40 -> 0 | E40: =【参考】データ集計!BA40 -> 0 | F40: =【参考】データ集計!BB40 -> 0 | G40: =【参考】データ集計!BC40 -> 0 | H40: =【参考】データ集計!BD40 -> 0 | K40: 758 | L40: 273.837 | M40: =【参考】データ集計!AU91 -> 3.88401 | N40: 3.88401 | P40: 755 | Q40: 70.764 | R40: =【参考】データ集計!AU118 -> 0.353328 | S40: 0.353328 | U40: 750 | V40: 158.982 | W40: =【参考】データ集計!AU362 -> 3.289208333 | X40: 3.289208333 | Z40: 1360 | AA40: 417.241 | AB40: =【参考】データ集計!AU282 -> 6.953114 | AC40: 6.953114 | AE40: 812 | AF40: 87.232 | AG40: =【参考】データ集計!AU710 -> 1.413312 | AH40: 1.413312 | AO40: 800 | AP40: 9.009 | AQ40: =【参考】データ集計!AU329 -> 0.185757 | AR40: 0.185757 | AT40: 1030 | AU40: 306.183 | AV40: =【参考】データ集計!AU363 -> 4.4166 | AW40: 4.4166 | BI40: 1100 | BJ40: 23.906 | BK40: =【参考】データ集計!AU1406 -> 0.267594 | BL40: 0.267594 | BZ40: 5240.215 | CA40: 136.97 | CB40: =【参考】データ集計!AU1040 -> 3.97738661 | CC40: 3.97738661 | CD40: 438.2 | CE40: 9 | CN40: 1080 | CO40: 55.008 | CP40: =【参考】データ集計!AU1213 -> 0.744327 | CQ40: 0.744327 | CX40: 20400 | CY40: 171.438 | CZ40: =【参考】データ集計!AU1337 -> 3.779657 | DA40: 3.779657 | DB40: 277.18 | DC40: 4.57 | DX40: 9100 | DY40: 1536.839 | DZ40: =【参考】データ集計!AU1369 -> 24.933872 | EA40: 24.933872 | EC40: 1028 | ED40: 38.249 | EE40: =【参考】データ集計!AU561 -> 0.67875781 | EF40: 0.67875781
A41: =【参考】データ集計!AW41 -> 照明設備 | B41: =【参考】データ集計!AX41 -> 18,000～19,000 | C41: 18,000 ～19,000 | D41: =【参考】データ集計!AZ41 -> 1 | E41: =【参考】データ集計!BA41 -> 1997125 | F41: =【参考】データ集計!BB41 -> 1997.125 | G41: =【参考】データ集計!BC41 -> 34.590205 | H41: =【参考】データ集計!BD41 -> 34.590205 | K41: 860 | L41: 154.14 | M41: =【参考】データ集計!AU92 -> 2.224754 | N41: 2.224754 | P41: 753 | Q41: 47.033 | R41: =【参考】データ集計!AU127 -> 1.197245 | S41: 1.197245 | U41: 1500 | V41: 25.75 | W41: =【参考】データ集計!AU366 -> 0.44599 | X41: 0.44599 | Z41: 7045.024 | AA41: 383.843 | AB41: =【参考】データ集計!AU283 -> 4.716236 | AC41: 4.716236 | AE41: 2332.413 | AF41: 3273.881 | AG41: =【参考】データ集計!AU742 -> 87.28414 | AH41: 87.28414 | AO41: 782 | AP41: 14.88 | AQ41: =【参考】データ集計!AU343 -> 0.40269 | AR41: 0.40269 | AT41: 1000 | AU41: 94.121 | AV41: =【参考】データ集計!AU365 -> 1.496015 | AW41: 1.496015 | BI41: 750 | BJ41: 131.234 | BK41: =【参考】データ集計!AU1447 -> 1.429766 | BL41: 1.429766 | BZ41: 3751 | CA41: 231.66 | CB41: =【参考】データ集計!AU1059 -> 7.157340667 | CC41: 7.157340667 | CD41: 438.2 | CE41: 9 | CN41: 1989 | CO41: 370.136 | CP41: =【参考】データ集計!AU1239 -> 6.164188 | CQ41: 6.164188 | CX41: 25895 | CY41: 35.925 | CZ41: =【参考】データ集計!AU1339 -> 0.7779278 | DA41: 0.7779278 | DB41: 277.18 | DC41: 4.57 | DX41: 9841.35 | DY41: 991.43 | DZ41: =【参考】データ集計!AU1376 -> 13.70012 | EA41: 13.70012 | EC41: 811.4 | ED41: 60.887 | EE41: =【参考】データ集計!AU618 -> 1.335000667 | EF41: 1.335000667
A42: =【参考】データ集計!AW42 -> 照明設備 | B42: =【参考】データ集計!AX42 -> 19,000～20,000 | C42: 19,000 ～20,000 | D42: =【参考】データ集計!AZ42 -> 0 | E42: =【参考】データ集計!BA42 -> 0 | F42: =【参考】データ集計!BB42 -> 0 | G42: =【参考】データ集計!BC42 -> 0 | H42: =【参考】データ集計!BD42 -> 0 | K42: 5180 | L42: 893 | M42: =【参考】データ集計!AU93 -> 39.902682 | N42: 39.902682 | P42: 1634 | Q42: 55.155 | R42: =【参考】データ集計!AU130 -> 1.231885 | S42: 1.231885 | U42: 950.4 | V42: 264.235 | W42: =【参考】データ集計!AU382 -> 3.883144 | X42: 3.883144 | Z42: 808 | AA42: 147 | AB42: =【参考】データ集計!AU285 -> 1.518531 | AC42: 1.518531 | AE42: 1410.8 | AF42: 346.288 | AG42: =【参考】データ集計!AU764 -> 4.998119 | AH42: 4.998119 | AO42: 1030 | AP42: 306.183 | AQ42: =【参考】データ集計!AU363 -> 4.4166 | AR42: 4.4166 | AT42: 772 | AU42: 23.52 | AV42: =【参考】データ集計!AU375 -> 0.61053 | AW42: 0.61053 | BI42: 9088 | BJ42: 477.033 | BK42: =【参考】データ集計!AU1458 -> 7.029755 | BL42: 7.029755 | BZ42: 6200 | CA42: 35.083 | CB42: =【参考】データ集計!AU1063 -> 0.9485169833 | CC42: 0.9485169833 | CD42: 438.2 | CE42: 9 | CN42: 1060 | CO42: 31.41 | CP42: =【参考】データ集計!AU1274 -> 0.906702 | CQ42: 0.906702 | CX42: 25800 | CY42: 169.798 | CZ42: =【参考】データ集計!AU1351 -> 2.076668 | DA42: 2.076668 | DB42: 277.18 | DC42: 4.57 | DX42: 12000 | DY42: 3731.6 | DZ42: =【参考】データ集計!AU1427 -> 40.39457 | EA42: 40.39457 | EC42: 3214.65 | ED42: 47.55 | EE42: =【参考】データ集計!AU665 -> 0.6880231833 | EF42: 0.6880231833
A43: =【参考】データ集計!AW43 -> 照明設備 | B43: =【参考】データ集計!AX43 -> 20,000～ | C43: 20,000～ | D43: =【参考】データ集計!AZ43 -> 0 | E43: =【参考】データ集計!BA43 -> 0 | F43: =【参考】データ集計!BB43 -> 0 | G43: =【参考】データ集計!BC43 -> 0 | H43: =【参考】データ集計!BD43 -> 0 | K43: 2900 | L43: 19.119 | M43: =【参考】データ集計!AU96 -> 0.135529 | N43: 0.135529 | P43: 2273 | Q43: 111.334 | R43: =【参考】データ集計!AU133 -> 1.105016 | S43: 1.105016 | U43: 772.84 | V43: 55.694 | W43: =【参考】データ集計!AU400 -> 0.628716 | X43: 0.628716 | Z43: 1150 | AA43: 471.268 | AB43: =【参考】データ集計!AU286 -> 6.819317 | AC43: 6.819317 | AE43: 4200 | AF43: 924.285 | AG43: =【参考】データ集計!AU773 -> 16.008876 | AH43: 16.008876 | AO43: 1000 | AP43: 94.121 | AQ43: =【参考】データ集計!AU365 -> 1.496015 | AR43: 1.496015 | AT43: 1085 | AU43: 30.25 | AV43: =【参考】データ集計!AU377 -> 0.52393 | AW43: 0.52393 | BI43: 1020 | BJ43: 51.345 | BK43: =【参考】データ集計!AU1549 -> 1.058685 | BL43: 1.058685 | BZ43: 3295 | CA43: 128.76 | CB43: =【参考】データ集計!AU1077 -> 3.303388 | CC43: 3.303388 | CD43: 438.2 | CE43: 9 | CN43: 10100 | CO43: 915.609 | CP43: =【参考】データ集計!AU1283 -> 15.757303 | CQ43: 15.757303 | CX43: 16430 | CY43: 123.904 | CZ43: =【参考】データ集計!AU1357 -> 1.743691 | DA43: 1.743691 | DB43: 277.18 | DC43: 4.57 | DX43: 9175.448 | DY43: 1307.284 | DZ43: =【参考】データ集計!AU1432 -> 20.964994 | EA43: 20.964994 | EC43: 1279.62 | ED43: 31.281 | EE43: =【参考】データ集計!AU703 -> 0.3993170255 | EF43: 0.3993170255
A44: =【参考】データ集計!AW44 -> 冷蔵・冷凍設備 | B44: =【参考】データ集計!AX44 -> 1～1,000 | C44: 1 ～1,000 | D44: =【参考】データ集計!AZ44 -> 146 | E44: =【参考】データ集計!BA44 -> 8620136 | F44: =【参考】データ集計!BB44 -> 59.0420274 | G44: =【参考】データ集計!BC44 -> 140.5641535 | H44: =【参考】データ集計!BD44 -> 0.9627681746 | K44: 1180 | L44: 203.911 | M44: =【参考】データ集計!AU97 -> 3.2668551 | N44: 3.2668551 | P44: 1046 | Q44: 21.004 | R44: =【参考】データ集計!AU137 -> 0.32475 | S44: 0.32475 | U44: 960 | V44: 92.791 | W44: =【参考】データ集計!AU405 -> 4.587635 | X44: 4.587635 | Z44: 5226.661 | AA44: 243.08 | AB44: =【参考】データ集計!AU289 -> 5.1281056 | AC44: 5.1281056 | AE44: 766 | AF44: 399.557 | AG44: =【参考】データ集計!AU802 -> 5.121957 | AH44: 5.121957 | AO44: 1444 | AP44: 72.386 | AQ44: =【参考】データ集計!AU368 -> 1.843714 | AR44: 1.843714 | AT44: 1000 | AU44: 60.436 | AV44: =【参考】データ集計!AU386 -> 1.244442 | AW44: 1.244442 | BI44: 4000 | BJ44: 401.362 | BK44: =【参考】データ集計!AU1563 -> 6.878205 | BL44: 6.878205 | BZ44: 3652 | CA44: 46.835 | CB44: =【参考】データ集計!AU1080 -> 1.076153833 | CC44: 1.076153833 | CD44: 438.2 | CE44: 9 | CN44: 4800 | CO44: 219.379 | CP44: =【参考】データ集計!AU1336 -> 2.816232 | CQ44: 2.816232 | CX44: 12300 | CY44: 96.004 | CZ44: =【参考】データ集計!AU1378 -> 2.104813 | DA44: 2.104813 | DB44: 277.18 | DC44: 4.57 | DX44: 13200 | DY44: 2199.292 | DZ44: =【参考】データ集計!AU1454 -> 23.002259 | EA44: 23.002259 | EC44: 2103.7 | ED44: 65.07 | EE44: =【参考】データ集計!AU707 -> 0.999364 | EF44: 0.999364
A45: =【参考】データ集計!AW45 -> 冷蔵・冷凍設備 | B45: =【参考】データ集計!AX45 -> 1,000～2,000 | C45: 1,000 ～2,000 | D45: =【参考】データ集計!AZ45 -> 77 | E45: =【参考】データ集計!BA45 -> 7334985 | F45: =【参考】データ集計!BB45 -> 95.25954545 | G45: =【参考】データ集計!BC45 -> 124.052335 | H45: =【参考】データ集計!BD45 -> 1.611069286 | K45: 1775 | L45: 102.927 | M45: =【参考】データ集計!AU99 -> 2.0206378 | N45: 2.0206378 | P45: 1100.4 | Q45: 12.745 | R45: =【参考】データ集計!AU141 -> 0.253738 | S45: 0.253738 | U45: 810 | V45: 29.155 | W45: =【参考】データ集計!AU453 -> 0.4194038 | X45: 0.4194038 | Z45: 1500 | AA45: 62.878 | AB45: =【参考】データ集計!AU302 -> 1.2964886 | AC45: 1.2964886 | AE45: 800.78 | AF45: 134.856 | AG45: =【参考】データ集計!AU804 -> 1.88355 | AH45: 1.88355 | AO45: 772 | AP45: 23.52 | AQ45: =【参考】データ集計!AU375 -> 0.61053 | AR45: 0.61053 | AT45: 1000 | AU45: 70 | AV45: =【参考】データ集計!AU396 -> 1.66272 | AW45: 1.66272 | BI45: 2300 | BJ45: 114.304 | BK45: =【参考】データ集計!AU1571 -> -2.738725 | BL45: -2.738725 | BZ45: 2300 | CA45: 27.909 | CB45: =【参考】データ集計!AU1088 -> 0.6033210167 | CC45: 0.6033210167 | CD45: 438.2 | CE45: 9 | CN45: 3300 | CO45: 31.743 | CP45: =【参考】データ集計!AU1353 -> 0.589746 | CQ45: 0.589746 | CX45: 17500 | CY45: 129.248 | CZ45: =【参考】データ集計!AU1382 -> 3.143147 | DA45: 3.143147 | DB45: 277.18 | DC45: 4.57 | DX45: 9090.909 | DY45: 1614.842 | DZ45: =【参考】データ集計!AU1501 -> 25.256457 | EA45: 25.256457 | EC45: 2405 | ED45: 708.0765 | EE45: =【参考】データ集計!AU736 -> 9.2828705 | EF45: 9.2828705
A46: =【参考】データ集計!AW46 -> 冷蔵・冷凍設備 | B46: =【参考】データ集計!AX46 -> 2,000～3,000 | C46: 2,000 ～3,000 | D46: =【参考】データ集計!AZ46 -> 12 | E46: =【参考】データ集計!BA46 -> 1875345 | F46: =【参考】データ集計!BB46 -> 156.27875 | G46: =【参考】データ集計!BC46 -> 32.5700435 | H46: =【参考】データ集計!BD46 -> 2.714170292 | K46: 830 | L46: 18.57 | M46: =【参考】データ集計!AU103 -> 0.22949 | N46: 0.22949 | P46: 1146 | Q46: 16.368 | R46: =【参考】データ集計!AU143 -> 0.136395 | S46: 0.136395 | U46: 1473.3 | V46: 72.725 | W46: =【参考】データ集計!AU476 -> 1.144419 | X46: 1.144419 | Z46: 2300 | AA46: 92.16 | AB46: =【参考】データ集計!AU303 -> 1.399456 | AC46: 1.399456 | AE46: 3060 | AF46: 193.248 | AG46: =【参考】データ集計!AU805 -> 3.803472 | AH46: 3.803472 | AO46: 1085 | AP46: 30.25 | AQ46: =【参考】データ集計!AU377 -> 0.52393 | AR46: 0.52393 | AT46: 2208 | AU46: 53.36 | AV46: =【参考】データ集計!AU397 -> 0.83136 | AW46: 0.83136 | BI46: 784.219 | BJ46: 41.892 | BK46: =【参考】データ集計!AU1601 -> 0.775503 | BL46: 0.775503 | BZ46: 11000 | CA46: 11584.769 | CB46: =【参考】データ集計!AU1105 -> 322.31432 | CC46: 322.31432 | CD46: 438.2 | CE46: 9 | CN46: 1540 | CO46: 221.688 | CP46: =【参考】データ集計!AU1468 -> 4.624007 | CQ46: 4.624007 | CX46: 10100 | CY46: 199.1 | CZ46: =【参考】データ集計!AU1384 -> 1.257432 | DA46: 1.257432 | DB46: 277.18 | DC46: 4.57 | DX46: 13000 | DY46: 1231.408 | DZ46: =【参考】データ集計!AU1529 -> 20.282153 | EA46: 20.282153 | EC46: 1750 | ED46: 71.936 | EE46: =【参考】データ集計!AU776 -> 0.0642572 | EF46: 0.0642572
A47: =【参考】データ集計!AW47 -> 冷蔵・冷凍設備 | B47: =【参考】データ集計!AX47 -> 3,000～4,000 | C47: 3,000 ～4,000 | D47: =【参考】データ集計!AZ47 -> 8 | E47: =【参考】データ集計!BA47 -> 1804246 | F47: =【参考】データ集計!BB47 -> 225.53075 | G47: =【参考】データ集計!BC47 -> 30.090036 | H47: =【参考】データ集計!BD47 -> 3.7612545 | K47: 10208 | L47: 134.051 | M47: =【参考】データ集計!AU104 -> 2.902399 | N47: 2.902399 | P47: 985 | Q47: 58.226 | R47: =【参考】データ集計!AU145 -> 0.904104 | S47: 0.904104 | U47: 780 | V47: 7.26 | W47: =【参考】データ集計!AU545 -> 0.14289 | X47: 0.14289 | Z47: 2494.044 | AA47: 606.782 | AB47: =【参考】データ集計!AU309 -> 9.7201572 | AC47: 9.7201572 | AE47: 9500 | AF47: 232 | AG47: =【参考】データ集計!AU810 -> 6.822348 | AH47: 6.822348 | AO47: 1000 | AP47: 60.436 | AQ47: =【参考】データ集計!AU386 -> 1.244442 | AR47: 1.244442 | AT47: 900 | AU47: 121.363 | AV47: =【参考】データ集計!AU403 -> 0.00266295 | AW47: 0.00266295 | BI47: 4570 | BJ47: 629.973 | BK47: =【参考】データ集計!AU1627 -> 8.867407 | BL47: 8.867407 | BZ47: 3551.32 | CA47: 51.865 | CB47: =【参考】データ集計!AU1119 -> 1.128710183 | CC47: 1.128710183 | CD47: 438.2 | CE47: 9 | CN47: 1720 | CO47: 361.68 | CP47: =【参考】データ集計!AU1476 -> 5.220248 | CQ47: 5.220248 | CX47: 10900 | CY47: 663.934 | CZ47: =【参考】データ集計!AU1412 -> 6.627065 | DA47: 6.627065 | DB47: 277.18 | DC47: 4.57 | DX47: 14330 | DY47: 1995.574 | DZ47: =【参考】データ集計!AU1530 -> 33.127531 | EA47: 33.127531 | EC47: 2930 | ED47: 298.468 | EE47: =【参考】データ集計!AU778 -> 6.216268225 | EF47: 6.216268225
A48: =【参考】データ集計!AW48 -> 冷蔵・冷凍設備 | B48: =【参考】データ集計!AX48 -> 4,000～5,000 | C48: 4,000 ～5,000 | D48: =【参考】データ集計!AZ48 -> 7 | E48: =【参考】データ集計!BA48 -> 2697423 | F48: =【参考】データ集計!BB48 -> 385.3461429 | G48: =【参考】データ集計!BC48 -> 44.690796 | H48: =【参考】データ集計!BD48 -> 6.384399429 | K48: 1224 | L48: 26.721 | M48: =【参考】データ集計!AU108 -> 0.452485 | N48: 0.452485 | P48: 773 | Q48: 4.847 | R48: =【参考】データ集計!AU146 -> 0.057156 | S48: 0.057156 | U48: 1200 | V48: 973.992 | W48: =【参考】データ集計!AU592 -> 3.2750894 | X48: 3.2750894 | Z48: 1110 | AA48: 92.812 | AB48: =【参考】データ集計!AU310 -> 2.4868489 | AC48: 2.4868489 | AE48: 1200 | AF48: 206.612 | AG48: =【参考】データ集計!AU839 -> 3.195107 | AH48: 3.195107 | AO48: 1000 | AP48: 70 | AQ48: =【参考】データ集計!AU396 -> 1.66272 | AR48: 1.66272 | AT48: 1050 | AU48: 69.898 | AV48: =【参考】データ集計!AU416 -> 0.79672 | AW48: 0.79672 | BI48: 13660 | BJ48: 1523.893 | BK48: =【参考】データ集計!AU1637 -> 24.714341 | BL48: 24.714341 | BZ48: 3760.57 | CA48: 59.407 | CB48: =【参考】データ集計!AU1120 -> 1.31390875 | CC48: 1.31390875 | CD48: 438.2 | CE48: 9 | CN48: 2578.5 | CO48: 130.166 | CP48: =【参考】データ集計!AU1487 -> 3.308553 | CQ48: 3.308553 | CX48: 11470 | CY48: 146.612 | CZ48: =【参考】データ集計!AU1419 -> 1.921221 | DA48: 1.921221 | DB48: 277.18 | DC48: 4.57 | DX48: 10000 | DY48: 1328.136 | DZ48: =【参考】データ集計!AU1535 -> 27.208854 | EA48: 27.208854 | EC48: 1682.29 | ED48: 124.569 | EE48: =【参考】データ集計!AU908 -> 1.712944817 | EF48: 1.712944817
A49: =【参考】データ集計!AW49 -> 冷蔵・冷凍設備 | B49: =【参考】データ集計!AX49 -> 5,000～6,000 | C49: 5,000 ～6,000 | D49: =【参考】データ集計!AZ49 -> 0 | E49: =【参考】データ集計!BA49 -> 0 | F49: =【参考】データ集計!BB49 -> 0 | G49: =【参考】データ集計!BC49 -> 0 | H49: =【参考】データ集計!BD49 -> 0 | K49: 1440 | L49: 5.539 | M49: =【参考】データ集計!AU109 -> 0.13856 | N49: 0.13856 | P49: 750 | Q49: 23.206 | R49: =【参考】データ集計!AU147 -> 0.275388 | S49: 0.275388 | U49: 950 | V49: 79.662 | W49: =【参考】データ集計!AU595 -> 1.4783486 | X49: 1.4783486 | Z49: 3620 | AA49: 214.799 | AB49: =【参考】データ集計!AU311 -> 3.000257 | AC49: 3.000257 | AE49: 6540 | AF49: 1546.994 | AG49: =【参考】データ集計!AU846 -> 27.059902 | AH49: 27.059902 | AO49: 2208 | AP49: 53.36 | AQ49: =【参考】データ集計!AU397 -> 0.83136 | AR49: 0.83136 | AT49: 750 | AU49: 5.948 | AV49: =【参考】データ集計!AU423 -> 0.106951 | AW49: 0.106951 | BI49: 880 | BJ49: 55.607 | BK49: =【参考】データ集計!AU1669 -> 0.824865 | BL49: 0.824865 | BZ49: 3789 | CA49: 167.515 | CB49: =【参考】データ集計!AU1126 -> 5.23586998 | CC49: 5.23586998 | CD49: 438.2 | CE49: 9 | CN49: 880 | CO49: 164.332 | CP49: =【参考】データ集計!AU1494 -> 1.945469 | CQ49: 1.945469 | CX49: 15290 | CY49: 36.205 | CZ49: =【参考】データ集計!AU1461 -> 0.440361 | DA49: 0.440361 | DB49: 277.18 | DC49: 4.57 | DX49: 3400 | DY49: 343.109 | DZ49: =【参考】データ集計!AU1550 -> 6.026927 | EA49: 6.026927 | EC49: 2076.5 | ED49: 95.462 | EE49: =【参考】データ集計!AU947 -> 2.075594017 | EF49: 2.075594017
A50: =【参考】データ集計!AW50 -> 冷蔵・冷凍設備 | B50: =【参考】データ集計!AX50 -> 6,000～7,000 | C50: 6,000 ～7,000 | D50: =【参考】データ集計!AZ50 -> 1 | E50: =【参考】データ集計!BA50 -> 470867 | F50: =【参考】データ集計!BB50 -> 470.867 | G50: =【参考】データ集計!BC50 -> 8.709362 | H50: =【参考】データ集計!BD50 -> 8.709362 | K50: 1730 | L50: 20 | M50: =【参考】データ集計!AU110 -> 0.2165 | N50: 0.2165 | P50: 1500 | Q50: 35.329 | R50: =【参考】データ集計!AU148 -> 0.917094 | S50: 0.917094 | U50: 1431 | V50: 37.261 | W50: =【参考】データ集計!AU613 -> 0.562467 | X50: 0.562467 | Z50: 1358 | AA50: 45.909 | AB50: =【参考】データ集計!AU312 -> 0.721378 | AC50: 0.721378 | AE50: 1200 | AF50: 128.535 | AG50: =【参考】データ集計!AU922 -> 2.929245 | AH50: 2.929245 | AO50: 900 | AP50: 121.363 | AQ50: =【参考】データ集計!AU403 -> 0.00266295 | AR50: 0.00266295 | AT50: 850 | AU50: 52.65 | AV50: =【参考】データ集計!AU432 -> 0.84435 | AW50: 0.84435 | BI50: 2730 | BJ50: 106.376 | BK50: =【参考】データ集計!AU1671 -> 2.166732 | BL50: 2.166732 | BZ50: 8594 | CA50: 1132.88 | CB50: =【参考】データ集計!AU1134 -> 11.979378 | CC50: 11.979378 | CD50: 438.2 | CE50: 9 | CN50: 1114.2 | CO50: 79.826 | CP50: =【参考】データ集計!AU1495 -> 1.105016 | CQ50: 1.105016 | CX50: 9400 | CY50: 313.979 | CZ50: =【参考】データ集計!AU1503 -> 2.256796 | DA50: 2.256796 | DB50: 277.18 | DC50: 4.57 | DX50: 9600 | DY50: 872.026 | DZ50: =【参考】データ集計!AU1645 -> 12.334005 | EA50: 12.334005 | EC50: 2035.44 | ED50: 315.448 | EE50: =【参考】データ集計!AU955 -> 5.22130012 | EF50: 5.22130012
A51: =【参考】データ集計!AW51 -> 冷蔵・冷凍設備 | B51: =【参考】データ集計!AX51 -> 7,000～8,000 | C51: 7,000 ～8,000 | D51: =【参考】データ集計!AZ51 -> 1 | E51: =【参考】データ集計!BA51 -> 1024512 | F51: =【参考】データ集計!BB51 -> 1024.512 | G51: =【参考】データ集計!BC51 -> 23.648295 | H51: =【参考】データ集計!BD51 -> 23.648295 | K51: 2500 | L51: 543.8 | M51: =【参考】データ集計!AU112 -> 14.862292 | N51: 14.862292 | P51: 10000 | Q51: 365.331 | R51: =【参考】データ集計!AU151 -> 9.117146 | S51: 9.117146 | U51: 2098.97 | V51: 28.35 | W51: =【参考】データ集計!AU617 -> 0.491022 | X51: 0.491022 | Z51: 1275 | AA51: 169.295 | AB51: =【参考】データ集計!AU316 -> 2.364613 | AC51: 2.364613 | AE51: 3180 | AF51: 467.036 | AG51: =【参考】データ集計!AU977 -> 7.805691 | AH51: 7.805691 | AO51: 1050 | AP51: 69.898 | AQ51: =【参考】データ集計!AU416 -> 0.79672 | AR51: 0.79672 | AT51: 1497 | AU51: 8.135 | AV51: =【参考】データ集計!AU446 -> 0.138127 | AW51: 0.138127 | BI51: 4300 | BJ51: 359.407 | BK51: =【参考】データ集計!AU1702 -> 6.888597 | BL51: 6.888597 | BZ51: 8500 | CA51: 130.051 | CB51: =【参考】データ集計!AU1142 -> 0.019918 | CC51: 0.019918 | CD51: 438.2 | CE51: 9 | CN51: 1400 | CO51: 81.233 | CP51: =【参考】データ集計!AU1500 -> 1.443622 | CQ51: 1.443622 | CX51: 10400 | CY51: 241.422 | CZ51: =【参考】データ集計!AU1567 -> 2.743055 | DA51: 2.743055 | DB51: 277.18 | DC51: 4.57 | DX51: 7272.727 | DY51: 900.475 | DZ51: =【参考】データ集計!AU1646 -> 16.195932 | EA51: 16.195932 | EC51: 1330 | ED51: 37.535 | EE51: =【参考】データ集計!AU962 -> 0.6465203833 | EF51: 0.6465203833
A52: =【参考】データ集計!AW52 -> 冷蔵・冷凍設備 | B52: =【参考】データ集計!AX52 -> 8,000～9,000 | C52: 8,000 ～9,000 | D52: =【参考】データ集計!AZ52 -> 2 | E52: =【参考】データ集計!BA52 -> 2617032 | F52: =【参考】データ集計!BB52 -> 1308.516 | G52: =【参考】データ集計!BC52 -> 32.09829 | H52: =【参考】データ集計!BD52 -> 16.049145 | K52: 1400 | L52: 444.195 | M52: =【参考】データ集計!AU113 -> 7.013301 | N52: 7.013301 | P52: 4700 | Q52: 65.504 | R52: =【参考】データ集計!AU156 -> 1.390363 | S52: 1.390363 | U52: 900 | V52: 16.344 | W52: =【参考】データ集計!AU638 -> 0.604901 | X52: 0.604901 | Z52: 1712.806 | AA52: 337.138 | AB52: =【参考】データ集計!AU319 -> 5.046615 | AC52: 5.046615 | AE52: 4320 | AF52: 2394.009 | AG52: =【参考】データ集計!AU1029 -> 71.131075 | AH52: 71.131075 | AO52: 750 | AP52: 5.948 | AQ52: =【参考】データ集計!AU423 -> 0.106951 | AR52: 0.106951 | AT52: 751 | AU52: 6.72 | AV52: =【参考】データ集計!AU449 -> 0.18186 | AW52: 0.18186 | BI52: 1557.07 | BJ52: 126.687 | BK52: =【参考】データ集計!AU1717 -> 1.802579 | BL52: 1.802579 | BZ52: 2250 | CA52: 64.303 | CB52: =【参考】データ集計!AU1152 -> 1.326422167 | CC52: 1.326422167 | CD52: 438.2 | CE52: 9 | CN52: 1210 | CO52: 102.384 | CP52: =【参考】データ集計!AU1507 -> 0.769008 | CQ52: 0.769008 | CX52: 12600 | CY52: 435.783 | CZ52: =【参考】データ集計!AU1608 -> 8.025222 | DA52: 8.025222 | DB52: 277.18 | DC52: 4.57 | DX52: 17181.818 | DY52: 1634.044 | DZ52: =【参考】データ集計!AU1677 -> 30.860776 | EA52: 30.860776 | EC52: 2300 | ED52: 83.42 | EE52: =【参考】データ集計!AU994 -> 2.152307667 | EF52: 2.152307667
A53: =【参考】データ集計!AW53 -> 冷蔵・冷凍設備 | B53: =【参考】データ集計!AX53 -> 9,000～10,000 | C53: 9,000 ～10,000 | D53: =【参考】データ集計!AZ53 -> 1 | E53: =【参考】データ集計!BA53 -> 477033 | F53: =【参考】データ集計!BB53 -> 477.033 | G53: =【参考】データ集計!BC53 -> 7.029755 | H53: =【参考】データ集計!BD53 -> 7.029755 | K53: 2099 | L53: 62.317 | M53: =【参考】データ集計!AU114 -> 1.0381608 | N53: 1.0381608 | P53: 755 | Q53: 188.169 | R53: =【参考】データ集計!AU157 -> 3.877082 | S53: 3.877082 | U53: 2926 | V53: 112.439 | W53: =【参考】データ集計!AU679 -> 1.710783 | X53: 1.710783 | Z53: 1535.12 | AA53: 266.619 | AB53: =【参考】データ集計!AU320 -> 6.495 | AC53: 6.495 | AE53: 1050 | AF53: 139.806 | AG53: =【参考】データ集計!AU1054 -> 1.5263683 | AH53: 1.5263683 | AO53: 2920 | AP53: 290.084 | AQ53: =【参考】データ集計!AU428 -> 5.718198 | AR53: 5.718198 | AT53: 900 | AU53: 94.72 | AV53: =【参考】データ集計!AU456 -> 2.56336 | AW53: 2.56336 | BI53: 1070 | BJ53: 68.051 | BK53: =【参考】データ集計!AU1722 -> 1.07384 | BL53: 1.07384 | BZ53: 5290 | CA53: 372.425 | CB53: =【参考】データ集計!AU1227 -> 1.810775979 | CC53: 1.810775979 | CD53: 438.2 | CE53: 9 | CN53: 2100 | CO53: 226.008 | CP53: =【参考】データ集計!AU1521 -> 4.551696 | CQ53: 4.551696 | CX53: 26960 | CY53: 1711.551 | CZ53: =【参考】データ集計!AU1668 -> 30.167976 | DA53: 30.167976 | DB53: 277.18 | DC53: 4.57 | DX53: 9000 | DY53: 1511.89 | DZ53: =【参考】データ集計!AU1709 -> 28.243724 | EA53: 28.243724 | EC53: 2531.56 | ED53: 199.823 | EE53: =【参考】データ集計!AU1033 -> 4.213438 | EF53: 4.213438
A54: =【参考】データ集計!AW54 -> 冷蔵・冷凍設備 | B54: =【参考】データ集計!AX54 -> 10,000～11,000 | C54: 10,000 ～11,000 | D54: =【参考】データ集計!AZ54 -> 2 | E54: =【参考】データ集計!BA54 -> 2000238 | F54: =【参考】データ集計!BB54 -> 1000.119 | G54: =【参考】データ集計!BC54 -> 42.496352 | H54: =【参考】データ集計!BD54 -> 21.248176 | K54: 2120 | L54: 341.516 | M54: =【参考】データ集計!AU115 -> 4.058942 | N54: 4.058942 | P54: 2700 | Q54: 234 | R54: =【参考】データ集計!AU158 -> 5.040816638 | S54: 5.040816638 | U54: 800 | V54: 24.352 | W54: =【参考】データ集計!AU682 -> 0.329513 | X54: 0.329513 | Z54: 1334.68 | AA54: 430.59 | AB54: =【参考】データ集計!AU332 -> 6.004411 | AC54: 6.004411 | AE54: 4436.5 | AF54: 904.124 | AG54: =【参考】データ集計!AU1160 -> 13.049754 | AH54: 13.049754 | AO54: 850 | AP54: 52.65 | AQ54: =【参考】データ集計!AU432 -> 0.84435 | AR54: 0.84435 | AT54: 750 | AU54: 35.259 | AV54: =【参考】データ集計!AU471 -> 0.66388426 | AW54: 0.66388426 | BZ54: 3900 | CA54: 225.258 | CB54: =【参考】データ集計!AU1371 -> 4.642477583 | CC54: 4.642477583 | CD54: 438.2 | CE54: 9 | CN54: 3335 | CO54: 124.371 | CP54: =【参考】データ集計!AU1522 -> 1.560965 | CQ54: 1.560965 | CX54: 9000 | CY54: 382.194 | CZ54: =【参考】データ集計!AU1688 -> 6.489804 | DA54: 6.489804 | DB54: 277.18 | DC54: 4.57 | EC54: 3123.7 | ED54: 127.053 | EE54: =【参考】データ集計!AU1037 -> 2.760459717 | EF54: 2.760459717
A55: =【参考】データ集計!AW55 -> 冷蔵・冷凍設備 | B55: =【参考】データ集計!AX55 -> 11,000～12,000 | C55: 11,000 ～12,000 | D55: =【参考】データ集計!AZ55 -> 0 | E55: =【参考】データ集計!BA55 -> 0 | F55: =【参考】データ集計!BB55 -> 0 | G55: =【参考】データ集計!BC55 -> 0 | H55: =【参考】データ集計!BD55 -> 0 | K55: 1970 | L55: 6.403 | M55: =【参考】データ集計!AU116 -> 0.152416 | N55: 0.152416 | P55: 1650 | Q55: 45.084 | R55: =【参考】データ集計!AU159 -> 0.433 | S55: 0.433 | U55: 818 | V55: 102.893 | W55: =【参考】データ集計!AU686 -> 1.113607943 | X55: 1.113607943 | Z55: 889.5 | AA55: 107.206 | AB55: =【参考】データ集計!AU337 -> 2.15201 | AC55: 2.15201 | AE55: 5890 | AF55: 271.748 | AG55: =【参考】データ集計!AU1280 -> 3.7238 | AH55: 3.7238 | AO55: 1497 | AP55: 8.135 | AQ55: =【参考】データ集計!AU446 -> 0.138127 | AR55: 0.138127 | AT55: 900 | AU55: 77.713 | AV55: =【参考】データ集計!AU473 -> 1.894375 | AW55: 1.894375 | BZ55: 7388 | CA55: 212.186 | CB55: =【参考】データ集計!AU1440 -> 5.6983443 | CC55: 5.6983443 | CD55: 438.2 | CE55: 9 | CN55: 1440 | CO55: 65.468 | CP55: =【参考】データ集計!AU1533 -> 0.782431 | CQ55: 0.782431 | EC55: 759.2 | ED55: 13.979 | EE55: =【参考】データ集計!AU1038 -> 0.1756236667 | EF55: 0.1756236667
A56: =【参考】データ集計!AW56 -> 冷蔵・冷凍設備 | B56: =【参考】データ集計!AX56 -> 12,000～13,000 | C56: 12,000 ～13,000 | D56: =【参考】データ集計!AZ56 -> 0 | E56: =【参考】データ集計!BA56 -> 0 | F56: =【参考】データ集計!BB56 -> 0 | G56: =【参考】データ集計!BC56 -> 0 | H56: =【参考】データ集計!BD56 -> 0 | K56: 755 | L56: 70.764 | M56: =【参考】データ集計!AU118 -> 0.353328 | N56: 0.353328 | P56: 2030 | Q56: 84.218 | R56: =【参考】データ集計!AU160 -> 0.809277 | S56: 0.809277 | U56: 1564 | V56: 56.046 | W56: =【参考】データ集計!AU702 -> 0.6495 | X56: 0.6495 | Z56: 1060 | AA56: 170.37 | AB56: =【参考】データ集計!AU348 -> 1.66272 | AC56: 1.66272 | AE56: 3108.6 | AF56: 450.177 | AG56: =【参考】データ集計!AU1397 -> 9.282221 | AH56: 9.282221 | AO56: 751 | AP56: 6.72 | AQ56: =【参考】データ集計!AU449 -> 0.18186 | AR56: 0.18186 | AT56: 1442 | AU56: 73.195 | AV56: =【参考】データ集計!AU488 -> 1.039633 | AW56: 1.039633 | BZ56: 3027.1 | CA56: 52.234 | CB56: =【参考】データ集計!AU1446 -> 1.467254837 | CC56: 1.467254837 | CD56: 438.2 | CE56: 9 | CN56: 7200 | CO56: 1049 | CP56: =【参考】データ集計!AU1555 -> 13.1632 | CQ56: 13.1632 | EC56: 2346.8 | ED56: 116.873 | EE56: =【参考】データ集計!AU1039 -> 3.876656483 | EF56: 3.876656483
A57: =【参考】データ集計!AW57 -> 冷蔵・冷凍設備 | B57: =【参考】データ集計!AX57 -> 13,000～14,000 | C57: 13,000 ～14,000 | D57: =【参考】データ集計!AZ57 -> 1 | E57: =【参考】データ集計!BA57 -> 1523893 | F57: =【参考】データ集計!BB57 -> 1523.893 | G57: =【参考】データ集計!BC57 -> 24.714341 | H57: =【参考】データ集計!BD57 -> 24.714341 | K57: 1710 | L57: 161.038 | M57: =【参考】データ集計!AU121 -> 2.791089667 | N57: 2.791089667 | P57: 820 | Q57: 64.672 | R57: =【参考】データ集計!AU163 -> 1.646266 | S57: 1.646266 | U57: 1410 | V57: 39.911 | W57: =【参考】データ集計!AU711 -> 0.653397 | X57: 0.653397 | Z57: 810 | AA57: 102.262 | AB57: =【参考】データ集計!AU351 -> 1.404219 | AC57: 1.404219 | AE57: 6650 | AF57: 409.77 | AG57: =【参考】データ集計!AU1576 -> 7.885796 | AH57: 7.885796 | AO57: 900 | AP57: 94.72 | AQ57: =【参考】データ集計!AU456 -> 2.56336 | AR57: 2.56336 | AT57: 2128 | AU57: 166.704 | AV57: =【参考】データ集計!AU489 -> 2.366778 | AW57: 2.366778 | BZ57: 6396 | CA57: 56.728 | CB57: =【参考】データ集計!AU1466 -> 0 | CC57: 0 | CD57: 438.2 | CE57: 9 | CN57: 3900 | CO57: 311.187 | CP57: =【参考】データ集計!AU1580 -> 5.06177 | CQ57: 5.06177 | EC57: 1271 | ED57: 57.048 | EE57: =【参考】データ集計!AU1082 -> 0.8814620814 | EF57: 0.8814620814
A58: =【参考】データ集計!AW58 -> 冷蔵・冷凍設備 | B58: =【参考】データ集計!AX58 -> 14,000～15,000 | C58: 14,000 ～15,000 | D58: =【参考】データ集計!AZ58 -> 0 | E58: =【参考】データ集計!BA58 -> 0 | F58: =【参考】データ集計!BB58 -> 0 | G58: =【参考】データ集計!BC58 -> 0 | H58: =【参考】データ集計!BD58 -> 0 | K58: 753 | L58: 47.033 | M58: =【参考】データ集計!AU127 -> 1.197245 | N58: 1.197245 | P58: 855 | Q58: 16.874 | R58: =【参考】データ集計!AU165 -> 0.429536 | S58: 0.429536 | U58: 2660 | V58: 1849.826 | W58: =【参考】データ集計!AU726 -> 42.01752352 | X58: 42.01752352 | Z58: 2500 | AA58: 20.063 | AB58: =【参考】データ集計!AU353 -> 0.562034 | AC58: 0.562034 | AO58: 750 | AP58: 35.259 | AQ58: =【参考】データ集計!AU471 -> 0.66388426 | AR58: 0.66388426 | AT58: 1100 | AU58: 69.53 | AV58: =【参考】データ集計!AU491 -> 1.77097 | AW58: 1.77097 | BZ58: 9090.909 | CA58: 190.32 | CB58: =【参考】データ集計!AU1489 -> -311.3338067 | CC58: -311.3338067 | CD58: 438.2 | CE58: 9 | CN58: 2271 | CO58: 147.154 | CP58: =【参考】データ集計!AU1582 -> 2.378036 | CQ58: 2.378036 | EC58: 8450 | ED58: 617.972 | EE58: =【参考】データ集計!AU1087 -> 15.2257294 | EF58: 15.2257294
A59: =【参考】データ集計!AW59 -> 冷蔵・冷凍設備 | B59: =【参考】データ集計!AX59 -> 15,000～16,000 | C59: 15,000 ～16,000 | D59: =【参考】データ集計!AZ59 -> 0 | E59: =【参考】データ集計!BA59 -> 0 | F59: =【参考】データ集計!BB59 -> 0 | G59: =【参考】データ集計!BC59 -> 0 | H59: =【参考】データ集計!BD59 -> 0 | K59: 1489.3 | L59: 80.9 | M59: =【参考】データ集計!AU128 -> 1.388631 | N59: 1.388631 | P59: 1050 | Q59: 67.501 | R59: =【参考】データ集計!AU167 -> 1.5155 | S59: 1.5155 | U59: 758 | V59: 597.6 | W59: =【参考】データ集計!AU737 -> 17.43960306 | X59: 17.43960306 | Z59: 980 | AA59: 232.119 | AB59: =【参考】データ集計!AU358 -> 2.00046 | AC59: 2.00046 | AO59: 900 | AP59: 77.713 | AQ59: =【参考】データ集計!AU473 -> 1.894375 | AR59: 1.894375 | AT59: 975 | AU59: 21.33 | AV59: =【参考】データ集計!AU498 -> 0.34207 | AW59: 0.34207 | BZ59: 2824 | CA59: 111.84 | CB59: =【参考】データ集計!AU1552 -> 2.288228166 | CC59: 2.288228166 | CD59: 438.2 | CE59: 9 | CN59: 1435 | CO59: 115.652 | CP59: =【参考】データ集計!AU1605 -> 1.631111 | CQ59: 1.631111 | EC59: 822.8 | ED59: 534.786 | EE59: =【参考】データ集計!AU1094 -> 9.024927317 | EF59: 9.024927317
A60: =【参考】データ集計!AW60 -> 冷蔵・冷凍設備 | B60: =【参考】データ集計!AX60 -> 16,000～17,000 | C60: 16,000 ～17,000 | D60: =【参考】データ集計!AZ60 -> 0 | E60: =【参考】データ集計!BA60 -> 0 | F60: =【参考】データ集計!BB60 -> 0 | G60: =【参考】データ集計!BC60 -> 0 | H60: =【参考】データ集計!BD60 -> 0 | K60: 1634 | L60: 55.155 | M60: =【参考】データ集計!AU130 -> 1.231885 | N60: 1.231885 | P60: 2200 | Q60: 62.386 | R60: =【参考】データ集計!AU168 -> 1.332341 | S60: 1.332341 | U60: 1766 | V60: 652.651 | W60: =【参考】データ集計!AU740 -> 8.096667 | X60: 8.096667 | Z60: 9980 | AA60: 1930.734 | AB60: =【参考】データ集計!AU359 -> 36.348185 | AC60: 36.348185 | AO60: 1442 | AP60: 73.195 | AQ60: =【参考】データ集計!AU488 -> 1.039633 | AR60: 1.039633 | AT60: 904 | AU60: 83.18 | AV60: =【参考】データ集計!AU504 -> 1.40292 | AW60: 1.40292 | BZ60: 5200 | CA60: 190.382 | CB60: =【参考】データ集計!AU1566 -> 5.054840283 | CC60: 5.054840283 | CD60: 438.2 | CE60: 9 | CN60: 2380 | CO60: 159.272 | CP60: =【参考】データ集計!AU1658 -> 3.317213 | CQ60: 3.317213 | EC60: 1629.79 | ED60: 27.573 | EE60: =【参考】データ集計!AU1095 -> 0.4407883333 | EF60: 0.4407883333
A61: =【参考】データ集計!AW61 -> 冷蔵・冷凍設備 | B61: =【参考】データ集計!AX61 -> 17,000～18,000 | C61: 17,000 ～18,000 | D61: =【参考】データ集計!AZ61 -> 0 | E61: =【参考】データ集計!BA61 -> 0 | F61: =【参考】データ集計!BB61 -> 0 | G61: =【参考】データ集計!BC61 -> 0 | H61: =【参考】データ集計!BD61 -> 0 | K61: 2273 | L61: 111.334 | M61: =【参考】データ集計!AU133 -> 1.105016 | N61: 1.105016 | P61: 10990 | Q61: 57.203 | R61: =【参考】データ集計!AU170 -> 1.422838 | S61: 1.422838 | U61: 1300 | V61: 125.311 | W61: =【参考】データ集計!AU774 -> 1.7549057 | X61: 1.7549057 | Z61: 1350 | AA61: 306.125 | AB61: =【参考】データ集計!AU360 -> 7.801794 | AC61: 7.801794 | AO61: 2128 | AP61: 166.704 | AQ61: =【参考】データ集計!AU489 -> 2.366778 | AR61: 2.366778 | AT61: 759.3 | AU61: 31.902 | AV61: =【参考】データ集計!AU509 -> 0.460712 | AW61: 0.460712 | BZ61: 5575 | CA61: 505.453 | CB61: =【参考】データ集計!AU1592 -> 11.72256873 | CC61: 11.72256873 | CD61: 438.2 | CE61: 9 | CN61: 2996 | CO61: 2569.56 | CP61: =【参考】データ集計!AU1659 -> 48.37476 | CQ61: 48.37476 | EC61: 2030 | ED61: 175.816 | EE61: =【参考】データ集計!AU1096 -> 3.999287967 | EF61: 3.999287967
A62: =【参考】データ集計!AW62 -> 冷蔵・冷凍設備 | B62: =【参考】データ集計!AX62 -> 18,000～19,000 | C62: 18,000 ～19,000 | D62: =【参考】データ集計!AZ62 -> 0 | E62: =【参考】データ集計!BA62 -> 0 | F62: =【参考】データ集計!BB62 -> 0 | G62: =【参考】データ集計!BC62 -> 0 | H62: =【参考】データ集計!BD62 -> 0 | K62: 1046 | L62: 21.004 | M62: =【参考】データ集計!AU137 -> 0.32475 | N62: 0.32475 | P62: 1450 | Q62: 265.215 | R62: =【参考】データ集計!AU172 -> 6.407534 | S62: 6.407534 | U62: 2740 | V62: 7.831 | W62: =【参考】データ集計!AU784 -> -0.32042 | X62: -0.32042 | Z62: 1380 | AA62: 212.459 | AB62: =【参考】データ集計!AU361 -> 5.414665 | AC62: 5.414665 | AO62: 1100 | AP62: 69.53 | AQ62: =【参考】データ集計!AU491 -> 1.77097 | AR62: 1.77097 | AT62: 750 | AU62: 22.4 | AV62: =【参考】データ集計!AU524 -> 0.13856 | AW62: 0.13856 | BZ62: 4500 | CA62: 227.743 | CB62: =【参考】データ集計!AU1597 -> 5.6271242 | CC62: 5.6271242 | CD62: 438.2 | CE62: 9 | CN62: 1223 | CO62: 50.816 | CP62: =【参考】データ集計!AU1689 -> 0.644304 | CQ62: 0.644304 | EC62: 863.636 | ED62: 174.528 | EE62: =【参考】データ集計!AU1112 -> 2.202671 | EF62: 2.202671
A63: =【参考】データ集計!AW63 -> 冷蔵・冷凍設備 | B63: =【参考】データ集計!AX63 -> 19,000～20,000 | C63: 19,000 ～20,000 | D63: =【参考】データ集計!AZ63 -> 0 | E63: =【参考】データ集計!BA63 -> 0 | F63: =【参考】データ集計!BB63 -> 0 | G63: =【参考】データ集計!BC63 -> 0 | H63: =【参考】データ集計!BD63 -> 0 | K63: 854.546 | L63: 160.38 | M63: =【参考】データ集計!AU138 -> 2.525256 | N63: 2.525256 | P63: 3000 | Q63: 165.108 | R63: =【参考】データ集計!AU174 -> 1.781795 | S63: 1.781795 | U63: 9500 | V63: 206.075 | W63: =【参考】データ集計!AU791 -> 4.669472 | X63: 4.669472 | Z63: 1488.3 | AA63: 123.523 | AB63: =【参考】データ集計!AU369 -> 1.758413 | AC63: 1.758413 | AO63: 975 | AP63: 21.33 | AQ63: =【参考】データ集計!AU498 -> 0.34207 | AR63: 0.34207 | AT63: 2332 | AU63: 237.838 | AV63: =【参考】データ集計!AU532 -> 3.772296 | AW63: 3.772296 | BZ63: 12011.8 | CA63: 516.877 | CB63: =【参考】データ集計!AU1663 -> 12.78411156 | CC63: 12.78411156 | CD63: 438.2 | CE63: 9 | EC63: 1650 | ED63: 146.853 | EE63: =【参考】データ集計!AU1174 -> 2.936012867 | EF63: 2.936012867
A64: =【参考】データ集計!AW64 -> 冷蔵・冷凍設備 | B64: =【参考】データ集計!AX64 -> 20,000～ | C64: 20,000～ | D64: =【参考】データ集計!AZ64 -> 0 | E64: =【参考】データ集計!BA64 -> 0 | F64: =【参考】データ集計!BB64 -> 0 | G64: =【参考】データ集計!BC64 -> 0 | H64: =【参考】データ集計!BD64 -> 0 | K64: 1100.4 | L64: 12.745 | M64: =【参考】データ集計!AU141 -> 0.253738 | N64: 0.253738 | P64: 1235.3 | Q64: 73.168 | R64: =【参考】データ集計!AU176 -> 1.314588 | S64: 1.314588 | U64: 798.46 | V64: 9.77 | W64: =【参考】データ集計!AU801 -> 0.123405 | X64: 0.123405 | Z64: 1380 | AA64: 170.04 | AB64: =【参考】データ集計!AU372 -> 2.454244 | AC64: 2.454244 | AO64: 904 | AP64: 83.18 | AQ64: =【参考】データ集計!AU504 -> 1.40292 | AR64: 1.40292 | AT64: 858 | AU64: 57.6 | AV64: =【参考】データ集計!AU535 -> 1.5588 | AW64: 1.5588 | BZ64: 5340 | CA64: 229.861 | CB64: =【参考】データ集計!AU1704 -> 6.859682685 | CC64: 6.859682685 | CD64: 438.2 | CE64: 9 | EC64: 878.75 | ED64: 72.06 | EE64: =【参考】データ集計!AU1186 -> 0.789792 | EF64: 0.789792
A65: =【参考】データ集計!AW65 -> エネルギー管理設備 | B65: =【参考】データ集計!AX65 -> 1～1,000 | C65: 1 ～1,000 | D65: =【参考】データ集計!AZ65 -> 0 | E65: =【参考】データ集計!BA65 -> 0 | F65: =【参考】データ集計!BB65 -> 0 | G65: =【参考】データ集計!BC65 -> 0 | H65: =【参考】データ集計!BD65 -> 0 | K65: 1146 | L65: 16.368 | M65: =【参考】データ集計!AU143 -> 0.136395 | N65: 0.136395 | P65: 7325 | Q65: 421.247 | R65: =【参考】データ集計!AU180 -> 8.308404 | S65: 8.308404 | U65: 950 | V65: 17.118 | W65: =【参考】データ集計!AU827 -> 0.274522 | X65: 0.274522 | Z65: 2879 | AA65: 115.986 | AB65: =【参考】データ集計!AU380 -> 8.461253 | AC65: 8.461253 | AO65: 759.3 | AP65: 31.902 | AQ65: =【参考】データ集計!AU509 -> 0.460712 | AR65: 0.460712 | AT65: 790 | AU65: 53.433 | AV65: =【参考】データ集計!AU538 -> 0.856474 | AW65: 0.856474 | EC65: 2758.037 | ED65: 208.792 | EE65: =【参考】データ集計!AU1187 -> 3.273835767 | EF65: 3.273835767
A66: =【参考】データ集計!AW66 -> エネルギー管理設備 | B66: =【参考】データ集計!AX66 -> 1,000～2,000 | C66: 1,000 ～2,000 | D66: =【参考】データ集計!AZ66 -> 0 | E66: =【参考】データ集計!BA66 -> 0 | F66: =【参考】データ集計!BB66 -> 0 | G66: =【参考】データ集計!BC66 -> 0 | H66: =【参考】データ集計!BD66 -> 0 | K66: 985 | L66: 58.226 | M66: =【参考】データ集計!AU145 -> 0.904104 | N66: 0.904104 | P66: 1320 | Q66: 68.659 | R66: =【参考】データ集計!AU184 -> 2.410110283 | S66: 2.410110283 | U66: 1120 | V66: 99.476 | W66: =【参考】データ集計!AU835 -> 0.883753 | X66: 0.883753 | Z66: 1500 | AA66: 126.862 | AB66: =【参考】データ集計!AU383 -> 1.831157 | AC66: 1.831157 | AO66: 750 | AP66: 22.4 | AQ66: =【参考】データ集計!AU524 -> 0.13856 | AR66: 0.13856 | AT66: 888 | AU66: 68.67 | AV66: =【参考】データ集計!AU540 -> 1.06951 | AW66: 1.06951 | EC66: 1309.091 | ED66: 55.095 | EE66: =【参考】データ集計!AU1191 -> 0.9787238667 | EF66: 0.9787238667
A67: =【参考】データ集計!AW67 -> エネルギー管理設備 | B67: =【参考】データ集計!AX67 -> 2,000～3,000 | C67: 2,000 ～3,000 | D67: =【参考】データ集計!AZ67 -> 0 | E67: =【参考】データ集計!BA67 -> 0 | F67: =【参考】データ集計!BB67 -> 0 | G67: =【参考】データ集計!BC67 -> 0 | H67: =【参考】データ集計!BD67 -> 0 | K67: 773 | L67: 4.847 | M67: =【参考】データ集計!AU146 -> 0.057156 | N67: 0.057156 | P67: 882 | Q67: 54.783 | R67: =【参考】データ集計!AU186 -> 0.842618 | S67: 0.842618 | U67: 750 | V67: 46.417 | W67: =【参考】データ集計!AU851 -> 0.563766 | X67: 0.563766 | Z67: 2810.4 | AA67: 2779.179 | AB67: =【参考】データ集計!AU389 -> 38.80546 | AC67: 38.80546 | AO67: 800 | AP67: 48.546 | AQ67: =【参考】データ集計!AU531 -> 0.659892 | AR67: 0.659892 | AT67: 750 | AU67: 58.509 | AV67: =【参考】データ集計!AU568 -> 0.938311 | AW67: 0.938311 | EC67: 997.264 | ED67: 290.502 | EE67: =【参考】データ集計!AU1200 -> 3.142281 | EF67: 3.142281
A68: =【参考】データ集計!AW68 -> エネルギー管理設備 | B68: =【参考】データ集計!AX68 -> 3,000～4,000 | C68: 3,000 ～4,000 | D68: =【参考】データ集計!AZ68 -> 0 | E68: =【参考】データ集計!BA68 -> 0 | F68: =【参考】データ集計!BB68 -> 0 | G68: =【参考】データ集計!BC68 -> 0 | H68: =【参考】データ集計!BD68 -> 0 | K68: 750 | L68: 23.206 | M68: =【参考】データ集計!AU147 -> 0.275388 | N68: 0.275388 | P68: 3220 | Q68: 114.03 | R68: =【参考】データ集計!AU190 -> 1.9485 | S68: 1.9485 | U68: 1354.545 | V68: 28.836 | W68: =【参考】データ集計!AU862 -> 0.462444 | X68: 0.462444 | Z68: 1350 | AA68: 39.264 | AB68: =【参考】データ集計!AU391 -> 1.06951 | AC68: 1.06951 | AO68: 2332 | AP68: 237.838 | AQ68: =【参考】データ集計!AU532 -> 3.772296 | AR68: 3.772296 | AT68: 8977 | AU68: 1492.493 | AV68: =【参考】データ集計!AU582 -> 16.074692 | AW68: 16.074692 | EC68: 1972.55 | ED68: 247.791 | EE68: =【参考】データ集計!AU1201 -> 2.922286533 | EF68: 2.922286533
A69: =【参考】データ集計!AW69 -> エネルギー管理設備 | B69: =【参考】データ集計!AX69 -> 4,000～5,000 | C69: 4,000 ～5,000 | D69: =【参考】データ集計!AZ69 -> 0 | E69: =【参考】データ集計!BA69 -> 0 | F69: =【参考】データ集計!BB69 -> 0 | G69: =【参考】データ集計!BC69 -> 0 | H69: =【参考】データ集計!BD69 -> 0 | K69: 1500 | L69: 35.329 | M69: =【参考】データ集計!AU148 -> 0.917094 | N69: 0.917094 | P69: 7725.2 | Q69: 94.845 | R69: =【参考】データ集計!AU192 -> 2.526988 | S69: 2.526988 | U69: 930 | V69: 232.459 | W69: =【参考】データ集計!AU865 -> 5.491690517 | X69: 5.491690517 | Z69: 824 | AA69: 44.882 | AB69: =【参考】データ集計!AU393 -> 1.14312 | AC69: 1.14312 | AO69: 858 | AP69: 57.6 | AQ69: =【参考】データ集計!AU535 -> 1.5588 | AR69: 1.5588 | AT69: 750 | AU69: 60.554 | AV69: =【参考】データ集計!AU596 -> 1.008457 | AW69: 1.008457 | EC69: 813.87 | ED69: 49.6365 | EE69: =【参考】データ集計!AU1216 -> 1.014384717 | EF69: 1.014384717
A70: =【参考】データ集計!AW70 -> エネルギー管理設備 | B70: =【参考】データ集計!AX70 -> 5,000～6,000 | C70: 5,000 ～6,000 | D70: =【参考】データ集計!AZ70 -> 0 | E70: =【参考】データ集計!BA70 -> 0 | F70: =【参考】データ集計!BB70 -> 0 | G70: =【参考】データ集計!BC70 -> 0 | H70: =【参考】データ集計!BD70 -> 0 | K70: 10000 | L70: 365.331 | M70: =【参考】データ集計!AU151 -> 9.117146 | N70: 9.117146 | P70: 950 | Q70: 58.68 | R70: =【参考】データ集計!AU193 -> 1.41158 | S70: 1.41158 | U70: 2876.96 | V70: 52.226 | W70: =【参考】データ集計!AU866 -> 0.080971 | X70: 0.080971 | Z70: 3100 | AA70: 757.465 | AB70: =【参考】データ集計!AU398 -> 12.147382 | AC70: 12.147382 | AO70: 790 | AP70: 53.433 | AQ70: =【参考】データ集計!AU538 -> 0.856474 | AR70: 0.856474 | AT70: 920.2 | AU70: 67.476 | AV70: =【参考】データ集計!AU609 -> 0.751255 | AW70: 0.751255 | EC70: 750 | ED70: 175.116 | EE70: =【参考】データ集計!AU1228 -> 1.927716 | EF70: 1.927716
A71: =【参考】データ集計!AW71 -> エネルギー管理設備 | B71: =【参考】データ集計!AX71 -> 6,000～7,000 | C71: 6,000 ～7,000 | D71: =【参考】データ集計!AZ71 -> 0 | E71: =【参考】データ集計!BA71 -> 0 | F71: =【参考】データ集計!BB71 -> 0 | G71: =【参考】データ集計!BC71 -> 0 | H71: =【参考】データ集計!BD71 -> 0 | K71: 4700 | L71: 65.504 | M71: =【参考】データ集計!AU156 -> 1.390363 | N71: 1.390363 | P71: 3010 | Q71: 194.4 | R71: =【参考】データ集計!AU199 -> 7.0146 | S71: 7.0146 | U71: 1033 | V71: 22.23 | W71: =【参考】データ集計!AU906 -> 0.370215 | X71: 0.370215 | Z71: 1628.02 | AA71: 160.589 | AB71: =【参考】データ集計!AU399 -> 4.092716 | AC71: 4.092716 | AO71: 888 | AP71: 68.67 | AQ71: =【参考】データ集計!AU540 -> 1.06951 | AR71: 1.06951 | AT71: 900 | AU71: 9.72 | AV71: =【参考】データ集計!AU616 -> 0.15588 | AW71: 0.15588 | EC71: 1484.2 | ED71: 143.396 | EE71: =【参考】データ集計!AU1229 -> 1.866123 | EF71: 1.866123
A72: =【参考】データ集計!AW72 -> エネルギー管理設備 | B72: =【参考】データ集計!AX72 -> 7,000～8,000 | C72: 7,000 ～8,000 | D72: =【参考】データ集計!AZ72 -> 0 | E72: =【参考】データ集計!BA72 -> 0 | F72: =【参考】データ集計!BB72 -> 0 | G72: =【参考】データ集計!BC72 -> 0 | H72: =【参考】データ集計!BD72 -> 0 | K72: 755 | L72: 188.169 | M72: =【参考】データ集計!AU157 -> 3.877082 | N72: 3.877082 | P72: 4560 | Q72: 236.946 | R72: =【参考】データ集計!AU200 -> 6.141672 | S72: 6.141672 | U72: 1097.18 | V72: 443.222 | W72: =【参考】データ集計!AU916 -> 4.83661 | X72: 4.83661 | Z72: 9400 | AA72: 1293.368 | AB72: =【参考】データ集計!AU401 -> 24.551533 | AC72: 24.551533 | AO72: 900 | AP72: 79.38 | AQ72: =【参考】データ集計!AU544 -> 0.762513 | AR72: 0.762513 | AT72: 964.5 | AU72: 41.138 | AV72: =【参考】データ集計!AU628 -> 0.990704 | AW72: 0.990704 | EC72: 1707 | ED72: 529.261 | EE72: =【参考】データ集計!AU1246 -> 7.009404 | EF72: 7.009404
A73: =【参考】データ集計!AW73 -> エネルギー管理設備 | B73: =【参考】データ集計!AX73 -> 8,000～9,000 | C73: 8,000 ～9,000 | D73: =【参考】データ集計!AZ73 -> 0 | E73: =【参考】データ集計!BA73 -> 0 | F73: =【参考】データ集計!BB73 -> 0 | G73: =【参考】データ集計!BC73 -> 0 | H73: =【参考】データ集計!BD73 -> 0 | K73: 2700 | L73: 234 | M73: =【参考】データ集計!AU158 -> 5.040816638 | N73: 5.040816638 | P73: 1248.7 | Q73: 48.813 | R73: =【参考】データ集計!AU202 -> 1.166502 | S73: 1.166502 | U73: 905 | V73: 31.879 | W73: =【参考】データ集計!AU971 -> 0.460279 | X73: 0.460279 | Z73: 1667 | AA73: 54.756 | AB73: =【参考】データ集計!AU408 -> 0.911898 | AC73: 0.911898 | AO73: 1200 | AP73: 146.535 | AQ73: =【参考】データ集計!AU550 -> 2.115205 | AR73: 2.115205 | AT73: 750 | AU73: 42.33 | AV73: =【参考】データ集計!AU637 -> 1.07817 | AW73: 1.07817 | EC73: 1196 | ED73: 155.316 | EE73: =【参考】データ集計!AU1269 -> 3.533788867 | EF73: 3.533788867
A74: =【参考】データ集計!AW74 -> エネルギー管理設備 | B74: =【参考】データ集計!AX74 -> 9,000～10,000 | C74: 9,000 ～10,000 | D74: =【参考】データ集計!AZ74 -> 0 | E74: =【参考】データ集計!BA74 -> 0 | F74: =【参考】データ集計!BB74 -> 0 | G74: =【参考】データ集計!BC74 -> 0 | H74: =【参考】データ集計!BD74 -> 0 | K74: 1650 | L74: 45.084 | M74: =【参考】データ集計!AU159 -> 0.433 | N74: 0.433 | P74: 840 | Q74: 30.374 | R74: =【参考】データ集計!AU205 -> 0.41135 | S74: 0.41135 | U74: 995 | V74: 104.111 | W74: =【参考】データ集計!AU993 -> 1.413745 | X74: 1.413745 | Z74: 1950 | AA74: 284.026 | AB74: =【参考】データ集計!AU410 -> 7.41296 | AC74: 7.41296 | AO74: 3330 | AP74: 33.253 | AQ74: =【参考】データ集計!AU555 -> 0.846515 | AR74: 0.846515 | AT74: 750 | AU74: 25.785 | AV74: =【参考】データ集計!AU639 -> 0.413515 | AW74: 0.413515 | EC74: 1580 | ED74: 60.729 | EE74: =【参考】データ集計!AU1270 -> 0.774750548 | EF74: 0.774750548
A75: =【参考】データ集計!AW75 -> エネルギー管理設備 | B75: =【参考】データ集計!AX75 -> 10,000～11,000 | C75: 10,000 ～11,000 | D75: =【参考】データ集計!AZ75 -> 0 | E75: =【参考】データ集計!BA75 -> 0 | F75: =【参考】データ集計!BB75 -> 0 | G75: =【参考】データ集計!BC75 -> 0 | H75: =【参考】データ集計!BD75 -> 0 | K75: 2030 | L75: 84.218 | M75: =【参考】データ集計!AU160 -> 0.809277 | N75: 0.809277 | P75: 890 | Q75: 94.29 | R75: =【参考】データ集計!AU213 -> 1.94417 | S75: 1.94417 | U75: 936.165 | V75: 120.489 | W75: =【参考】データ集計!AU1008 -> 2.514864 | X75: 2.514864 | Z75: 3965 | AA75: 108.876 | AB75: =【参考】データ集計!AU414 -> 2.004357 | AC75: 2.004357 | AO75: 880 | AP75: 48.184 | AQ75: =【参考】データ集計!AU564 -> 0.833525 | AR75: 0.833525 | AT75: 782 | AU75: 105.933 | AV75: =【参考】データ集計!AU642 -> 1.217596 | AW75: 1.217596 | EC75: 1530.67 | ED75: 69.984 | EE75: =【参考】データ集計!AU1272 -> 1.064413457 | EF75: 1.064413457
A76: =【参考】データ集計!AW76 -> エネルギー管理設備 | B76: =【参考】データ集計!AX76 -> 11,000～12,000 | C76: 11,000 ～12,000 | D76: =【参考】データ集計!AZ76 -> 0 | E76: =【参考】データ集計!BA76 -> 0 | F76: =【参考】データ集計!BB76 -> 0 | G76: =【参考】データ集計!BC76 -> 0 | H76: =【参考】データ集計!BD76 -> 0 | K76: 750 | L76: 114.739 | M76: =【参考】データ集計!AU162 -> 3.105043 | N76: 3.105043 | P76: 1900 | Q76: 116.839 | R76: =【参考】データ集計!AU215 -> 3.115435 | S76: 3.115435 | U76: 1508.85 | V76: 62.273 | W76: =【参考】データ集計!AU1025 -> 1.1674821 | X76: 1.1674821 | Z76: 8900 | AA76: 365.042 | AB76: =【参考】データ集計!AU417 -> 10.357793 | AC76: 10.357793 | AO76: 750 | AP76: 58.509 | AQ76: =【参考】データ集計!AU568 -> 0.938311 | AR76: 0.938311 | AT76: 750 | AU76: 10.08 | AV76: =【参考】データ集計!AU643 -> 0.10392 | AW76: 0.10392 | EC76: 3157.9 | ED76: 272.007 | EE76: =【参考】データ集計!AU1286 -> 4.194471 | EF76: 4.194471
A77: =【参考】データ集計!AW77 -> エネルギー管理設備 | B77: =【参考】データ集計!AX77 -> 12,000～13,000 | C77: 12,000 ～13,000 | D77: =【参考】データ集計!AZ77 -> 0 | E77: =【参考】データ集計!BA77 -> 0 | F77: =【参考】データ集計!BB77 -> 0 | G77: =【参考】データ集計!BC77 -> 0 | H77: =【参考】データ集計!BD77 -> 0 | K77: 820 | L77: 64.672 | M77: =【参考】データ集計!AU163 -> 1.646266 | N77: 1.646266 | P77: 2030 | Q77: 100 | R77: =【参考】データ集計!AU216 -> 1.6887 | S77: 1.6887 | U77: 1800 | V77: 103.059 | W77: =【参考】データ集計!AU1035 -> 2.953926 | X77: 2.953926 | Z77: 1014 | AA77: 560.417 | AB77: =【参考】データ集計!AU418 -> 13.79538 | AC77: 13.79538 | AO77: 2289.5 | AP77: 172.55 | AQ77: =【参考】データ集計!AU574 -> 4.535675 | AR77: 4.535675 | AT77: 750 | AU77: 18.88 | AV77: =【参考】データ集計!AU649 -> 0.51094 | AW77: 0.51094 | EC77: 807 | ED77: 112.977 | EE77: =【参考】データ集計!AU1287 -> 1.4624125 | EF77: 1.4624125
A78: =【参考】データ集計!AW78 -> エネルギー管理設備 | B78: =【参考】データ集計!AX78 -> 13,000～14,000 | C78: 13,000 ～14,000 | D78: =【参考】データ集計!AZ78 -> 0 | E78: =【参考】データ集計!BA78 -> 0 | F78: =【参考】データ集計!BB78 -> 0 | G78: =【参考】データ集計!BC78 -> 0 | H78: =【参考】データ集計!BD78 -> 0 | K78: 855 | L78: 16.874 | M78: =【参考】データ集計!AU165 -> 0.429536 | N78: 0.429536 | P78: 4200 | Q78: 339.128 | R78: =【参考】データ集計!AU217 -> 7.007239 | S78: 7.007239 | U78: 1350 | V78: 22.49 | W78: =【参考】データ集計!AU1045 -> 0.3891804 | X78: 0.3891804 | Z78: 1100 | AA78: 165.541 | AB78: =【参考】データ集計!AU421 -> 6.023463 | AC78: 6.023463 | AO78: 8977 | AP78: 1492.493 | AQ78: =【参考】データ集計!AU582 -> 16.074692 | AR78: 16.074692 | AT78: 1800 | AU78: 381.312 | AV78: =【参考】データ集計!AU659 -> 4.68939 | AW78: 4.68939 | EC78: 2340.4 | ED78: 50.563 | EE78: =【参考】データ集計!AU1288 -> 1.128710183 | EF78: 1.128710183
A79: =【参考】データ集計!AW79 -> エネルギー管理設備 | B79: =【参考】データ集計!AX79 -> 14,000～15,000 | C79: 14,000 ～15,000 | D79: =【参考】データ集計!AZ79 -> 0 | E79: =【参考】データ集計!BA79 -> 0 | F79: =【参考】データ集計!BB79 -> 0 | G79: =【参考】データ集計!BC79 -> 0 | H79: =【参考】データ集計!BD79 -> 0 | K79: 970 | L79: 110 | M79: =【参考】データ集計!AU166 -> 1.767939 | N79: 1.767939 | P79: 1900.8 | Q79: 62.057 | R79: =【参考】データ集計!AU219 -> 0.758616 | S79: 0.758616 | U79: 4000 | V79: 261.167 | W79: =【参考】データ集計!AU1050 -> 3.67184 | X79: 3.67184 | Z79: 1702 | AA79: 86.573 | AB79: =【参考】データ集計!AU430 -> 1.249638 | AC79: 1.249638 | AO79: 1890 | AP79: 169.207 | AQ79: =【参考】データ集計!AU590 -> 2.951328 | AR79: 2.951328 | AT79: 850 | AU79: 75.144 | AV79: =【参考】データ集計!AU663 -> 1.946768 | AW79: 1.946768 | EC79: 1300 | ED79: 90.223 | EE79: =【参考】データ集計!AU1358 -> 0.785029 | EF79: 0.785029
A80: =【参考】データ集計!AW80 -> エネルギー管理設備 | B80: =【参考】データ集計!AX80 -> 15,000～16,000 | C80: 15,000 ～16,000 | D80: =【参考】データ集計!AZ80 -> 0 | E80: =【参考】データ集計!BA80 -> 0 | F80: =【参考】データ集計!BB80 -> 0 | G80: =【参考】データ集計!BC80 -> 0 | H80: =【参考】データ集計!BD80 -> 0 | K80: 1050 | L80: 67.501 | M80: =【参考】データ集計!AU167 -> 1.5155 | N80: 1.5155 | P80: 1750 | Q80: 104.004 | R80: =【参考】データ集計!AU224 -> 1.4513727 | S80: 1.4513727 | U80: 800 | V80: 30.035 | W80: =【参考】データ集計!AU1053 -> 0.219964 | X80: 0.219964 | Z80: 5650 | AA80: 187.215 | AB80: =【参考】データ集計!AU433 -> 2.730931 | AC80: 2.730931 | AO80: 900 | AP80: 7.41 | AQ80: =【参考】データ集計!AU594 -> 0.213902 | AR80: 0.213902 | AT80: 750 | AU80: 28.32 | AV80: =【参考】データ集計!AU671 -> 0.306564 | AW80: 0.306564 | EC80: 1674.5 | ED80: 132.559 | EE80: =【参考】データ集計!AU1361 -> 1.594306 | EF80: 1.594306
A81: =【参考】データ集計!AW81 -> エネルギー管理設備 | B81: =【参考】データ集計!AX81 -> 16,000～17,000 | C81: 16,000 ～17,000 | D81: =【参考】データ集計!AZ81 -> 0 | E81: =【参考】データ集計!BA81 -> 0 | F81: =【参考】データ集計!BB81 -> 0 | G81: =【参考】データ集計!BC81 -> 0 | H81: =【参考】データ集計!BD81 -> 0 | K81: 2200 | L81: 62.386 | M81: =【参考】データ集計!AU168 -> 1.332341 | N81: 1.332341 | P81: 789 | Q81: 33.645 | R81: =【参考】データ集計!AU227 -> 0.741729 | S81: 0.741729 | U81: 750 | V81: 41.388 | W81: =【参考】データ集計!AU1070 -> 0.6788455 | X81: 0.6788455 | Z81: 3299.97 | AA81: 463.108 | AB81: =【参考】データ集計!AU434 -> 2.217393 | AC81: 2.217393 | AO81: 750 | AP81: 60.554 | AQ81: =【参考】データ集計!AU596 -> 1.008457 | AR81: 1.008457 | AT81: 750 | AU81: 17 | AV81: =【参考】データ集計!AU698 -> 0.433 | AW81: 0.433 | EC81: 1210.95 | ED81: 59.46 | EE81: =【参考】データ集計!AU1362 -> 1.50161 | EF81: 1.50161
A82: =【参考】データ集計!AW82 -> エネルギー管理設備 | B82: =【参考】データ集計!AX82 -> 17,000～18,000 | C82: 17,000 ～18,000 | D82: =【参考】データ集計!AZ82 -> 0 | E82: =【参考】データ集計!BA82 -> 0 | F82: =【参考】データ集計!BB82 -> 0 | G82: =【参考】データ集計!BC82 -> 0 | H82: =【参考】データ集計!BD82 -> 0 | K82: 750 | L82: 133.112 | M82: =【参考】データ集計!AU169 -> 1.989202 | N82: 1.989202 | P82: 753 | Q82: 14.545 | R82: =【参考】データ集計!AU228 -> 0.481929 | S82: 0.481929 | U82: 999.2 | V82: 38.778 | W82: =【参考】データ集計!AU1074 -> 0.436464 | X82: 0.436464 | Z82: 1395 | AA82: 76.517 | AB82: =【参考】データ集計!AU441 -> 1.098521 | AC82: 1.098521 | AO82: 1500 | AP82: 314.12 | AQ82: =【参考】データ集計!AU603 -> 5.415098 | AR82: 5.415098 | AT82: 750 | AU82: 48.32 | AV82: =【参考】データ集計!AU719 -> 1.30766 | AW82: 1.30766 | EC82: 839 | ED82: 107.458 | EE82: =【参考】データ集計!AU1373 -> 0.74043 | EF82: 0.74043
A83: =【参考】データ集計!AW83 -> エネルギー管理設備 | B83: =【参考】データ集計!AX83 -> 18,000～19,000 | C83: 18,000 ～19,000 | D83: =【参考】データ集計!AZ83 -> 0 | E83: =【参考】データ集計!BA83 -> 0 | F83: =【参考】データ集計!BB83 -> 0 | G83: =【参考】データ集計!BC83 -> 0 | H83: =【参考】データ集計!BD83 -> 0 | K83: 10990 | L83: 57.203 | M83: =【参考】データ集計!AU170 -> 1.422838 | N83: 1.422838 | P83: 1249 | Q83: 52.8 | R83: =【参考】データ集計!AU232 -> 0.6928 | S83: 0.6928 | U83: 1460 | V83: 85.013 | W83: =【参考】データ集計!AU1097 -> 1.12147 | X83: 1.12147 | Z83: 2612 | AA83: 146.365 | AB83: =【参考】データ集計!AU444 -> 2.5350418 | AC83: 2.5350418 | AO83: 790 | AP83: 165.579 | AQ83: =【参考】データ集計!AU606 -> 2.827923 | AR83: 2.827923 | AT83: 1377 | AU83: 53.5 | AV83: =【参考】データ集計!AU720 -> 1.446653 | AW83: 1.446653 | EC83: 763.636 | ED83: 166.728 | EE83: =【参考】データ集計!AU1403 -> 3.728998167 | EF83: 3.728998167
A84: =【参考】データ集計!AW84 -> エネルギー管理設備 | B84: =【参考】データ集計!AX84 -> 19,000～20,000 | C84: 19,000 ～20,000 | D84: =【参考】データ集計!AZ84 -> 0 | E84: =【参考】データ集計!BA84 -> 0 | F84: =【参考】データ集計!BB84 -> 0 | G84: =【参考】データ集計!BC84 -> 0 | H84: =【参考】データ集計!BD84 -> 0 | K84: 1450 | L84: 265.215 | M84: =【参考】データ集計!AU172 -> 6.407534 | N84: 6.407534 | P84: 1654.85 | Q84: 102.21 | R84: =【参考】データ集計!AU238 -> 0.324317 | S84: 0.324317 | U84: 1245 | V84: 37.407 | W84: =【参考】データ集計!AU1106 -> 0.337307 | X84: 0.337307 | Z84: 1980 | AA84: 370.193 | AB84: =【参考】データ集計!AU447 -> 6.612776 | AC84: 6.612776 | AO84: 920.2 | AP84: 67.476 | AQ84: =【参考】データ集計!AU609 -> 0.751255 | AR84: 0.751255 | AT84: 751.6 | AU84: 68.429 | AV84: =【参考】データ集計!AU722 -> 0.823133 | AW84: 0.823133 | EC84: 830 | ED84: 55 | EE84: =【参考】データ集計!AU1407 -> 1.251341667 | EF84: 1.251341667
A85: =【参考】データ集計!AW85 -> エネルギー管理設備 | B85: =【参考】データ集計!AX85 -> 20,000～ | C85: 20,000～ | D85: =【参考】データ集計!AZ85 -> 0 | E85: =【参考】データ集計!BA85 -> 0 | F85: =【参考】データ集計!BB85 -> 0 | G85: =【参考】データ集計!BC85 -> 0 | H85: =【参考】データ集計!BD85 -> 0 | K85: 3000 | L85: 165.108 | M85: =【参考】データ集計!AU174 -> 1.781795 | N85: 1.781795 | P85: 841 | Q85: 5.52 | R85: =【参考】データ集計!AU239 -> 0.0956064 | S85: 0.0956064 | U85: 1386 | V85: 10.661 | W85: =【参考】データ集計!AU1118 -> 0.116044 | X85: 0.116044 | Z85: 1500 | AA85: 297.559 | AB85: =【参考】データ集計!AU450 -> 5.029295 | AC85: 5.029295 | AO85: 900 | AP85: 9.72 | AQ85: =【参考】データ集計!AU616 -> 0.15588 | AR85: 0.15588 | AT85: 795 | AU85: 11.483 | AV85: =【参考】データ集計!AU725 -> 0.289244 | AW85: 0.289244 | EC85: 1299.5 | ED85: 109.595 | EE85: =【参考】データ集計!AU1416 -> 1.088995 | EF85: 1.088995
A86: =【参考】データ集計!AW86 -> 恒温設備 | B86: =【参考】データ集計!AX86 -> 1～1,000 | C86: 1 ～1,000 | D86: =【参考】データ集計!AZ86 -> 4 | E86: =【参考】データ集計!BA86 -> 1328562 | F86: =【参考】データ集計!BB86 -> 332.1405 | G86: =【参考】データ集計!BC86 -> 18.54938654 | H86: =【参考】データ集計!BD86 -> 4.637346635 | K86: 1235.3 | L86: 73.168 | M86: =【参考】データ集計!AU176 -> 1.314588 | N86: 1.314588 | P86: 863 | Q86: 124.589 | R86: =【参考】データ集計!AU245 -> 1.434529 | S86: 1.434529 | U86: 850 | V86: 28.332 | W86: =【参考】データ集計!AU1130 -> 0.6162511333 | X86: 0.6162511333 | Z86: 1200 | AA86: 200.32 | AB86: =【参考】データ集計!AU463 -> 3.761904 | AC86: 3.761904 | AO86: 1107 | AP86: 52.136 | AQ86: =【参考】データ集計!AU620 -> 1.019282 | AR86: 1.019282 | AT86: 753 | AU86: 12.408 | AV86: =【参考】データ集計!AU752 -> 0.244212 | AW86: 0.244212 | EC86: 1772.728 | ED86: 249.99 | EE86: =【参考】データ集計!AU1417 -> 5.688599217 | EF86: 5.688599217
A87: =【参考】データ集計!AW87 -> 恒温設備 | B87: =【参考】データ集計!AX87 -> 1,000～2,000 | C87: 1,000 ～2,000 | D87: =【参考】データ集計!AZ87 -> 10 | E87: =【参考】データ集計!BA87 -> 439948 | F87: =【参考】データ集計!BB87 -> 43.9948 | G87: =【参考】データ集計!BC87 -> 6.611759128 | H87: =【参考】データ集計!BD87 -> 0.6611759128 | K87: 7325 | L87: 421.247 | M87: =【参考】データ集計!AU180 -> 8.308404 | N87: 8.308404 | P87: 1363.637 | Q87: 238.386 | R87: =【参考】データ集計!AU269 -> 4.603223 | S87: 4.603223 | U87: 1408.3 | V87: 121.305 | W87: =【参考】データ集計!AU1139 -> 3.0897148 | X87: 3.0897148 | Z87: 3780 | AA87: 541.082 | AB87: =【参考】データ集計!AU469 -> 15.610083 | AC87: 15.610083 | AO87: 964.5 | AP87: 41.138 | AQ87: =【参考】データ集計!AU628 -> 0.990704 | AR87: 0.990704 | AT87: 751 | AU87: 50.96 | AV87: =【参考】データ集計!AU754 -> 1.379105 | AW87: 1.379105 | EC87: 2445.455 | ED87: 89.5 | EE87: =【参考】データ集計!AU1421 -> 1.791921267 | EF87: 1.791921267
A88: =【参考】データ集計!AW88 -> 恒温設備 | B88: =【参考】データ集計!AX88 -> 2,000～3,000 | C88: 2,000 ～3,000 | D88: =【参考】データ集計!AZ88 -> 8 | E88: =【参考】データ集計!BA88 -> 723920 | F88: =【参考】データ集計!BB88 -> 90.49 | G88: =【参考】データ集計!BC88 -> 16.65169793 | H88: =【参考】データ集計!BD88 -> 2.081462242 | K88: 823.9 | L88: 16.443 | M88: =【参考】データ集計!AU181 -> 0.263697 | N88: 0.263697 | P88: 896 | Q88: 107.987 | R88: =【参考】データ集計!AU272 -> 2.892873 | S88: 2.892873 | U88: 1575 | V88: 105.402 | W88: =【参考】データ集計!AU1184 -> 1.116274 | X88: 1.116274 | Z88: 1600 | AA88: 418.931 | AB88: =【参考】データ集計!AU470 -> 2.567257 | AC88: 2.567257 | AO88: 1864 | AP88: 30.48 | AQ88: =【参考】データ集計!AU629 -> 0.906269 | AR88: 0.906269 | AT88: 753 | AU88: 20.7 | AV88: =【参考】データ集計!AU761 -> 0.29011 | AW88: 0.29011 | EC88: 1190 | ED88: 6.63 | EE88: =【参考】データ集計!AU1450 -> 0.1401502667 | EF88: 0.1401502667
A89: =【参考】データ集計!AW89 -> 恒温設備 | B89: =【参考】データ集計!AX89 -> 3,000～4,000 | C89: 3,000 ～4,000 | D89: =【参考】データ集計!AZ89 -> 17 | E89: =【参考】データ集計!BA89 -> 3663575 | F89: =【参考】データ集計!BB89 -> 215.5044118 | G89: =【参考】データ集計!BC89 -> 90.82655722 | H89: =【参考】データ集計!BD89 -> 5.34273866 | K89: 1320 | L89: 68.659 | M89: =【参考】データ集計!AU184 -> 2.410110283 | N89: 2.410110283 | P89: 2104 | Q89: 1096.299 | R89: =【参考】データ集計!AU273 -> 32.37016557 | S89: 32.37016557 | U89: 900 | V89: 26.16 | W89: =【参考】データ集計!AU1190 -> 1.534119 | X89: 1.534119 | Z89: 1110.136 | AA89: 95.697 | AB89: =【参考】データ集計!AU484 -> 2.301828 | AC89: 2.301828 | AO89: 904 | AP89: 51.381 | AQ89: =【参考】データ集計!AU630 -> 0.823999 | AR89: 0.823999 | AT89: 850 | AU89: 66.652 | AV89: =【参考】データ集計!AU762 -> 0.726141 | AW89: 0.726141 | EC89: 802 | ED89: 28.98 | EE89: =【参考】データ集計!AU1456 -> 0.6907406 | EF89: 0.6907406
A90: =【参考】データ集計!AW90 -> 恒温設備 | B90: =【参考】データ集計!AX90 -> 4,000～5,000 | C90: 4,000 ～5,000 | D90: =【参考】データ集計!AZ90 -> 5 | E90: =【参考】データ集計!BA90 -> 1199691 | F90: =【参考】データ集計!BB90 -> 239.9382 | G90: =【参考】データ集計!BC90 -> 28.93607839 | H90: =【参考】データ集計!BD90 -> 5.787215677 | K90: 882 | L90: 54.783 | M90: =【参考】データ集計!AU186 -> 0.842618 | N90: 0.842618 | P90: 1530 | Q90: 970.28 | R90: =【参考】データ集計!AU277 -> 20.341474 | S90: 20.341474 | U90: 1350 | V90: 21.255 | W90: =【参考】データ集計!AU1196 -> 0.235985 | X90: 0.235985 | Z90: 750 | AA90: 51.953 | AB90: =【参考】データ集計!AU490 -> 0.888083 | AC90: 0.888083 | AO90: 1690 | AP90: 41.768 | AQ90: =【参考】データ集計!AU632 -> 1.13013 | AR90: 1.13013 | AT90: 750 | AU90: 21.25 | AV90: =【参考】データ集計!AU767 -> 0.54125 | AW90: 0.54125 | EC90: 2113 | ED90: 2626.446 | EE90: =【参考】データ集計!AU1483 -> 40.615833 | EF90: 40.615833
A91: =【参考】データ集計!AW91 -> 恒温設備 | B91: =【参考】データ集計!AX91 -> 5,000～6,000 | C91: 5,000 ～6,000 | D91: =【参考】データ集計!AZ91 -> 6 | E91: =【参考】データ集計!BA91 -> 1456421 | F91: =【参考】データ集計!BB91 -> 242.7368333 | G91: =【参考】データ集計!BC91 -> 29.71056019 | H91: =【参考】データ集計!BD91 -> 4.951760032 | K91: 3220 | L91: 114.03 | M91: =【参考】データ集計!AU190 -> 1.9485 | N91: 1.9485 | P91: 1177 | Q91: 79.815 | R91: =【参考】データ集計!AU279 -> 2.4554828 | S91: 2.4554828 | U91: 1159 | V91: 8.693 | W91: =【参考】データ集計!AU1218 -> 0.125137 | X91: 0.125137 | Z91: 4216.862 | AA91: 104.104 | AB91: =【参考】データ集計!AU493 -> 1.998728 | AC91: 1.998728 | AO91: 750 | AP91: 42.33 | AQ91: =【参考】データ集計!AU637 -> 1.07817 | AR91: 1.07817 | AT91: 3000 | AU91: 37.328 | AV91: =【参考】データ集計!AU780 -> 1.521129 | AW91: 1.521129 | EC91: 2200 | ED91: 39.401 | EE91: =【参考】データ集計!AU1491 -> 0.765111 | EF91: 0.765111
A92: =【参考】データ集計!AW92 -> 恒温設備 | B92: =【参考】データ集計!AX92 -> 6,000～7,000 | C92: 6,000 ～7,000 | D92: =【参考】データ集計!AZ92 -> 6 | E92: =【参考】データ集計!BA92 -> 1776798 | F92: =【参考】データ集計!BB92 -> 296.133 | G92: =【参考】データ集計!BC92 -> 187.510091 | H92: =【参考】データ集計!BD92 -> 31.25168183 | K92: 7725.2 | L92: 94.845 | M92: =【参考】データ集計!AU192 -> 2.526988 | N92: 2.526988 | P92: 1411 | Q92: 40.674 | R92: =【参考】データ集計!AU284 -> 0.601437 | S92: 0.601437 | U92: 765 | V92: 17.653 | W92: =【参考】データ集計!AU1230 -> 0.495352 | X92: 0.495352 | Z92: 961 | AA92: 2100 | AB92: =【参考】データ集計!AU500 -> 49.362 | AC92: 49.362 | AO92: 750 | AP92: 25.785 | AQ92: =【参考】データ集計!AU639 -> 0.413515 | AR92: 0.413515 | AT92: 789 | AU92: 112.194 | AV92: =【参考】データ集計!AU822 -> 1.560099 | AW92: 1.560099 | EC92: 3400 | ED92: 118.427 | EE92: =【参考】データ集計!AU1512 -> 2.336242667 | EF92: 2.336242667
A93: =【参考】データ集計!AW93 -> 恒温設備 | B93: =【参考】データ集計!AX93 -> 7,000～8,000 | C93: 7,000 ～8,000 | D93: =【参考】データ集計!AZ93 -> 5 | E93: =【参考】データ集計!BA93 -> 2302167.8 | F93: =【参考】データ集計!BB93 -> 460.43356 | G93: =【参考】データ集計!BC93 -> 84.45955346 | H93: =【参考】データ集計!BD93 -> 16.89191069 | K93: 950 | L93: 58.68 | M93: =【参考】データ集計!AU193 -> 1.41158 | N93: 1.41158 | P93: 900 | Q93: 76.46 | R93: =【参考】データ集計!AU287 -> 1.6400637 | S93: 1.6400637 | U93: 1159 | V93: 7.836 | W93: =【参考】データ集計!AU1265 -> 0.09093 | X93: 0.09093 | Z93: 1857.605 | AA93: 212.315 | AB93: =【参考】データ集計!AU502 -> 3.657551 | AC93: 3.657551 | AO93: 782 | AP93: 105.933 | AQ93: =【参考】データ集計!AU642 -> 1.217596 | AR93: 1.217596 | AT93: 883 | AU93: 40.592 | AV93: =【参考】データ集計!AU829 -> 1.098521 | AW93: 1.098521 | EC93: 1485.63 | ED93: 69.74 | EE93: =【参考】データ集計!AU1516 -> 1.49410195 | EF93: 1.49410195
A94: =【参考】データ集計!AW94 -> 恒温設備 | B94: =【参考】データ集計!AX94 -> 8,000～9,000 | C94: 8,000 ～9,000 | D94: =【参考】データ集計!AZ94 -> 2 | E94: =【参考】データ集計!BA94 -> 1262931 | F94: =【参考】データ集計!BB94 -> 631.4655 | G94: =【参考】データ集計!BC94 -> 11.999296 | H94: =【参考】データ集計!BD94 -> 5.999648 | K94: 1172.8 | L94: 52.473 | M94: =【参考】データ集計!AU195 -> 0.888949 | N94: 0.888949 | P94: 4800 | Q94: 66.519 | R94: =【参考】データ集計!AU290 -> 0.633046 | S94: 0.633046 | U94: 3000 | V94: 182.032 | W94: =【参考】データ集計!AU1266 -> 2.542576 | X94: 2.542576 | Z94: 6629.2 | AA94: 20.126 | AB94: =【参考】データ集計!AU508 -> 0.444691 | AC94: 0.444691 | AO94: 750 | AP94: 10.08 | AQ94: =【参考】データ集計!AU643 -> 0.10392 | AR94: 0.10392 | AT94: 891.9 | AU94: 39.2 | AV94: =【参考】データ集計!AU832 -> 0.62785 | AW94: 0.62785 | EC94: 1272.727 | ED94: 49.06 | EE94: =【参考】データ集計!AU1540 -> 1.116196767 | EF94: 1.116196767
A95: =【参考】データ集計!AW95 -> 恒温設備 | B95: =【参考】データ集計!AX95 -> 9,000～10,000 | C95: 9,000 ～10,000 | D95: =【参考】データ集計!AZ95 -> 1 | E95: =【参考】データ集計!BA95 -> 190320 | F95: =【参考】データ集計!BB95 -> 190.32 | G95: =【参考】データ集計!BC95 -> -311.3338067 | H95: =【参考】データ集計!BD95 -> -311.3338067 | K95: 3010 | L95: 194.4 | M95: =【参考】データ集計!AU199 -> 7.0146 | N95: 7.0146 | P95: 830 | Q95: 111.24 | R95: =【参考】データ集計!AU291 -> 3.091187 | S95: 3.091187 | U95: 1745.454 | V95: 215.21 | W95: =【参考】データ集計!AU1268 -> 2.446017 | X95: 2.446017 | Z95: 9130 | AA95: 902.945 | AB95: =【参考】データ集計!AU519 -> 15.63996 | AC95: 15.63996 | AO95: 1050 | AP95: 39.12 | AQ95: =【参考】データ集計!AU647 -> 1.058685 | AR95: 1.058685 | AT95: 810 | AU95: 58.428 | AV95: =【参考】データ集計!AU859 -> 0.937012 | AW95: 0.937012 | EC95: 3200 | ED95: 119.322 | EE95: =【参考】データ集計!AU1553 -> 1.654062074 | EF95: 1.654062074
A96: =【参考】データ集計!AW96 -> 恒温設備 | B96: =【参考】データ集計!AX96 -> 10,000～11,000 | C96: 10,000 ～11,000 | D96: =【参考】データ集計!AZ96 -> 4 | E96: =【参考】データ集計!BA96 -> 3450756 | F96: =【参考】データ集計!BB96 -> 862.689 | G96: =【参考】データ集計!BC96 -> 83.04536696 | H96: =【参考】データ集計!BD96 -> 20.76134174 | K96: 4560 | L96: 236.946 | M96: =【参考】データ集計!AU200 -> 6.141672 | N96: 6.141672 | P96: 1352.6 | Q96: 36.668 | R96: =【参考】データ集計!AU292 -> 0.218665 | S96: 0.218665 | U96: 810 | V96: 76.5 | W96: =【参考】データ集計!AU1277 -> 1.0672151 | X96: 1.0672151 | Z96: 896 | AA96: 13.274 | AB96: =【参考】データ集計!AU521 -> 0.191819 | AC96: 0.191819 | AO96: 750 | AP96: 18.88 | AQ96: =【参考】データ集計!AU649 -> 0.51094 | AR96: 0.51094 | AT96: 750 | AU96: 10.19 | AV96: =【参考】データ集計!AU867 -> 0.1732 | AW96: 0.1732 | EC96: 1224.3 | ED96: 43.66 | EE96: =【参考】データ集計!AU1560 -> 0.7018409167 | EF96: 0.7018409167
A97: =【参考】データ集計!AW97 -> 恒温設備 | B97: =【参考】データ集計!AX97 -> 11,000～12,000 | C97: 11,000 ～12,000 | D97: =【参考】データ集計!AZ97 -> 2 | E97: =【参考】データ集計!BA97 -> 12071339 | F97: =【参考】データ集計!BB97 -> 6035.6695 | G97: =【参考】データ集計!BC97 -> 335.9820878 | H97: =【参考】データ集計!BD97 -> 167.9910439 | K97: 1248.7 | L97: 48.813 | M97: =【参考】データ集計!AU202 -> 1.166502 | N97: 1.166502 | P97: 1200 | Q97: 125.847 | R97: =【参考】データ集計!AU298 -> 2.717941 | S97: 2.717941 | U97: 889.9 | V97: 245.369 | W97: =【参考】データ集計!AU1303 -> 3.663613 | X97: 3.663613 | Z97: 1841.48 | AA97: 27.307 | AB97: =【参考】データ集計!AU522 -> 0.361988 | AC97: 0.361988 | AO97: 1400 | AP97: 176.814 | AQ97: =【参考】データ集計!AU656 -> 3.951558 | AR97: 3.951558 | AT97: 760 | AU97: 60.024 | AV97: =【参考】データ集計!AU870 -> 0.962559 | AW97: 0.962559 | EC97: 4390 | ED97: 302.995 | EE97: =【参考】データ集計!AU1561 -> 5.843765583 | EF97: 5.843765583
A98: =【参考】データ集計!AW98 -> 恒温設備 | B98: =【参考】データ集計!AX98 -> 12,000～13,000 | C98: 12,000 ～13,000 | D98: =【参考】データ集計!AZ98 -> 1 | E98: =【参考】データ集計!BA98 -> 516877 | F98: =【参考】データ集計!BB98 -> 516.877 | G98: =【参考】データ集計!BC98 -> 12.78411156 | H98: =【参考】データ集計!BD98 -> 12.78411156 | K98: 840 | L98: 30.374 | M98: =【参考】データ集計!AU205 -> 0.41135 | N98: 0.41135 | P98: 9128 | Q98: 1031.867 | R98: =【参考】データ集計!AU301 -> 26.176582 | S98: 26.176582 | U98: 1081.818 | V98: 104.448 | W98: =【参考】データ集計!AU1363 -> 1.17776 | X98: 1.17776 | Z98: 2442.9 | AA98: 33.273 | AB98: =【参考】データ集計!AU525 -> 0.750822 | AC98: 0.750822 | AO98: 1800 | AP98: 381.312 | AQ98: =【参考】データ集計!AU659 -> 4.68939 | AR98: 4.68939 | AT98: 1017 | AU98: 36.192 | AV98: =【参考】データ集計!AU879 -> 0.979446 | AW98: 0.979446 | EC98: 750 | ED98: 31.356 | EE98: =【参考】データ集計!AU1588 -> 0.468939 | EF98: 0.468939
A99: =【参考】データ集計!AW99 -> 恒温設備 | B99: =【参考】データ集計!AX99 -> 13,000～14,000 | C99: 13,000 ～14,000 | D99: =【参考】データ集計!AZ99 -> 0 | E99: =【参考】データ集計!BA99 -> 0 | F99: =【参考】データ集計!BB99 -> 0 | G99: =【参考】データ集計!BC99 -> 0 | H99: =【参考】データ集計!BD99 -> 0 | K99: 851.77 | L99: 57.187 | M99: =【参考】データ集計!AU206 -> 0.9497785299 | N99: 0.9497785299 | P99: 827.273 | Q99: 65.343 | R99: =【参考】データ集計!AU305 -> 0.127735 | S99: 0.127735 | U99: 800 | V99: 26.749 | W99: =【参考】データ集計!AU1385 -> 0.371514 | X99: 0.371514 | Z99: 2601.57 | AA99: 237.3 | AB99: =【参考】データ集計!AU528 -> 2.3815 | AC99: 2.3815 | AO99: 850 | AP99: 75.144 | AQ99: =【参考】データ集計!AU663 -> 1.946768 | AR99: 1.946768 | AT99: 875 | AU99: 11.2 | AV99: =【参考】データ集計!AU893 -> 0.1732 | AW99: 0.1732 | EC99: 1653.22 | ED99: 68.053 | EE99: =【参考】データ集計!AU1609 -> 1.000282598 | EF99: 1.000282598
A100: =【参考】データ集計!AW100 -> 恒温設備 | B100: =【参考】データ集計!AX100 -> 14,000～15,000 | C100: 14,000 ～15,000 | D100: =【参考】データ集計!AZ100 -> 0 | E100: =【参考】データ集計!BA100 -> 0 | F100: =【参考】データ集計!BB100 -> 0 | G100: =【参考】データ集計!BC100 -> 0 | H100: =【参考】データ集計!BD100 -> 0 | K100: 890 | L100: 94.29 | M100: =【参考】データ集計!AU213 -> 1.94417 | N100: 1.94417 | P100: 6790 | Q100: 234.977 | R100: =【参考】データ集計!AU314 -> 1.828992 | S100: 1.828992 | U100: 1600 | V100: 14.13 | W100: =【参考】データ集計!AU1420 -> 0.165406 | X100: 0.165406 | Z100: 759.682 | AA100: 17.608 | AB100: =【参考】データ集計!AU536 -> 0.170602 | AC100: 0.170602 | AO100: 2003 | AP100: 109.689 | AQ100: =【参考】データ集計!AU668 -> 2.9684315 | AR100: 2.9684315 | AT100: 996 | AU100: 29.292 | AV100: =【参考】データ集計!AU917 -> 0.728306 | AW100: 0.728306 | EC100: 9435.15 | ED100: 430.177 | EE100: =【参考】データ集計!AU1616 -> 5.473363686 | EF100: 5.473363686
A101: =【参考】データ集計!AW101 -> 恒温設備 | B101: =【参考】データ集計!AX101 -> 15,000～16,000 | C101: 15,000 ～16,000 | D101: =【参考】データ集計!AZ101 -> 0 | E101: =【参考】データ集計!BA101 -> 0 | F101: =【参考】データ集計!BB101 -> 0 | G101: =【参考】データ集計!BC101 -> 0 | H101: =【参考】データ集計!BD101 -> 0 | K101: 1900 | L101: 116.839 | M101: =【参考】データ集計!AU215 -> 3.115435 | N101: 3.115435 | P101: 1946 | Q101: 287.419 | R101: =【参考】データ集計!AU315 -> 7.320731 | S101: 7.320731 | U101: 1040.7 | V101: 138.736 | W101: =【参考】データ集計!AU1424 -> 2.710090333 | X101: 2.710090333 | Z101: 1379.45 | AA101: 65.33 | AB101: =【参考】データ集計!AU541 -> 1.044829 | AC101: 1.044829 | AO101: 750 | AP101: 28.32 | AQ101: =【参考】データ集計!AU671 -> 0.306564 | AR101: 0.306564 | AT101: 750 | AU101: 44.96 | AV101: =【参考】データ集計!AU918 -> 1.21673 | AW101: 1.21673 | EC101: 1488.915 | ED101: 178.838 | EE101: =【参考】データ集計!AU1630 -> 2.303127 | EF101: 2.303127
A102: =【参考】データ集計!AW102 -> 恒温設備 | B102: =【参考】データ集計!AX102 -> 16,000～17,000 | C102: 16,000 ～17,000 | D102: =【参考】データ集計!AZ102 -> 0 | E102: =【参考】データ集計!BA102 -> 0 | F102: =【参考】データ集計!BB102 -> 0 | G102: =【参考】データ集計!BC102 -> 0 | H102: =【参考】データ集計!BD102 -> 0 | K102: 2030 | L102: 100 | M102: =【参考】データ集計!AU216 -> 1.6887 | N102: 1.6887 | P102: 2232.5 | Q102: 148.804 | R102: =【参考】データ集計!AU334 -> 3.865824 | S102: 3.865824 | U102: 1900 | V102: 123.662 | W102: =【参考】データ集計!AU1425 -> 1.390796 | X102: 1.390796 | Z102: 1723 | AA102: 113.134 | AB102: =【参考】データ集計!AU546 -> 1.051324 | AC102: 1.051324 | AO102: 3840 | AP102: 743.967 | AQ102: =【参考】データ集計!AU684 -> 10.693368 | AR102: 10.693368 | AT102: 750 | AU102: 18.058 | AV102: =【参考】データ集計!AU926 -> 0.210005 | AW102: 0.210005 | EC102: 1365 | ED102: 59.757 | EE102: =【参考】データ集計!AU1641 -> 0.8948579333 | EF102: 0.8948579333
A103: =【参考】データ集計!AW103 -> 恒温設備 | B103: =【参考】データ集計!AX103 -> 17,000～18,000 | C103: 17,000 ～18,000 | D103: =【参考】データ集計!AZ103 -> 0 | E103: =【参考】データ集計!BA103 -> 0 | F103: =【参考】データ集計!BB103 -> 0 | G103: =【参考】データ集計!BC103 -> 0 | H103: =【参考】データ集計!BD103 -> 0 | K103: 4200 | L103: 339.128 | M103: =【参考】データ集計!AU217 -> 7.007239 | N103: 7.007239 | P103: 1662.12 | Q103: 101.948 | R103: =【参考】データ集計!AU335 -> 6.865294083 | S103: 6.865294083 | U103: 1497.5 | V103: 31.186 | W103: =【参考】データ集計!AU1437 -> 0.33774 | X103: 0.33774 | Z103: 1164.3 | AA103: 212.118 | AB103: =【参考】データ集計!AU557 -> 6.643086 | AC103: 6.643086 | AO103: 895 | AP103: 34.64 | AQ103: =【参考】データ集計!AU687 -> 0.52826 | AR103: 0.52826 | AT103: 803 | AU103: 55.432 | AV103: =【参考】データ集計!AU927 -> 0.923156 | AW103: 0.923156 | EC103: 795 | ED103: 70.473 | EE103: =【参考】データ集計!AU1693 -> 0.85301 | EF103: 0.85301
A104: =【参考】データ集計!AW104 -> 恒温設備 | B104: =【参考】データ集計!AX104 -> 18,000～19,000 | C104: 18,000 ～19,000 | D104: =【参考】データ集計!AZ104 -> 1 | E104: =【参考】データ集計!BA104 -> 143908 | F104: =【参考】データ集計!BB104 -> 143.908 | G104: =【参考】データ集計!BC104 -> 21.41283063 | H104: =【参考】データ集計!BD104 -> 21.41283063 | K104: 1870 | L104: 60 | M104: =【参考】データ集計!AU218 -> 0.912764 | N104: 0.912764 | P104: 1960 | Q104: 131.155 | R104: =【参考】データ集計!AU336 -> 2.362015 | S104: 2.362015 | U104: 1248 | V104: 101.5 | W104: =【参考】データ集計!AU1444 -> 1.2557 | X104: 1.2557 | Z104: 1085 | AA104: 54.396 | AB104: =【参考】データ集計!AU566 -> 0.638242 | AC104: 0.638242 | AO104: 3300 | AP104: 82.428 | AQ104: =【参考】データ集計!AU691 -> 1.203307 | AR104: 1.203307 | AT104: 762 | AU104: 18.9 | AV104: =【参考】データ集計!AU929 -> 0.51094 | AW104: 0.51094 | EC104: 750 | ED104: 25.914 | EE104: =【参考】データ集計!AU1695 -> 0.388401 | EF104: 0.388401
A105: =【参考】データ集計!AW105 -> 恒温設備 | B105: =【参考】データ集計!AX105 -> 19,000～20,000 | C105: 19,000 ～20,000 | D105: =【参考】データ集計!AZ105 -> 0 | E105: =【参考】データ集計!BA105 -> 0 | F105: =【参考】データ集計!BB105 -> 0 | G105: =【参考】データ集計!BC105 -> 0 | H105: =【参考】データ集計!BD105 -> 0 | K105: 1900.8 | L105: 62.057 | M105: =【参考】データ集計!AU219 -> 0.758616 | N105: 0.758616 | P105: 1295.8 | Q105: 119.232 | R105: =【参考】データ集計!AU340 -> 2.244672 | S105: 2.244672 | U105: 9500 | V105: 39.506 | W105: =【参考】データ集計!AU1445 -> 0.270192 | X105: 0.270192 | Z105: 1261.6 | AA105: 144.722 | AB105: =【参考】データ集計!AU569 -> 1.940273 | AC105: 1.940273 | AO105: 750 | AP105: 17 | AQ105: =【参考】データ集計!AU698 -> 0.433 | AR105: 0.433 | AT105: 750 | AU105: 12.833 | AV105: =【参考】データ集計!AU936 -> 0.206108 | AW105: 0.206108 | EC105: 1267.6 | ED105: 47.486 | EE105: =【参考】データ集計!AU1697 -> 0.6210278366 | EF105: 0.6210278366
A106: =【参考】データ集計!AW106 -> 恒温設備 | B106: =【参考】データ集計!AX106 -> 20,000～ | C106: 20,000～ | D106: =【参考】データ集計!AZ106 -> 2 | E106: =【参考】データ集計!BA106 -> 707349 | F106: =【参考】データ集計!BB106 -> 353.6745 | G106: =【参考】データ集計!BC106 -> 14.76390365 | H106: =【参考】データ集計!BD106 -> 7.381951825 | K106: 1750 | L106: 104.004 | M106: =【参考】データ集計!AU224 -> 1.4513727 | N106: 1.4513727 | P106: 1600 | Q106: 93.5 | R106: =【参考】データ集計!AU342 -> 2.539978 | S106: 2.539978 | U106: 906.7 | V106: 57.484 | W106: =【参考】データ集計!AU1504 -> 0.964724 | X106: 0.964724 | Z106: 3339.175 | AA106: 147.065 | AB106: =【参考】データ集計!AU573 -> 2.55828524 | AC106: 2.55828524 | AO106: 750 | AP106: 48.32 | AQ106: =【参考】データ集計!AU719 -> 1.30766 | AR106: 1.30766 | AT106: 758.2 | AU106: 28.6 | AV106: =【参考】データ集計!AU942 -> 0.45898 | AW106: 0.45898 | EC106: 3832.2 | ED106: 311.562 | EE106: =【参考】データ集計!AU1699 -> 4.609718 | EF106: 4.609718
A107: =【参考】データ集計!AW107 -> 熱電併給設備 | B107: =【参考】データ集計!AX107 -> 1～1,000 | C107: 1 ～1,000 | D107: =【参考】データ集計!AZ107 -> 0 | E107: =【参考】データ集計!BA107 -> 0 | F107: =【参考】データ集計!BB107 -> 0 | G107: =【参考】データ集計!BC107 -> 0 | H107: =【参考】データ集計!BD107 -> 0 | K107: 860 | L107: 1.912 | M107: =【参考】データ集計!AU225 -> 0.028578 | N107: 0.028578 | P107: 800 | Q107: 37.408 | R107: =【参考】データ集計!AU344 -> 0.5504296 | S107: 0.5504296 | U107: 1687.01 | V107: 81.558 | W107: =【参考】データ集計!AU1511 -> 1.363364231 | X107: 1.363364231 | Z107: 1335 | AA107: 45.245 | AB107: =【参考】データ集計!AU577 -> 0.802782 | AC107: 0.802782 | AO107: 1377 | AP107: 53.5 | AQ107: =【参考】データ集計!AU720 -> 1.446653 | AR107: 1.446653 | AT107: 750 | AU107: 43.71 | AV107: =【参考】データ集計!AU943 -> 0.61053 | AW107: 0.61053 | EC107: 1315 | ED107: 61.932 | EE107: =【参考】データ集計!AU1710 -> 1.1463055 | EF107: 1.1463055
A108: =【参考】データ集計!AW108 -> 熱電併給設備 | B108: =【参考】データ集計!AX108 -> 1,000～2,000 | C108: 1,000 ～2,000 | D108: =【参考】データ集計!AZ108 -> 0 | E108: =【参考】データ集計!BA108 -> 0 | F108: =【参考】データ集計!BB108 -> 0 | G108: =【参考】データ集計!BC108 -> 0 | H108: =【参考】データ集計!BD108 -> 0 | K108: 789 | L108: 33.645 | M108: =【参考】データ集計!AU227 -> 0.741729 | N108: 0.741729 | P108: 1285 | Q108: 82.035 | R108: =【参考】データ集計!AU346 -> 1.366115 | S108: 1.366115 | U108: 4541 | V108: 1669.848 | W108: =【参考】データ集計!AU1523 -> 30.126841 | X108: 30.126841 | Z108: 2729.64 | AA108: 299.795 | AB108: =【参考】データ集計!AU580 -> 10.451754 | AC108: 10.451754 | AO108: 751.6 | AP108: 68.429 | AQ108: =【参考】データ集計!AU722 -> 0.823133 | AR108: 0.823133 | AT108: 751.8 | AU108: 32.4 | AV108: =【参考】データ集計!AU960 -> 0.5196 | AW108: 0.5196 | EC108: 1418.58 | ED108: 104.993 | EE108: =【参考】データ集計!AU1712 -> 2.339772567 | EF108: 2.339772567
A109: =【参考】データ集計!AW109 -> 熱電併給設備 | B109: =【参考】データ集計!AX109 -> 2,000～3,000 | C109: 2,000 ～3,000 | D109: =【参考】データ集計!AZ109 -> 0 | E109: =【参考】データ集計!BA109 -> 0 | F109: =【参考】データ集計!BB109 -> 0 | G109: =【参考】データ集計!BC109 -> 0 | H109: =【参考】データ集計!BD109 -> 0 | K109: 753 | L109: 14.545 | M109: =【参考】データ集計!AU228 -> 0.481929 | N109: 0.481929 | P109: 2030 | Q109: 311.028 | R109: =【参考】データ集計!AU347 -> 1.311124 | S109: 1.311124 | U109: 753 | V109: 35.843 | W109: =【参考】データ集計!AU1543 -> 0.8548171333 | X109: 0.8548171333 | Z109: 856.12 | AA109: 84 | AB109: =【参考】データ集計!AU583 -> 1.0392 | AC109: 1.0392 | AO109: 795 | AP109: 11.483 | AQ109: =【参考】データ集計!AU725 -> 0.289244 | AR109: 0.289244 | AT109: 907 | AU109: 18.228 | AV109: =【参考】データ集計!AU961 -> 0.423474 | AW109: 0.423474 | EC109: 12000 | ED109: 2224.69 | EE109: =【参考】データ集計!AU1718 -> 56.18512423 | EF109: 56.18512423
A110: =【参考】データ集計!AW110 -> 熱電併給設備 | B110: =【参考】データ集計!AX110 -> 3,000～4,000 | C110: 3,000 ～4,000 | D110: =【参考】データ集計!AZ110 -> 0 | E110: =【参考】データ集計!BA110 -> 0 | F110: =【参考】データ集計!BB110 -> 0 | G110: =【参考】データ集計!BC110 -> 0 | H110: =【参考】データ集計!BD110 -> 0 | K110: 1249 | L110: 52.8 | M110: =【参考】データ集計!AU232 -> 0.6928 | N110: 0.6928 | P110: 1050 | Q110: 252.281 | R110: =【参考】データ集計!AU354 -> 5.3556665 | S110: 5.3556665 | U110: 1430 | V110: 75.127 | W110: =【参考】データ集計!AU1585 -> 1.246174 | X110: 1.246174 | Z110: 6207 | AA110: 3573.826 | AB110: =【参考】データ集計!AU584 -> 53.367683 | AC110: 53.367683 | AO110: 1100 | AP110: 53.974 | AQ110: =【参考】データ集計!AU727 -> 1.071675 | AR110: 1.071675 | AT110: 1500 | AU110: 48.6 | AV110: =【参考】データ集計!AU969 -> 1.10848 | AW110: 1.10848 | EC110: 2008 | ED110: 134.113 | EE110: =【参考】データ集計!AU1724 -> 1.90087 | EF110: 1.90087
A111: =【参考】データ集計!AW111 -> 熱電併給設備 | B111: =【参考】データ集計!AX111 -> 4,000～5,000 | C111: 4,000 ～5,000 | D111: =【参考】データ集計!AZ111 -> 0 | E111: =【参考】データ集計!BA111 -> 0 | F111: =【参考】データ集計!BB111 -> 0 | G111: =【参考】データ集計!BC111 -> 0 | H111: =【参考】データ集計!BD111 -> 0 | K111: 1654.85 | L111: 102.21 | M111: =【参考】データ集計!AU238 -> 0.324317 | N111: 0.324317 | P111: 4592.6 | Q111: 273.147 | R111: =【参考】データ集計!AU356 -> 3.345791 | S111: 3.345791 | U111: 786.542 | V111: 63.072 | W111: =【参考】データ集計!AU1590 -> 0.910166 | X111: 0.910166 | Z111: 3181.818 | AA111: 199.444 | AB111: =【参考】データ集計!AU586 -> 5.006346 | AC111: 5.006346 | AO111: 1350 | AP111: 65.502 | AQ111: =【参考】データ集計!AU729 -> 1.050458 | AR111: 1.050458 | AT111: 1140 | AU111: 23.2 | AV111: =【参考】データ集計!AU996 -> 0.62785 | AW111: 0.62785
A112: =【参考】データ集計!AW112 -> 熱電併給設備 | B112: =【参考】データ集計!AX112 -> 5,000～6,000 | C112: 5,000 ～6,000 | D112: =【参考】データ集計!AZ112 -> 0 | E112: =【参考】データ集計!BA112 -> 0 | F112: =【参考】データ集計!BB112 -> 0 | G112: =【参考】データ集計!BC112 -> 0 | H112: =【参考】データ集計!BD112 -> 0 | K112: 841 | L112: 5.52 | M112: =【参考】データ集計!AU239 -> 0.0956064 | N112: 0.0956064 | P112: 1600 | Q112: 50 | R112: =【参考】データ集計!AU357 -> 0.6495 | S112: 0.6495 | U112: 5161.503 | V112: 196.424 | W112: =【参考】データ集計!AU1593 -> 3.209396 | X112: 3.209396 | Z112: 1970 | AA112: 62.51 | AB112: =【参考】データ集計!AU591 -> 0.869464 | AC112: 0.869464 | AO112: 1990 | AP112: 22.044 | AQ112: =【参考】データ集計!AU735 -> 0.596674 | AR112: 0.596674 | AT112: 1644 | AU112: 20.258 | AV112: =【参考】データ集計!AU1002 -> 0.276254 | AW112: 0.276254
A113: =【参考】データ集計!AW113 -> 熱電併給設備 | B113: =【参考】データ集計!AX113 -> 6,000～7,000 | C113: 6,000 ～7,000 | D113: =【参考】データ集計!AZ113 -> 0 | E113: =【参考】データ集計!BA113 -> 0 | F113: =【参考】データ集計!BB113 -> 0 | G113: =【参考】データ集計!BC113 -> 0 | H113: =【参考】データ集計!BD113 -> 0 | K113: 863 | L113: 124.589 | M113: =【参考】データ集計!AU245 -> 1.434529 | N113: 1.434529 | P113: 1360 | Q113: 83.97 | R113: =【参考】データ集計!AU367 -> 1.728103 | S113: 1.728103 | U113: 1500 | V113: 75.469 | W113: =【参考】データ集計!AU1595 -> 1.103284 | X113: 1.103284 | Z113: 2071.5 | AA113: 448.855 | AB113: =【参考】データ集計!AU601 -> 6.26984 | AC113: 6.26984 | AO113: 753 | AP113: 12.408 | AQ113: =【参考】データ集計!AU752 -> 0.244212 | AR113: 0.244212 | AT113: 810 | AU113: 90.89 | AV113: =【参考】データ集計!AU1007 -> 1.114109 | AW113: 1.114109
A114: =【参考】データ集計!AW114 -> 熱電併給設備 | B114: =【参考】データ集計!AX114 -> 7,000～8,000 | C114: 7,000 ～8,000 | D114: =【参考】データ集計!AZ114 -> 0 | E114: =【参考】データ集計!BA114 -> 0 | F114: =【参考】データ集計!BB114 -> 0 | G114: =【参考】データ集計!BC114 -> 0 | H114: =【参考】データ集計!BD114 -> 0 | K114: 1313.5 | L114: 58.63 | M114: =【参考】データ集計!AU247 -> 1.103284 | N114: 1.103284 | P114: 1550 | Q114: 82.685 | R114: =【参考】データ集計!AU370 -> 1.989202 | S114: 1.989202 | U114: 1020.875 | V114: 46.023 | W114: =【参考】データ集計!AU1622 -> 0.619623 | X114: 0.619623 | Z114: 1330 | AA114: 140.945 | AB114: =【参考】データ集計!AU602 -> 2.542576 | AC114: 2.542576 | AO114: 751 | AP114: 50.96 | AQ114: =【参考】データ集計!AU754 -> 1.379105 | AR114: 1.379105 | AT114: 905 | AU114: 58.024 | AV114: =【参考】データ集計!AU1012 -> 0.93095 | AW114: 0.93095
A115: =【参考】データ集計!AW115 -> 熱電併給設備 | B115: =【参考】データ集計!AX115 -> 8,000～9,000 | C115: 8,000 ～9,000 | D115: =【参考】データ集計!AZ115 -> 0 | E115: =【参考】データ集計!BA115 -> 0 | F115: =【参考】データ集計!BB115 -> 0 | G115: =【参考】データ集計!BC115 -> 0 | H115: =【参考】データ集計!BD115 -> 0 | K115: 906.55 | L115: 27.96 | M115: =【参考】データ集計!AU253 -> 0.403556 | N115: 0.403556 | P115: 2501 | Q115: 110 | R115: =【参考】データ集計!AU374 -> 1.45488 | S115: 1.45488 | U115: 1345.5 | V115: 182.926 | W115: =【参考】データ集計!AU1642 -> 4.101105333 | X115: 4.101105333 | Z115: 1706.8 | AA115: 436.839 | AB115: =【参考】データ集計!AU611 -> 6.290624 | AC115: 6.290624 | AO115: 753 | AP115: 20.7 | AQ115: =【参考】データ集計!AU761 -> 0.29011 | AR115: 0.29011 | AT115: 750 | AU115: 40.195 | AV115: =【参考】データ集計!AU1015 -> 0.635211 | AW115: 0.635211
A116: =【参考】データ集計!AW116 -> 熱電併給設備 | B116: =【参考】データ集計!AX116 -> 9,000～10,000 | C116: 9,000 ～10,000 | D116: =【参考】データ集計!AZ116 -> 0 | E116: =【参考】データ集計!BA116 -> 0 | F116: =【参考】データ集計!BB116 -> 0 | G116: =【参考】データ集計!BC116 -> 0 | H116: =【参考】データ集計!BD116 -> 0 | K116: 1389.5 | L116: 13.26 | M116: =【参考】データ集計!AU258 -> 0.25114 | N116: 0.25114 | P116: 10500 | Q116: 445.064 | R116: =【参考】データ集計!AU378 -> 2.570721 | S116: 2.570721 | U116: 840.5 | V116: 43.582 | W116: =【参考】データ集計!AU1670 -> 0.490156 | X116: 0.490156 | Z116: 830 | AA116: 0.425 | AB116: =【参考】データ集計!AU615 -> 0.0114312 | AC116: 0.0114312 | AO116: 850 | AP116: 66.652 | AQ116: =【参考】データ集計!AU762 -> 0.726141 | AR116: 0.726141 | AT116: 800 | AU116: 35.37 | AV116: =【参考】データ集計!AU1028 -> 0.56723 | AW116: 0.56723
A117: =【参考】データ集計!AW117 -> 熱電併給設備 | B117: =【参考】データ集計!AX117 -> 10,000～11,000 | C117: 10,000 ～11,000 | D117: =【参考】データ集計!AZ117 -> 0 | E117: =【参考】データ集計!BA117 -> 0 | F117: =【参考】データ集計!BB117 -> 0 | G117: =【参考】データ集計!BC117 -> 0 | H117: =【参考】データ集計!BD117 -> 0 | K117: 1363.637 | L117: 238.386 | M117: =【参考】データ集計!AU269 -> 4.603223 | N117: 4.603223 | P117: 2610 | Q117: 300.924 | R117: =【参考】データ集計!AU381 -> 6.267632567 | S117: 6.267632567 | U117: 840 | V117: 42.021 | W117: =【参考】データ集計!AU1714 -> 0.358524 | X117: 0.358524 | Z117: 1183 | AA117: 112.218 | AB117: =【参考】データ集計!AU624 -> 2.859965 | AC117: 2.859965 | AO117: 2150 | AP117: 91.331 | AQ117: =【参考】データ集計!AU763 -> 2.116504 | AR117: 2.116504 | AT117: 3921 | AU117: 57.321 | AV117: =【参考】データ集計!AU1042 -> 0.643005 | AW117: 0.643005
A118: =【参考】データ集計!AW118 -> 熱電併給設備 | B118: =【参考】データ集計!AX118 -> 11,000～12,000 | C118: 11,000 ～12,000 | D118: =【参考】データ集計!AZ118 -> 0 | E118: =【参考】データ集計!BA118 -> 0 | F118: =【参考】データ集計!BB118 -> 0 | G118: =【参考】データ集計!BC118 -> 0 | H118: =【参考】データ集計!BD118 -> 0 | K118: 896 | L118: 107.987 | M118: =【参考】データ集計!AU272 -> 2.892873 | N118: 2.892873 | P118: 1050 | Q118: 174.288 | R118: =【参考】データ集計!AU384 -> 2.3887744 | S118: 2.3887744 | Z118: 3278.52 | AA118: 924.875 | AB118: =【参考】データ集計!AU625 -> 16.018835 | AC118: 16.018835 | AO118: 750 | AP118: 21.25 | AQ118: =【参考】データ集計!AU767 -> 0.54125 | AR118: 0.54125 | AT118: 850 | AU118: 15.247 | AV118: =【参考】データ集計!AU1046 -> 0.2639568 | AW118: 0.2639568
A119: =【参考】データ集計!AW119 -> 熱電併給設備 | B119: =【参考】データ集計!AX119 -> 12,000～13,000 | C119: 12,000 ～13,000 | D119: =【参考】データ集計!AZ119 -> 0 | E119: =【参考】データ集計!BA119 -> 0 | F119: =【参考】データ集計!BB119 -> 0 | G119: =【参考】データ集計!BC119 -> 0 | H119: =【参考】データ集計!BD119 -> 0 | K119: 2104 | L119: 1096.299 | M119: =【参考】データ集計!AU273 -> 32.37016557 | N119: 32.37016557 | P119: 830 | Q119: 38.147 | R119: =【参考】データ集計!AU385 -> 0.748224 | S119: 0.748224 | Z119: 756 | AA119: 27.048 | AB119: =【参考】データ集計!AU631 -> 0.418278 | AC119: 0.418278 | AO119: 1333 | AP119: 93.072 | AQ119: =【参考】データ集計!AU769 -> 2.518761 | AR119: 2.518761 | AT119: 1080 | AU119: 4.933 | AV119: =【参考】データ集計!AU1065 -> 0.12557 | AW119: 0.12557
A120: =【参考】データ集計!AW120 -> 熱電併給設備 | B120: =【参考】データ集計!AX120 -> 13,000～14,000 | C120: 13,000 ～14,000 | D120: =【参考】データ集計!AZ120 -> 0 | E120: =【参考】データ集計!BA120 -> 0 | F120: =【参考】データ集計!BB120 -> 0 | G120: =【参考】データ集計!BC120 -> 0 | H120: =【参考】データ集計!BD120 -> 0 | K120: 1450 | L120: 28.009 | M120: =【参考】データ集計!AU276 -> 0.441227 | N120: 0.441227 | P120: 970 | Q120: 54.3 | R120: =【参考】データ集計!AU395 -> 1.475231 | S120: 1.475231 | Z120: 2180 | AA120: 170.33 | AB120: =【参考】データ集計!AU645 -> 2.938771 | AC120: 2.938771 | AO120: 3000 | AP120: 37.328 | AQ120: =【参考】データ集計!AU780 -> 1.521129 | AR120: 1.521129 | AT120: 770 | AU120: 39.528 | AV120: =【参考】データ集計!AU1068 -> 0.633912 | AW120: 0.633912
A121: =【参考】データ集計!AW121 -> 熱電併給設備 | B121: =【参考】データ集計!AX121 -> 14,000～15,000 | C121: 14,000 ～15,000 | D121: =【参考】データ集計!AZ121 -> 0 | E121: =【参考】データ集計!BA121 -> 0 | F121: =【参考】データ集計!BB121 -> 0 | G121: =【参考】データ集計!BC121 -> 0 | H121: =【参考】データ集計!BD121 -> 0 | K121: 1530 | L121: 970.28 | M121: =【参考】データ集計!AU277 -> 20.341474 | N121: 20.341474 | P121: 9000 | Q121: 869.771 | R121: =【参考】データ集計!AU402 -> 9.120279 | S121: 9.120279 | Z121: 1476.2 | AA121: 72.667 | AB121: =【参考】データ集計!AU651 -> 1.011921 | AC121: 1.011921 | AO121: 2727.273 | AP121: 346.242 | AQ121: =【参考】データ集計!AU800 -> 6.886432 | AR121: 6.886432 | AT121: 750 | AU121: 18.53 | AV121: =【参考】データ集計!AU1101 -> 0.5629 | AW121: 0.5629
A122: =【参考】データ集計!AW122 -> 熱電併給設備 | B122: =【参考】データ集計!AX122 -> 15,000～16,000 | C122: 15,000 ～16,000 | D122: =【参考】データ集計!AZ122 -> 0 | E122: =【参考】データ集計!BA122 -> 0 | F122: =【参考】データ集計!BB122 -> 0 | G122: =【参考】データ集計!BC122 -> 0 | H122: =【参考】データ集計!BD122 -> 0 | K122: 1177 | L122: 79.815 | M122: =【参考】データ集計!AU279 -> 2.4554828 | N122: 2.4554828 | P122: 4545.1 | Q122: 99.945 | R122: =【参考】データ集計!AU404 -> 2.490183 | S122: 2.490183 | Z122: 1000 | AA122: 29.317 | AB122: =【参考】データ集計!AU653 -> 0.479764 | AC122: 0.479764 | AO122: 789 | AP122: 112.194 | AQ122: =【参考】データ集計!AU822 -> 1.560099 | AR122: 1.560099 | AT122: 750 | AU122: 13.182 | AV122: =【参考】データ集計!AU1117 -> 0.219531 | AW122: 0.219531
A123: =【参考】データ集計!AW123 -> 熱電併給設備 | B123: =【参考】データ集計!AX123 -> 16,000～17,000 | C123: 16,000 ～17,000 | D123: =【参考】データ集計!AZ123 -> 0 | E123: =【参考】データ集計!BA123 -> 0 | F123: =【参考】データ集計!BB123 -> 0 | G123: =【参考】データ集計!BC123 -> 0 | H123: =【参考】データ集計!BD123 -> 0 | K123: 6790 | L123: 839.639 | M123: =【参考】データ集計!AU280 -> 9.163146 | N123: 9.163146 | P123: 2663 | Q123: 124.584 | R123: =【参考】データ集計!AU407 -> 2.8578 | S123: 2.8578 | Z123: 3163.637 | AA123: 125.402 | AB123: =【参考】データ集計!AU654 -> 0.481929 | AC123: 0.481929 | AO123: 883 | AP123: 40.592 | AQ123: =【参考】データ集計!AU829 -> 1.098521 | AR123: 1.098521 | AT123: 1072.5 | AU123: 49.45 | AV123: =【参考】データ集計!AU1121 -> 0.567663 | AW123: 0.567663
A124: =【参考】データ集計!AW124 -> 熱電併給設備 | B124: =【参考】データ集計!AX124 -> 17,000～18,000 | C124: 17,000 ～18,000 | D124: =【参考】データ集計!AZ124 -> 0 | E124: =【参考】データ集計!BA124 -> 0 | F124: =【参考】データ集計!BB124 -> 0 | G124: =【参考】データ集計!BC124 -> 0 | H124: =【参考】データ集計!BD124 -> 0 | K124: 1411 | L124: 40.674 | M124: =【参考】データ集計!AU284 -> 0.601437 | N124: 0.601437 | P124: 810 | Q124: 53.64 | R124: =【参考】データ集計!AU411 -> 1.161306 | S124: 1.161306 | Z124: 2990 | AA124: 222.612 | AB124: =【参考】データ集計!AU655 -> 6.3998266 | AC124: 6.3998266 | AO124: 891.9 | AP124: 39.2 | AQ124: =【参考】データ集計!AU832 -> 0.62785 | AR124: 0.62785 | AT124: 1200 | AU124: 174.698 | AV124: =【参考】データ集計!AU1122 -> 2.801077 | AW124: 2.801077
A125: =【参考】データ集計!AW125 -> 熱電併給設備 | B125: =【参考】データ集計!AX125 -> 18,000～19,000 | C125: 18,000 ～19,000 | D125: =【参考】データ集計!AZ125 -> 0 | E125: =【参考】データ集計!BA125 -> 0 | F125: =【参考】データ集計!BB125 -> 0 | G125: =【参考】データ集計!BC125 -> 0 | H125: =【参考】データ集計!BD125 -> 0 | K125: 900 | L125: 76.46 | M125: =【参考】データ集計!AU287 -> 1.6400637 | N125: 1.6400637 | P125: 909.091 | Q125: 13.151 | R125: =【参考】データ集計!AU415 -> 0.178829 | S125: 0.178829 | Z125: 2101.49 | AA125: 121.176 | AB125: =【参考】データ集計!AU658 -> 2.088792 | AC125: 2.088792 | AO125: 810 | AP125: 58.428 | AQ125: =【参考】データ集計!AU859 -> 0.937012 | AR125: 0.937012 | AT125: 800 | AU125: 55.443 | AV125: =【参考】データ集計!AU1141 -> 0.54558 | AW125: 0.54558
A126: =【参考】データ集計!AW126 -> 熱電併給設備 | B126: =【参考】データ集計!AX126 -> 19,000～20,000 | C126: 19,000 ～20,000 | D126: =【参考】データ集計!AZ126 -> 0 | E126: =【参考】データ集計!BA126 -> 0 | F126: =【参考】データ集計!BB126 -> 0 | G126: =【参考】データ集計!BC126 -> 0 | H126: =【参考】データ集計!BD126 -> 0 | K126: 4800 | L126: 66.519 | M126: =【参考】データ集計!AU290 -> 0.633046 | N126: 0.633046 | P126: 880 | Q126: 13.4 | R126: =【参考】データ集計!AU419 -> 0.282749 | S126: 0.282749 | Z126: 7000 | AA126: 651.383 | AB126: =【参考】データ集計!AU688 -> 14.104109 | AC126: 14.104109 | AO126: 750 | AP126: 10.19 | AQ126: =【参考】データ集計!AU867 -> 0.1732 | AR126: 0.1732 | AT126: 825 | AU126: 61.44 | AV126: =【参考】データ集計!AU1166 -> 1.66272 | AW126: 1.66272
A127: =【参考】データ集計!AW127 -> 熱電併給設備 | B127: =【参考】データ集計!AX127 -> 20,000～ | C127: 20,000～ | D127: =【参考】データ集計!AZ127 -> 0 | E127: =【参考】データ集計!BA127 -> 0 | F127: =【参考】データ集計!BB127 -> 0 | G127: =【参考】データ集計!BC127 -> 0 | H127: =【参考】データ集計!BD127 -> 0 | K127: 830 | L127: 111.24 | M127: =【参考】データ集計!AU291 -> 3.091187 | N127: 3.091187 | P127: 755 | Q127: 3.29 | R127: =【参考】データ集計!AU422 -> 0.01732 | S127: 0.01732 | Z127: 1362.8 | AA127: 14.283 | AB127: =【参考】データ集計!AU689 -> 0.268893 | AC127: 0.268893 | AO127: 760 | AP127: 60.024 | AQ127: =【参考】データ集計!AU870 -> 0.962559 | AR127: 0.962559 | AT127: 750 | AU127: 85.5 | AV127: =【参考】データ集計!AU1170 -> 1.23405 | AW127: 1.23405
A128: =【参考】データ集計!AW128 -> 電気制御設備 | B128: =【参考】データ集計!AX128 -> 1～1,000 | C128: 1 ～1,000 | D128: =【参考】データ集計!AZ128 -> 1 | E128: =【参考】データ集計!BA128 -> 164332 | F128: =【参考】データ集計!BB128 -> 164.332 | G128: =【参考】データ集計!BC128 -> 1.945469 | H128: =【参考】データ集計!BD128 -> 1.945469 | K128: 1352.6 | L128: 36.668 | M128: =【参考】データ集計!AU292 -> 0.218665 | N128: 0.218665 | P128: 757 | Q128: 44.366 | R128: =【参考】データ集計!AU424 -> -2.00278521 | S128: -2.00278521 | Z128: 764.2 | AA128: 104.274 | AB128: =【参考】データ集計!AU695 -> 0.826597 | AC128: 0.826597 | AO128: 1268 | AP128: 40.365 | AQ128: =【参考】データ集計!AU877 -> 1.027509 | AR128: 1.027509 | AT128: 1440 | AU128: 122.1 | AV128: =【参考】データ集計!AU1175 -> 2.45511 | AW128: 2.45511
A129: =【参考】データ集計!AW129 -> 電気制御設備 | B129: =【参考】データ集計!AX129 -> 1,000～2,000 | C129: 1,000 ～2,000 | D129: =【参考】データ集計!AZ129 -> 39 | E129: =【参考】データ集計!BA129 -> 5163889 | F129: =【参考】データ集計!BB129 -> 132.4074103 | G129: =【参考】データ集計!BC129 -> 94.06040647 | H129: =【参考】データ集計!BD129 -> 2.411805294 | K129: 1200 | L129: 125.847 | M129: =【参考】データ集計!AU298 -> 2.717941 | N129: 2.717941 | P129: 8320 | Q129: 236.004 | R129: =【参考】データ集計!AU427 -> 4.054612 | S129: 4.054612 | Z129: 3500 | AA129: 372.539 | AB129: =【参考】データ集計!AU706 -> 6.784677 | AC129: 6.784677 | AO129: 750 | AP129: 29.16 | AQ129: =【参考】データ集計!AU878 -> 0.46764 | AR129: 0.46764 | AT129: 863 | AU129: 46.578 | AV129: =【参考】データ集計!AU1185 -> 0.59754 | AW129: 0.59754
A130: =【参考】データ集計!AW130 -> 電気制御設備 | B130: =【参考】データ集計!AX130 -> 2,000～3,000 | C130: 2,000 ～3,000 | D130: =【参考】データ集計!AZ130 -> 25 | E130: =【参考】データ集計!BA130 -> 11495423 | F130: =【参考】データ集計!BB130 -> 459.81692 | G130: =【参考】データ集計!BC130 -> 220.761153 | H130: =【参考】データ集計!BD130 -> 8.83044612 | K130: 7500 | L130: 1612 | M130: =【参考】データ集計!AU299 -> 31.547947 | N130: 31.547947 | P130: 750 | Q130: 687.6 | R130: =【参考】データ集計!AU429 -> 4.172388 | S130: 4.172388 | Z130: 1130 | AA130: 30.905 | AB130: =【参考】データ集計!AU717 -> 0.917094 | AC130: 0.917094 | AO130: 1017 | AP130: 36.192 | AQ130: =【参考】データ集計!AU879 -> 0.979446 | AR130: 0.979446 | AT130: 1955 | AU130: 244.773 | AV130: =【参考】データ集計!AU1188 -> 3.241005 | AW130: 3.241005
A131: =【参考】データ集計!AW131 -> 電気制御設備 | B131: =【参考】データ集計!AX131 -> 3,000～4,000 | C131: 3,000 ～4,000 | D131: =【参考】データ集計!AZ131 -> 12 | E131: =【参考】データ集計!BA131 -> 12066889 | F131: =【参考】データ集計!BB131 -> 1005.574083 | G131: =【参考】データ集計!BC131 -> 267.3144798 | H131: =【参考】データ集計!BD131 -> 22.27620665 | K131: 9128 | L131: 1031.867 | M131: =【参考】データ集計!AU301 -> 26.176582 | N131: 26.176582 | P131: 960 | Q131: 63.975 | R131: =【参考】データ集計!AU431 -> 17.313505 | S131: 17.313505 | Z131: 2322.45 | AA131: 480.756 | AB131: =【参考】データ集計!AU721 -> 8.0063865 | AC131: 8.0063865 | AO131: 875 | AP131: 11.2 | AQ131: =【参考】データ集計!AU893 -> 0.1732 | AR131: 0.1732 | AT131: 750 | AU131: 9.2 | AV131: =【参考】データ集計!AU1189 -> 0.24681 | AW131: 0.24681
A132: =【参考】データ集計!AW132 -> 電気制御設備 | B132: =【参考】データ集計!AX132 -> 4,000～5,000 | C132: 4,000 ～5,000 | D132: =【参考】データ集計!AZ132 -> 7 | E132: =【参考】データ集計!BA132 -> 1843208 | F132: =【参考】データ集計!BB132 -> 263.3154286 | G132: =【参考】データ集計!BC132 -> 30.92486 | H132: =【参考】データ集計!BD132 -> 4.417837143 | K132: 827.273 | L132: 65.343 | M132: =【参考】データ集計!AU305 -> 0.127735 | N132: 0.127735 | P132: 950 | Q132: 25.589 | R132: =【参考】データ集計!AU435 -> 0.756884 | S132: 0.756884 | Z132: 1920 | AA132: 227.641 | AB132: =【参考】データ集計!AU724 -> 6.571641 | AC132: 6.571641 | AO132: 996 | AP132: 29.292 | AQ132: =【参考】データ集計!AU917 -> 0.728306 | AR132: 0.728306 | AT132: 900 | AU132: 73.576 | AV132: =【参考】データ集計!AU1193 -> 0.937012 | AW132: 0.937012
A133: =【参考】データ集計!AW133 -> 電気制御設備 | B133: =【参考】データ集計!AX133 -> 5,000～6,000 | C133: 5,000 ～6,000 | D133: =【参考】データ集計!AZ133 -> 6 | E133: =【参考】データ集計!BA133 -> 2855026 | F133: =【参考】データ集計!BB133 -> 475.8376667 | G133: =【参考】データ集計!BC133 -> 53.506676 | H133: =【参考】データ集計!BD133 -> 8.917779333 | K133: 6790 | L133: 234.977 | M133: =【参考】データ集計!AU314 -> 1.828992 | N133: 1.828992 | P133: 4350 | Q133: 23.455 | R133: =【参考】データ集計!AU436 -> 0.419577 | S133: 0.419577 | Z133: 1096 | AA133: 55.158 | AB133: =【参考】データ集計!AU731 -> 0.823566 | AC133: 0.823566 | AO133: 750 | AP133: 44.96 | AQ133: =【参考】データ集計!AU918 -> 1.21673 | AR133: 1.21673 | AT133: 1527 | AU133: 85.976 | AV133: =【参考】データ集計!AU1194 -> 0.995467 | AW133: 0.995467
A134: =【参考】データ集計!AW134 -> 電気制御設備 | B134: =【参考】データ集計!AX134 -> 6,000～7,000 | C134: 6,000 ～7,000 | D134: =【参考】データ集計!AZ134 -> 0 | E134: =【参考】データ集計!BA134 -> 0 | F134: =【参考】データ集計!BB134 -> 0 | G134: =【参考】データ集計!BC134 -> 0 | H134: =【参考】データ集計!BD134 -> 0 | K134: 1946 | L134: 287.419 | M134: =【参考】データ集計!AU315 -> 7.320731 | N134: 7.320731 | P134: 2730 | Q134: 62.032 | R134: =【参考】データ集計!AU443 -> 1.158275 | S134: 1.158275 | Z134: 2406 | AA134: 1191.894 | AB134: =【参考】データ集計!AU732 -> 31.227527 | AC134: 31.227527 | AO134: 750 | AP134: 18.058 | AQ134: =【参考】データ集計!AU926 -> 0.210005 | AR134: 0.210005 | AT134: 1170 | AU134: 131.373 | AV134: =【参考】データ集計!AU1232 -> 1.44189 | AW134: 1.44189
A135: =【参考】データ集計!AW135 -> 電気制御設備 | B135: =【参考】データ集計!AX135 -> 7,000～8,000 | C135: 7,000 ～8,000 | D135: =【参考】データ集計!AZ135 -> 2 | E135: =【参考】データ集計!BA135 -> 1578993 | F135: =【参考】データ集計!BB135 -> 789.4965 | G135: =【参考】データ集計!BC135 -> 21.727507 | H135: =【参考】データ集計!BD135 -> 10.8637535 | K135: 1160 | L135: 118.092 | M135: =【参考】データ集計!AU317 -> 1.057819 | N135: 1.057819 | P135: 1880 | Q135: 115.67 | R135: =【参考】データ集計!AU445 -> 1.850209 | S135: 1.850209 | Z135: 1001.85 | AA135: 265.224 | AB135: =【参考】データ集計!AU733 -> 3.575714 | AC135: 3.575714 | AO135: 803 | AP135: 55.432 | AQ135: =【参考】データ集計!AU927 -> 0.923156 | AR135: 0.923156 | AT135: 1056 | AU135: 68.82 | AV135: =【参考】データ集計!AU1234 -> 0.96126 | AW135: 0.96126
A136: =【参考】データ集計!AW136 -> 電気制御設備 | B136: =【参考】データ集計!AX136 -> 8,000～9,000 | C136: 8,000 ～9,000 | D136: =【参考】データ集計!AZ136 -> 0 | E136: =【参考】データ集計!BA136 -> 0 | F136: =【参考】データ集計!BB136 -> 0 | G136: =【参考】データ集計!BC136 -> 0 | H136: =【参考】データ集計!BD136 -> 0 | K136: 5933.4 | L136: 1945.059 | M136: =【参考】データ集計!AU325 -> 45.8773688 | N136: 45.8773688 | P136: 1750 | Q136: 393.691 | R136: =【参考】データ集計!AU454 -> 7.656739 | S136: 7.656739 | Z136: 12570 | AA136: 1329.81 | AB136: =【参考】データ集計!AU741 -> 7.677523 | AC136: 7.677523 | AO136: 762 | AP136: 18.9 | AQ136: =【参考】データ集計!AU929 -> 0.51094 | AR136: 0.51094 | AT136: 858 | AU136: 71.051 | AV136: =【参考】データ集計!AU1245 -> 1.748021 | AW136: 1.748021
A137: =【参考】データ集計!AW137 -> 電気制御設備 | B137: =【参考】データ集計!AX137 -> 9,000～10,000 | C137: 9,000 ～10,000 | D137: =【参考】データ集計!AZ137 -> 2 | E137: =【参考】データ集計!BA137 -> 1473109 | F137: =【参考】データ集計!BB137 -> 736.5545 | G137: =【参考】データ集計!BC137 -> 40.854849 | H137: =【参考】データ集計!BD137 -> 20.4274245 | K137: 3500 | L137: 1692.312 | M137: =【参考】データ集計!AU328 -> 36.52254088 | N137: 36.52254088 | P137: 1809.09 | Q137: 102.024 | R137: =【参考】データ集計!AU455 -> 1.577419 | S137: 1.577419 | Z137: 1940.94 | AA137: 241.691 | AB137: =【参考】データ集計!AU744 -> 5.2326318 | AC137: 5.2326318 | AO137: 3100 | AP137: 197 | AQ137: =【参考】データ集計!AU932 -> 5.739848 | AR137: 5.739848 | AT137: 1662 | AU137: 56.045 | AV137: =【参考】データ集計!AU1263 -> 0.707089 | AW137: 0.707089
A138: =【参考】データ集計!AW138 -> 電気制御設備 | B138: =【参考】データ集計!AX138 -> 10,000～11,000 | C138: 10,000 ～11,000 | D138: =【参考】データ集計!AZ138 -> 2 | E138: =【参考】データ集計!BA138 -> 1206006 | F138: =【参考】データ集計!BB138 -> 603.003 | G138: =【参考】データ集計!BC138 -> 23.51623 | H138: =【参考】データ集計!BD138 -> 11.758115 | K138: 2232.5 | L138: 148.804 | M138: =【参考】データ集計!AU334 -> 3.865824 | N138: 3.865824 | P138: 4180 | Q138: 192.223 | R138: =【参考】データ集計!AU457 -> 7.415164046 | S138: 7.415164046 | Z138: 4350 | AA138: 351.75 | AB138: =【参考】データ集計!AU746 -> 6.09231 | AC138: 6.09231 | AO138: 750 | AP138: 12.833 | AQ138: =【参考】データ集計!AU936 -> 0.206108 | AR138: 0.206108 | AT138: 810 | AU138: 158.822 | AV138: =【参考】データ集計!AU1278 -> 1.803878 | AW138: 1.803878
A139: =【参考】データ集計!AW139 -> 電気制御設備 | B139: =【参考】データ集計!AX139 -> 11,000～12,000 | C139: 11,000 ～12,000 | D139: =【参考】データ集計!AZ139 -> 1 | E139: =【参考】データ集計!BA139 -> 1078352 | F139: =【参考】データ集計!BB139 -> 1078.352 | G139: =【参考】データ集計!BC139 -> 20.499519 | H139: =【参考】データ集計!BD139 -> 20.499519 | K139: 1662.12 | L139: 101.948 | M139: =【参考】データ集計!AU335 -> 6.865294083 | N139: 6.865294083 | P139: 1820 | Q139: 34.855 | R139: =【参考】データ集計!AU458 -> 0.901939 | S139: 0.901939 | Z139: 1250.5 | AA139: 44.405 | AB139: =【参考】データ集計!AU748 -> 0.629582 | AC139: 0.629582 | AO139: 758.2 | AP139: 28.6 | AQ139: =【参考】データ集計!AU942 -> 0.45898 | AR139: 0.45898 | AT139: 987.2 | AU139: 59.994 | AV139: =【参考】データ集計!AU1290 -> 1.443189 | AW139: 1.443189
A140: =【参考】データ集計!AW140 -> 電気制御設備 | B140: =【参考】データ集計!AX140 -> 12,000～13,000 | C140: 12,000 ～13,000 | D140: =【参考】データ集計!AZ140 -> 0 | E140: =【参考】データ集計!BA140 -> 0 | F140: =【参考】データ集計!BB140 -> 0 | G140: =【参考】データ集計!BC140 -> 0 | H140: =【参考】データ集計!BD140 -> 0 | K140: 1960 | L140: 131.155 | M140: =【参考】データ集計!AU336 -> 2.362015 | N140: 2.362015 | P140: 884.5 | Q140: 222.915 | R140: =【参考】データ集計!AU459 -> 5.108492967 | S140: 5.108492967 | Z140: 1500 | AA140: 268.783 | AB140: =【参考】データ集計!AU749 -> 4.526582 | AC140: 4.526582 | AO140: 750 | AP140: 43.71 | AQ140: =【参考】データ集計!AU943 -> 0.61053 | AR140: 0.61053 | AT140: 2904 | AU140: 123.44 | AV140: =【参考】データ集計!AU1315 -> 3.05265 | AW140: 3.05265
A141: =【参考】データ集計!AW141 -> 電気制御設備 | B141: =【参考】データ集計!AX141 -> 13,000～14,000 | C141: 13,000 ～14,000 | D141: =【参考】データ集計!AZ141 -> 0 | E141: =【参考】データ集計!BA141 -> 0 | F141: =【参考】データ集計!BB141 -> 0 | G141: =【参考】データ集計!BC141 -> 0 | H141: =【参考】データ集計!BD141 -> 0 | K141: 1974.554 | L141: 118.89 | M141: =【参考】データ集計!AU339 -> 1.784393 | N141: 1.784393 | P141: 1330 | Q141: 320.537 | R141: =【参考】データ集計!AU460 -> 1.373043 | S141: 1.373043 | Z141: 1104.2 | AA141: 150.212 | AB141: =【参考】データ集計!AU751 -> 2.168031 | AC141: 2.168031 | AO141: 4900 | AP141: 804.3 | AQ141: =【参考】データ集計!AU953 -> 12.001894 | AR141: 12.001894 | AT141: 984 | AU141: 166.158 | AV141: =【参考】データ集計!AU1332 -> 1.526758 | AW141: 1.526758
A142: =【参考】データ集計!AW142 -> 電気制御設備 | B142: =【参考】データ集計!AX142 -> 14,000～15,000 | C142: 14,000 ～15,000 | D142: =【参考】データ集計!AZ142 -> 0 | E142: =【参考】データ集計!BA142 -> 0 | F142: =【参考】データ集計!BB142 -> 0 | G142: =【参考】データ集計!BC142 -> 0 | H142: =【参考】データ集計!BD142 -> 0 | K142: 1295.8 | L142: 119.232 | M142: =【参考】データ集計!AU340 -> 2.244672 | N142: 2.244672 | P142: 1318.181 | Q142: 52.462 | R142: =【参考】データ集計!AU461 -> 0.695398 | S142: 0.695398 | Z142: 2000 | AA142: 297.402 | AB142: =【参考】データ集計!AU757 -> 4.778155 | AC142: 4.778155 | AO142: 751.8 | AP142: 32.4 | AQ142: =【参考】データ集計!AU960 -> 0.5196 | AR142: 0.5196 | AT142: 777.5 | AU142: 30.218 | AV142: =【参考】データ集計!AU1333 -> 0.348998 | AW142: 0.348998
A143: =【参考】データ集計!AW143 -> 電気制御設備 | B143: =【参考】データ集計!AX143 -> 15,000～16,000 | C143: 15,000 ～16,000 | D143: =【参考】データ集計!AZ143 -> 0 | E143: =【参考】データ集計!BA143 -> 0 | F143: =【参考】データ集計!BB143 -> 0 | G143: =【参考】データ集計!BC143 -> 0 | H143: =【参考】データ集計!BD143 -> 0 | K143: 1600 | L143: 93.5 | M143: =【参考】データ集計!AU342 -> 2.539978 | N143: 2.539978 | P143: 1000 | Q143: 246.888 | R143: =【参考】データ集計!AU465 -> 5.626835 | S143: 5.626835 | Z143: 3004.5 | AA143: 465.784 | AB143: =【参考】データ集計!AU758 -> 6.9184307 | AC143: 6.9184307 | AO143: 907 | AP143: 18.228 | AQ143: =【参考】データ集計!AU961 -> 0.423474 | AR143: 0.423474 | AT143: 3463 | AU143: 327.572 | AV143: =【参考】データ集計!AU1354 -> 4.075829 | AW143: 4.075829
A144: =【参考】データ集計!AW144 -> 電気制御設備 | B144: =【参考】データ集計!AX144 -> 16,000～17,000 | C144: 16,000 ～17,000 | D144: =【参考】データ集計!AZ144 -> 0 | E144: =【参考】データ集計!BA144 -> 0 | F144: =【参考】データ集計!BB144 -> 0 | G144: =【参考】データ集計!BC144 -> 0 | H144: =【参考】データ集計!BD144 -> 0 | K144: 800 | L144: 37.408 | M144: =【参考】データ集計!AU344 -> 0.5504296 | N144: 0.5504296 | P144: 930 | Q144: 13.335 | R144: =【参考】データ集計!AU466 -> 0.192685 | S144: 0.192685 | Z144: 963 | AA144: 64.002 | AB144: =【参考】データ集計!AU777 -> 0.665954 | AC144: 0.665954 | AO144: 800 | AP144: 33.2 | AQ144: =【参考】データ集計!AU964 -> 0.530858 | AR144: 0.530858 | AT144: 1242 | AU144: 47.809 | AV144: =【参考】データ集計!AU1370 -> 0.360256 | AW144: 0.360256
A145: =【参考】データ集計!AW145 -> 電気制御設備 | B145: =【参考】データ集計!AX145 -> 17,000～18,000 | C145: 17,000 ～18,000 | D145: =【参考】データ集計!AZ145 -> 0 | E145: =【参考】データ集計!BA145 -> 0 | F145: =【参考】データ集計!BB145 -> 0 | G145: =【参考】データ集計!BC145 -> 0 | H145: =【参考】データ集計!BD145 -> 0 | K145: 1285 | L145: 82.035 | M145: =【参考】データ集計!AU346 -> 1.366115 | N145: 1.366115 | P145: 1250 | Q145: 132.261 | R145: =【参考】データ集計!AU468 -> 1.453581 | S145: 1.453581 | Z145: 1098 | AA145: 153.713 | AB145: =【参考】データ集計!AU781 -> 1.803012 | AC145: 1.803012 | AO145: 1500 | AP145: 48.6 | AQ145: =【参考】データ集計!AU969 -> 1.10848 | AR145: 1.10848 | AT145: 753 | AU145: 3.52 | AV145: =【参考】データ集計!AU1390 -> 0.09526 | AW145: 0.09526
A146: =【参考】データ集計!AW146 -> 電気制御設備 | B146: =【参考】データ集計!AX146 -> 18,000～19,000 | C146: 18,000 ～19,000 | D146: =【参考】データ集計!AZ146 -> 0 | E146: =【参考】データ集計!BA146 -> 0 | F146: =【参考】データ集計!BB146 -> 0 | G146: =【参考】データ集計!BC146 -> 0 | H146: =【参考】データ集計!BD146 -> 0 | K146: 2030 | L146: 311.028 | M146: =【参考】データ集計!AU347 -> 1.311124 | N146: 1.311124 | P146: 1647.6 | Q146: 54.206 | R146: =【参考】データ集計!AU474 -> 0.59321 | S146: 0.59321 | Z146: 1240 | AA146: 346.042 | AB146: =【参考】データ集計!AU786 -> 3.756708 | AC146: 3.756708 | AO146: 1140 | AP146: 23.2 | AQ146: =【参考】データ集計!AU996 -> 0.62785 | AR146: 0.62785 | AT146: 780 | AU146: 26.1 | AV146: =【参考】データ集計!AU1391 -> 0.53692 | AW146: 0.53692
A147: =【参考】データ集計!AW147 -> 電気制御設備 | B147: =【参考】データ集計!AX147 -> 19,000～20,000 | C147: 19,000 ～20,000 | D147: =【参考】データ集計!AZ147 -> 0 | E147: =【参考】データ集計!BA147 -> 0 | F147: =【参考】データ集計!BB147 -> 0 | G147: =【参考】データ集計!BC147 -> 0 | H147: =【参考】データ集計!BD147 -> 0 | K147: 1063 | L147: 157.488 | M147: =【参考】データ集計!AU349 -> 2.407047 | N147: 2.407047 | P147: 1223.09 | Q147: 68.368 | R147: =【参考】データ集計!AU480 -> 1.047427 | S147: 1.047427 | Z147: 18867.98 | AA147: 1997.125 | AB147: =【参考】データ集計!AU789 -> 34.590205 | AC147: 34.590205 | AO147: 1644 | AP147: 20.258 | AQ147: =【参考】データ集計!AU1002 -> 0.276254 | AR147: 0.276254 | AT147: 1160 | AU147: 56.7 | AV147: =【参考】データ集計!AU1395 -> 0.9093 | AW147: 0.9093
A148: =【参考】データ集計!AW148 -> 電気制御設備 | B148: =【参考】データ集計!AX148 -> 20,000～ | C148: 20,000～ | D148: =【参考】データ集計!AZ148 -> 0 | E148: =【参考】データ集計!BA148 -> 0 | F148: =【参考】データ集計!BB148 -> 0 | G148: =【参考】データ集計!BC148 -> 0 | H148: =【参考】データ集計!BD148 -> 0 | K148: 1050 | L148: 252.281 | M148: =【参考】データ集計!AU354 -> 5.3556665 | N148: 5.3556665 | P148: 1150 | Q148: 690.87 | R148: =【参考】データ集計!AU481 -> 0.06495 | S148: 0.06495 | Z148: 1658.8 | AA148: 287.721 | AB148: =【参考】データ集計!AU798 -> 3.517259 | AC148: 3.517259 | AO148: 2828 | AP148: 63.427 | AQ148: =【参考】データ集計!AU1004 -> 0.893712 | AR148: 0.893712 | AT148: 4480 | AU148: 104.773 | AV148: =【参考】データ集計!AU1398 -> 2.402284 | AW148: 2.402284
A149: =【参考】データ集計!AW149 -> 加熱設備 | B149: =【参考】データ集計!AX149 -> 1～1,000 | C149: 1 ～1,000 | D149: =【参考】データ集計!AZ149 -> 0 | E149: =【参考】データ集計!BA149 -> 0 | F149: =【参考】データ集計!BB149 -> 0 | G149: =【参考】データ集計!BC149 -> 0 | H149: =【参考】データ集計!BD149 -> 0 | K149: 4592.6 | L149: 273.147 | M149: =【参考】データ集計!AU356 -> 3.345791 | N149: 3.345791 | P149: 810.15 | Q149: 150.419 | R149: =【参考】データ集計!AU482 -> 2.938725667 | S149: 2.938725667 | Z149: 1500 | AA149: 204.75 | AB149: =【参考】データ集計!AU803 -> 2.53305 | AC149: 2.53305 | AO149: 810 | AP149: 90.89 | AQ149: =【参考】データ集計!AU1007 -> 1.114109 | AR149: 1.114109 | AT149: 750 | AU149: 38.88 | AV149: =【参考】データ集計!AU1399 -> 1.05219 | AW149: 1.05219
A150: =【参考】データ集計!AW150 -> 加熱設備 | B150: =【参考】データ集計!AX150 -> 1,000～2,000 | C150: 1,000 ～2,000 | D150: =【参考】データ集計!AZ150 -> 0 | E150: =【参考】データ集計!BA150 -> 0 | F150: =【参考】データ集計!BB150 -> 0 | G150: =【参考】データ集計!BC150 -> 0 | H150: =【参考】データ集計!BD150 -> 0 | K150: 1600 | L150: 50 | M150: =【参考】データ集計!AU357 -> 0.6495 | N150: 0.6495 | P150: 3750 | Q150: 287.578 | R150: =【参考】データ集計!AU483 -> 4.397981 | S150: 4.397981 | Z150: 978 | AA150: 155.716 | AB150: =【参考】データ集計!AU806 -> 2.497544 | AC150: 2.497544 | AO150: 905 | AP150: 58.024 | AQ150: =【参考】データ集計!AU1012 -> 0.93095 | AR150: 0.93095 | AT150: 880 | AU150: 59.751 | AV150: =【参考】データ集計!AU1411 -> 0.958229 | AW150: 0.958229
A151: =【参考】データ集計!AW151 -> 加熱設備 | B151: =【参考】データ集計!AX151 -> 2,000～3,000 | C151: 2,000 ～3,000 | D151: =【参考】データ集計!AZ151 -> 1 | E151: =【参考】データ集計!BA151 -> 131196 | F151: =【参考】データ集計!BB151 -> 131.196 | G151: =【参考】データ集計!BC151 -> 1.641936 | H151: =【参考】データ集計!BD151 -> 1.641936 | K151: 750 | L151: 158.982 | M151: =【参考】データ集計!AU362 -> 3.289208333 | N151: 3.289208333 | P151: 750 | Q151: 19.422 | R151: =【参考】データ集計!AU487 -> 0.518734 | S151: 0.518734 | Z151: 1498.5 | AA151: 200.214 | AB151: =【参考】データ集計!AU807 -> 2.624413 | AC151: 2.624413 | AO151: 750 | AP151: 40.195 | AQ151: =【参考】データ集計!AU1015 -> 0.635211 | AR151: 0.635211 | AT151: 1300 | AU151: 170.676 | AV151: =【参考】データ集計!AU1422 -> 3.074733 | AW151: 3.074733
A152: =【参考】データ集計!AW152 -> 加熱設備 | B152: =【参考】データ集計!AX152 -> 3,000～4,000 | C152: 3,000 ～4,000 | D152: =【参考】データ集計!AZ152 -> 0 | E152: =【参考】データ集計!BA152 -> 0 | F152: =【参考】データ集計!BB152 -> 0 | G152: =【参考】データ集計!BC152 -> 0 | H152: =【参考】データ集計!BD152 -> 0 | K152: 1500 | L152: 25.75 | M152: =【参考】データ集計!AU366 -> 0.44599 | N152: 0.44599 | P152: 3211.4 | Q152: 74.071 | R152: =【参考】データ集計!AU492 -> 0.98291 | S152: 0.98291 | Z152: 3160 | AA152: 364.087 | AB152: =【参考】データ集計!AU808 -> 5.04012 | AC152: 5.04012 | AO152: 4700 | AP152: 120.709 | AQ152: =【参考】データ集計!AU1020 -> 1.8186 | AR152: 1.8186 | AT152: 800 | AU152: 40.392 | AV152: =【参考】データ集計!AU1438 -> 0.647768 | AW152: 0.647768
A153: =【参考】データ集計!AW153 -> 加熱設備 | B153: =【参考】データ集計!AX153 -> 4,000～5,000 | C153: 4,000 ～5,000 | D153: =【参考】データ集計!AZ153 -> 0 | E153: =【参考】データ集計!BA153 -> 0 | F153: =【参考】データ集計!BB153 -> 0 | G153: =【参考】データ集計!BC153 -> 0 | H153: =【参考】データ集計!BD153 -> 0 | K153: 1360 | L153: 83.97 | M153: =【参考】データ集計!AU367 -> 1.728103 | N153: 1.728103 | P153: 760 | Q153: 9.39 | R153: =【参考】データ集計!AU495 -> 0.135529 | S153: 0.135529 | Z153: 1311 | AA153: 57.145 | AB153: =【参考】データ集計!AU814 -> 0.9164445 | AC153: 0.9164445 | AO153: 800 | AP153: 35.37 | AQ153: =【参考】データ集計!AU1028 -> 0.56723 | AR153: 0.56723 | AT153: 1916.06 | AU153: 50.655 | AV153: =【参考】データ集計!AU1442 -> 0.635644 | AW153: 0.635644
A154: =【参考】データ集計!AW154 -> 加熱設備 | B154: =【参考】データ集計!AX154 -> 5,000～6,000 | C154: 5,000 ～6,000 | D154: =【参考】データ集計!AZ154 -> 0 | E154: =【参考】データ集計!BA154 -> 0 | F154: =【参考】データ集計!BB154 -> 0 | G154: =【参考】データ集計!BC154 -> 0 | H154: =【参考】データ集計!BD154 -> 0 | K154: 1550 | L154: 82.685 | M154: =【参考】データ集計!AU370 -> 1.989202 | N154: 1.989202 | P154: 1096 | Q154: 90.142 | R154: =【参考】データ集計!AU503 -> 1.530655 | S154: 1.530655 | Z154: 10330 | AA154: 974.681 | AB154: =【参考】データ集計!AU816 -> 26.377494 | AC154: 26.377494 | AO154: 3921 | AP154: 57.321 | AQ154: =【参考】データ集計!AU1042 -> 0.643005 | AR154: 0.643005 | AT154: 885 | AU154: 83.724 | AV154: =【参考】データ集計!AU1465 -> 2.121267 | AW154: 2.121267
A155: =【参考】データ集計!AW155 -> 加熱設備 | B155: =【参考】データ集計!AX155 -> 6,000～7,000 | C155: 6,000 ～7,000 | D155: =【参考】データ集計!AZ155 -> 0 | E155: =【参考】データ集計!BA155 -> 0 | F155: =【参考】データ集計!BB155 -> 0 | G155: =【参考】データ集計!BC155 -> 0 | H155: =【参考】データ集計!BD155 -> 0 | K155: 9000 | L155: 93.286 | M155: =【参考】データ集計!AU373 -> 2.020378 | N155: 2.020378 | P155: 1075.6 | Q155: 71.988 | R155: =【参考】データ集計!AU505 -> 0.9072933974 | S155: 0.9072933974 | Z155: 880 | AA155: 194.93 | AB155: =【参考】データ集計!AU819 -> 2.685899 | AC155: 2.685899 | AO155: 850 | AP155: 15.247 | AQ155: =【参考】データ集計!AU1046 -> 0.2639568 | AR155: 0.2639568 | AT155: 1363.6 | AU155: 117.836 | AV155: =【参考】データ集計!AU1492 -> 2.365912 | AW155: 2.365912
A156: =【参考】データ集計!AW156 -> 加熱設備 | B156: =【参考】データ集計!AX156 -> 7,000～8,000 | C156: 7,000 ～8,000 | D156: =【参考】データ集計!AZ156 -> 0 | E156: =【参考】データ集計!BA156 -> 0 | F156: =【参考】データ集計!BB156 -> 0 | G156: =【参考】データ集計!BC156 -> 0 | H156: =【参考】データ集計!BD156 -> 0 | K156: 2501 | L156: 110 | M156: =【参考】データ集計!AU374 -> 1.45488 | N156: 1.45488 | P156: 22500 | Q156: 1841.972 | R156: =【参考】データ集計!AU506 -> 50.680052 | S156: 50.680052 | Z156: 2650 | AA156: 550.571 | AB156: =【参考】データ集計!AU821 -> 13.974209 | AC156: 13.974209 | AO156: 972 | AP156: 218.208 | AQ156: =【参考】データ集計!AU1049 -> 3.633736 | AR156: 3.633736 | AT156: 752 | AU156: 37.142 | AV156: =【参考】データ集計!AU1518 -> 0.52393 | AW156: 0.52393
A157: =【参考】データ集計!AW157 -> 加熱設備 | B157: =【参考】データ集計!AX157 -> 8,000～9,000 | C157: 8,000 ～9,000 | D157: =【参考】データ集計!AZ157 -> 0 | E157: =【参考】データ集計!BA157 -> 0 | F157: =【参考】データ集計!BB157 -> 0 | G157: =【参考】データ集計!BC157 -> 0 | H157: =【参考】データ集計!BD157 -> 0 | K157: 10500 | L157: 445.064 | M157: =【参考】データ集計!AU378 -> 2.570721 | N157: 2.570721 | P157: 909 | Q157: 47.069 | R157: =【参考】データ集計!AU507 -> 0.445124 | S157: 0.445124 | Z157: 10416.268 | AA157: 778.57 | AB157: =【参考】データ集計!AU825 -> 18.728982 | AC157: 18.728982 | AO157: 850 | AP157: 52.887 | AQ157: =【参考】データ集計!AU1058 -> 0.898042 | AR157: 0.898042 | AT157: 1037 | AU157: 164.969 | AV157: =【参考】データ集計!AU1531 -> 2.530885 | AW157: 2.530885
A158: =【参考】データ集計!AW158 -> 加熱設備 | B158: =【参考】データ集計!AX158 -> 9,000～10,000 | C158: 9,000 ～10,000 | D158: =【参考】データ集計!AZ158 -> 0 | E158: =【参考】データ集計!BA158 -> 0 | F158: =【参考】データ集計!BB158 -> 0 | G158: =【参考】データ集計!BC158 -> 0 | H158: =【参考】データ集計!BD158 -> 0 | K158: 2610 | L158: 300.924 | M158: =【参考】データ集計!AU381 -> 6.267632567 | N158: 6.267632567 | P158: 5660 | Q158: 606.695 | R158: =【参考】データ集計!AU513 -> 9.49569 | S158: 9.49569 | Z158: 1397.8 | AA158: 123.038 | AB158: =【参考】データ集計!AU830 -> 1.675277 | AC158: 1.675277 | AO158: 1080 | AP158: 4.933 | AQ158: =【参考】データ集計!AU1065 -> 0.12557 | AR158: 0.12557 | AT158: 780 | AU158: 64.113 | AV158: =【参考】データ集計!AU1532 -> 0.880289 | AW158: 0.880289
A159: =【参考】データ集計!AW159 -> 加熱設備 | B159: =【参考】データ集計!AX159 -> 10,000～11,000 | C159: 10,000 ～11,000 | D159: =【参考】データ集計!AZ159 -> 2 | E159: =【参考】データ集計!BA159 -> 2209337 | F159: =【参考】データ集計!BB159 -> 1104.6685 | G159: =【参考】データ集計!BC159 -> 40.58058259 | H159: =【参考】データ集計!BD159 -> 20.2902913 | K159: 950.4 | L159: 264.235 | M159: =【参考】データ集計!AU382 -> 3.883144 | N159: 3.883144 | P159: 3180 | Q159: 143.947 | R159: =【参考】データ集計!AU514 -> 2.308323 | S159: 2.308323 | Z159: 750 | AA159: 120.514 | AB159: =【参考】データ集計!AU833 -> 1.290773 | AC159: 1.290773 | AO159: 770 | AP159: 39.528 | AQ159: =【参考】データ集計!AU1068 -> 0.633912 | AR159: 0.633912 | AT159: 778 | AU159: 44.835 | AV159: =【参考】データ集計!AU1534 -> 0.63218 | AW159: 0.63218
A160: =【参考】データ集計!AW160 -> 加熱設備 | B160: =【参考】データ集計!AX160 -> 11,000～12,000 | C160: 11,000 ～12,000 | D160: =【参考】データ集計!AZ160 -> 0 | E160: =【参考】データ集計!BA160 -> 0 | F160: =【参考】データ集計!BB160 -> 0 | G160: =【参考】データ集計!BC160 -> 0 | H160: =【参考】データ集計!BD160 -> 0 | K160: 1050 | L160: 174.288 | M160: =【参考】データ集計!AU384 -> 2.3887744 | N160: 2.3887744 | P160: 750 | Q160: 57.269 | R160: =【参考】データ集計!AU515 -> 0.87033 | S160: 0.87033 | Z160: 1014.545 | AA160: 78.192 | AB160: =【参考】データ集計!AU834 -> 1.128398 | AC160: 1.128398 | AO160: 1300 | AP160: 63.432 | AQ160: =【参考】データ集計!AU1075 -> 1.185121 | AR160: 1.185121 | AT160: 900 | AU160: 56.545 | AV160: =【参考】データ集計!AU1544 -> 1.282113 | AW160: 1.282113
A161: =【参考】データ集計!AW161 -> 加熱設備 | B161: =【参考】データ集計!AX161 -> 12,000～13,000 | C161: 12,000 ～13,000 | D161: =【参考】データ集計!AZ161 -> 0 | E161: =【参考】データ集計!BA161 -> 0 | F161: =【参考】データ集計!BB161 -> 0 | G161: =【参考】データ集計!BC161 -> 0 | H161: =【参考】データ集計!BD161 -> 0 | K161: 830 | L161: 38.147 | M161: =【参考】データ集計!AU385 -> 0.748224 | N161: 0.748224 | P161: 1196 | Q161: 31.516 | R161: =【参考】データ集計!AU518 -> 0.491455 | S161: 0.491455 | Z161: 869.25 | AA161: 95.34 | AB161: =【参考】データ集計!AU843 -> 1.376074 | AC161: 1.376074 | AO161: 1420 | AP161: 39.13 | AQ161: =【参考】データ集計!AU1081 -> 1.055654 | AR161: 1.055654 | AT161: 750 | AU161: 65.182 | AV161: =【参考】データ集計!AU1548 -> 0.813607 | AW161: 0.813607
A162: =【参考】データ集計!AW162 -> 加熱設備 | B162: =【参考】データ集計!AX162 -> 13,000～14,000 | C162: 13,000 ～14,000 | D162: =【参考】データ集計!AZ162 -> 0 | E162: =【参考】データ集計!BA162 -> 0 | F162: =【参考】データ集計!BB162 -> 0 | G162: =【参考】データ集計!BC162 -> 0 | H162: =【参考】データ集計!BD162 -> 0 | K162: 970 | L162: 54.3 | M162: =【参考】データ集計!AU395 -> 1.475231 | N162: 1.475231 | P162: 2400 | Q162: 157.767 | R162: =【参考】データ集計!AU520 -> 4.701081 | S162: 4.701081 | Z162: 1114.8 | AA162: 112.86 | AB162: =【参考】データ集計!AU849 -> 1.628946 | AC162: 1.628946 | AO162: 750 | AP162: 18.53 | AQ162: =【参考】データ集計!AU1101 -> 0.5629 | AR162: 0.5629 | AT162: 1391.5 | AU162: 84.721 | AV162: =【参考】データ集計!AU1556 -> 1.231019 | AW162: 1.231019
A163: =【参考】データ集計!AW163 -> 加熱設備 | B163: =【参考】データ集計!AX163 -> 14,000～15,000 | C163: 14,000 ～15,000 | D163: =【参考】データ集計!AZ163 -> 1 | E163: =【参考】データ集計!BA163 -> 1539086 | F163: =【参考】データ集計!BB163 -> 1539.086 | G163: =【参考】データ集計!BC163 -> 54.8913808 | H163: =【参考】データ集計!BD163 -> 54.8913808 | K163: 772.84 | L163: 55.694 | M163: =【参考】データ集計!AU400 -> 0.628716 | N163: 0.628716 | P163: 900 | Q163: 136 | R163: =【参考】データ集計!AU523 -> 1.715113 | S163: 1.715113 | Z163: 1321.1 | AA163: 157.777 | AB163: =【参考】データ集計!AU850 -> 4.018673 | AC163: 4.018673 | AO163: 984.2 | AP163: 105.3 | AQ163: =【参考】データ集計!AU1104 -> 2.271085 | AR163: 2.271085 | AT163: 750 | AU163: 45.801 | AV163: =【参考】データ集計!AU1558 -> 0.54558 | AW163: 0.54558
A164: =【参考】データ集計!AW164 -> 加熱設備 | B164: =【参考】データ集計!AX164 -> 15,000～16,000 | C164: 15,000 ～16,000 | D164: =【参考】データ集計!AZ164 -> 0 | E164: =【参考】データ集計!BA164 -> 0 | F164: =【参考】データ集計!BB164 -> 0 | G164: =【参考】データ集計!BC164 -> 0 | H164: =【参考】データ集計!BD164 -> 0 | K164: 9000 | L164: 869.771 | M164: =【参考】データ集計!AU402 -> 9.120279 | N164: 9.120279 | P164: 800 | Q164: 36.418 | R164: =【参考】データ集計!AU526 -> 0.517868 | S164: 0.517868 | Z164: 2180 | AA164: 269.779 | AB164: =【参考】データ集計!AU855 -> 4.131686 | AC164: 4.131686 | AO164: 750 | AP164: 13.182 | AQ164: =【参考】データ集計!AU1117 -> 0.219531 | AR164: 0.219531 | AT164: 1620 | AU164: 68.876 | AV164: =【参考】データ集計!AU1562 -> 0.938744 | AW164: 0.938744
A165: =【参考】データ集計!AW165 -> 加熱設備 | B165: =【参考】データ集計!AX165 -> 16,000～17,000 | C165: 16,000 ～17,000 | D165: =【参考】データ集計!AZ165 -> 0 | E165: =【参考】データ集計!BA165 -> 0 | F165: =【参考】データ集計!BB165 -> 0 | G165: =【参考】データ集計!BC165 -> 0 | H165: =【参考】データ集計!BD165 -> 0 | K165: 4545.1 | L165: 99.945 | M165: =【参考】データ集計!AU404 -> 2.490183 | N165: 2.490183 | P165: 10350 | Q165: 804.079 | R165: =【参考】データ集計!AU530 -> 17.32 | S165: 17.32 | Z165: 763.33 | AA165: 59.797 | AB165: =【参考】データ集計!AU863 -> 1.0035641 | AC165: 1.0035641 | AO165: 1072.5 | AP165: 49.45 | AQ165: =【参考】データ集計!AU1121 -> 0.567663 | AR165: 0.567663 | AT165: 820 | AU165: 39.3 | AV165: =【参考】データ集計!AU1569 -> 0.74043 | AW165: 0.74043
A166: =【参考】データ集計!AW166 -> 加熱設備 | B166: =【参考】データ集計!AX166 -> 17,000～18,000 | C166: 17,000 ～18,000 | D166: =【参考】データ集計!AZ166 -> 0 | E166: =【参考】データ集計!BA166 -> 0 | F166: =【参考】データ集計!BB166 -> 0 | G166: =【参考】データ集計!BC166 -> 0 | H166: =【参考】データ集計!BD166 -> 0 | K166: 960 | L166: 92.791 | M166: =【参考】データ集計!AU405 -> 4.587635 | N166: 4.587635 | P166: 751 | Q166: 112.351 | R166: =【参考】データ集計!AU539 -> 1.845260683 | S166: 1.845260683 | Z166: 2520 | AA166: 266.665 | AB166: =【参考】データ集計!AU871 -> 4.12378375 | AC166: 4.12378375 | AO166: 1200 | AP166: 174.698 | AQ166: =【参考】データ集計!AU1122 -> 2.801077 | AR166: 2.801077 | AT166: 1100 | AU166: 83.944 | AV166: =【参考】データ集計!AU1614 -> 1.387332 | AW166: 1.387332
A167: =【参考】データ集計!AW167 -> 加熱設備 | B167: =【参考】データ集計!AX167 -> 18,000～19,000 | C167: 18,000 ～19,000 | D167: =【参考】データ集計!AZ167 -> 0 | E167: =【参考】データ集計!BA167 -> 0 | F167: =【参考】データ集計!BB167 -> 0 | G167: =【参考】データ集計!BC167 -> 0 | H167: =【参考】データ集計!BD167 -> 0 | K167: 2663 | L167: 124.584 | M167: =【参考】データ集計!AU407 -> 2.8578 | N167: 2.8578 | P167: 2271 | Q167: 141.469 | R167: =【参考】データ集計!AU543 -> 2.122133 | S167: 2.122133 | Z167: 2256.1 | AA167: 98.964 | AB167: =【参考】データ集計!AU874 -> 1.19941 | AC167: 1.19941 | AO167: 1130 | AP167: 6.83 | AQ167: =【参考】データ集計!AU1133 -> 0.145055 | AR167: 0.145055 | AT167: 817 | AU167: 146.046 | AV167: =【参考】データ集計!AU1615 -> 1.74932 | AW167: 1.74932
A168: =【参考】データ集計!AW168 -> 加熱設備 | B168: =【参考】データ集計!AX168 -> 19,000～20,000 | C168: 19,000 ～20,000 | D168: =【参考】データ集計!AZ168 -> 0 | E168: =【参考】データ集計!BA168 -> 0 | F168: =【参考】データ集計!BB168 -> 0 | G168: =【参考】データ集計!BC168 -> 0 | H168: =【参考】データ集計!BD168 -> 0 | K168: 810 | L168: 53.64 | M168: =【参考】データ集計!AU411 -> 1.161306 | N168: 1.161306 | P168: 1610 | Q168: 79.01 | R168: =【参考】データ集計!AU548 -> 1.49818 | S168: 1.49818 | Z168: 895.16 | AA168: 201.402 | AB168: =【参考】データ集計!AU880 -> 2.665981 | AC168: 2.665981 | AO168: 10800 | AP168: 1211.099 | AQ168: =【参考】データ集計!AU1136 -> 30.116016 | AR168: 30.116016 | AT168: 1122 | AU168: 40.155 | AV168: =【参考】データ集計!AU1625 -> 0.585416 | AW168: 0.585416
A169: =【参考】データ集計!AW169 -> 加熱設備 | B169: =【参考】データ集計!AX169 -> 20,000～ | C169: 20,000～ | D169: =【参考】データ集計!AZ169 -> 0 | E169: =【参考】データ集計!BA169 -> 0 | F169: =【参考】データ集計!BB169 -> 0 | G169: =【参考】データ集計!BC169 -> 0 | H169: =【参考】データ集計!BD169 -> 0 | K169: 909.091 | L169: 13.151 | M169: =【参考】データ集計!AU415 -> 0.178829 | N169: 0.178829 | P169: 865 | Q169: 30 | R169: =【参考】データ集計!AU549 -> 0.323884 | S169: 0.323884 | Z169: 1433.52 | AA169: 466.824 | AB169: =【参考】データ集計!AU881 -> 5.924306 | AC169: 5.924306 | AO169: 800 | AP169: 55.443 | AQ169: =【参考】データ集計!AU1141 -> 0.54558 | AR169: 0.54558 | AT169: 750 | AU169: 68.2 | AV169: =【参考】データ集計!AU1628 -> 0.577622 | AW169: 0.577622
A170: =【参考】データ集計!AW170 -> 生産設備 | B170: =【参考】データ集計!AX170 -> 1～1,000 | C170: 1 ～1,000 | D170: =【参考】データ集計!AZ170 -> 0 | E170: =【参考】データ集計!BA170 -> 0 | F170: =【参考】データ集計!BB170 -> 0 | G170: =【参考】データ集計!BC170 -> 0 | H170: =【参考】データ集計!BD170 -> 0 | K170: 880 | L170: 13.4 | M170: =【参考】データ集計!AU419 -> 0.282749 | N170: 0.282749 | P170: 1670 | Q170: 28.018 | R170: =【参考】データ集計!AU552 -> 0.21217 | S170: 0.21217 | Z170: 953.903 | AA170: 59.127 | AB170: =【参考】データ集計!AU884 -> 1.706886 | AC170: 1.706886 | AO170: 3600 | AP170: 325.377 | AQ170: =【参考】データ集計!AU1151 -> 5.367035 | AR170: 5.367035 | AT170: 885 | AU170: 36.6 | AV170: =【参考】データ集計!AU1632 -> 0.75342 | AW170: 0.75342
A171: =【参考】データ集計!AW171 -> 生産設備 | B171: =【参考】データ集計!AX171 -> 1,000～2,000 | C171: 1,000 ～2,000 | D171: =【参考】データ集計!AZ171 -> 0 | E171: =【参考】データ集計!BA171 -> 0 | F171: =【参考】データ集計!BB171 -> 0 | G171: =【参考】データ集計!BC171 -> 0 | H171: =【参考】データ集計!BD171 -> 0 | K171: 755 | L171: 3.29 | M171: =【参考】データ集計!AU422 -> 0.01732 | N171: 0.01732 | P171: 2200 | Q171: 39.761 | R171: =【参考】データ集計!AU559 -> 1.288608 | S171: 1.288608 | Z171: 1070.4 | AA171: 16.453 | AB171: =【参考】データ集計!AU885 -> 0.232088 | AC171: 0.232088 | AO171: 780 | AP171: 60.9 | AQ171: =【参考】データ集計!AU1165 -> 0.617458 | AR171: 0.617458 | AT171: 750 | AU171: 25.734 | AV171: =【参考】データ集計!AU1660 -> 0.379741 | AW171: 0.379741
A172: =【参考】データ集計!AW172 -> 生産設備 | B172: =【参考】データ集計!AX172 -> 2,000～3,000 | C172: 2,000 ～3,000 | D172: =【参考】データ集計!AZ172 -> 2 | E172: =【参考】データ集計!BA172 -> 207700 | F172: =【参考】データ集計!BB172 -> 103.85 | G172: =【参考】データ集計!BC172 -> 3.237974 | H172: =【参考】データ集計!BD172 -> 1.618987 | K172: 757 | L172: 44.366 | M172: =【参考】データ集計!AU424 -> -2.00278521 | N172: -2.00278521 | P172: 3500 | Q172: 328.97 | R172: =【参考】データ集計!AU560 -> 5.583102 | S172: 5.583102 | Z172: 772.647 | AA172: 86.24 | AB172: =【参考】データ集計!AU894 -> 2.499276 | AC172: 2.499276 | AO172: 825 | AP172: 61.44 | AQ172: =【参考】データ集計!AU1166 -> 1.66272 | AR172: 1.66272 | AT172: 1147.3 | AU172: 57.26 | AV172: =【参考】データ集計!AU1664 -> 1.258731 | AW172: 1.258731
A173: =【参考】データ集計!AW173 -> 生産設備 | B173: =【参考】データ集計!AX173 -> 3,000～4,000 | C173: 3,000 ～4,000 | D173: =【参考】データ集計!AZ173 -> 0 | E173: =【参考】データ集計!BA173 -> 0 | F173: =【参考】データ集計!BB173 -> 0 | G173: =【参考】データ集計!BC173 -> 0 | H173: =【参考】データ集計!BD173 -> 0 | K173: 8320 | L173: 236.004 | M173: =【参考】データ集計!AU427 -> 4.054612 | N173: 4.054612 | P173: 806 | Q173: 61.152 | R173: =【参考】データ集計!AU562 -> 0.945672 | S173: 0.945672 | Z173: 1030.303 | AA173: 32.936 | AB173: =【参考】データ集計!AU897 -> 0.387535 | AC173: 0.387535 | AO173: 750 | AP173: 85.5 | AQ173: =【参考】データ集計!AU1170 -> 1.23405 | AR173: 1.23405 | AT173: 1044.8 | AU173: 115.401 | AV173: =【参考】データ集計!AU1682 -> 1.827693 | AW173: 1.827693
A174: =【参考】データ集計!AW174 -> 生産設備 | B174: =【参考】データ集計!AX174 -> 4,000～5,000 | C174: 4,000 ～5,000 | D174: =【参考】データ集計!AZ174 -> 0 | E174: =【参考】データ集計!BA174 -> 0 | F174: =【参考】データ集計!BB174 -> 0 | G174: =【参考】データ集計!BC174 -> 0 | H174: =【参考】データ集計!BD174 -> 0 | K174: 750 | L174: 687.6 | M174: =【参考】データ集計!AU429 -> 4.172388 | N174: 4.172388 | P174: 3045.455 | Q174: 90.365 | R174: =【参考】データ集計!AU570 -> 0.918393 | S174: 0.918393 | Z174: 4007.2 | AA174: 473.065 | AB174: =【参考】データ集計!AU899 -> 8.04081 | AC174: 8.04081 | AO174: 1440 | AP174: 122.1 | AQ174: =【参考】データ集計!AU1175 -> 2.45511 | AR174: 2.45511 | AT174: 750 | AU174: 77.451 | AV174: =【参考】データ集計!AU1687 -> 1.202441 | AW174: 1.202441
A175: =【参考】データ集計!AW175 -> 生産設備 | B175: =【参考】データ集計!AX175 -> 5,000～6,000 | C175: 5,000 ～6,000 | D175: =【参考】データ集計!AZ175 -> 4 | E175: =【参考】データ集計!BA175 -> 465382 | F175: =【参考】データ集計!BB175 -> 116.3455 | G175: =【参考】データ集計!BC175 -> 9.180466 | H175: =【参考】データ集計!BD175 -> 2.2951165 | K175: 960 | L175: 63.975 | M175: =【参考】データ集計!AU431 -> 17.313505 | N175: 17.313505 | P175: 909.091 | Q175: 29.315 | R175: =【参考】データ集計!AU571 -> 0.351596 | S175: 0.351596 | Z175: 4750 | AA175: 251.13 | AB175: =【参考】データ集計!AU907 -> 4.027333 | AC175: 4.027333 | AO175: 863 | AP175: 46.578 | AQ175: =【参考】データ集計!AU1185 -> 0.59754 | AR175: 0.59754 | AT175: 799.9 | AU175: 107.962 | AV175: =【参考】データ集計!AU1700 -> 1.30766 | AW175: 1.30766
A176: =【参考】データ集計!AW176 -> 生産設備 | B176: =【参考】データ集計!AX176 -> 6,000～7,000 | C176: 6,000 ～7,000 | D176: =【参考】データ集計!AZ176 -> 3 | E176: =【参考】データ集計!BA176 -> 204469 | F176: =【参考】データ集計!BB176 -> 68.15633333 | G176: =【参考】データ集計!BC176 -> 3.89320692 | H176: =【参考】データ集計!BD176 -> 1.29773564 | K176: 950 | L176: 25.589 | M176: =【参考】データ集計!AU435 -> 0.756884 | N176: 0.756884 | P176: 1893 | Q176: 547.88 | R176: =【参考】データ集計!AU572 -> 9.884524 | S176: 9.884524 | Z176: 1012.9 | AA176: 85.386 | AB176: =【参考】データ集計!AU923 -> 1.181224 | AC176: 1.181224 | AO176: 1955 | AP176: 244.773 | AQ176: =【参考】データ集計!AU1188 -> 3.241005 | AR176: 3.241005 | AT176: 750 | AU176: 87 | AV176: =【参考】データ集計!AU1713 -> 1.088129 | AW176: 1.088129
A177: =【参考】データ集計!AW177 -> 生産設備 | B177: =【参考】データ集計!AX177 -> 7,000～8,000 | C177: 7,000 ～8,000 | D177: =【参考】データ集計!AZ177 -> 9 | E177: =【参考】データ集計!BA177 -> 1153027 | F177: =【参考】データ集計!BB177 -> 128.1141111 | G177: =【参考】データ集計!BC177 -> 39.66317085 | H177: =【参考】データ集計!BD177 -> 4.407018983 | K177: 4350 | L177: 23.455 | M177: =【参考】データ集計!AU436 -> 0.419577 | N177: 0.419577 | P177: 770 | Q177: 109.582 | R177: =【参考】データ集計!AU575 -> 1.979598417 | S177: 1.979598417 | Z177: 3103.2 | AA177: 784.064 | AB177: =【参考】データ集計!AU930 -> 11.316888 | AC177: 11.316888 | AO177: 750 | AP177: 9.2 | AQ177: =【参考】データ集計!AU1189 -> 0.24681 | AR177: 0.24681 | AT177: 900 | AU177: 92.254 | AV177: =【参考】データ集計!AU1716 -> 1.22539 | AW177: 1.22539
A178: =【参考】データ集計!AW178 -> 生産設備 | B178: =【参考】データ集計!AX178 -> 8,000～9,000 | C178: 8,000 ～9,000 | D178: =【参考】データ集計!AZ178 -> 6 | E178: =【参考】データ集計!BA178 -> 1277870 | F178: =【参考】データ集計!BB178 -> 212.9783333 | G178: =【参考】データ集計!BC178 -> 19.810183 | H178: =【参考】データ集計!BD178 -> 3.301697167 | K178: 2730 | L178: 62.032 | M178: =【参考】データ集計!AU443 -> 1.158275 | N178: 1.158275 | P178: 5454.545 | Q178: 185.244 | R178: =【参考】データ集計!AU576 -> 3.7144472 | S178: 3.7144472 | Z178: 2418 | AA178: 350 | AB178: =【参考】データ集計!AU933 -> 8.5734 | AC178: 8.5734 | AO178: 900 | AP178: 73.576 | AQ178: =【参考】データ集計!AU1193 -> 0.937012 | AR178: 0.937012 | AT178: 1020 | AU178: 116.649 | AV178: =【参考】データ集計!AU1723 -> 1.722474 | AW178: 1.722474
A179: =【参考】データ集計!AW179 -> 生産設備 | B179: =【参考】データ集計!AX179 -> 9,000～10,000 | C179: 9,000 ～10,000 | D179: =【参考】データ集計!AZ179 -> 9 | E179: =【参考】データ集計!BA179 -> 3682667 | F179: =【参考】データ集計!BB179 -> 409.1852222 | G179: =【参考】データ集計!BC179 -> 61.0610105 | H179: =【参考】データ集計!BD179 -> 6.784556722 | K179: 1880 | L179: 115.67 | M179: =【参考】データ集計!AU445 -> 1.850209 | N179: 1.850209 | P179: 2200 | Q179: 41.031 | R179: =【参考】データ集計!AU578 -> 0.348565 | S179: 0.348565 | Z179: 8540 | AA179: 5521.584 | AB179: =【参考】データ集計!AU934 -> 94.074446 | AC179: 94.074446 | AO179: 1527 | AP179: 85.976 | AQ179: =【参考】データ集計!AU1194 -> 0.995467 | AR179: 0.995467
A180: =【参考】データ集計!AW180 -> 生産設備 | B180: =【参考】データ集計!AX180 -> 10,000～11,000 | C180: 10,000 ～11,000 | D180: =【参考】データ集計!AZ180 -> 8 | E180: =【参考】データ集計!BA180 -> 2423404 | F180: =【参考】データ集計!BB180 -> 302.9255 | G180: =【参考】データ集計!BC180 -> 41.0922196 | H180: =【参考】データ集計!BD180 -> 5.13652745 | K180: 810 | L180: 29.155 | M180: =【参考】データ集計!AU453 -> 0.4194038 | N180: 0.4194038 | P180: 752.4 | Q180: 30.358 | R180: =【参考】データ集計!AU579 -> 0.437763 | S180: 0.437763 | Z180: 11097 | AA180: 4145.889 | AB180: =【参考】データ集計!AU956 -> 69.5398 | AC180: 69.5398 | AO180: 1721 | AP180: 248.784 | AQ180: =【参考】データ集計!AU1207 -> 3.425896 | AR180: 3.425896
A181: =【参考】データ集計!AW181 -> 生産設備 | B181: =【参考】データ集計!AX181 -> 11,000～12,000 | C181: 11,000 ～12,000 | D181: =【参考】データ集計!AZ181 -> 7 | E181: =【参考】データ集計!BA181 -> 3058668 | F181: =【参考】データ集計!BB181 -> 436.9525714 | G181: =【参考】データ集計!BC181 -> 46.570449 | H181: =【参考】データ集計!BD181 -> 6.652921286 | K181: 1750 | L181: 393.691 | M181: =【参考】データ集計!AU454 -> 7.656739 | N181: 7.656739 | P181: 1330 | Q181: 148.065 | R181: =【参考】データ集計!AU581 -> 1.990068 | S181: 1.990068 | Z181: 952 | AA181: 258.78 | AB181: =【参考】データ集計!AU968 -> 5.89746 | AC181: 5.89746 | AO181: 829 | AP181: 88.9 | AQ181: =【参考】データ集計!AU1215 -> 1.240112 | AR181: 1.240112
A182: =【参考】データ集計!AW182 -> 生産設備 | B182: =【参考】データ集計!AX182 -> 12,000～13,000 | C182: 12,000 ～13,000 | D182: =【参考】データ集計!AZ182 -> 7 | E182: =【参考】データ集計!BA182 -> 2132500 | F182: =【参考】データ集計!BB182 -> 304.6428571 | G182: =【参考】データ集計!BC182 -> 34.78268909 | H182: =【参考】データ集計!BD182 -> 4.968955584 | K182: 1809.09 | L182: 102.024 | M182: =【参考】データ集計!AU455 -> 1.577419 | N182: 1.577419 | P182: 941 | Q182: 89.103 | R182: =【参考】データ集計!AU587 -> 1.364816 | S182: 1.364816 | Z182: 756 | AA182: 58.477 | AB182: =【参考】データ集計!AU970 -> 0.446423 | AC182: 0.446423 | AO182: 10000 | AP182: 789.139 | AQ182: =【参考】データ集計!AU1220 -> 12.380336 | AR182: 12.380336
A183: =【参考】データ集計!AW183 -> 生産設備 | B183: =【参考】データ集計!AX183 -> 13,000～14,000 | C183: 13,000 ～14,000 | D183: =【参考】データ集計!AZ183 -> 3 | E183: =【参考】データ集計!BA183 -> 2036267 | F183: =【参考】データ集計!BB183 -> 678.7556667 | G183: =【参考】データ集計!BC183 -> 38.730118 | H183: =【参考】データ集計!BD183 -> 12.91003933 | K183: 4180 | L183: 192.223 | M183: =【参考】データ集計!AU457 -> 7.415164046 | N183: 7.415164046 | P183: 1248 | Q183: 80.44 | R183: =【参考】データ集計!AU588 -> 0.987673 | S183: 0.987673 | Z183: 3302.1 | AA183: 243.979 | AB183: =【参考】データ集計!AU985 -> 3.386493 | AC183: 3.386493 | AO183: 1170 | AP183: 131.373 | AQ183: =【参考】データ集計!AU1232 -> 1.44189 | AR183: 1.44189
A184: =【参考】データ集計!AW184 -> 生産設備 | B184: =【参考】データ集計!AX184 -> 14,000～15,000 | C184: 14,000 ～15,000 | D184: =【参考】データ集計!AZ184 -> 6 | E184: =【参考】データ集計!BA184 -> 995791 | F184: =【参考】データ集計!BB184 -> 165.9651667 | G184: =【参考】データ集計!BC184 -> 17.47655808 | H184: =【参考】データ集計!BD184 -> 2.91275968 | K184: 1820 | L184: 34.855 | M184: =【参考】データ集計!AU458 -> 0.901939 | N184: 0.901939 | P184: 1080 | Q184: 84.801 | R184: =【参考】データ集計!AU593 -> 1.626348 | S184: 1.626348 | Z184: 760 | AA184: 97.128 | AB184: =【参考】データ集計!AU988 -> 1.4018808 | AC184: 1.4018808 | AO184: 1056 | AP184: 68.82 | AQ184: =【参考】データ集計!AU1234 -> 0.96126 | AR184: 0.96126
A185: =【参考】データ集計!AW185 -> 生産設備 | B185: =【参考】データ集計!AX185 -> 15,000～16,000 | C185: 15,000 ～16,000 | D185: =【参考】データ集計!AZ185 -> 2 | E185: =【参考】データ集計!BA185 -> 40573 | F185: =【参考】データ集計!BB185 -> 20.2865 | G185: =【参考】データ集計!BC185 -> 0.52940312 | H185: =【参考】データ集計!BD185 -> 0.26470156 | K185: 884.5 | L185: 222.915 | M185: =【参考】データ集計!AU459 -> 5.108492967 | N185: 5.108492967 | P185: 831 | Q185: 268.488 | R185: =【参考】データ集計!AU597 -> 4.298824 | S185: 4.298824 | Z185: 2319 | AA185: 318.789 | AB185: =【参考】データ集計!AU989 -> 5.112431 | AC185: 5.112431 | AO185: 858 | AP185: 71.051 | AQ185: =【参考】データ集計!AU1245 -> 1.748021 | AR185: 1.748021
A186: =【参考】データ集計!AW186 -> 生産設備 | B186: =【参考】データ集計!AX186 -> 16,000～17,000 | C186: 16,000 ～17,000 | D186: =【参考】データ集計!AZ186 -> 2 | E186: =【参考】データ集計!BA186 -> 353574 | F186: =【参考】データ集計!BB186 -> 176.787 | G186: =【参考】データ集計!BC186 -> 4.585037 | H186: =【参考】データ集計!BD186 -> 2.2925185 | K186: 1330 | L186: 320.537 | M186: =【参考】データ集計!AU460 -> 1.373043 | N186: 1.373043 | P186: 1170 | Q186: 35.38 | R186: =【参考】データ集計!AU599 -> 0.505744 | S186: 0.505744 | Z186: 771.55 | AA186: 301.241 | AB186: =【参考】データ集計!AU990 -> 5.976266 | AC186: 5.976266 | AO186: 1662 | AP186: 56.045 | AQ186: =【参考】データ集計!AU1263 -> 0.707089 | AR186: 0.707089
A187: =【参考】データ集計!AW187 -> 生産設備 | B187: =【参考】データ集計!AX187 -> 17,000～18,000 | C187: 17,000 ～18,000 | D187: =【参考】データ集計!AZ187 -> 3 | E187: =【参考】データ集計!BA187 -> 456108 | F187: =【参考】データ集計!BB187 -> 152.036 | G187: =【参考】データ集計!BC187 -> 10.932817 | H187: =【参考】データ集計!BD187 -> 3.644272333 | K187: 1318.181 | L187: 52.462 | M187: =【参考】データ集計!AU461 -> 0.695398 | N187: 0.695398 | P187: 1642 | Q187: 211.955 | R187: =【参考】データ集計!AU604 -> 2.399253 | S187: 2.399253 | Z187: 758.629 | AA187: 26.609 | AB187: =【参考】データ集計!AU992 -> 0.461578 | AC187: 0.461578 | AO187: 810 | AP187: 158.822 | AQ187: =【参考】データ集計!AU1278 -> 1.803878 | AR187: 1.803878
A188: =【参考】データ集計!AW188 -> 生産設備 | B188: =【参考】データ集計!AX188 -> 18,000～19,000 | C188: 18,000 ～19,000 | D188: =【参考】データ集計!AZ188 -> 1 | E188: =【参考】データ集計!BA188 -> 561600 | F188: =【参考】データ集計!BB188 -> 561.6 | G188: =【参考】データ集計!BC188 -> 16.21152 | H188: =【参考】データ集計!BD188 -> 16.21152 | K188: 1000 | L188: 246.888 | M188: =【参考】データ集計!AU465 -> 5.626835 | N188: 5.626835 | P188: 1180 | Q188: 78.24 | R188: =【参考】データ集計!AU605 -> 1.349228 | S188: 1.349228 | Z188: 1620 | AA188: 84.609 | AB188: =【参考】データ集計!AU1013 -> 2.79718 | AC188: 2.79718 | AO188: 987.2 | AP188: 59.994 | AQ188: =【参考】データ集計!AU1290 -> 1.443189 | AR188: 1.443189
A189: =【参考】データ集計!AW189 -> 生産設備 | B189: =【参考】データ集計!AX189 -> 19,000～20,000 | C189: 19,000 ～20,000 | D189: =【参考】データ集計!AZ189 -> 2 | E189: =【参考】データ集計!BA189 -> 47238 | F189: =【参考】データ集計!BB189 -> 23.619 | G189: =【参考】データ集計!BC189 -> 0.778101 | H189: =【参考】データ集計!BD189 -> 0.3890505 | K189: 930 | L189: 13.335 | M189: =【参考】データ集計!AU466 -> 0.192685 | N189: 0.192685 | P189: 1028 | Q189: 91.91 | R189: =【参考】データ集計!AU607 -> 1.271288 | S189: 1.271288 | Z189: 3711.061 | AA189: 683.996 | AB189: =【参考】データ集計!AU1021 -> 8.004005 | AC189: 8.004005 | AO189: 867 | AP189: 50.337 | AQ189: =【参考】データ集計!AU1297 -> 1.037901 | AR189: 1.037901
A190: =【参考】データ集計!AW190 -> 生産設備 | B190: =【参考】データ集計!AX190 -> 20,000～ | C190: 20,000～ | D190: =【参考】データ集計!AZ190 -> 10 | E190: =【参考】データ集計!BA190 -> 3658119 | F190: =【参考】データ集計!BB190 -> 365.8119 | G190: =【参考】データ集計!BC190 -> 59.3359818 | H190: =【参考】データ集計!BD190 -> 5.93359818 | K190: 1250 | L190: 132.261 | M190: =【参考】データ集計!AU468 -> 1.453581 | N190: 1.453581 | P190: 1540 | Q190: 82.576 | R190: =【参考】データ集計!AU612 -> -0.678511 | S190: -0.678511 | Z190: 830 | AA190: 53.344 | AB190: =【参考】データ集計!AU1027 -> 0.6928 | AC190: 0.6928 | AO190: 1906.6 | AP190: 56.3 | AQ190: =【参考】データ集計!AU1302 -> 0.902372 | AR190: 0.902372
A191: =【参考】データ集計!AW191 -> 発電設備 | B191: =【参考】データ集計!AX191 -> 1～1,000 | C191: 1 ～1,000 | D191: =【参考】データ集計!AZ191 -> 0 | E191: =【参考】データ集計!BA191 -> 0 | F191: =【参考】データ集計!BB191 -> 0 | G191: =【参考】データ集計!BC191 -> 0 | H191: =【参考】データ集計!BD191 -> 0 | K191: 1647.6 | L191: 54.206 | M191: =【参考】データ集計!AU474 -> 0.59321 | N191: 0.59321 | P191: 750 | Q191: 49.936 | R191: =【参考】データ集計!AU614 -> 0.578921 | S191: 0.578921 | Z191: 2844.3 | AA191: 724.339 | AB191: =【参考】データ集計!AU1036 -> 8.809818 | AC191: 8.809818 | AO191: 2904 | AP191: 123.44 | AQ191: =【参考】データ集計!AU1315 -> 3.05265 | AR191: 3.05265
A192: =【参考】データ集計!AW192 -> 発電設備 | B192: =【参考】データ集計!AX192 -> 1,000～2,000 | C192: 1,000 ～2,000 | D192: =【参考】データ集計!AZ192 -> 0 | E192: =【参考】データ集計!BA192 -> 0 | F192: =【参考】データ集計!BB192 -> 0 | G192: =【参考】データ集計!BC192 -> 0 | H192: =【参考】データ集計!BD192 -> 0 | K192: 1473.3 | L192: 72.725 | M192: =【参考】データ集計!AU476 -> 1.144419 | N192: 1.144419 | P192: 1108 | Q192: 19.863 | R192: =【参考】データ集計!AU619 -> 0.374112 | S192: 0.374112 | Z192: 4000 | AA192: 458.237 | AB192: =【参考】データ集計!AU1041 -> 7.936457 | AC192: 7.936457 | AO192: 1620 | AP192: 631.969 | AQ192: =【参考】データ集計!AU1319 -> 9.73817 | AR192: 9.73817
A193: =【参考】データ集計!AW193 -> 発電設備 | B193: =【参考】データ集計!AX193 -> 2,000～3,000 | C193: 2,000 ～3,000 | D193: =【参考】データ集計!AZ193 -> 2 | E193: =【参考】データ集計!BA193 -> 924447 | F193: =【参考】データ集計!BB193 -> 462.2235 | G193: =【参考】データ集計!BC193 -> 9.199951 | H193: =【参考】データ集計!BD193 -> 4.5999755 | K193: 1223.09 | L193: 68.368 | M193: =【参考】データ集計!AU480 -> 1.047427 | N193: 1.047427 | P193: 1852 | Q193: 449.617 | R193: =【参考】データ集計!AU634 -> 8.659134 | S193: 8.659134 | Z193: 2820 | AA193: 36.25 | AB193: =【参考】データ集計!AU1043 -> 0.51527 | AC193: 0.51527 | AO193: 8953 | AP193: 1124.539 | AQ193: =【参考】データ集計!AU1322 -> 16.023598 | AR193: 16.023598
A194: =【参考】データ集計!AW194 -> 発電設備 | B194: =【参考】データ集計!AX194 -> 3,000～4,000 | C194: 3,000 ～4,000 | D194: =【参考】データ集計!AZ194 -> 1 | E194: =【参考】データ集計!BA194 -> 343109 | F194: =【参考】データ集計!BB194 -> 343.109 | G194: =【参考】データ集計!BC194 -> 6.026927 | H194: =【参考】データ集計!BD194 -> 6.026927 | K194: 1150 | L194: 690.87 | M194: =【参考】データ集計!AU481 -> 0.06495 | N194: 0.06495 | P194: 1139 | Q194: 68.107 | R194: =【参考】データ集計!AU635 -> 0.936579 | S194: 0.936579 | Z194: 1200 | AA194: 16.76 | AB194: =【参考】データ集計!AU1055 -> 0.209572 | AC194: 0.209572 | AO194: 984 | AP194: 166.158 | AQ194: =【参考】データ集計!AU1332 -> 1.526758 | AR194: 1.526758
A195: =【参考】データ集計!AW195 -> 発電設備 | B195: =【参考】データ集計!AX195 -> 4,000～5,000 | C195: 4,000 ～5,000 | D195: =【参考】データ集計!AZ195 -> 3 | E195: =【参考】データ集計!BA195 -> 1550740 | F195: =【参考】データ集計!BB195 -> 516.9133333 | G195: =【参考】データ集計!BC195 -> 27.009241 | H195: =【参考】データ集計!BD195 -> 9.003080333 | K195: 810.15 | L195: 150.419 | M195: =【参考】データ集計!AU482 -> 2.938725667 | N195: 2.938725667 | P195: 1413.3 | Q195: 57.74 | R195: =【参考】データ集計!AU636 -> 0.9628311332 | S195: 0.9628311332 | Z195: 753.85 | AA195: 201.427 | AB195: =【参考】データ集計!AU1056 -> 3.230613 | AC195: 3.230613 | AO195: 777.5 | AP195: 30.218 | AQ195: =【参考】データ集計!AU1333 -> 0.348998 | AR195: 0.348998
A196: =【参考】データ集計!AW196 -> 発電設備 | B196: =【参考】データ集計!AX196 -> 5,000～6,000 | C196: 5,000 ～6,000 | D196: =【参考】データ集計!AZ196 -> 3 | E196: =【参考】データ集計!BA196 -> 3396707 | F196: =【参考】データ集計!BB196 -> 1132.235667 | G196: =【参考】データ集計!BC196 -> 48.75147 | H196: =【参考】データ集計!BD196 -> 16.25049 | K196: 3750 | L196: 287.578 | M196: =【参考】データ集計!AU483 -> 4.397981 | N196: 4.397981 | P196: 2150 | Q196: 220.961 | R196: =【参考】データ集計!AU641 -> 1.777898 | S196: 1.777898 | Z196: 3970 | AA196: 1595.871 | AB196: =【参考】データ集計!AU1060 -> 22.2907101 | AC196: 22.2907101 | AO196: 4970 | AP196: 276.899 | AQ196: =【参考】データ集計!AU1345 -> 5.833809 | AR196: 5.833809
A197: =【参考】データ集計!AW197 -> 発電設備 | B197: =【参考】データ集計!AX197 -> 6,000～7,000 | C197: 6,000 ～7,000 | D197: =【参考】データ集計!AZ197 -> 3 | E197: =【参考】データ集計!BA197 -> 2063437 | F197: =【参考】データ集計!BB197 -> 687.8123333 | G197: =【参考】データ集計!BC197 -> 48.917742 | H197: =【参考】データ集計!BD197 -> 16.305914 | K197: 750 | L197: 19.422 | M197: =【参考】データ集計!AU487 -> 0.518734 | N197: 0.518734 | P197: 1750 | Q197: 567.378 | R197: =【参考】データ集計!AU648 -> 13.592736 | S197: 13.592736 | Z197: 1493.92 | AA197: 66.465 | AB197: =【参考】データ集計!AU1064 -> 0.822267 | AC197: 0.822267 | AO197: 7439 | AP197: 1024.512 | AQ197: =【参考】データ集計!AU1349 -> 23.648295 | AR197: 23.648295
A198: =【参考】データ集計!AW198 -> 発電設備 | B198: =【参考】データ集計!AX198 -> 7,000～8,000 | C198: 7,000 ～8,000 | D198: =【参考】データ集計!AZ198 -> 5 | E198: =【参考】データ集計!BA198 -> 3545800 | F198: =【参考】データ集計!BB198 -> 709.16 | G198: =【参考】データ集計!BC198 -> 70.552154 | H198: =【参考】データ集計!BD198 -> 14.1104308 | K198: 3211.4 | L198: 74.071 | M198: =【参考】データ集計!AU492 -> 0.98291 | N198: 0.98291 | P198: 1550 | Q198: 11.681 | R198: =【参考】データ集計!AU650 -> 0.126869 | S198: 0.126869 | Z198: 1451.92 | AA198: 78.84 | AB198: =【参考】データ集計!AU1067 -> 1.137924 | AC198: 1.137924 | AO198: 3463 | AP198: 327.572 | AQ198: =【参考】データ集計!AU1354 -> 4.075829 | AR198: 4.075829
A199: =【参考】データ集計!AW199 -> 発電設備 | B199: =【参考】データ集計!AX199 -> 8,000～9,000 | C199: 8,000 ～9,000 | D199: =【参考】データ集計!AZ199 -> 3 | E199: =【参考】データ集計!BA199 -> 2901646 | F199: =【参考】データ集計!BB199 -> 967.2153333 | G199: =【参考】データ集計!BC199 -> 72.184564 | H199: =【参考】データ集計!BD199 -> 24.06152133 | K199: 760 | L199: 9.39 | M199: =【参考】データ集計!AU495 -> 0.135529 | N199: 0.135529 | P199: 1700 | Q199: 74.545 | R199: =【参考】データ集計!AU652 -> 0.816205 | S199: 0.816205 | Z199: 798 | AA199: 158.13 | AB199: =【参考】データ集計!AU1069 -> 2.721405 | AC199: 2.721405 | AO199: 1929 | AP199: 247.22 | AQ199: =【参考】データ集計!AU1355 -> 4.47289 | AR199: 4.47289
A200: =【参考】データ集計!AW200 -> 発電設備 | B200: =【参考】データ集計!AX200 -> 9,000～10,000 | C200: 9,000 ～10,000 | D200: =【参考】データ集計!AZ200 -> 8 | E200: =【参考】データ集計!BA200 -> 10947214 | F200: =【参考】データ集計!BB200 -> 1368.40175 | G200: =【参考】データ集計!BC200 -> 179.082305 | H200: =【参考】データ集計!BD200 -> 22.38528812 | K200: 1096 | L200: 90.142 | M200: =【参考】データ集計!AU503 -> 1.530655 | N200: 1.530655 | P200: 1500 | Q200: 60.494 | R200: =【参考】データ集計!AU657 -> 1.659689 | S200: 1.659689 | Z200: 2587 | AA200: 1177.363 | AB200: =【参考】データ集計!AU1071 -> 3.285171 | AC200: 3.285171 | AO200: 1018 | AP200: 87.93 | AQ200: =【参考】データ集計!AU1356 -> 1.097222 | AR200: 1.097222
... 440 more rows

Sheet 【参照】散布図_計算式 (hidden)
A2: 区分名 | B2: 削減額x | C2: 削減額 | D2: 削減額式 | E2: 排出削減量x | F2: 排出削減量 | G2: 削減額式 | I2: 該当
A3: 空調・換気設備 | B3: =SLOPE([0]!散布図_空調・換気設備_削減額,[0]!散布図_空調・換気設備_対象経費) -> 0.06993717474 | C3: =INTERCEPT([0]!散布図_空調・換気設備_削減額,[0]!散布図_空調・換気設備_対象経費) -> 45.33044186 | D3: =IF(C3>0,"y = "& ROUND(B3,5)&"x + "&ROUND(C3,2),"y = "& ROUND(B3,5)&"x "&ROUND(C3,2)) -> y = 0.06994x + 45.33 | E3: =SLOPE([0]!散布図_空調・換気設備_排出削減量,[0]!散布図_空調・換気設備_対象経費) -> 0.001449146638 | F3: =INTERCEPT([0]!散布図_空調・換気設備_排出削減量,[0]!散布図_空調・換気設備_対象経費) -> 0.3462140391 | G3: =IF(F3>0,"y = "&ROUND(E3,5)&"x + "&ROUND(F3,2),"y = "&ROUND(E3,5)&"x "&ROUND(F3,2)) -> y = 0.00145x + 0.35 | I3: =IFERROR(IFERROR(VLOOKUP(【入力】導入設備!$C$7,【参照】散布図_計算式!$A$3:$G$25,2,FALSE),VLOOKUP(【入力】導入設備!$C$6,【参照】散布図_計算式!$A$3:$G$25,2,FALSE)),0) -> 0 | J3: =IFERROR(IFERROR(VLOOKUP(【入力】導入設備!$C$7,【参照】散布図_計算式!$A$3:$G$25,3,FALSE),VLOOKUP(【入力】導入設備!$C$6,【参照】散布図_計算式!$A$3:$G$25,3,FALSE)),0) -> 0 | K3: =IFERROR(IFERROR(VLOOKUP(【入力】導入設備!$C$7,【参照】散布図_計算式!$A$3:$G$25,5,FALSE),VLOOKUP(【入力】導入設備!$C$6,【参照】散布図_計算式!$A$3:$G$25,5,FALSE)),0) -> 0 | L3: =IFERROR(IFERROR(VLOOKUP(【入力】導入設備!$C$7,【参照】散布図_計算式!$A$3:$G$25,6,FALSE),VLOOKUP(【入力】導入設備!$C$6,【参照】散布図_計算式!$A$3:$G$25,6,FALSE)),0) -> 0 | M3: =IFERROR(IFERROR(VLOOKUP(【入力】導入設備!$C$7,【参照】散布図_計算式!$A$3:$G$25,4,FALSE),VLOOKUP(【入力】導入設備!$C$6,【参照】散布図_計算式!$A$3:$G$25,4,FALSE)),"該当データなし") -> 該当データなし | N3: =IFERROR(IFERROR(VLOOKUP(【入力】導入設備!$C$7,【参照】散布図_計算式!$A$3:$G$25,7,FALSE),VLOOKUP(【入力】導入設備!$C$6,【参照】散布図_計算式!$A$3:$G$25,7,FALSE)),"該当データなし") -> 該当データなし
A4: 業務用エアコン | B4: =SLOPE([0]!散布図_業務用エアコン_削減額,[0]!散布図_業務用エアコン_対象経費) -> 0.06019845372 | C4: =INTERCEPT([0]!散布図_業務用エアコン_削減額,[0]!散布図_業務用エアコン_対象経費) -> 44.47586222 | D4: =IF(C4>0,"y = "& ROUND(B4,5)&"x + "&ROUND(C4,2),"y = "& ROUND(B4,5)&"x "&ROUND(C4,2)) -> y = 0.0602x + 44.48 | E4: =SLOPE([0]!散布図_業務用エアコン_排出削減量,[0]!散布図_業務用エアコン_対象経費) -> 0.001280110243 | F4: =INTERCEPT([0]!散布図_業務用エアコン_排出削減量,[0]!散布図_業務用エアコン_対象経費) -> 0.2799544759 | G4: =IF(F4>0,"y = "&ROUND(E4,5)&"x + "&ROUND(F4,2),"y = "&ROUND(E4,5)&"x "&ROUND(F4,2)) -> y = 0.00128x + 0.28
A5: 一般用エアコン | B5: =SLOPE([0]!散布図_一般用エアコン_削減額,[0]!散布図_一般用エアコン_対象経費) -> 0.2363063417 | C5: =INTERCEPT([0]!散布図_一般用エアコン_削減額,[0]!散布図_一般用エアコン_対象経費) -> -128.0798431 | D5: y = 0.23631x -128.08 | E5: =SLOPE([0]!散布図_一般用エアコン_排出削減量,[0]!散布図_一般用エアコン_対象経費) -> 0.004500775831 | F5: =INTERCEPT([0]!散布図_一般用エアコン_排出削減量,[0]!散布図_一般用エアコン_対象経費) -> -2.703724915 | G5: y = 0.0045x -2.7
A6: 業務用LED照明器具 | B6: =SLOPE([0]!散布図_業務用LED照明器具_削減額,[0]!散布図_業務用LED照明器具_対象経費) -> 0.1570252467 | C6: =INTERCEPT([0]!散布図_業務用LED照明器具_削減額,[0]!散布図_業務用LED照明器具_対象経費) -> -10.1415002 | D6: y = 0.15703x -10.14 | E6: =SLOPE([0]!散布図_業務用LED照明器具_排出削減量,[0]!散布図_業務用LED照明器具_対象経費) -> 0.002782119346 | F6: =INTERCEPT([0]!散布図_業務用LED照明器具_排出削減量,[0]!散布図_業務用LED照明器具_対象経費) -> -0.632751809 | G6: y = 0.00278x -0.63
A7: 一般用LED照明器具 | B7: =SLOPE([0]!散布図_一般用LED照明器具_削減額,[0]!散布図_一般用LED照明器具_対象経費) -> 0.112335482 | C7: =INTERCEPT([0]!散布図_一般用LED照明器具_削減額,[0]!散布図_一般用LED照明器具_対象経費) -> 152.9661612 | D7: y = 0.11234x + 152.97 | E7: =SLOPE([0]!散布図_一般用LED照明器具_排出削減量,[0]!散布図_一般用LED照明器具_対象経費) -> 0.002362138889 | F7: =INTERCEPT([0]!散布図_一般用LED照明器具_排出削減量,[0]!散布図_一般用LED照明器具_対象経費) -> 2.507164329 | G7: y = 0.00236x + 2.51
A8: 非常時用照明器具（非常灯・誘導灯） | B8: =SLOPE([0]!散布図_非常時用照明器具_削減額,[0]!散布図_非常時用照明器具_対象経費) -> 0.05916620274 | C8: =INTERCEPT([0]!散布図_非常時用照明器具_削減額,[0]!散布図_非常時用照明器具_対象経費) -> -0.3452656263 | D8: y = 0.05917x -0.35 | E8: =SLOPE([0]!散布図_非常時用照明器具_排出削減量,[0]!散布図_非常時用照明器具_対象経費) -> 0.001470187744 | F8: =INTERCEPT([0]!散布図_非常時用照明器具_排出削減量,[0]!散布図_非常時用照明器具_対象経費) -> -1.0086232 | G8: y = 0.00147x -1.01
A9: 冷蔵・冷凍設備 | B9: =SLOPE([0]!散布図_冷蔵・冷凍設備_削減額,[0]!散布図_冷蔵・冷凍設備_対象経費) -> 0.1047897099 | C9: =INTERCEPT([0]!散布図_冷蔵・冷凍設備_削減額,[0]!散布図_冷蔵・冷凍設備_対象経費) -> -39.10425674 | D9: y = 0.10479x -39.1 | E9: =SLOPE([0]!散布図_冷蔵・冷凍設備_排出削減量,[0]!散布図_冷蔵・冷凍設備_対象経費) -> 0.001784869745 | F9: =INTERCEPT([0]!散布図_冷蔵・冷凍設備_排出削減量,[0]!散布図_冷蔵・冷凍設備_対象経費) -> -0.6967327373 | G9: y = 0.00178x -0.7
A10: 業務用冷蔵・冷凍庫 | B10: =SLOPE([0]!散布図_業務用冷蔵・冷凍庫_削減額,[0]!散布図_業務用冷蔵・冷凍庫_対象経費) -> 0.1180726988 | C10: =INTERCEPT([0]!散布図_業務用冷蔵・冷凍庫_削減額,[0]!散布図_業務用冷蔵・冷凍庫_対象経費) -> -55.39159555 | D10: y = 0.11807x -55.39 | E10: =SLOPE([0]!散布図_業務用冷蔵・冷凍庫_排出削減量,[0]!散布図_業務用冷蔵・冷凍庫_対象経費) -> 0.001341463275 | F10: =INTERCEPT([0]!散布図_業務用冷蔵・冷凍庫_排出削減量,[0]!散布図_業務用冷蔵・冷凍庫_対象経費) -> -0.3038720152 | G10: y = 0.00134x -0.3
A11: 一般用冷蔵・冷凍庫 | B11: =SLOPE([0]!散布図_一般用冷蔵・冷凍庫_削減額,[0]!散布図_一般用冷蔵・冷凍庫_対象経費) -> 2.397060886 | C11: =INTERCEPT([0]!散布図_一般用冷蔵・冷凍庫_削減額,[0]!散布図_一般用冷蔵・冷凍庫_対象経費) -> -1801.069902 | D11: y = 2.39706x -1801.07 | E11: =SLOPE([0]!散布図_一般用冷蔵・冷凍庫_排出削減量,[0]!散布図_一般用冷蔵・冷凍庫_対象経費) -> 0.02952908672 | F11: =INTERCEPT([0]!散布図_一般用冷蔵・冷凍庫_排出削減量,[0]!散布図_一般用冷蔵・冷凍庫_対象経費) -> -22.23075543 | G11: y = 0.02953x -22.23
A12: 冷凍・冷蔵ショーケース | B12: =SLOPE([0]!散布図_冷凍・冷蔵ショーケース_削減額,[0]!散布図_冷凍・冷蔵ショーケース_対象経費) -> 0.06172862106 | C12: =INTERCEPT([0]!散布図_冷凍・冷蔵ショーケース_削減額,[0]!散布図_冷凍・冷蔵ショーケース_対象経費) -> 23.19165863 | D12: y = 0.06173x + 23.19 | E12: =SLOPE([0]!散布図_冷凍・冷蔵ショーケース_排出削減量,[0]!散布図_冷凍・冷蔵ショーケース_対象経費) -> -0.001185892467 | F12: =INTERCEPT([0]!散布図_冷凍・冷蔵ショーケース_排出削減量,[0]!散布図_冷凍・冷蔵ショーケース_対象経費) -> 10.16121001 | G12: y = -0.00119x + 10.16
A13: コンデンシングユニット | B13: =SLOPE([0]!散布図_コンデンシングユニット_削減額,[0]!散布図_コンデンシングユニット_対象経費) -> 0.1057480665 | C13: =INTERCEPT([0]!散布図_コンデンシングユニット_削減額,[0]!散布図_コンデンシングユニット_対象経費) -> -44.17181557 | D13: y = 0.10575x -44.17 | E13: =SLOPE([0]!散布図_コンデンシングユニット_排出削減量,[0]!散布図_コンデンシングユニット_対象経費) -> 0.001920986856 | F13: =INTERCEPT([0]!散布図_コンデンシングユニット_排出削減量,[0]!散布図_コンデンシングユニット_対象経費) -> -1.004689415 | G13: y = 0.00192x -1
A14: チラー（冷却水循環装置） | B14: =SLOPE([0]!散布図_チラー_削減額,[0]!散布図_チラー_対象経費) -> 0.01290374332 | C14: =INTERCEPT([0]!散布図_チラー_削減額,[0]!散布図_チラー_対象経費) -> 98.26207081 | D14: y = 0.0129x + 98.26 | E14: =SLOPE([0]!散布図_チラー_排出削減量,[0]!散布図_チラー_対象経費) -> 0.0002328256284 | F14: =INTERCEPT([0]!散布図_チラー_排出削減量,[0]!散布図_チラー_対象経費) -> 1.112351395 | G14: y = 0.00023x + 1.11
A15: 一般・業務用ヒートポンプ式給湯器 | B15: 0 | C15: =【参照】グラフ作成用データ!BW2 -> 410.52 | D15: ="y = "& C15 -> y = 410.52 | E15: 0 | F15: =【参照】グラフ作成用データ!BX2 -> 7.75 | G15: ="y = "& F15 -> y = 7.75
A16: 高性能ボイラ | B16: 0 | C16: =【参照】グラフ作成用データ!CD2 -> 438.2 | D16: ="y = "& C16 -> y = 438.2 | E16: 0 | F16: =【参照】グラフ作成用データ!CE2 -> 9 | G16: ="y = "& F16 -> y = 9
A17: 変圧器 | B17: 0 | C17: =【参照】グラフ作成用データ!CK2 -> 596.82 | D17: y = 596.82 | E17: 0 | F17: =【参照】グラフ作成用データ!CL2 -> 12.61 | G17: y = 12.61
A18: 産業用モータ | B18: =SLOPE([0]!散布図_産業用モータ_削減額,[0]!散布図_産業用モータ_対象経費) -> 0.09384622591 | C18: =INTERCEPT([0]!散布図_産業用モータ_削減額,[0]!散布図_産業用モータ_対象経費) -> 47.29917744 | D18: y = 0.09385x + 47.3 | E18: =SLOPE([0]!散布図_産業用モータ_排出削減量,[0]!散布図_産業用モータ_対象経費) -> 0.001494216399 | F18: =INTERCEPT([0]!散布図_産業用モータ_排出削減量,[0]!散布図_産業用モータ_対象経費) -> 1.467964392 | G18: y = 0.00149x + 1.47
A19: 加熱設備 | B19: =SLOPE([0]!散布図_加熱設備_削減額,[0]!散布図_加熱設備_対象経費) -> 0.1116188903 | C19: =INTERCEPT([0]!散布図_加熱設備_削減額,[0]!散布図_加熱設備_対象経費) -> -111.1939642 | D19: y = 0.11162x -111.19 | E19: =SLOPE([0]!散布図_加熱設備_排出削減量,[0]!散布図_加熱設備_対象経費) -> 0.003776053189 | F19: =INTERCEPT([0]!散布図_加熱設備_排出削減量,[0]!散布図_加熱設備_対象経費) -> -12.29496032 | G19: y = 0.00378x -12.29
A20: 工作機械 | B20: 0 | C20: =【参照】グラフ作成用データ!DB2 -> 277.18 | D20: ="y = "& C20 -> y = 277.18 | E20: 0 | F20: =【参照】グラフ作成用データ!DC2 -> 4.57 | G20: ="y = "& F20 -> y = 4.57
A21: プラスチック加工機械 | B21: =SLOPE([0]!散布図_プラスチック加工機械_削減額,[0]!散布図_プラスチック加工機械_対象経費) -> 0.03863437742 | C21: =INTERCEPT([0]!散布図_プラスチック加工機械_削減額,[0]!散布図_プラスチック加工機械_対象経費) -> -69.24632722 | D21: y = 0.03863x -69.25 | E21: =SLOPE([0]!散布図_プラスチック加工機械_排出削減量,[0]!散布図_プラスチック加工機械_対象経費) -> 0.0007006829004 | F21: =INTERCEPT([0]!散布図_プラスチック加工機械_排出削減量,[0]!散布図_プラスチック加工機械_対象経費) -> -0.3042376076 | G21: y = 0.0007x -0.3
A22: プレス機械 | B22: 0 | C22: =【参照】グラフ作成用データ!DN2 -> 131.4 | D22: ="y = "& C22 -> y = 131.4 | E22: 0 | F22: =【参照】グラフ作成用データ!DO2 -> 0.82 | G22: ="y = "& F22 -> y = 0.82
A23: 印刷機械 | B23: 0 | C23: =【参照】グラフ作成用データ!DU2 -> 101.16 | D23: y = 101.16 | E23: 0 | F23: =【参照】グラフ作成用データ!DV2 -> 1.46 | G23: y = 1.46
A24: 発電設備 | B24: =SLOPE([0]!散布図_発電設備_削減額,[0]!散布図_発電設備_対象経費) -> 0.1172915887 | C24: =INTERCEPT([0]!散布図_発電設備_削減額,[0]!散布図_発電設備_対象経費) -> 101.0027198 | D24: y = 0.11729x + 101 | E24: =SLOPE([0]!散布図_発電設備_排出削減量,[0]!散布図_発電設備_対象経費) -> 0.001709218701 | F24: =INTERCEPT([0]!散布図_発電設備_排出削減量,[0]!散布図_発電設備_対象経費) -> 4.087394135 | G24: y = 0.00171x + 4.09
A25: 建物付属設備 | B25: =SLOPE([0]!散布図_建物付属設備_削減額,[0]!散布図_建物付属設備_対象経費) -> 0.05404105568 | C25: =INTERCEPT([0]!散布図_建物付属設備_削減額,[0]!散布図_建物付属設備_対象経費) -> 78.53832327 | D25: y = 0.05404x + 78.54 | E25: =SLOPE([0]!散布図_建物付属設備_排出削減量,[0]!散布図_建物付属設備_対象経費) -> 0.001263102255 | F25: =INTERCEPT([0]!散布図_建物付属設備_排出削減量,[0]!散布図_建物付属設備_対象経費) -> 0.926683297 | G25: y = 0.00126x + 0.93

Sheet 【入力補助】CO2排出量
B2: エネルギー起源CO2排出量算出用入力シート
C3: 電気、燃料、熱の月ごとの金額・使用量を、背景に色がついている入力欄に入力してください。黄色の欄は必ずご入力ください。（正しく出力されません。）水色の欄の入力は任意です。
C4: 電気事業者メニュー検索： | F4: こちらの入力欄のみ、金額の単位が「円」となりますので入力の際はご注意ください。シート「【入力】CO2算出（電気・都市ガス）」にて「千円」単位に変換されます。
F5: 年間の使用金額・使用量が分かっている方はJ・K列「年間」欄へ、月々の使用金額・使用量のみ分かっている方はL列以降の「4月」欄～「3月」欄に入力してください。年間・月々どちらかに入力してください。
B6: エネルギーの種類 | F6: 単位 | H6: 年合計 | J6: 年間 | L6: 4月 | N6: 5月 | P6: 6月 | R6: 7月 | T6: 8月 | V6: 9月 | X6: 10月 | Z6: 11月 | AB6: 12月 | AD6: 1月 | AF6: 2月 | AH6: 3月
F8: 金額 | G8: 使用量 | H8: 金額 | I8: 使用量 | J8: 金額 | K8: 使用量 | L8: 金額 | M8: 使用量 | N8: 金額 | O8: 使用量 | P8: 金額 | Q8: 使用量 | R8: 金額 | S8: 使用量 | T8: 金額 | U8: 使用量 | V8: 金額 | W8: 使用量 | X8: 金額 | Y8: 使用量 | Z8: 金額 | AA8: 使用量 | AB8: 金額 | AC8: 使用量 | AD8: 金額 | AE8: 使用量 | AF8: 金額 | AG8: 使用量 | AH8: 金額 | AI8: 使用量
B9: 電気 | F9: 円 | G9: kWh | H9: =IF(J9 <> "",J9,SUM(L9,N9,P9,R9,T9,V9,X9,Z9,AB9,AD9,AF9,AH9)) -> 0 | I9: =IF(K9 <> "",K9,SUM(M9,O9,Q9,S9,U9,W9,Y9,AA9,AC9,AE9,AG9,AI9)) -> 0
F10: 円 | G10: kWh | H10: =IF(J10 <> "",J10,SUM(L10,N10,P10,R10,T10,V10,X10,Z10,AB10,AD10,AF10,AH10)) -> 0 | I10: =IF(K10 <> "",K10,SUM(M10,O10,Q10,S10,U10,W10,Y10,AA10,AC10,AE10,AG10,AI10)) -> 0
F11: 円 | G11: kWh | H11: =IF(J11 <> "",J11,SUM(L11,N11,P11,R11,T11,V11,X11,Z11,AB11,AD11,AF11,AH11)) -> 0 | I11: 0
F12: 円 | G12: kWh | H12: 0 | I12: 0
F13: 円 | G13: kWh | H13: 0 | I13: 0
B15: 燃料 | C15: コンデンセート（NGL） | F15: 円 | G15: L | H15: =IF(J15 <> "",J15,SUM(L15,N15,P15,R15,T15,V15,X15,Z15,AB15,AD15,AF15,AH15)) -> 0 | I15: =IF(K15 <> "",K15,SUM(M15,O15,Q15,S15,U15,W15,Y15,AA15,AC15,AE15,AG15,AI15)) -> 0
C16: 油（コンデンセート（NGL）を除く。） | F16: 円 | G16: L | H16: =IF(J16 <> "",J16,SUM(L16,N16,P16,R16,T16,V16,X16,Z16,AB16,AD16,AF16,AH16)) -> 0 | I16: =IF(K16 <> "",K16,SUM(M16,O16,Q16,S16,U16,W16,Y16,AA16,AC16,AE16,AG16,AI16)) -> 0
C17: 揮発油 | F17: 円 | G17: L | H17: =IF(J17 <> "",J17,SUM(L17,N17,P17,R17,T17,V17,X17,Z17,AB17,AD17,AF17,AH17)) -> 0 | I17: 0
C18: ナフサ | F18: 円 | G18: L | H18: 0 | I18: 0
C19: ジェット燃料油 | F19: 円 | G19: L | H19: 0 | I19: 0
C20: 灯油 | F20: 円 | G20: L | H20: 0 | I20: 0
C21: 軽油 | F21: 円 | G21: L | H21: 0 | I21: 0
C22: Ａ重油 | F22: 円 | G22: L | H22: 0 | I22: 0
C23: Ｂ・Ｃ重油 | F23: 円 | G23: L | H23: 0 | I23: 0
C24: 潤滑油 | F24: 円 | G24: Kg | H24: 0 | I24: 0
C25: 石油ガス | D25: 液化石油ガス（LPG） | E25: プロパン・ブタン混合 | F25: 円 | G25: Kg | H25: 0 | I25: 0
D26: 石油系炭化⽔素ガス | F26: 円 | G26: Kg | H26: 0 | I26: 0
C27: 可燃性天然ガス | D27: 液化天然ガス（LNG） | F27: 円 | G27: Kg | H27: 0 | I27: 0
D28: 天然ガス（LNGを除く。） | F28: 円 | G28: ㎥ | H28: 0 | I28: 0
C29: 石炭 | D29: 輸入原料炭 | F29: 円 | G29: Kg | H29: 0 | I29: 0
D30: コークス⽤原料炭 | F30: 円 | G30: Kg | H30: 0 | I30: 0
D31: 吹込⽤原料炭 | F31: 円 | G31: Kg | H31: 0 | I31: 0
D32: 輸入一般炭 | F32: 円 | G32: Kg | H32: 0 | I32: 0
D33: 国産一般炭 | F33: 円 | G33: Kg | H33: 0 | I33: 0
D34: 輸入無煙炭 | F34: 円 | G34: Kg | H34: 0 | I34: 0
C35: 石炭コークス | F35: 円 | G35: Kg | H35: 0 | I35: 0
C36: 石油コークス又はFCCコーク（流 接触分解で使⽤された触媒に析出する炭素） | F36: 円 | G36: Kg | H36: 0 | I36: 0
C37: コールタール | F37: 円 | G37: Kg | H37: 0 | I37: 0
C38: 石油アスファルト | F38: 円 | G38: Kg | H38: 0 | I38: 0
C39: コークス炉ガス | F39: 円 | G39: ㎥ | H39: 0 | I39: 0
C40: 高炉ガス | F40: 円 | G40: ㎥ | H40: 0 | I40: 0
C41: 発電⽤高炉ガス | F41: 円 | G41: ㎥ | H41: 0 | I41: 0
C42: 転炉ガス | F42: 円 | G42: ㎥ | H42: 0 | I42: 0
C43: その他の燃料 | D43: 都市ガス | F43: 円 | G43: ㎥ | H43: 0 | I43: 0
C44: 廃棄物の燃料利⽤ | D44: RDF | F44: 円 | G44: Kg | H44: 0 | I44: 0
D45: RPF | F45: 円 | G45: Kg | H45: 0 | I45: 0
D46: 廃タイヤ | F46: 円 | G46: Kg | H46: 0 | I46: 0
D47: 廃プラスチック類（一般廃棄物） | F47: 円 | G47: Kg | H47: 0 | I47: 0
D48: 廃プラスチック類（産業廃棄物） | F48: 円 | G48: Kg | H48: 0 | I48: 0
D49: 廃油（植物性のもの及び 物性のものを除く。）、廃油（植物性のもの及び 物性のものを除く。）から製造された燃料炭化⽔素油 | F49: 円 | G49: Kg | H49: 0 | I49: 0
D50: 廃プラスチック類から製造された燃料炭化⽔素油 | F50: 円 | G50: Kg | H50: 0 | I50: 0
B52: 熱 | C52: 産業用蒸気 | F52: 円 | G52: MJ | H52: =IF(J52<> "",J52,SUM(L52,N52,P52,R52,T52,V52,X52,Z52,AB52,AD52,AF52,AH52)) -> 0 | I52: =IF(K52 <> "",K52,SUM(M52,O52,Q52,S52,U52,W52,Y52,AA52,AC52,AE52,AG52,AI52)) -> 0
C53: 産業用以外の蒸気 | F53: 円 | G53: MJ | H53: =IF(J53 <> "",J53,SUM(L53,N53,P53,R53,T53,V53,X53,Z53,AB53,AD53,AF53,AH53)) -> 0 | I53: =IF(K53 <> "",K53,SUM(M53,O53,Q53,S53,U53,W53,Y53,AA53,AC53,AE53,AG53,AI53)) -> 0
C54: 温水 | F54: 円 | G54: MJ | H54: =IF(J54 <> "",J54,SUM(L54,N54,P54,R54,T54,V54,X54,Z54,AB54,AD54,AF54,AH54)) -> 0 | I54: 0
C55: 冷水 | F55: 円 | G55: MJ | H55: =IF(J55 <> "",J55,SUM(L55,N55,P55,R55,T55,V55,X55,Z55,AB55,AD55,AF55,AH55)) -> 0 | I55: =IF(K55 <> "",K55,SUM(M55,O55,Q55,S55,U55,W55,Y55,AA55,AC55,AE55,AG55,AI55)) -> 0
B57: ※1 本計算ツールにおいて「調整後排出係数等を用いたCO2排出量」とは、調整後排出係数、無効化した国内認証排出削
B58: 減量（他者へ移転した量を差し引いたもの）又は海外認証排出削減量を反映したCO2排出量をいいます。
B59: なお、本値には非エネルギー起源CO2排出量等が含まれておらず、温対法に報告する調整後排出量とは異なります
B60: のでご注意ください。
B62: 引用元：エネルギー起源二酸化炭素排出量等計算ツール（経済産業省HP）

Sheet 【入力】CO2算出（電気・都市ガス）
B2: エネルギー起源二酸化炭素排出量等計算ツール
B4: このツールは、エネルギー起源二酸化炭素排出量等の計算のためのツールです。「エネルギー起源二酸化炭素排出量等計算ツールの利用マニュアル」を参照のうえ、以下のとおり使用してください。 利用マニュアルはこちら ⇒ （１）計算ツールの色付きのセルに入力してください。黄色は必須入力項目、水色は任意入力項目となります。 （２）各数値は、事業者全体のCO2排出量を計算したい場合は事業者全体の値、特定の事業所のCO2排出量を計算したい場合は当該事業所の値について、1年度（4月～3月）の合計値を入力してください。 各数値の1年度（4月～3月）の合計値を出す際に月ごとの数値を足し合わせる計算が必要な場合、シート「【入力補助】CO2排出量」に月ごとの使用量、使用金額を入力いただくことで、こちらのシートに合計値を反映させることができます。 （３）電気の入力欄について、導入前と導入後でそれぞれに必須項目がございますので、どちらも必ず入力を行ってください。 （４）計算ツールはエクセルで作成されており、計算式の破損防止のために、シートには保護がかけてあります。
B6: １．電気の入力欄
C7: 【導入前（現在）】
C8: 「利用マニュアル」を参照のうえ、電気を購入している電気事業者ごとに、下表の黄色セル・水色セルに数値を入力してください。
C9: 電気事業者メニュー検索：
C10: 電気事業者メニュー （係数の根拠） | L10: 基礎排出係数 t-CO2/kWh | R10: 調整後排出係数 t-CO2/kWh | X10: 使用金額 千円 | AD10: 使用量 千kWh | AH10: 基礎排出量 t-CO2 | AN10: 調整後排出量 t-CO2 | AT10: 係数の適用範囲
C12: =IF(【入力補助】CO2排出量!C9="","",【入力補助】CO2排出量!C9) ->  | L12: =IFERROR(SUBSTITUTE(VLOOKUP(C12,【参照】排出量係数!$C$2:$E$2000,2,FALSE),"※",""),"") ->  | R12: =IFERROR(SUBSTITUTE(VLOOKUP(C12,【参照】排出量係数!$C$2:$E$2000,3,FALSE),"※",""),"") ->  | X12: =【入力補助】CO2排出量!H9/1000 -> 0 | AD12: =【入力補助】CO2排出量!I9/1000 -> 0 | AH12: =IFERROR(L12*AD12*1000,"") ->  | AN12: =IFERROR(R12*AD12*1000,"") ->  | AT12: =IF(C12="","",C12&"管内の工場等") -> 
C13: =IF(【入力補助】CO2排出量!C10="","",【入力補助】CO2排出量!C10) ->  | L13: =IFERROR(SUBSTITUTE(VLOOKUP(C13,【参照】排出量係数!$C$2:$E$2000,2,FALSE),"※",""),"") ->  | R13: =IFERROR(SUBSTITUTE(VLOOKUP(C13,【参照】排出量係数!$C$2:$E$2000,3,FALSE),"※",""),"") ->  | X13: =【入力補助】CO2排出量!H10/1000 -> 0 | AD13: =【入力補助】CO2排出量!I10/1000 -> 0 | AH13: =IFERROR(L13*AD13*1000,"") ->  | AN13: =IFERROR(R13*AD13*1000,"") -> 
C14: =IF(【入力補助】CO2排出量!C11="","",【入力補助】CO2排出量!C11) ->  | L14: =IFERROR(SUBSTITUTE(VLOOKUP(C14,【参照】排出量係数!$C$2:$E$2000,2,FALSE),"※",""),"") ->  | R14: =IFERROR(SUBSTITUTE(VLOOKUP(C14,【参照】排出量係数!$C$2:$E$2000,3,FALSE),"※",""),"") ->  | X14: =【入力補助】CO2排出量!H11/1000 -> 0 | AD14: =【入力補助】CO2排出量!I11/1000 -> 0
C15: =IF(【入力補助】CO2排出量!C12="","",【入力補助】CO2排出量!C12) ->  | L15: =IFERROR(SUBSTITUTE(VLOOKUP(C15,【参照】排出量係数!$C$2:$E$2000,2,FALSE),"※",""),"") ->  | R15: =IFERROR(SUBSTITUTE(VLOOKUP(C15,【参照】排出量係数!$C$2:$E$2000,3,FALSE),"※",""),"") ->  | X15: =【入力補助】CO2排出量!H12/1000 -> 0 | AD15: =【入力補助】CO2排出量!I12/1000 -> 0 | AH15: =IFERROR(L15*AD15*1000,"") -> 
C16: =IF(【入力補助】CO2排出量!C13="","",【入力補助】CO2排出量!C13) ->  | L16: =IFERROR(SUBSTITUTE(VLOOKUP(C16,【参照】排出量係数!$C$2:$E$2000,2,FALSE),"※",""),"") ->  | R16: =IFERROR(SUBSTITUTE(VLOOKUP(C16,【参照】排出量係数!$C$2:$E$2000,3,FALSE),"※",""),"") ->  | X16: =【入力補助】CO2排出量!H13/1000 -> 0 | AD16: =【入力補助】CO2排出量!I13/1000 -> 0
L17: =IFERROR(SUBSTITUTE(VLOOKUP(C17,【参照】排出量係数!$C$2:$E$2000,2,FALSE),"※",""),"") ->  | R17: =IFERROR(SUBSTITUTE(VLOOKUP(C17,【参照】排出量係数!$C$2:$E$2000,3,FALSE),"※",""),"") -> 
L18: =IFERROR(SUBSTITUTE(VLOOKUP(C18,【参照】排出量係数!$C$2:$E$2000,2,FALSE),"※",""),"") ->  | R18: =IFERROR(SUBSTITUTE(VLOOKUP(C18,【参照】排出量係数!$C$2:$E$2000,3,FALSE),"※",""),"") -> 
L19: =IFERROR(SUBSTITUTE(VLOOKUP(C19,【参照】排出量係数!$C$2:$E$2000,2,FALSE),"※",""),"") ->  | R19: =IFERROR(SUBSTITUTE(VLOOKUP(C19,【参照】排出量係数!$C$2:$E$2000,3,FALSE),"※",""),"") -> 
L20: =IFERROR(SUBSTITUTE(VLOOKUP(C20,【参照】排出量係数!$C$2:$E$2000,2,FALSE),"※",""),"") ->  | R20: =IFERROR(SUBSTITUTE(VLOOKUP(C20,【参照】排出量係数!$C$2:$E$2000,3,FALSE),"※",""),"") -> 
L21: =IFERROR(SUBSTITUTE(VLOOKUP(C21,【参照】排出量係数!$C$2:$E$2000,2,FALSE),"※",""),"") ->  | R21: =IFERROR(SUBSTITUTE(VLOOKUP(C21,【参照】排出量係数!$C$2:$E$2000,3,FALSE),"※",""),"") -> 
C22: 合計 | L22: - | R22: - | X22: =SUM(X12:AC21) -> 0 | AD22: =SUM(AD12:AG21) -> 0 | AH22: =SUM(AH12:AM21) -> 0 | AN22: =SUM(AN12:AS21) -> 0 | AT22: -
C25: 【導入後】
C26: 設備導入後、電気を購入する電気事業者メニューを選択してください。
C27: 複数ある場合は、主となる1つを選択してください。
C28: 電気事業者メニュー検索：
C29: 電気事業者メニュー | L29: 中部電力ミライズ(株) メニューA
B32: ２．都市ガスの入力欄
C33: 「利用マニュアル」を参照のうえ、都市ガスを購入している事業者ごとに、下表の水色セルに入力してください。
C35: 都市ガス会社名 | M35: 規格 | P35: 単位発熱量 | X35: CO2 排出係数 t-C/GJ | AJ35: 使用金額 千円 | AO35: 使用量 千m3 | AT35: CO2/C | AW35: CO2排出量 t-CO2
P36: 係数 | T36: 単位
T37: GJ/千m3 | X37: 0.014 | AJ37: =【入力補助】CO2排出量!H43/1000 -> 0 | AO37: =【入力補助】CO2排出量!I43/1000 -> 0 | AT37: =44/12 -> 3.666666667 | AW37: =P37*X37*AO37*AT37 -> 0
T38: GJ/千m3 | X38: 0.014 | AT38: =44/12 -> 3.666666667 | AW38: =P38*X38*AO38*AT38 -> 0
T39: GJ/千m3 | X39: 0.014 | AT39: =44/12 -> 3.666666667 | AW39: =P39*X39*AO39*AT39 -> 0
C40: 合計 | M40: - | P40: - | X40: - | AJ40: =SUM(AJ37:AN39) -> 0 | AO40: =SUM(AO37:AS39) -> 0 | AW40: =SUM(AW37:BA39) -> 0
B45: ３．国内認証排出削減量及び海外認証排出削減量
C46: 「利用マニュアル」を参照のうえ、以下の（１）～（３）の水色セルに入力してください。
C47: なお、（１）～（３）の入力は任意です。CO2をオフセットするJ-クレジットやJCMクレジットといったクレジットを扱ったことがない
C48: 事業者は、下記については入力不要です。
B50: （１）調整後温室効果ガス排出量の算定に用いた国内認証排出削減量及び海外認証排出削減量の量
C51: 種別 | R51: 合計量
Y52: ｔ－CO2
Y53: ｔ－CO2
Y54: ｔ－CO2
Y55: ｔ－CO2
C56: 合計量 | R56: =SUM(R52:X55) -> 0 | Y56: ｔ－CO2
B59: （２）国内認証排出削減量に係る情報
C60: 削減量の識別
C61: クレジット特定番号等 | X61: 無効化日又は移転日 | AM61: 無効加量又は移転量
M62: ～ | AS62: ｔ－CO2
M63: ～ | AS63: ｔ－CO2
M64: ～ | AS64: ｔ－CO2
C65: 合計量 | AM65: =SUM(AM62:AR64) -> 0 | AS65: ｔ－CO2
C67: 削減量の識別
C68: クレジット特定番号等 | X68: 無効化日又は移転日 | AM68: 無効加量又は移転量
M69: ～ | AS69: ｔ－CO2
M70: ～ | AS70: ｔ－CO2
M71: ～ | AS71: ｔ－CO2
C72: 合計量 | AM72: =SUM(AM69:AR71) -> 0 | AS72: ｔ－CO2
C74: 削減量の識別
C75: クレジット特定番号等 | X75: 無効化日又は移転日 | AM75: 無効加量又は移転量
M76: ～ | AS76: ｔ－CO2
M77: ～ | AS77: ｔ－CO2
M78: ～ | AS78: ｔ－CO2
C79: 合計量 | AM79: =SUM(AM76:AR78) -> 0 | AS79: ｔ－CO2
B82: （３）海外認証排出削減量に係る情報
C83: 削減量の識別
C84: 識別番号 | X84: 無効化日 | AM84: 無効加量
AS85: ｔ－CO2
AS86: ｔ－CO2
AS87: ｔ－CO2
C88: 合計量 | AM88: =SUM(AM85:AR87) -> 0 | AS88: ｔ－CO2
B91: 引用元：エネルギー起源二酸化炭素排出量等計算ツール（経済産業省HP）

Sheet 【出力】投資によるエネルギーコスト・CO2排出量削減効果
A1: 投資によるエネルギーコスト・CO2排出量削減効果
A2: 会社全体の現在のエネルギーコスト（≒水道光熱費）や二酸化炭素排出量を見える化します。
A3: さらに、今回の投資によって削減できるエネルギーコストや二酸化炭素排出量が分かります。
B4: エネルギーコスト・CO2排出量（同規模同業種との比較）
B6: =" 業種 ※1："&【参考】データ集計!BF2&" ／ 売上規模（千円）："&【参考】データ集計!BG2 -> 業種 ※1： ／ 売上規模（千円）：
B7: ="（該当件数： "&【参考】データ集計!BS2&" 件）" -> （該当件数： 0 件）
B8: 自社コスト年間合計額（千円） | G8: 導入前 | J8: 導入後※3
G9: =【出力】CO2排出量計算表!L58 -> 0 | J9: =IFERROR(IF(【入力】導入設備!C22="",G9-VLOOKUP(VLOOKUP(【入力】導入設備!C9*1000,【参照】選択リスト!A87:B103,2),'【出力】削減量グラフ（選択設備）'!C60:H80,4,FALSE),G9-【入力】導入設備!C22),0) -> 0
B12: (参考)助成金申請者コスト平均額（千円） | G12: =IFERROR(【参考】データ集計!BT2/1000, "該当データがありません") -> 該当データがありません
B16: 自社CO2年間排出量（t-CO2） | G16: 導入前 | J16: 導入後 ※3
G17: =【出力】CO2排出量計算表!K57 -> 0 | J17: =IFERROR(IF(C29=0,【出力】CO2排出量計算表!K57-(【参照】散布図_計算式!K3*【入力】導入設備!C9 +(【参照】散布図_計算式!L3)), IF(C29=1, 【出力】CO2排出量計算表!K57-【参照】散布図_計算式!L3, IF(B29 = 0,【出力】CO2排出量計算表!K57-VLOOKUP(VLOOKUP(【入力】導入設備!C9*1000,【参照】選択リスト!A87:B103,2),'【出力】削減量グラフ（全設備）'!C60:H80,6,FALSE),【出力】CO2排出量計算表!K57-VLOOKUP(VLOOKUP(【入力】導入設備!C9*1000,【参照】選択リスト!A87:B103,2),'【出力】削減量グラフ（選択設備）'!C60:H80,6,FALSE)))),0) -> 0
B20: 自社の設備導入後CO2削減量 | G20: =IFERROR(IF(C29=0, "約" & ROUND(【参照】散布図_計算式!K3*【入力】導入設備!C9 +(【参照】散布図_計算式!L3),1) & "t（" & ROUND((【参照】散布図_計算式!K3*【入力】導入設備!C9 +(【参照】散布図_計算式!L3)) /G17 *100, 1) & "%）", IF(C29=1, "約" & ROUND(【参照】散布図_計算式!L3, 1) & "t（" & ROUND(【参照】散布図_計算式!L3 / G17 * 100,1) & "%）", IF(B29 = 0, "約" & ROUND(VLOOKUP(VLOOKUP(【入力】導入設備!C9*1000,【参照】選択リスト!A87:B103,2),'【出力】削減量グラフ（全設備）'!C60:H80,6,FALSE),1) & "t（" & ROUND(VLOOKUP(VLOOKUP(【入力】導入設備!C9*1000,【参照】選択リスト!A87:B103,2),'【出力】削減量グラフ（全設備）'!C60:H80,6,FALSE) / G17 * 100,1) & "%）", "約" & ROUND(VLOOKUP(VLOOKUP(【入力】導入設備!C9*1000,【参照】選択リスト!A87:B103,2),'【出力】削減量グラフ（選択設備）'!C60:H80,6,FALSE),1) & "t（" & ROUND(VLOOKUP(VLOOKUP(【入力】導入設備!C9*1000,【参照】選択リスト!A87:B103,2),'【出力】削減量グラフ（選択設備）'!C60:H80,6,FALSE) / G17 * 100,1) & "%）"))),"0.0") -> 0.0
B22: ="電気事業者メニュー:"&'【入力】CO2算出（電気・都市ガス）'!L29 -> 電気事業者メニュー:中部電力ミライズ(株) メニューA | G22: CO2を削減可能 | L22: =IF(B29 = 0, "※", "") -> 
B24: (参考)助成金申請者CO2平均排出量 （t-CO2）※2 | G24: =IFERROR(【参考】データ集計!BU2,"該当データがありません") -> 該当データがありません
B28: =IF(B29 = 0, "※ 選択された設備のデータがないため、全設備のデータを使用しています。", "") -> 
B29: =IFERROR(VLOOKUP(VLOOKUP(【入力】導入設備!C9*1000,【参照】選択リスト!A87:B103,2),'【出力】削減量グラフ（選択設備）'!C60:H80,6,FALSE), "") ->  | C29: =IF(【参照】散布図_計算式!M3="該当データなし",2,IF(AND(【参照】散布図_計算式!K3=0,【参照】散布図_計算式!N3<>"該当データなし"),1,0)) -> 2
B30: ■算出式
B31: =" 導入後自社コスト：" & 【参照】散布図_計算式!M3&" ， 自社CO2排出削減量："&【参照】散布図_計算式!N3 -> 導入後自社コスト：該当データなし ， 自社CO2排出削減量：該当データなし
A33: （注意事項）
B34: ※1 日本標準分類（細分類）の「一般貸切旅客自動車運送業」「航空運送業」「他に分類されない運輸に附帯するサービス業」「旅行業（旅行業者代理業を除く）」
B35: 「旅行業者代理業」「他に分類されないその他の生活関連サービス業」については「サービス業，その他」に含まれます。
B36: ※2 CO2排出量について、算出には下記の一般的な係数を使用しているため参考値となります。
B37: 電気：【入力】CO2算出（電気・都市ガス）にて選択した導入後の電気事業者メニューの係数を使用
B38: LPG（㎥）：0.0142、LPG（kl）：0.0161、LNG（㎥）：0.0139、LNG（kl）：0.0135、都市ガス：0.0136（単位発熱量係数：45）、灯油：0.0185、A重油：0.0189
B39: ※3 「自社コスト年間合計額（導入後）」「自社CO2年間排出量（導入後）」の値は、他社のデータや入力いただいた水道光熱費のデータなどを基に算出しています。
B40: 各項目の値の算出の考え方は下記の通りです。
B41: 自社コスト年間合計額（導入後）：（自社コスト年間合計額（導入前））ー（水道光熱費削減額） ※水道光熱費削減額は、シート「【入力】導入設備」より値を取得しております。
B42: 自社CO2年間排出量（導入後）：（自社CO2年間排出量（導入前））-（助成金申請者のデータより算出したCO2削減量参考値）
B43: ※（助成金申請者のデータより算出したCO2削減量参考値）について、選択した設備の助成金申請者データがある場合は、選択設備に絞り込んだデータの近似曲線を利用して値を算出しています。
B44: 算出に使用している式は本シート内の「■算出式」をご確認ください。
B45: データの傾向についてはシート「【出力】散布図」のグラフをご確認ください。
B46: 選択した設備の助成金申請者データがない場合は、全設備のデータの平均CO2削減量を使用しています。

Sheet 【出力】CO2排出量計算表
B2: ４．エネルギー起源CO2排出量計算表
C3: シート「【入力補助】CO2排出量」で入力された月ごとの金額・使用量が合算されますのでご確認下さい。
B5: エネルギーの種類 | E5: 金額 | F5: 使用量 | H5: 係数 | K5: CO2排出量
H6: 単位発熱量 | I6: 排出係数 | J6: CO2/C | K6: CO2基礎 排出量 | L6: 調整後排出係数等を用いた CO2排出量 ※1
E7: 千円 | F7: 単位 | G7: 数値 | H7: GJ/単位 | I7: t-CO2/kWh | J7: ×44/12 | K7: t-CO2 | L7: t-CO2
B8: 電 気 | C8: 買電（購入電気） | E8: ='【入力】CO2算出（電気・都市ガス）'!X22 -> 0 | F8: 千kWh | G8: ='【入力】CO2算出（電気・都市ガス）'!AD22 -> 0 | H8: 「１．電気の入力欄」参照 | K8: ='【入力】CO2算出（電気・都市ガス）'!AH22 -> 0 | L8: ='【入力】CO2算出（電気・都市ガス）'!AN22 -> 0
C9: 電気合計 | E9: =SUM(E8) -> 0 | K9: =SUM(K8) -> 0 | L9: =SUM(L8) -> 0
H10: GJ/単位 | I10: t-C/GJ | J10: ×44/12
B11: 燃料 | C11: コンデンセート（NGL） | E11: =【入力補助】CO2排出量!H15/1000 -> 0 | F11: kL | G11: =【入力補助】CO2排出量!I15/1000 -> 0 | H11: 34.8 | I11: 0.0183 | J11: =44/12 -> 3.666666667 | K11: =$G11*$H11*$I11*$J11 -> 0 | L11: =$G11*$H11*$I11*$J11 -> 0
C12: 原油（コンデンセート（NGL）を除く。） | E12: =【入力補助】CO2排出量!H16/1000 -> 0 | F12: kL | G12: =【入力補助】CO2排出量!I16/1000 -> 0 | H12: 38.3 | I12: 0.019 | J12: =44/12 -> 3.666666667 | K12: =$G12*$H12*$I12*$J12 -> 0 | L12: =$G12*$H12*$I12*$J12 -> 0
C13: 揮発油 | E13: =【入力補助】CO2排出量!H17/1000 -> 0 | F13: kL | G13: =【入力補助】CO2排出量!I17/1000 -> 0 | H13: 33.4 | I13: 0.0187 | J13: 3.666666667 | K13: =$G13*$H13*$I13*$J13 -> 0 | L13: 0
C14: ナフサ | E14: =【入力補助】CO2排出量!H18/1000 -> 0 | F14: kL | G14: =【入力補助】CO2排出量!I18/1000 -> 0 | H14: 33.3 | I14: 0.0186 | J14: 3.666666667 | K14: 0 | L14: 0
C15: ジェット燃料油 | E15: =【入力補助】CO2排出量!H19/1000 -> 0 | F15: kL | G15: =【入力補助】CO2排出量!I19/1000 -> 0 | H15: 36.3 | I15: 0.0186 | J15: 3.666666667 | K15: 0 | L15: 0
C16: 灯油 | E16: =【入力補助】CO2排出量!H20/1000 -> 0 | F16: kL | G16: =【入力補助】CO2排出量!I20/1000 -> 0 | H16: 36.5 | I16: 0.0187 | J16: 3.666666667 | K16: 0 | L16: 0
C17: 軽油 | E17: =【入力補助】CO2排出量!H21/1000 -> 0 | F17: kL | G17: =【入力補助】CO2排出量!I21/1000 -> 0 | H17: 38 | I17: 0.0188 | J17: 3.666666667 | K17: 0 | L17: 0
C18: Ａ重油 | E18: =【入力補助】CO2排出量!H22/1000 -> 0 | F18: kL | G18: =【入力補助】CO2排出量!I22/1000 -> 0 | H18: 38.9 | I18: 0.0193 | J18: 3.666666667 | K18: =$G18*$H18*$I18*$J18 -> 0 | L18: 0
C19: Ｂ・Ｃ重油 | E19: =【入力補助】CO2排出量!H23/1000 -> 0 | F19: kL | G19: =【入力補助】CO2排出量!I23/1000 -> 0 | H19: 41.8 | I19: 0.0202 | J19: 3.666666667 | K19: =$G19*$H19*$I19*$J19 -> 0 | L19: 0
C20: 潤滑油 | E20: =【入力補助】CO2排出量!H24/1000 -> 0 | F20: ｔ | G20: =【入力補助】CO2排出量!I24/1000 -> 0 | H20: 40.2 | I20: 0.0199 | J20: 3.666666667 | K20: 0 | L20: 0
C21: 石油ガス | D21: 液化石油ガス（LPG） | E21: =【入力補助】CO2排出量!H25/1000 -> 0 | F21: ｔ | G21: =IF(【入力補助】CO2排出量!E25="プロパン・ブタン混合",【入力補助】CO2排出量!I25*(1/458),IF(【入力補助】CO2排出量!E25="プロパン",【入力補助】CO2排出量!I25*(1/502),IF(【入力補助】CO2排出量!E25="ブタン",【入力補助】CO2排出量!I25*(1/355),""))) -> 0 | H21: 50.1 | I21: 0.0163 | J21: 3.666666667 | K21: =$G21*$H21*$I21*$J21 -> 0 | L21: 0
D22: 石油系炭化⽔素ガス | E22: =【入力補助】CO2排出量!H26/1000 -> 0 | F22: ｔ | G22: =【入力補助】CO2排出量!I26/1000 -> 0 | H22: 46.1 | I22: 0.0144 | J22: 3.666666667 | K22: 0 | L22: 0
C23: 可燃性天然ガス | D23: 液化天然ガス（LNG） | E23: =【入力補助】CO2排出量!H27/1000 -> 0 | F23: ｔ | G23: =【入力補助】CO2排出量!I27/1000 -> 0 | H23: 54.7 | I23: 0.0139 | J23: 3.666666667 | K23: 0 | L23: 0
D24: 天然ガス（LNGを除く。） | E24: =【入力補助】CO2排出量!H28/1000 -> 0 | F24: 千m3 | G24: =【入力補助】CO2排出量!I28/1000 -> 0 | H24: 38.4 | I24: 0.0139 | J24: 3.666666667 | K24: 0 | L24: 0
C25: 石炭 | D25: 輸入原料炭 | E25: =【入力補助】CO2排出量!H29/1000 -> 0 | F25: ｔ | G25: =【入力補助】CO2排出量!I29/1000 -> 0 | H25: 28.7 | I25: 0.0246 | J25: 3.666666667 | K25: 0 | L25: 0
D26: コークス⽤原料炭 | E26: =【入力補助】CO2排出量!H30/1000 -> 0 | F26: ｔ | G26: =【入力補助】CO2排出量!I30/1000 -> 0 | H26: 28.9 | I26: 0.0245 | J26: 3.666666667 | K26: 0 | L26: 0
D27: 吹込⽤原料炭 | E27: =【入力補助】CO2排出量!H31/1000 -> 0 | F27: ｔ | G27: =【入力補助】CO2排出量!I31/1000 -> 0 | H27: 28.3 | I27: 0.0251 | J27: 3.666666667 | K27: 0 | L27: 0
D28: 輸入一般炭 | E28: =【入力補助】CO2排出量!H32/1000 -> 0 | F28: ｔ | G28: =【入力補助】CO2排出量!I32/1000 -> 0 | H28: 26.1 | I28: 0.0243 | J28: 3.666666667 | K28: 0 | L28: 0
D29: 国産一般炭 | E29: =【入力補助】CO2排出量!H33/1000 -> 0 | F29: ｔ | G29: =【入力補助】CO2排出量!I33/1000 -> 0 | H29: 24.2 | I29: 0.0242 | J29: 3.666666667 | K29: 0 | L29: 0
D30: 輸入無煙炭 | E30: =【入力補助】CO2排出量!H34/1000 -> 0 | F30: ｔ | G30: =【入力補助】CO2排出量!I34/1000 -> 0 | H30: 27.8 | I30: 0.0259 | J30: 3.666666667 | K30: 0 | L30: 0
C31: 石炭コークス | E31: =【入力補助】CO2排出量!H35/1000 -> 0 | F31: ｔ | G31: =【入力補助】CO2排出量!I35/1000 -> 0 | H31: 29 | I31: 0.0299 | J31: 3.666666667 | K31: 0 | L31: 0
C32: 石油コークス又はFCCコーク（流 接触分解で使⽤された触媒に析出する炭素） | E32: =【入力補助】CO2排出量!H36/1000 -> 0 | F32: ｔ | G32: =【入力補助】CO2排出量!I36/1000 -> 0 | H32: 34.1 | I32: 0.0245 | J32: 3.666666667 | K32: 0 | L32: 0
C33: コールタール | E33: =【入力補助】CO2排出量!H37/1000 -> 0 | F33: ｔ | G33: =【入力補助】CO2排出量!I37/1000 -> 0 | H33: 37.3 | I33: 0.0209 | J33: 3.666666667 | K33: 0 | L33: 0
C34: 石油アスファルト | E34: =【入力補助】CO2排出量!H38/1000 -> 0 | F34: ｔ | G34: =【入力補助】CO2排出量!I38/1000 -> 0 | H34: 40 | I34: 0.0204 | J34: 3.666666667 | K34: 0 | L34: 0
C35: コークス炉ガス | E35: =【入力補助】CO2排出量!H39/1000 -> 0 | F35: 千m3 | G35: =【入力補助】CO2排出量!I39/1000 -> 0 | H35: 18.4 | I35: 0.0109 | J35: 3.666666667 | K35: 0 | L35: 0
C36: 高炉ガス | E36: =【入力補助】CO2排出量!H40/1000 -> 0 | F36: 千m3 | G36: =【入力補助】CO2排出量!I40/1000 -> 0 | H36: 3.23 | I36: 0.0264 | J36: 3.666666667 | K36: 0 | L36: 0
C37: 発電⽤高炉ガス | E37: =【入力補助】CO2排出量!H41/1000 -> 0 | F37: 千m3 | G37: =【入力補助】CO2排出量!I41/1000 -> 0 | H37: 3.45 | I37: 0.0264 | J37: 3.666666667 | K37: 0 | L37: 0
C38: 転炉ガス | E38: =【入力補助】CO2排出量!H42/1000 -> 0 | F38: 千m3 | G38: =【入力補助】CO2排出量!I42/1000 -> 0 | H38: 7.53 | I38: 0.042 | J38: 3.666666667 | K38: 0 | L38: 0
C39: その他の燃料 | D39: 都市ガス | E39: ='【入力】CO2算出（電気・都市ガス）'!AJ40 -> 0 | F39: 千m3 | G39: ='【入力】CO2算出（電気・都市ガス）'!AO40 -> 0 | H39: 「２．都市ガスの入力欄」参照 | K39: ='【入力】CO2算出（電気・都市ガス）'!AW40 -> 0 | L39: =K39 -> 0
C40: 廃棄物の燃料利⽤ | D40: RDF | E40: =【入力補助】CO2排出量!H44/1000 -> 0 | F40: ｔ | G40: =【入力補助】CO2排出量!I44/1000 -> 0 | H40: 18 | I40: 0.0162 | J40: =44/12 -> 3.666666667 | K40: 0 | L40: 0
D41: RPF | E41: =【入力補助】CO2排出量!H45/1000 -> 0 | F41: ｔ | G41: =【入力補助】CO2排出量!I45/1000 -> 0 | H41: 26.9 | I41: 0.0166 | J41: 3.666666667 | K41: 0 | L41: 0
D42: 廃タイヤ | E42: =【入力補助】CO2排出量!H46/1000 -> 0 | F42: ｔ | G42: =【入力補助】CO2排出量!I46/1000 -> 0 | H42: 33.2 | I42: 0.0135 | J42: 3.666666667 | K42: 0 | L42: 0
D43: 廃プラスチック類（一般廃棄物） | E43: =【入力補助】CO2排出量!H47/1000 -> 0 | F43: ｔ | G43: =【入力補助】CO2排出量!I47/1000 -> 0 | H43: 29.3 | I43: 0.0257 | J43: 3.666666667 | K43: 0 | L43: 0
D44: 廃プラスチック類（産業廃棄物） | E44: =【入力補助】CO2排出量!H48/1000 -> 0 | F44: ｔ | G44: =【入力補助】CO2排出量!I48/1000 -> 0 | H44: 29.3 | I44: 0.0239 | J44: 3.666666667 | K44: 0 | L44: 0
D45: 廃油（植物性のもの及び 物性のものを除く。）、廃油（植物性のもの及び 物性のものを除く。）から製造された燃料炭化⽔素油 | E45: =【入力補助】CO2排出量!H49/1000 -> 0 | F45: ｔ | G45: =【入力補助】CO2排出量!I49/1000 -> 0 | H45: 40.2 | I45: 0.0179 | J45: 3.666666667 | K45: 0 | L45: 0
D46: 廃プラスチック類から製造された燃料炭化⽔素油 | E46: =【入力補助】CO2排出量!H50/1000 -> 0 | F46: ｔ | G46: =【入力補助】CO2排出量!I50/1000 -> 0 | H46: 38 | I46: 0.0188 | J46: 3.666666667 | K46: 0 | L46: 0
C47: 燃料合計 | E47: =SUM(E11:E46) -> 0 | K47: =SUM(K11:K46) -> 0 | L47: =SUM(L11:L46) -> 0
I48: t-CO2/GJ
B49: 熱 | C49: 産業用蒸気 | E49: =【入力補助】CO2排出量!H52/1000 -> 0 | F49: GJ | G49: =【入力補助】CO2排出量!I52/1000 -> 0 | H49: - | I49: 0.0654 | J49: - | K49: =$G49*$I49 -> 0 | L49: =$G49*$I49 -> 0
C50: 産業用以外の蒸気 | E50: =【入力補助】CO2排出量!H53/1000 -> 0 | F50: GJ | G50: =【入力補助】CO2排出量!I53/1000 -> 0 | H50: - | I50: 0.0532 | J50: - | K50: =$G50*$I50 -> 0 | L50: =$G50*$I50 -> 0
C51: 温水 | E51: =【入力補助】CO2排出量!H54/1000 -> 0 | F51: GJ | G51: =【入力補助】CO2排出量!I54/1000 -> 0 | H51: - | I51: 0.0532 | J51: - | K51: 0 | L51: =$G51*$I51 -> 0
C52: 冷水 | E52: =【入力補助】CO2排出量!H55/1000 -> 0 | F52: GJ | G52: =【入力補助】CO2排出量!I55/1000 -> 0 | H52: - | I52: 0.0532 | J52: - | K52: 0 | L52: =$G52*$I52 -> 0
C53: 熱合計 | E53: =SUM(E49:E52) -> 0 | K53: =SUM(K49:K52) -> 0 | L53: =SUM(L49:L52) -> 0
B55: 無効化した国内及び海外認証排出削減量 | K55: - | L55: =IF('【入力】CO2算出（電気・都市ガス）'!R56=0,"-",'【入力】CO2算出（電気・都市ガス）'!R56) -> -
B57: CO2排出量 tCO2 | K57: =ROUNDDOWN(K9+K47+K53,2) -> 0 | L57: =ROUNDDOWN(L9+L47+L53-SUM(L55:L55),2) -> 0
B58: エネルギーコスト 千円 | L58: =ROUNDDOWN(E9+E47+E53,0) -> 0
B60: ※1 本計算ツールにおいて「調整後排出係数等を用いたCO2排出量」とは、調整後排出係数、無効化した国内認証排出削
B61: 減量（他者へ移転した量を差し引いたもの）又は海外認証排出削減量を反映したCO2排出量をいいます。
B62: なお、本値には非エネルギー起源CO2排出量等が含まれておらず、温対法に報告する調整後排出量とは異なります
B63: のでご注意ください。
B65: 引用元：エネルギー起源二酸化炭素排出量等計算ツール（経済産業省HP）

Sheet 【出力】炭素生産性
B1: シート7.炭素生産性目標（CN投資促進税制）
B4: エネルギー利用環境負荷低減事業適応に関する炭素生産性の目標値に関する詳細
B5: （注）セルの背景がカラーで塗りつぶされたセルについて、以下の表の記入要領に従い記入してください。
B6: 必ず表１から順に記入してください。
B7: ※なお、「生産工程効率化等設備」の炭素生産性の計算（１％以上向上の要件）は、様式を用意していません。自由様式にて、計算根拠を提出ください。
B9: 表１
B10: 事業者名 | C10: =IF(【入力】企業情報!C7="", "", 【入力】企業情報!C7) -> 
B11: 目標設定の単位
B13: （表１の記入要領）
B14: １．「事業者名」は、会社名を正式名称で記入してください。
B15: ２．「目標設定の単位」は、エネルギー利用環境負荷低減事業適応に関する炭素生産性の目標 を設定する単位をプルダウンより選択してください。
B16: なお、「事業者全体」を「設備を導入する事業所で営む事業と同種の事業を営む事業所全体」と読み替えて適用する場合は、「事業者全体」を選択してください。
B18: 表２
B19: 基準年度 | C19: =IF(【入力】企業情報!E18="",0,INT(TEXT(【入力】企業情報!E18,"yyyy"))) -> 0
B20: 計画初年度
B21: 目標年度
B23: （表２の記入要領）
B24: １．「基準年度」、「計画初年度」及び「目標年度」は、西暦を算用数字で記入してください。算用数字以外は記入しないでください。
B25: ２．「基準年度」及び「目標年度」は、それぞれ事業適応の実施に関する指針（以下「実施指針」という。）に規定する「基準年度」及び「目標年度」をいいます。
B26: ３．「計画初年度」と「目標年度」が同じ場合は、それぞれに同じ数字を記入してください。
B28: 表３ | C28: =IF(C11="事業所","事業所名：",IF(C11="事業者全体","事業者全体","事業者全体 又は 事業所")) -> 事業者全体 又は 事業所 | E28: =IF(AND(C28="事業所名：",D28=""),"左のセルに事業所の名称を記入してください。","") -> 
B29: 年度 | C29: 基準年度 | D29: =IF(OR(C20="",C21=""),"",IF($C$20-$C$21=0,"目標年度","計画初年度")) ->  | E29: =IF(OR(C20="",C21=""),"",IF($C$21-C20=1,"目標年度",IF(C21-C20=2,"計画２年度","ー"))) ->  | F29: =IF(OR(C20="",C21=""),"",IF($C$21-C20=1,"ー",IF(C21-C20=2,"目標年度","ー"))) -> 
C30: =C19 -> 0 | D30: =C20 -> 0 | E30: =IF($E$29="計画２年度",$C$21-1,IF($E$29="目標年度",$C$21,"ー")) -> ー | F30: =IF($F$29="ー","ー",IF($F$29="目標年度",$C$21,"ー")) -> ー
B31: 炭素生産性の計算単位 | D31: =IF(AND($C$11="事業所",$C$31="事業所"),"事業所",IF(AND($C$11="事業所",$C$31="事業者全体"),"事業所",IF(AND($C$11="事業者全体",$C$31="事業者全体"),"事業者全体",IF(AND($C$11="事業者全体",$C$31="事業所"),"基準年度の単位が正しいか確認してください。","")))) ->  | E31: =IF(AND($C$11="事業所",$C$31="事業所"),"事業所",IF(AND($C$11="事業所",$C$31="事業者全体"),"事業所",IF(AND($C$11="事業者全体",$C$31="事業者全体"),"事業者全体",IF(AND($C$11="事業者全体",$C$31="事業所"),"基準年度の単位が正しいか確認してください。","")))) ->  | F31: =IF(AND($C$11="事業所",$C$31="事業所"),"事業所",IF(AND($C$11="事業所",$C$31="事業者全体"),"事業所",IF(AND($C$11="事業者全体",$C$31="事業者全体"),"事業者全体",IF(AND($C$11="事業者全体",$C$31="事業所"),"基準年度の単位が正しいか確認してください。","")))) -> 
B32: 付加価値額 | C32: =SUM(C33:C35) -> 0 | D32: =SUM(D33:D35) -> 0 | E32: =SUM(E33:E35) -> 0 | F32: =SUM(F33:F35) -> 0
B33: （営業利益） | C33: =【入力】企業情報!E26 -> 0
B34: （人件費） | C34: =【入力】企業情報!E25 -> 0
B35: （減価償却額） | C35: =【入力】企業情報!E29 -> 0
B36: エネルギー起源二酸化炭素排出量 | C36: =【出力】CO2排出量計算表!K57 -> 0
B37: 炭素生産性 | C37: =C32/C36 ->  | D37: =D32/D36 ->  | E37: =E32/E36 ->  | F37: =F32/F36 -> 
B38: 炭素生産性向上割合 | C38: － | D38: =(D37-$C$37)/$C$37 ->  | E38: =(E37-$C$37)/$C$37 ->  | F38: =(F37-$C$37)/$C$37 -> 
B39: （金額単位：千円、エネ起源CO2排出量単位：t/CO2）
B41: （表３の記入要領）
B42: １．表１の「目標設定の単位」が「事業所」の場合は、「事業所名」の欄に事業所の名称を記入してください。
B43: ２．「基準年度」の「炭素生産性の計算単位」をプルダウンより選択してください。
B44: なお、「事業者全体」を「設備を導入する事業所で営む事業と同種の事業を営む事業所全体」と読み替えて適用する場合は、「事業者全体」を選択してください。
B45: ３．「営業利益」、「人件費」及び「減価償却費」は、千円単位で記入してください。
B46: 実施指針の規定に従い、営業利益以外を用いる場合もこの欄に記入してください。
B47: ４．「エネルギー起源二酸化炭素排出量」は、t/CO2単位で記入してください。算出方法は、生産工程効率化等設備に関する命令（以下「設備命令」という。）の規定に従います。
B48: 設備命令の規定に従い、調整後排出係数等を反映した二酸化炭素排出量を用いる場合もこの欄に記入してください。
B49: なお、上記の排出量は、エネルギー起源二酸化炭素排出量等計算ツール（以下「計算ツール」という。）を用いて算出することも可能です。
B50: （参考）計算ツールは以下に掲載しています。
B52: ５．本添付資料に加えて、「付加価値額」及び「エネルギー起源二酸化炭素排出量」の算出の考え方が分かる資料を申請の際に提出してください。様式は自由です。
B53: ６．基準年度については各種入力シートの情報を基に表示しております。それ以降の欄を入力してください。
B55: 表４
B56: 炭素生産性の目標値 | C56: =IF(D29="目標年度",D38,IF(E29="目標年度",E38,IF(F29="目標年度",F38,""))) -> 
B59: 備考欄
B67: （注）表１から表３の記入内容について、補足説明がある場合は、別紙を作成するか、別紙を作成し提出してください。
B69: 引用元：事業適用計画の認定申請書（経済産業省HP）

Sheet 【入力】企業情報
A1: 黄色の欄は必ずご入力ください。（正しく出力されません。）水色の欄の入力は任意です。水色の欄を入力すると経営革新計画が作成できます。
A3: このシートでは、企業情報・財務情報を入力します。入力した内容は、他のシートにて使用されます。
A4: 入力内容については、このシートの（表１）入力項目に関する補足事項やマニュアルをご確認ください。
A6: ●基本情報 | C6: ※金額の単位は千円 | J6: （表１）入力項目に関する補足事項
A7: 会社名 | F7: 例）株式会社〇〇 | J7: 項番 | K7: 項目名 | M7: 説明
A8: 所在地 | F8: 例）長野県〇〇市1-1-1 | J8: 1 | K8: 資本金 | M8: 個人事業主の場合は、資本金は「0」と入力して下さい。
A9: 代表者名 | F9: 例）〇〇 〇〇 | J9: 2 | K9: 事業規模 | M9: 赤枠の項目が未入力の場合、事業規模が判定できないため、必ず入力して下さい。
A10: ローカルベンチマーク23業種_大分類 | M10: 事業規模は、中小企業基本法の中小企業者の定義(表2）に基づき判定しております。
A11: ローカルベンチマーク23業種_小分類 | M11: 尚、中小企業以外の「中堅企業等」は、「中規模企業」として事業規模判定をしております。
A12: 資本金 ※１ | J12: 3 | K12: 従業員数 | M12: 従業員（正社員）には、パート及び派遣及び契約社員は含まれません。
A13: 事業規模 ※２ | C13: =IF(OR(C10="",C11=""),"業種欄が未入力のため規模判定ができません",IF(LEFT(C10,2)<>LEFT(C11,2),"業種欄に間違いがあるため規模判定ができません",IF(E19="","従業員数欄が未入力のため規模判定ができません",IF(C12="","資本金欄が未入力のため規模判定ができません",【参照】企業規模!C2)))) -> 業種欄が未入力のため規模判定ができません | M13: 従業員兼役員は含まれます。
M14: 役員のみの企業で上記定義によると0名となる場合については、1名として下さい。
A15: ●財務分析用入力情報 | C15: ※金額の単位は千円、従業員数の単位は人 | J15: 4 | K15: 給与支給総額 | M15: 給与支給総額は、給料や賃金及び賞与のほか、給与所得とされる手当（残業手当、扶養手当、住宅手当等）を含みます。
A16: 項目 | C16: 入力欄 | M16: ただし、給与所得とされない手当（退職金等）及び福利厚生費（法定福利費含む）は含みません。
C17: 前々期決算期 | D17: 前期決算期 | E17: 最新決算期 | J17: 5 | K17: 人件費 | M17: 人件費は、給与・賞与・退職金・福利厚生費・派遣労働者費・アルバイトの賃金・退職給与引当金等を含みます。
A18: 決算年月 | F18: 例）yyyy/m/d（yyyy年m月へ変換されます） | J18: 6 | K18: 普通償却額 | M18: 設備リースやレンタル料を損失金で計上している場合は、普通償却額へ含めて記入してください。
A19: 従業員数 ※３ | J19: 7 | K19: 減価償却費 | M19: 製造原価、一般管理販売費等に計上されている減価償却費の合計を入力してください。
A20: 売上高 | J20: 8 | K20: 受取手形 | M20: 受取手形には、割引手形を含めた金額を入力して下さい。
A21: 前期売上高 | D21: =C20 -> 0 | E21: =D20 -> 0 | J21: 9 | K21: 支払手形 | M21: 支払手形には、設備支払手形は含めません。
A22: 売上原価 | J22: 10 | K22: 借入金 | M22: 借入金は、長期借入・短期借入・1年以内返済長期借入金の合計を入力して下さい。
A23: 販売費及び一般管理費 | M23: 役員借入金の科目を別途設けている場合にはその金額を借入金に含める必要はありません。
A24: 給与支給総額 ※４ | M24: なお、基準値の計算上、役員借入金のうち、長期借入・短期借入・1年以内返済長期借入金に計上されていないものは含まれていません。
A25: 人件費 ※５
A26: 営業利益
A27: 普通償却額 ※６ | J27: (表2）
A28: 特別償却額 | J28: 業種 | L28: 本財務分析シートの業種区分 | O28: 中小企業基本法 中小企業定義
A29: 減価償却費 ※７ | J29: 製造業 | L29: 農業、建設業、製造業、不動産業、 | O29: 資本金の額又は出資の総額が3億円以下の会社 又は 常時使用する従業員の数が300人以下の会社及び個人
A30: 経常利益 | J30: その他 | L30: 運輸業、エネルギー、その他 | P30: 内、従業員20人以下の企業を「小規模企業」とする。
A31: 現金・預金 | J31: 卸売業 | L31: 卸売業 | O31: 資本金の額又は出資の総額が1億円以下の会社 又は 常時使用する従業員の数が100人以下の会社及び個人
A32: 受取手形 ※８ | P32: 内、従業員5人以下の企業を「小規模企業」とする。
A33: 売掛金 | J33: 小売業 | L33: 小売業、飲食業 | O33: 資本金の額又は出資の総額が5千万円以下の会社 又は 常時使用する従業員の数が50人以下の会社及び個人
A34: 棚卸資産 | P34: 内、従業員5人以下の企業を「小規模企業」とする。
A35: 支払手形 ※９ | J35: サービス業 | L35: サービス業、医療業、保健衛生、 | O35: 資本金の額又は出資の総額が5千万円以下の会社 又は 常時使用する従業員の数が100人以下の会社及び個人
A36: 買掛金 | L36: 廃棄物処理業、観光業 | P36: 内、従業員5人以下の企業を「小規模企業」とする。
A37: 借入金 ※１０
A38: 負債合計
A39: 純資産合計

Sheet 【出力】財務分析
B1: 【入力】企業情報の入力内容を基に各指標を算出しております。
B3: ■基本入力情報 | D3: ※金額の単位は千円、従業員数の単位は人 | H3: ■算出結果
B4: 項目 | D4: 入力欄 | K4: =D26 ->  | M4: =E26 ->  | O4: =F26 -> 
B5: 商号 | D5: =IF(【入力】企業情報!C7="", "", 【入力】企業情報!C7) ->  | H5: 指標 | K5: 算出結果 | L5: 点数 | M5: 算出結果 | N5: 点数 | O5: 算出結果 | P5: 点数
B6: 所在地 | D6: =IF(【入力】企業情報!C8="", "", 【入力】企業情報!C8) ->  | H6: ①売上増加率 | K6: =IFERROR(IF(OR(D27="",D28=""),"-",(D27/D28)-1),"-") -> - | L6: =IFERROR(IF(OR(K6="-",$J$16="-"),".",IF((K6>=$M$16),5,IF(AND(K6>=$L$16,K6<$M$16),4,IF(AND(K6>=$K$16,K6<$L$16),3,IF(AND(K6>=$J$16,K6<$K$16),2,IF((K6<$J$16),1)))))),".") -> . | M6: =IFERROR(IF(OR(E27="",E28=""),"-",(E27/E28)-1),"-") -> - | N6: =IFERROR(IF(OR($J$16="-",M6="-"),".",IF((M6>=$M$16),5,IF(AND(M6>=$L$16,M6<$M$16),4,IF(AND(M6>=$K$16,M6<$L$16),3,IF(AND(M6>=$J$16,M6<$K$16),2,IF((M6<$J$16),1)))))),".") -> . | O6: =IFERROR(IF(OR(F27="",F28=""),"-",(F27/F28)-1),"-") -> - | P6: =IFERROR(IF(OR($J$16="-",O6="-"),".",IF((O6>=$M$16),5,IF(AND(O6>=$L$16,O6<$M$16),4,IF(AND(O6>=$K$16,O6<$L$16),3,IF(AND(O6>=$J$16,O6<$K$16),2,IF((O6<$J$16),1)))))),".") -> .
B7: 代表者名 | D7: =IF(【入力】企業情報!C9="", "", 【入力】企業情報!C9) ->  | H7: ②営業利益率 | K7: =IFERROR(IF(OR(D29="",D27=""),"-",D29/D27),"-") -> - | L7: =IFERROR(IF(OR($J$17="-",K7="-"),".",IF((K7>=$M$17),5,IF(AND(K7>=$L$17,K7<$M$17),4,IF(AND(K7>=$K$17,K7<$L$17),3,IF(AND(K7>=$J$17,K7<$K$17),2,IF((K7<$J$17),1)))))),".") -> . | M7: =IFERROR(IF(OR(E29="",E27=""),"-",E29/E27),"-") -> - | N7: =IFERROR(IF(OR($J$17="-",M7="-"),".",IF((M7>=$M$17),5,IF(AND(M7>=$L$17,M7<$M$17),4,IF(AND(M7>=$K$17,M7<$L$17),3,IF(AND(M7>=$J$17,M7<$K$17),2,IF((M7<$J$17),1)))))),".") -> . | O7: =IFERROR(IF(OR(F29="",F27=""),"-",F29/F27),"-") -> - | P7: =IFERROR(IF(OR($J$17="-",O7="-"),".",IF((O7>=$M$17),5,IF(AND(O7>=$L$17,O7<$M$17),4,IF(AND(O7>=$K$17,O7<$L$17),3,IF(AND(O7>=$J$17,O7<$K$17),2,IF((O7<$J$17),1)))))),".") -> .
B8: 業種確認ボタン | H8: ③労働生産性 ※8 | K8: =IFERROR(IF(OR(D29="",D12=""),"-",D29/D12),"-") -> - | L8: =IFERROR(IF(OR($J$18="-",K8="-"),".",IF((K8>=$M$18),5,IF(AND(K8>=$L$18,K8<$M$18),4,IF(AND(K8>=$K$18,K8<$L$18),3,IF(AND(K8>=$J$18,K8<$K$18),2,IF((K8<$J$18),1)))))),".") -> . | M8: =IFERROR(IF(OR(E29="",E12=""),"-",E29/E12),"-") -> - | N8: =IFERROR(IF(OR($J$18="-",M8="-"),".",IF((M8>=$M$18),5,IF(AND(M8>=$L$18,M8<$M$18),4,IF(AND(M8>=$K$18,M8<$L$18),3,IF(AND(M8>=$J$18,M8<$K$18),2,IF((M8<$J$18),1)))))),".") -> . | O8: =IFERROR(IF(OR(F29="",F12=""),"-",F29/F12),"-") -> - | P8: =IFERROR(IF(OR($J$18="-",O8="-"),".",IF((O8>=$M$18),5,IF(AND(O8>=$L$18,O8<$M$18),4,IF(AND(O8>=$K$18,O8<$L$18),3,IF(AND(O8>=$J$18,O8<$K$18),2,IF((O8<$J$18),1)))))),".") -> .
B9: ローカルベンチマーク23業種_大分類 | D9: =IF(【入力】企業情報!C10="", "", 【入力】企業情報!C10) ->  | H9: ④EBITDA有利子負債倍率 ※9 | K9: =IFERROR(IF(OR(D29="",D30="",D31="",D38=""),"-",(D38-D31)/(D29+D30)),"-") -> - | L9: =IFERROR(IF($J$19="-",".",IF(AND($D$38<>"",$D$31<>"",OR($D$38<$D$31,$D$38-$D$31=0)),5,IF(AND($D$29<>"",$D$30<>"",(($D$29+$D$30)<=0)),1,IF((K9<$M$19),5,IF(AND(K9>=$M$19,K9<$L$19),4,IF(AND(K9>=$L$19,K9<$K$19),3,IF(AND(K9>=$K$19,K9<$J$19),2,IF(AND(K9>=$J$19,K9<>"-"),1,IF(K9="-","."))))))))),".") -> . | M9: =IFERROR(IF(OR(E29="",E30="",E31="",E38=""),"-",(E38-E31)/(E29+E30)),"-") -> - | N9: =IFERROR(IF($J$19="-",".",IF(AND($E$38<>"",$E$31<>"",OR($E$38<$E$31,$E$38-$E$31=0)),5,IF(AND($E$29<>"",$E$30<>"",(($E$29+$E$30)<=0)),1,IF((M9<$M$19),5,IF(AND(M9>=$M$19,M9<$L$19),4,IF(AND(M9>=$L$19,M9<$K$19),3,IF(AND(M9>=$K$19,M9<$J$19),2,IF(AND(M9>=$J$19,M9<>"-"),1,IF(M9="-","."))))))))),".") -> . | O9: =IFERROR(IF(OR(F29="",F30="",F31="",F38=""),"-",(F38-F31)/(F29+F30)),"-") -> - | P9: =IFERROR(IF($J$19="-",".",IF(AND($F$38<>"",$F$31<>"",OR($F$38<$F$31,$F$38-$F$31=0)),5,IF(AND($F$29<>"",$F$30<>"",(($F$29+$F$30)<=0)),1,IF((O9<$M$19),5,IF(AND(O9>=$M$19,O9<$L$19),4,IF(AND(O9>=$L$19,O9<$K$19),3,IF(AND(O9>=$K$19,O9<$J$19),2,IF(AND(O9>=$J$19,O9<>"-"),1,IF(O9="-","."))))))))),".") -> .
B10: ローカルベンチマーク23業種_小分類 | D10: =IF(【入力】企業情報!C11="", "", 【入力】企業情報!C11) ->  | H10: ⑤営業運転資本回転期間 | K10: =IFERROR(IF(OR(D27="",AND(D33="",D32="",D34="",D37="",D36)),"-",(D33+D32+D34-(D37+D36))/(D27/12)),"-") -> - | L10: =IFERROR(IF(OR($J$20="-",K10="-"),".",IF((K10<$M$20),5,IF(AND(K10>=$M$20,K10<$L$20),4,IF(AND(K10>=$L$20,K10<$K$20),3,IF(AND(K10>=$K$20,K10<$J$20),2,IF((K10>=$J$20),1)))))),".") -> . | M10: =IFERROR(IF(OR(E27="",AND(E33="",E32="",E34="",E37="",E36)),"-",(E33+E32+E34-(E37+E36))/(E27/12)),"-") -> - | N10: =IFERROR(IF(OR($J$20="-",M10="-"),".",IF((M10<$M$20),5,IF(AND(M10>=$M$20,M10<$L$20),4,IF(AND(M10>=$L$20,M10<$K$20),3,IF(AND(M10>=$K$20,M10<$J$20),2,IF((M10>=$J$20),1)))))),".") -> . | O10: =IFERROR(IF(OR(F27="",AND(F33="",F32="",F34="",F37="",F36)),"-",(F33+F32+F34-(F37+F36))/(F27/12)),"-") -> - | P10: =IFERROR(IF(OR($J$20="-",O10="-"),".",IF((O10<$M$20),5,IF(AND(O10>=$M$20,O10<$L$20),4,IF(AND(O10>=$L$20,O10<$K$20),3,IF(AND(O10>=$K$20,O10<$J$20),2,IF((O10>=$J$20),1)))))),".") -> .
D11: 最新決算期 | E11: 前期決算期 | F11: 前々期決算期 | H11: ⑥自己資本比率 | K11: =IFERROR(IF(OR(D39="",D35=""),"-",D39/(D39+D35)),"-") -> - | L11: =IFERROR(IF(OR($J$21="-",K11="-"),".",IF((K11>=$M$21),5,IF(AND(K11>=$L$21,K11<$M$21),4,IF(AND(K11>=$K$21,K11<$L$21),3,IF(AND(K11>=$J$21,K11<$K$21),2,IF((K11<$J$21),1)))))),".") -> . | M11: =IFERROR(IF(OR(E39="",E35=""),"-",E39/(E39+E35)),"-") -> - | N11: =IFERROR(IF(OR($J$21="-",M11="-"),".",IF((M11>=$M$21),5,IF(AND(M11>=$L$21,M11<$M$21),4,IF(AND(M11>=$K$21,M11<$L$21),3,IF(AND(M11>=$J$21,M11<$K$21),2,IF((M11<$J$21),1)))))),".") -> . | O11: =IFERROR(IF(OR(F39="",F35=""),"-",F39/(F39+F35)),"-") -> - | P11: =IFERROR(IF(OR($J$21="-",O11="-"),".",IF((O11>=$M$21),5,IF(AND(O11>=$L$21,O11<$M$21),4,IF(AND(O11>=$K$21,O11<$L$21),3,IF(AND(O11>=$J$21,O11<$K$21),2,IF((O11<$J$21),1)))))),".") -> .
B12: 従業員数（正社員）※1 | D12: =IF(【入力】企業情報!E19="","",【入力】企業情報!E19) ->  | E12: =IF(【入力】企業情報!D19="","",【入力】企業情報!D19) ->  | F12: =IF(【入力】企業情報!C19="","",【入力】企業情報!C19) -> 
B13: 資本金 ※2 | D13: =IF(【入力】企業情報!C12="","",【入力】企業情報!C12) -> 
H14: ="■"&D20&"_"&D10&"_企業のランク基準" -> ■業種欄が未入力のため規模判定ができません__企業のランク基準
H15: 指標 | J15: ⅳ | K15: ⅲ | L15: ⅱ | M15: ⅰ
H16: ①売上増加率 | J16: =IFERROR(INDEX(【参照】売上増加率基準値!$G:$G,MATCH($D$10&$D$20,INDEX(【参照】売上増加率基準値!$C:$C&【参照】売上増加率基準値!$D:$D,),0)),"-") -> - | K16: =IFERROR(INDEX(【参照】売上増加率基準値!$H:$H,MATCH($D$10&$D$20,INDEX(【参照】売上増加率基準値!$C:$C&【参照】売上増加率基準値!$D:$D,),0)),"-") -> - | L16: =IFERROR(INDEX(【参照】売上増加率基準値!$I:$I,MATCH($D$10&$D$20,INDEX(【参照】売上増加率基準値!$C:$C&【参照】売上増加率基準値!$D:$D,),0)),"-") -> - | M16: =IFERROR(INDEX(【参照】売上増加率基準値!$J:$J,MATCH($D$10&$D$20,INDEX(【参照】売上増加率基準値!$C:$C&【参照】売上増加率基準値!$D:$D,),0)),"-") -> -
B17: ※プルダウンメニューが利用できない場合は「業種シート」から 該当する日本標準分類を | H17: ②営業利益率 | J17: =IFERROR(INDEX(【参照】営業利益率基準値!$G:$G,MATCH($D$10&$D$20,INDEX(【参照】営業利益率基準値!$C:$C&【参照】営業利益率基準値!$D:$D,),0)),"-") -> - | K17: =IFERROR(INDEX(【参照】営業利益率基準値!$H:$H,MATCH($D$10&$D$20,INDEX(【参照】営業利益率基準値!$C:$C&【参照】営業利益率基準値!$D:$D,),0)),"-") -> - | L17: =IFERROR(INDEX(【参照】営業利益率基準値!$I:$I,MATCH($D$10&$D$20,INDEX(【参照】営業利益率基準値!$C:$C&【参照】営業利益率基準値!$D:$D,),0)),"-") -> - | M17: =IFERROR(INDEX(【参照】営業利益率基準値!$J:$J,MATCH($D$10&$D$20,INDEX(【参照】営業利益率基準値!$C:$C&【参照】営業利益率基準値!$D:$D,),0)),"-") -> -
B18: コピー＆ペーストして下さい。 | H18: ③労働生産性 | J18: =IFERROR(INDEX(【参照】労働生産性基準値!$G:$G,MATCH($D$10&$D$20,INDEX(【参照】労働生産性基準値!$C:$C&【参照】労働生産性基準値!$D:$D,),0)),"-") -> - | K18: =IFERROR(INDEX(【参照】労働生産性基準値!$H:$H,MATCH($D$10&$D$20,INDEX(【参照】労働生産性基準値!$C:$C&【参照】労働生産性基準値!$D:$D,),0)),"-") -> - | L18: =IFERROR(INDEX(【参照】労働生産性基準値!$I:$I,MATCH($D$10&$D$20,INDEX(【参照】労働生産性基準値!$C:$C&【参照】労働生産性基準値!$D:$D,),0)),"-") -> - | M18: =IFERROR(INDEX(【参照】労働生産性基準値!$J:$J,MATCH($D$10&$D$20,INDEX(【参照】労働生産性基準値!$C:$C&【参照】労働生産性基準値!$D:$D,),0)),"-") -> -
H19: ④EBITDA有利子負債倍率 | J19: =IFERROR(INDEX(【参照】EBITDA基準値!$G:$G,MATCH($D$10&$D$20,INDEX(【参照】EBITDA基準値!$C:$C&【参照】EBITDA基準値!$D:$D,),0)),"-") -> - | K19: =IFERROR(INDEX(【参照】EBITDA基準値!$H:$H,MATCH($D$10&$D$20,INDEX(【参照】EBITDA基準値!$C:$C&【参照】EBITDA基準値!$D:$D,),0)),"-") -> - | L19: =IFERROR(INDEX(【参照】EBITDA基準値!$I:$I,MATCH($D$10&$D$20,INDEX(【参照】EBITDA基準値!$C:$C&【参照】EBITDA基準値!$D:$D,),0)),"-") -> - | M19: =IFERROR(INDEX(【参照】EBITDA基準値!$J:$J,MATCH($D$10&$D$20,INDEX(【参照】EBITDA基準値!$C:$C&【参照】EBITDA基準値!$D:$D,),0)),"-") -> -
B20: 事業規模 ※3 | D20: =IF(OR(D9="",D10=""),"業種欄が未入力のため規模判定ができません",IF(LEFT(D9,2)<>LEFT(D10,2),"業種欄に間違いがあるため規模判定ができません",IF(D12="","従業員数欄が未入力のため規模判定ができません",IF(D13="","資本金欄が未入力のため規模判定ができません",【参照】企業規模!C2)))) -> 業種欄が未入力のため規模判定ができません | H20: ⑤営業運転資本回転期間 | J20: =IFERROR(INDEX(【参照】営業運転資本回転期間基準値!$G:$G,MATCH($D$10&$D$20,INDEX(【参照】営業運転資本回転期間基準値!$C:$C&【参照】営業運転資本回転期間基準値!$D:$D,),0)),"-") -> - | K20: =IFERROR(INDEX(【参照】営業運転資本回転期間基準値!$H:$H,MATCH($D$10&$D$20,INDEX(【参照】営業運転資本回転期間基準値!$C:$C&【参照】営業運転資本回転期間基準値!$D:$D,),0)),"-") -> - | L20: =IFERROR(INDEX(【参照】営業運転資本回転期間基準値!$I:$I,MATCH($D$10&$D$20,INDEX(【参照】営業運転資本回転期間基準値!$C:$C&【参照】営業運転資本回転期間基準値!$D:$D,),0)),"-") -> - | M20: =IFERROR(INDEX(【参照】営業運転資本回転期間基準値!$J:$J,MATCH($D$10&$D$20,INDEX(【参照】営業運転資本回転期間基準値!$C:$C&【参照】営業運転資本回転期間基準値!$D:$D,),0)),"-") -> -
B21: ※上表の 欄が空欄になると事業規模が判定できないため、必ず入力して下さい。 | H21: ⑥自己資本比率 | J21: =IFERROR(INDEX(【参照】自己資本比率基準値!$G:$G,MATCH($D$10&$D$20,INDEX(【参照】自己資本比率基準値!$C:$C&【参照】自己資本比率基準値!$D:$D,),0)),"-") -> - | K21: =IFERROR(INDEX(【参照】自己資本比率基準値!$H:$H,MATCH($D$10&$D$20,INDEX(【参照】自己資本比率基準値!$C:$C&【参照】自己資本比率基準値!$D:$D,),0)),"-") -> - | L21: =IFERROR(INDEX(【参照】自己資本比率基準値!$I:$I,MATCH($D$10&$D$20,INDEX(【参照】自己資本比率基準値!$C:$C&【参照】自己資本比率基準値!$D:$D,),0)),"-") -> - | M21: =IFERROR(INDEX(【参照】自己資本比率基準値!$J:$J,MATCH($D$10&$D$20,INDEX(【参照】自己資本比率基準値!$C:$C&【参照】自己資本比率基準値!$D:$D,),0)),"-") -> -
B23: ■財務分析用入力情報 | D23: ※金額の単位は千円 | H23: ■算出指標
B24: 項目 | D24: 入力欄 | H24: 指標 | K24: 分類 | L24: 単位 | M24: 算出式
D25: 最新決算期 | E25: 前期決算期 | F25: 前々期決算期 | H25: ①売上増加率 | K25: 売上持続性 | L25: ％ | M25: （最新期売上高/前期売上高）－１
B26: 決算年月 | D26: =IF(【入力】企業情報!E18="","",【入力】企業情報!E18) ->  | E26: =IF(【入力】企業情報!D18="","",【入力】企業情報!D18) ->  | F26: =IF(【入力】企業情報!C18="","",【入力】企業情報!C18) ->  | H26: ②営業利益率 | K26: 収益性 | L26: ％ | M26: 営業利益／最新期売上高
B27: 売上高 | D27: =IF(【入力】企業情報!E20="","",【入力】企業情報!E20) ->  | E27: =IF(【入力】企業情報!D20="","",【入力】企業情報!D20) ->  | F27: =IF(【入力】企業情報!C20="","",【入力】企業情報!C20) ->  | H27: ③労働生産性 ※8 | K27: 生産性 | L27: 千円 | M27: 営業利益／従業員数
B28: 前期売上高 | D28: =E27 ->  | E28: =F27 ->  | F28: =IF(【入力】企業情報!C21="","",【入力】企業情報!C21) ->  | H28: ④EBITDA有利子負債倍率 ※9 | K28: 健全性 | L28: 倍 | M28: （借入金－現金・預金）／（営業利益＋減価償却費） ※9
B29: 営業利益 | D29: =IF(【入力】企業情報!E26="","",【入力】企業情報!E26) ->  | E29: =IF(【入力】企業情報!D26="","",【入力】企業情報!D26) ->  | F29: =IF(【入力】企業情報!C26="","",【入力】企業情報!C26) ->  | H29: ⑤営業運転資本回転期間 | K29: 効率性 | L29: ヶ月 | M29: {売上債権（売掛金＋受取手形）＋棚卸資産－
B30: 減価償却費 ※4 | D30: =IF(【入力】企業情報!E29="","",【入力】企業情報!E29) ->  | E30: =IF(【入力】企業情報!D29="","",【入力】企業情報!D29) ->  | F30: =IF(【入力】企業情報!C29="","",【入力】企業情報!C29) ->  | M30: 買入債務（買掛金＋支払手形）}／（売上高／１２）
B31: 現金・預金 | D31: =IF(【入力】企業情報!E31="","",【入力】企業情報!E31) ->  | E31: =IF(【入力】企業情報!D31="","",【入力】企業情報!D31) ->  | F31: =IF(【入力】企業情報!C31="","",【入力】企業情報!C31) ->  | H31: ⑥自己資本比率 | K31: 安全性 | L31: ％ | M31: 純資産／負債・純資産合計
B32: 受取手形 ※5 | D32: =IF(【入力】企業情報!E32="","",【入力】企業情報!E32) ->  | E32: =IF(【入力】企業情報!D32="","",【入力】企業情報!D32) ->  | F32: =IF(【入力】企業情報!C32="","",【入力】企業情報!C32) -> 
B33: 売掛金 | D33: =IF(【入力】企業情報!E33="","",【入力】企業情報!E33) ->  | E33: =IF(【入力】企業情報!D33="","",【入力】企業情報!D33) ->  | F33: =IF(【入力】企業情報!C33="","",【入力】企業情報!C33) -> 
B34: 棚卸資産 | D34: =IF(【入力】企業情報!E34="","",【入力】企業情報!E34) ->  | E34: =IF(【入力】企業情報!D34="","",【入力】企業情報!D34) ->  | F34: =IF(【入力】企業情報!C34="","",【入力】企業情報!C34) -> 
B35: 負債合計 | D35: =IF(【入力】企業情報!E38="","",【入力】企業情報!E38) ->  | E35: =IF(【入力】企業情報!D38="","",【入力】企業情報!D38) ->  | F35: =IF(【入力】企業情報!C38="","",【入力】企業情報!C38) -> 
B36: 支払手形 ※6 | D36: =IF(【入力】企業情報!E35="","",【入力】企業情報!E35) ->  | E36: =IF(【入力】企業情報!D35="","",【入力】企業情報!D35) ->  | F36: =IF(【入力】企業情報!C35="","",【入力】企業情報!C35) -> 
B37: 買掛金 | D37: =IF(【入力】企業情報!E36="","",【入力】企業情報!E36) ->  | E37: =IF(【入力】企業情報!D36="","",【入力】企業情報!D36) ->  | F37: =IF(【入力】企業情報!C36="","",【入力】企業情報!C36) -> 
B38: 借入金 ※7 | D38: =IF(【入力】企業情報!E37="","",【入力】企業情報!E37) ->  | E38: =IF(【入力】企業情報!D37="","",【入力】企業情報!D37) ->  | F38: =IF(【入力】企業情報!C37="","",【入力】企業情報!C37) -> 
B39: 純資産合計 | D39: =IF(【入力】企業情報!E39="","",【入力】企業情報!E39) ->  | E39: =IF(【入力】企業情報!D39="","",【入力】企業情報!D39) ->  | F39: =IF(【入力】企業情報!C39="","",【入力】企業情報!C39) -> 
B41: ※1：従業員（正社員）には、パート及び派遣及び契約社員は含まれません。 | H41: (表1）
B42: 従業員兼役員は含まれます。 | H42: 業種 | I42: 本財務分析シートの業種区分 | K42: 中小企業基本法 中小企業定義
B43: 役員のみの企業で上記定義によると0名となる場合については、1名として下さい。 | H43: 製造業 その他 | I43: 農業、建設業、製造業、不動産業、 | K43: 資本金の額又は出資の総額が3億円以下の会社 又は 常時使用する従業員の数が300人以下の会社及び個人
B44: ※2：個人事業主の場合は、資本金は「0」と入力して下さい。 | I44: 運輸業、エネルギー、その他 | L44: 内、従業員20人以下の企業を「小規模企業」とする。
B45: ※3：事業規模は、中小企業基本法の中小企業者の定義(表1）に基づき | H45: 卸売業 | I45: 卸売業 | K45: 資本金の額又は出資の総額が1億円以下の会社 又は 常時使用する従業員の数が100人以下の会社及び個人
B46: 判定しております。 | L46: 内、従業員5人以下の企業を「小規模企業」とする。
B47: 尚、中小企業以外の「中堅企業等」は、「中規模企業」として事業規模判定をしております。 | H47: 小売業 | I47: 小売業、飲食業 | K47: 資本金の額又は出資の総額が5千万円以下の会社 又は 常時使用する従業員の数が50人以下の会社及び個人
B48: ※4：製造原価、一般管理販売費等に計上されている減価償却費の合計を | L48: 内、従業員5人以下の企業を「小規模企業」とする。
B49: 入力して下さい。 | H49: サービス業 | I49: サービス業、医療業、保健衛生、 | K49: 資本金の額又は出資の総額が5千万円以下の会社 又は 常時使用する従業員の数が100人以下の会社及び個人
B50: ※5：受取手形には、割引手形を含めた金額を入力して下さい。 | I50: 廃棄物処理業、観光業 | L50: 内、従業員5人以下の企業を「小規模企業」とする。
B51: ※6：支払手形には、設備支払手形は含めません。
B52: ※7：借入金は、長期借入・短期借入・1年以内返済長期借入金の合計を入力して下さい。役員借入金の科目を別途設けている場合にはその金額を借入金に含める必要はありません。 なお、基準値の計算上、役員借入金のうち、長期借入・短期借入・1年以内返済長期借入金に計上されていないものは含まれていません。
B53: ※8：本分析の労働生産性は簡易的に計算したものとなりますので、経営力向上計画等に記載の際は、それぞれの定義に沿った数値を各自で計算して下さい。
B54: ※9：以下の優先順位に基づき、点数を付与します。
B55: 優先①：（借入金－現金・預金）が0以下の場合は、「5点」を付与
B56: 優先②：（営業利益＋減価償却費）が0以下の場合は、「1点」を付与
B57: 優先③：（借入金－現金・預金）が0超の時及び（営業利益＋減価償却費）が0超の時、本式にて算出された結果に基づき点数を付与
B59: 引用元：ローカルベンチマーク（経済産業省HP）

Sheet 【出力】ローカルベンチマーク
C6: ■基本情報
C7: 商号 | F7: =【出力】財務分析!D5 -> 
C9: 所在地 | F9: =【出力】財務分析!D6 -> 
C10: 代表者名 | F10: =【出力】財務分析!D7 -> 
C11: 業種_大分類 | F11: =【出力】財務分析!D9 -> 
C12: 業種_小分類 | F12: =【出力】財務分析!D10 -> 
C13: 事業規模 | F13: =【出力】財務分析!D20 -> 業種欄が未入力のため規模判定ができません
C15: 売上高 | F15: =【出力】財務分析!$D$27 -> 
C16: 営業利益 | F16: =【出力】財務分析!$D$29 -> 
C17: 従業員数 | F17: =【出力】財務分析!D12 -> 
C20: ■財務指標(最新期）
C21: 指標 | F21: =【出力】財務分析!D26 -> 
F22: 算出結果 | H22: 貴社点数 | J22: 業種基準値
C23: ①売上増加率 | F23: =【出力】財務分析!K6 -> - | H23: =【出力】財務分析!L6 -> . | J23: =IFERROR(INDEX(【参照】売上増加率基準値!$E:$E,MATCH($F$12&$F$13,INDEX(【参照】売上増加率基準値!$C:$C&【参照】売上増加率基準値!$D:$D,),0)),"-") -> -
C24: ②営業利益率 | F24: =【出力】財務分析!K7 -> - | H24: =【出力】財務分析!L7 -> . | J24: =IFERROR(INDEX(【参照】営業利益率基準値!$E:$E,MATCH($F$12&$F$13,INDEX(【参照】営業利益率基準値!$C:$C&【参照】営業利益率基準値!$D:$D,),0)),"-") -> -
C25: ③労働生産性 | F25: =【出力】財務分析!K8 -> - | H25: =【出力】財務分析!L8 -> . | J25: =IFERROR(INDEX(【参照】労働生産性基準値!$E:$E,MATCH($F$12&$F$13,INDEX(【参照】労働生産性基準値!$C:$C&【参照】労働生産性基準値!$D:$D,),0)),"-") -> -
C26: ④EBITDA有利子負債倍率 | F26: =【出力】財務分析!K9 -> - | H26: =【出力】財務分析!L9 -> . | J26: =IFERROR(INDEX(【参照】EBITDA基準値!$E:$E,MATCH($F$12&$F$13,INDEX(【参照】EBITDA基準値!$C:$C&【参照】EBITDA基準値!$D:$D,),0)),"-") -> -
C27: ⑤営業運転資本回転期間 | F27: =【出力】財務分析!K10 -> - | H27: =【出力】財務分析!L10 -> . | J27: =IFERROR(INDEX(【参照】営業運転資本回転期間基準値!$E:$E,MATCH($F$12&$F$13,INDEX(【参照】営業運転資本回転期間基準値!$C:$C&【参照】営業運転資本回転期間基準値!$D:$D,),0)),"-") -> -
C28: ⑥自己資本比率 | F28: =【出力】財務分析!K11 -> - | H28: =【出力】財務分析!L11 -> . | J28: =IFERROR(INDEX(【参照】自己資本比率基準値!$E:$E,MATCH($F$12&$F$13,INDEX(【参照】自己資本比率基準値!$C:$C&【参照】自己資本比率基準値!$D:$D,),0)),"-") -> -
F30: 総合評価点 | I30: =SUM(H23:I28) -> 0 | J30: =IF(I30>=24,"A",IF(I30>=18,"B",IF(I30>=12,"C","D"))) -> D
C33: ■財務指標（過去2期）
C34: 指標 | F34: =【出力】財務分析!E26 ->  | L34: =【出力】財務分析!F26 ->  | T34: ※１各項目の評点および総合評価点は各項目の業種基準値からの乖離を示すものであり、点数の高低が必ずしも企業の評価を示すものではありません。非財務指標も含め、総合的な判断が必要なことにご留意ください。 ※２レーダーチャートで3期分の財務分析結果の推移が確認できるため、各指標が良化（あるいは悪化）した要因を非財務の対話シートを活用しながら把握することで、経営状況や課題の把握に繋がります。
F35: 算出結果 | H35: 貴社点数 | J35: 業種基準値 | L35: 算出結果 | O35: 貴社点数 | Q35: 業種基準値
C36: ①売上増加率 | F36: =【出力】財務分析!M6 -> - | H36: =【出力】財務分析!N6 -> . | J36: =IFERROR(INDEX(【参照】売上増加率基準値!$E:$E,MATCH($F$12&$F$13,INDEX(【参照】売上増加率基準値!$C:$C&【参照】売上増加率基準値!$D:$D,),0)),"-") -> - | L36: =【出力】財務分析!O6 -> - | O36: =【出力】財務分析!P6 -> . | Q36: =IFERROR(INDEX(【参照】売上増加率基準値!$E:$E,MATCH($F$12&$F$13,INDEX(【参照】売上増加率基準値!$C:$C&【参照】売上増加率基準値!$D:$D,),0)),"-") -> -
C37: ②営業利益率 | F37: =【出力】財務分析!M7 -> - | H37: =【出力】財務分析!N7 -> . | J37: =IFERROR(INDEX(【参照】営業利益率基準値!$E:$E,MATCH($F$12&$F$13,INDEX(【参照】営業利益率基準値!$C:$C&【参照】営業利益率基準値!$D:$D,),0)),"-") -> - | L37: =【出力】財務分析!O7 -> - | O37: =【出力】財務分析!P7 -> . | Q37: =IFERROR(INDEX(【参照】営業利益率基準値!$E:$E,MATCH($F$12&$F$13,INDEX(【参照】営業利益率基準値!$C:$C&【参照】営業利益率基準値!$D:$D,),0)),"-") -> -
C38: ③労働生産性 | F38: =【出力】財務分析!M8 -> - | H38: =【出力】財務分析!N8 -> . | J38: =IFERROR(INDEX(【参照】労働生産性基準値!$E:$E,MATCH($F$12&$F$13,INDEX(【参照】労働生産性基準値!$C:$C&【参照】労働生産性基準値!$D:$D,),0)),"-") -> - | L38: =【出力】財務分析!O8 -> - | O38: =【出力】財務分析!P8 -> . | Q38: =IFERROR(INDEX(【参照】労働生産性基準値!$E:$E,MATCH($F$12&$F$13,INDEX(【参照】労働生産性基準値!$C:$C&【参照】労働生産性基準値!$D:$D,),0)),"-") -> -
C39: ④EBITDA有利子負債倍率 | F39: =【出力】財務分析!M9 -> - | H39: =【出力】財務分析!N9 -> . | J39: =IFERROR(INDEX(【参照】EBITDA基準値!$E:$E,MATCH($F$12&$F$13,INDEX(【参照】EBITDA基準値!$C:$C&【参照】EBITDA基準値!$D:$D,),0)),"-") -> - | L39: =【出力】財務分析!O9 -> - | O39: =【出力】財務分析!P9 -> . | Q39: =IFERROR(INDEX(【参照】EBITDA基準値!$E:$E,MATCH($F$12&$F$13,INDEX(【参照】EBITDA基準値!$C:$C&【参照】EBITDA基準値!$D:$D,),0)),"-") -> -
C40: ⑤営業運転資本回転期間 | F40: =【出力】財務分析!M10 -> - | H40: =【出力】財務分析!N10 -> . | J40: =IFERROR(INDEX(【参照】営業運転資本回転期間基準値!$E:$E,MATCH($F$12&$F$13,INDEX(【参照】営業運転資本回転期間基準値!$C:$C&【参照】営業運転資本回転期間基準値!$D:$D,),0)),"-") -> - | L40: =【出力】財務分析!O10 -> - | O40: =【出力】財務分析!P10 -> . | Q40: =IFERROR(INDEX(【参照】営業運転資本回転期間基準値!$E:$E,MATCH($F$12&$F$13,INDEX(【参照】営業運転資本回転期間基準値!$C:$C&【参照】営業運転資本回転期間基準値!$D:$D,),0)),"-") -> -
C41: ⑥自己資本比率 | F41: =【出力】財務分析!M11 -> - | H41: =【出力】財務分析!N11 -> . | J41: =IFERROR(INDEX(【参照】自己資本比率基準値!$E:$E,MATCH($F$12&$F$13,INDEX(【参照】自己資本比率基準値!$C:$C&【参照】自己資本比率基準値!$D:$D,),0)),"-") -> - | L41: =【出力】財務分析!O11 -> - | O41: =【出力】財務分析!P11 -> . | Q41: =IFERROR(INDEX(【参照】自己資本比率基準値!$E:$E,MATCH($F$12&$F$13,INDEX(【参照】自己資本比率基準値!$C:$C&【参照】自己資本比率基準値!$D:$D,),0)),"-") -> -
F43: 総合評価点 | I43: =SUM(H36:I41) -> 0 | J43: =IF(I43>=24,"A",IF(I43>=18,"B",IF(I43>=12,"C","D"))) -> D | L43: 総合評価点 | P43: =SUM(O36:P41) -> 0 | Q43: =IF(P43>=24,"A",IF(P43>=18,"B",IF(P43>=12,"C","D"))) -> D
F45: ※総合評価点のランクはA：24点以上、B：18点以上24点未満、C：12点以上18点未満、D：12点未満
B49: 引用元：ローカルベンチマーク（経済産業省HP）

Sheet 【参考】データ集計 (hidden)
A1: 主たる業種 | B1: 主たる業種（集約） | C1: 売上高範囲 | D1: 売上高 | E1: 対象経費 | F1: 設備区分 | G1: 設備種別 | H1: 導入前 | I1: 導入後 | J1: 削減額 | K1: 対象経費範囲 | L1: 電気（導入前） | M1: 電気（導入後） | N1: LPG（導入前）㎥ | O1: LPG（導入後）㎥ | P1: LPG（導入前）kl | Q1: LPG（導入後）kl | R1: LNG（導入前）㎥ | S1: LNG（導入後）㎥ | T1: LNG（導入前）kl | U1: LNG（導入後）kl | V1: 都市ガス（導入前） | W1: 都市ガス（導入後） | X1: 灯油（導入前） | Y1: 灯油（導入後） | Z1: A重油（導入前） | AA1: A重油（導入後） | AB1: 電気の係数 | AC1: 電気（導入前） | AD1: 電気（導入後） | AE1: LPG（導入前）㎥ | AF1: LPG（導入後）㎥ | AG1: LPG（導入前）kl | AH1: LPG（導入後）kl | AI1: LNG（導入前）㎥ | AJ1: LNG（導入後）㎥ | AK1: LNG（導入前）kl | AL1: LNG（導入後）kl | AM1: 都市ガス（導入前） | AN1: 都市ガス（導入後） | AO1: 灯油（導入前） | AP1: 灯油（導入後） | AQ1: A重油（導入前） | AR1: A重油（導入後） | AS1: 排出量（導入前） | AT1: 排出量（導入後） | AU1: 排出量削減 | AV1: 設備区分＋投資額範囲 | AW1: 設備区分 | AX1: 対象経費 | AZ1: 件数 | BA1: 削減額 | BB1: 1件あたりの削減額 | BC1: 排出量削減 | BD1: 1件あたりの排出量 | BE1: 業種略称 | BF1: 主たる業種（集約） | BG1: 売上高範囲 | BI1: 主たる業種（集約） | BJ1: 売上高範囲 | BK1: 売上高 | BL1: 対象経費 | BM1: 設備区分 | BN1: 導入前 | BO1: 導入後 | BP1: 削減額 | BQ1: 対象経費範囲 | BR1: 排出量合計 | BS1: 件数 | BT1: 1件当たりの導入後額
A2: 製造業 | B2: =IFERROR(VLOOKUP(A2,【参照】選択リスト!$N$2:$O$22,2,FALSE),"") -> 製造業 | C2: =VLOOKUP(D2,INDIRECT(BE2&"_売上高範囲"),2) -> 250,000～1,000,000 | D2: 252788409 | E2: 10250000 | F2: 生産設備 | G2: プラスチック加工機械 | H2: 12930339 | I2: 12333485 | J2: 596854 | K2: =VLOOKUP(E2,【参照】選択リスト!$A$87:$B$108,2) -> 10,000～11,000 | L2: 656620 | M2: 626311 | AB2: =IFERROR(SUBSTITUTE(VLOOKUP('【入力】CO2算出（電気・都市ガス）'!L29,【参照】排出量係数!$C$2:$E$2000,2,FALSE),"※",""),"") -> 0.000433 | AC2: =L2/1000*$AB$2*1000 -> 284.31646 | AD2: =M2/1000*$AB$2*1000 -> 271.192663 | AE2: =N2*(1/458)*【出力】CO2排出量計算表!$H$21*【出力】CO2排出量計算表!$I$21*【出力】CO2排出量計算表!$J$21 -> 0 | AF2: =O2*(1/458)*【出力】CO2排出量計算表!$H$21*【出力】CO2排出量計算表!$I$21*【出力】CO2排出量計算表!$J$21 -> 0 | AG2: =P2*(1/458)*【出力】CO2排出量計算表!$H$21*【出力】CO2排出量計算表!$I$21*【出力】CO2排出量計算表!$J$21 -> 0 | AH2: =Q2*(1/458)*【出力】CO2排出量計算表!$H$21*【出力】CO2排出量計算表!$I$21*【出力】CO2排出量計算表!$J$21 -> 0 | AI2: =R2/1000*【出力】CO2排出量計算表!$H$23*【出力】CO2排出量計算表!$I$23*【出力】CO2排出量計算表!$J$23 -> 0 | AJ2: =S2/1000*【出力】CO2排出量計算表!$H$23*【出力】CO2排出量計算表!$I$23*【出力】CO2排出量計算表!$J$23 -> 0 | AK2: =T2/1000*【出力】CO2排出量計算表!$H$23*【出力】CO2排出量計算表!$I$23*【出力】CO2排出量計算表!$J$23 -> 0 | AL2: =U2/1000*【出力】CO2排出量計算表!$H$23*【出力】CO2排出量計算表!$I$23*【出力】CO2排出量計算表!$J$23 -> 0 | AM2: =V2/1000*'【入力】CO2算出（電気・都市ガス）'!$P$37*'【入力】CO2算出（電気・都市ガス）'!$X$37*44/12 -> 0 | AN2: =W2/1000*'【入力】CO2算出（電気・都市ガス）'!$P$37*'【入力】CO2算出（電気・都市ガス）'!$X$37*44/12 -> 0 | AO2: =X2*【出力】CO2排出量計算表!$H$16*【出力】CO2排出量計算表!$I$16*【出力】CO2排出量計算表!$J$16/1000 -> 0 | AP2: =Y2*【出力】CO2排出量計算表!$H$16*【出力】CO2排出量計算表!$I$16*【出力】CO2排出量計算表!$J$16/1000 -> 0 | AQ2: =Z2*【出力】CO2排出量計算表!$H$18*【出力】CO2排出量計算表!$I$18*【出力】CO2排出量計算表!$J$18/1000 -> 0 | AR2: =AA2*【出力】CO2排出量計算表!$H$18*【出力】CO2排出量計算表!$I$18*【出力】CO2排出量計算表!$J$18/1000 -> 0 | AS2: =SUM(AC2,AE2,AG2,AI2,AK2,AM2,AO2,AQ2) -> 284.31646 | AT2: =SUM(AD2,AF2,AH2,AL2,AJ2,AN2,AP2,AR2) -> 271.192663 | AU2: =AS2-AT2 -> 13.123797 | AV2: =AW2&AX2 -> 空調・換気設備1～1,000 | AW2: 空調・換気設備 | AX2: 1～1,000 | AY2: 1 ～1,000 | AZ2: =COUNTIFS($F$2:$F$2000,AW2,$K$2:$K$2000,AX2) -> 186 | BA2: =SUMIFS($J$2:$J$2000,$F$2:$F$2000,AW2,$K$2:$K$2000,AX2) -> 17055439 | BB2: =IFERROR(BA2/AZ2/1000,0) -> 91.6959086 | BC2: =SUMIFS($AU$2:$AU$2000,$F$2:$F$2000,AW2,$K$2:$K$2000,AX2) -> 301.824986 | BD2: =IFERROR(BC2/AZ2,0) -> 1.622714978 | BE2: =IF(B2="サービス業，その他","サービス業",IF(B2="卸売業，小売業","卸売業",IF(B2="製造業","製造業",IF(B2="建設業","建設業",IF(B2="宿泊業，飲食サービス業","宿泊業",""))))) -> 製造業 | BF2: =IFERROR(VLOOKUP(【出力】財務分析!D9,【参照】選択リスト!J2:L28,3,FALSE),"") ->  | BG2: =IFERROR(VLOOKUP(【出力】財務分析!D27*1000,INDIRECT(BF6&"_売上高範囲"),2),"") ->  | BI2: 製造業 | BJ2: 25,000～50,000 | BK2: 44141314 | BL2: 2850000 | BM2: 空調・換気設備 | BN2: 1857646 | BO2: 1485979 | BP2: 371667 | BQ2: 2,000～3,000 | BR2: =SUMIFS($AT$2:$AT$2000,$B$2:$B$2000,BF2,$C$2:$C$2000,BG2) -> 0 | BS2: =IF(OR(BF2="",BG2=""),0,COUNTA(BI:BI)-1) -> 0 | BT2: =SUM(BO2:BO2000)/BS2 ->  | BU2: =BR2/BS2 -> 
A3: 複合サービス事業 | B3: =IFERROR(VLOOKUP(A3,【参照】選択リスト!$N$2:$O$22,2,FALSE),"") -> サービス業，その他 | C3: =VLOOKUP(D3,INDIRECT(BE3&"_売上高範囲"),2) -> 25,000～50,000 | D3: 47697141 | E3: 1470000 | F3: 照明設備 | G3: 一般用LED照明器具 | H3: 80630 | I3: 24816 | J3: 55814 | K3: =VLOOKUP(E3,【参照】選択リスト!$A$87:$B$108,2) -> 1,000～2,000 | L3: 4857 | M3: 1495 | AC3: =L3/1000*$AB$2*1000 -> 2.103081 | AD3: =M3/1000*$AB$2*1000 -> 0.647335 | AE3: =N3*(1/458)*【出力】CO2排出量計算表!$H$21*【出力】CO2排出量計算表!$I$21*【出力】CO2排出量計算表!$J$21 -> 0 | AF3: =O3*(1/458)*【出力】CO2排出量計算表!$H$21*【出力】CO2排出量計算表!$I$21*【出力】CO2排出量計算表!$J$21 -> 0 | AG3: =P3*(1/458)*【出力】CO2排出量計算表!$H$21*【出力】CO2排出量計算表!$I$21*【出力】CO2排出量計算表!$J$21 -> 0 | AH3: =Q3*(1/458)*【出力】CO2排出量計算表!$H$21*【出力】CO2排出量計算表!$I$21*【出力】CO2排出量計算表!$J$21 -> 0 | AI3: =R3/1000*【出力】CO2排出量計算表!$H$23*【出力】CO2排出量計算表!$I$23*【出力】CO2排出量計算表!$J$23 -> 0 | AJ3: =S3/1000*【出力】CO2排出量計算表!$H$23*【出力】CO2排出量計算表!$I$23*【出力】CO2排出量計算表!$J$23 -> 0 | AK3: =T3/1000*【出力】CO2排出量計算表!$H$23*【出力】CO2排出量計算表!$I$23*【出力】CO2排出量計算表!$J$23 -> 0 | AL3: =U3/1000*【出力】CO2排出量計算表!$H$23*【出力】CO2排出量計算表!$I$23*【出力】CO2排出量計算表!$J$23 -> 0 | AM3: =V3/1000*'【入力】CO2算出（電気・都市ガス）'!$P$37*'【入力】CO2算出（電気・都市ガス）'!$X$37*44/12 -> 0 | AN3: =W3/1000*'【入力】CO2算出（電気・都市ガス）'!$P$37*'【入力】CO2算出（電気・都市ガス）'!$X$37*44/12 -> 0 | AO3: =X3*【出力】CO2排出量計算表!$H$16*【出力】CO2排出量計算表!$I$16*【出力】CO2排出量計算表!$J$16/1000 -> 0 | AP3: =Y3*【出力】CO2排出量計算表!$H$16*【出力】CO2排出量計算表!$I$16*【出力】CO2排出量計算表!$J$16/1000 -> 0 | AQ3: =Z3*【出力】CO2排出量計算表!$H$18*【出力】CO2排出量計算表!$I$18*【出力】CO2排出量計算表!$J$18/1000 -> 0 | AR3: =AA3*【出力】CO2排出量計算表!$H$18*【出力】CO2排出量計算表!$I$18*【出力】CO2排出量計算表!$J$18/1000 -> 0 | AS3: =SUM(AC3,AE3,AG3,AI3,AK3,AM3,AO3,AQ3) -> 2.103081 | AT3: =SUM(AD3,AF3,AH3,AL3,AJ3,AN3,AP3,AR3) -> 0.647335 | AU3: =AS3-AT3 -> 1.455746 | AV3: 空調・換気設備1,000～2,000 | AW3: 空調・換気設備 | AX3: 1,000～2,000 | AY3: 1,000 ～2,000 | AZ3: =COUNTIFS($F$2:$F$2000,AW3,$K$2:$K$2000,AX3) -> 259 | BA3: =SUMIFS($J$2:$J$2000,$F$2:$F$2000,AW3,$K$2:$K$2000,AX3) -> 34241551 | BB3: =IFERROR(BA3/AZ3/1000,0) -> 132.2067606 | BC3: =SUMIFS($AU$2:$AU$2000,$F$2:$F$2000,AW3,$K$2:$K$2000,AX3) -> 532.2996043 | BD3: =IFERROR(BC3/AZ3,0) -> 2.055210827 | BE3: =IF(B3="サービス業，その他","サービス業",IF(B3="卸売業，小売業","卸売業",IF(B3="製造業","製造業",IF(B3="建設業","建設業",IF(B3="宿泊業，飲食サービス業","宿泊業",""))))) -> サービス業 | BI3: 製造業 | BJ3: 25,000～50,000 | BK3: 34654566 | BL3: 780000 | BM3: 照明設備 | BN3: 97965 | BO3: 44555 | BP3: 53410 | BQ3: 1～1,000
A4: 生活関連サービス業，娯楽業 | B4: =IFERROR(VLOOKUP(A4,【参照】選択リスト!$N$2:$O$22,2,FALSE),"") -> サービス業，その他 | C4: =VLOOKUP(D4,INDIRECT(BE4&"_売上高範囲"),2) -> 100,000～250,000 | D4: 119022743 | E4: 1402000 | F4: 建物付属設備 | G4: 断熱ガラス及びサッシ | H4: 202949 | I4: 162359 | J4: 40590 | K4: =VLOOKUP(E4,【参照】選択リスト!$A$87:$B$108,2) -> 1,000～2,000 | X4: 1847 | Y4: 1477 | AC4: 0 | AD4: 0 | AE4: =N4*(1/458)*【出力】CO2排出量計算表!$H$21*【出力】CO2排出量計算表!$I$21*【出力】CO2排出量計算表!$J$21 -> 0 | AF4: =O4*(1/458)*【出力】CO2排出量計算表!$H$21*【出力】CO2排出量計算表!$I$21*【出力】CO2排出量計算表!$J$21 -> 0 | AG4: =P4*(1/458)*【出力】CO2排出量計算表!$H$21*【出力】CO2排出量計算表!$I$21*【出力】CO2排出量計算表!$J$21 -> 0 | AH4: =Q4*(1/458)*【出力】CO2排出量計算表!$H$21*【出力】CO2排出量計算表!$I$21*【出力】CO2排出量計算表!$J$21 -> 0 | AI4: =R4/1000*【出力】CO2排出量計算表!$H$23*【出力】CO2排出量計算表!$I$23*【出力】CO2排出量計算表!$J$23 -> 0 | AJ4: =S4/1000*【出力】CO2排出量計算表!$H$23*【出力】CO2排出量計算表!$I$23*【出力】CO2排出量計算表!$J$23 -> 0 | AK4: =T4/1000*【出力】CO2排出量計算表!$H$23*【出力】CO2排出量計算表!$I$23*【出力】CO2排出量計算表!$J$23 -> 0 | AL4: =U4/1000*【出力】CO2排出量計算表!$H$23*【出力】CO2排出量計算表!$I$23*【出力】CO2排出量計算表!$J$23 -> 0 | AM4: =V4/1000*'【入力】CO2算出（電気・都市ガス）'!$P$37*'【入力】CO2算出（電気・都市ガス）'!$X$37*44/12 -> 0 | AN4: =W4/1000*'【入力】CO2算出（電気・都市ガス）'!$P$37*'【入力】CO2算出（電気・都市ガス）'!$X$37*44/12 -> 0 | AO4: =X4*【出力】CO2排出量計算表!$H$16*【出力】CO2排出量計算表!$I$16*【出力】CO2排出量計算表!$J$16/1000 -> 4.622456117 | AP4: =Y4*【出力】CO2排出量計算表!$H$16*【出力】CO2排出量計算表!$I$16*【出力】CO2排出量計算表!$J$16/1000 -> 3.696463283 | AQ4: =Z4*【出力】CO2排出量計算表!$H$18*【出力】CO2排出量計算表!$I$18*【出力】CO2排出量計算表!$J$18/1000 -> 0 | AR4: =AA4*【出力】CO2排出量計算表!$H$18*【出力】CO2排出量計算表!$I$18*【出力】CO2排出量計算表!$J$18/1000 -> 0 | AS4: 4.622456117 | AT4: 3.696463283 | AU4: 0.9259928333 | AV4: 空調・換気設備2,000～3,000 | AW4: 空調・換気設備 | AX4: 2,000～3,000 | AY4: 2,000 ～3,000 | AZ4: 57 | BA4: 13981886 | BB4: =IFERROR(BA4/AZ4/1000,0) -> 245.2962456 | BC4: =SUMIFS($AU$2:$AU$2000,$F$2:$F$2000,AW4,$K$2:$K$2000,AX4) -> 255.4395468 | BD4: =IFERROR(BC4/AZ4,0) -> 4.481395557 | BE4: =IF(B4="サービス業，その他","サービス業",IF(B4="卸売業，小売業","卸売業",IF(B4="製造業","製造業",IF(B4="建設業","建設業",IF(B4="宿泊業，飲食サービス業","宿泊業",""))))) -> サービス業 | BI4: 製造業 | BJ4: 25,000～50,000 | BK4: 39952000 | BL4: 1632446 | BM4: 電気制御設備 | BN4: 1523381 | BO4: 1504999 | BP4: 18382 | BQ4: 1,000～2,000 | BR4: =SUM($AT$2:$AT$2000) -> 125479.4156 | BS4: =COUNTIF(F:F, "*") -> 1726 | BT4: =SUM(I:I)/BS4 -> 3695504.223 | BU4: =BR4/BS4 -> 72.69954553
